Workbook

Sheet MENU
B2: ● | C2: Using A Calculator Efficiently
B4: Interpret a calculator display in the context of money or measures
B6: Convert £, $ & € using a 7-segment display at a bureau de change
B8: Find the cost of fuel using a 7-segment display at a petrol station
B10: Find the total cost of fruit given its metric mass or imperial weight
B12: Find the total cost of food bought in a café & change from a note
B14: Find the total cost of multiple retail items & change from a note
B16: Find the total food bill & each person’s share after adding a % tip
B18: Find the amount saved if I bulk-press multiple CDs instead of batch
B20: Find the total cost of a gas or water bill inc’ standing charge + VAT
B22: Evaluate expressions exactly using all four operations & brackets
B24: Evaluate & round expressions using fractions, powers & roots
B26: Evaluate & round integers multiplied & divided by n where 0 < n < 1
B28: Evaluate & round reciprocals of integers & decimals

Sheet LINK
C2: All content © eStarters Ltd 2020
C4: For more downloads and further information
C6: Visit the Trinity Maths website
C8: To contact us directly, email: info@estarters.com
C10: =MENU!C2 -> Using A Calculator Efficiently
C12: is № 1 of 10 free sample files from the
C14: 178 Topic Files in Trinity Maths (Version 3)

Sheet FRUITMET
E1: 1
C2: Find (i) the cost of each metric mass of fruit
C3: (ii) the total using these prices per kilogram. | Z3: =AO44 -> 0
AA4: =IF(AU57=0,"ⁿ",IF(AS57=0,"•","∙")) -> ∙ | AC4: =IF(AU58=0,"ⁿ",IF(AS58=0,"•","∙")) -> ∙
C5: Type of Fruit | K5: Price
C6: =AQ25 -> Peaches | K6: =AT25 -> £2.60 | T6: =CONCATENATE($AQ$38) -> 2.05 kg | U6: of | V6: =CONCATENATE(,$AQ$35) -> Guavas
C7: Physalis | K7: £7.13 | T7: cost | U7: = | V7: =AQ44 -> 2.05 × 4.35
C8: Lemons | K8: £1.81 | U8: = | V8: =CONCATENATE("",AQ47) -> 8.9175
C9: Guavas | K9: £4.35 | T9: =T7 -> cost | U9: = | V9: =AW47 -> £8.92
C10: Tomatoes | K10: £2.51 | T10: =CONCATENATE($AQ$39) -> 450 g | U10: of | V10: =CONCATENATE(,$AQ$36) -> Tomatoes
C11: Prunes | K11: £2.75 | T11: =T7 -> cost | U11: = | V11: =AQ45 -> 0.45 × 2.51
C12: Apples | K12: £1.02 | U12: = | V12: =CONCATENATE("",AQ48) -> 1.1295
C13: Clementines | K13: £1.67 | T13: =T11 -> cost | U13: = | V13: =AW48 -> £1.13
T15: total | U15: = | V15: =IF($C$4=1,AK59,AK60) -> £10.05
AF16: 10 | AG16: =1*(INT(AF16*RAND())+1) -> 1 | AH16: =1*(INT((AF16-1)*RAND())+1) -> 7 | AI16: =AH16+AG16 -> 8 | AJ16: =MOD(AI16-1,AF16)+1 -> 8 | AK16: 0 | AL16: =AG16+AK16 -> 1 | AM16: =AJ16+AK16 -> 8 | AO16: 1 | AP16: =$AL$16 -> 1 | AQ16: =$AM$16 -> 8 | AR16: =$AL$17 -> 18 | AS16: =$AL$19 -> 38 | AT16: =$AM$19 -> 33 | AU16: =$AM$17 -> 15 | AV16: =$AL$18 -> 27 | AW16: =$AM$18 -> 29
AF17: 10 | AG17: =1*(INT(AF17*RAND())+1) -> 8 | AH17: =1*(INT((AF17-1)*RAND())+1) -> 7 | AI17: =AH17+AG17 -> 15 | AJ17: =MOD(AI17-1,AF17)+1 -> 5 | AK17: 10 | AL17: =AG17+AK17 -> 18 | AM17: =AJ17+AK17 -> 15 | AO17: 2 | AP17: =$AM$19 -> 33 | AQ17: =$AL$16 -> 1 | AR17: =$AM$16 -> 8 | AS17: =$AL$17 -> 18 | AT17: =$AM$18 -> 29 | AU17: =$AL$19 -> 38 | AV17: =$AM$17 -> 15 | AW17: =$AL$18 -> 27
AF18: 10 | AG18: =1*(INT(AF18*RAND())+1) -> 7 | AH18: =1*(INT((AF18-1)*RAND())+1) -> 2 | AI18: =AH18+AG18 -> 9 | AJ18: =MOD(AI18-1,AF18)+1 -> 9 | AK18: 20 | AL18: =AG18+AK18 -> 27 | AM18: =AJ18+AK18 -> 29 | AO18: 3 | AP18: =$AL$19 -> 38 | AQ18: =$AM$17 -> 15 | AR18: =$AL$18 -> 27 | AS18: =$AM$18 -> 29 | AT18: =$AM$19 -> 33 | AU18: =$AL$16 -> 1 | AV18: =$AM$16 -> 8 | AW18: =$AL$17 -> 18
AF19: 8 | AG19: =1*(INT(AF19*RAND())+1) -> 8 | AH19: =1*(INT((AF19-1)*RAND())+1) -> 3 | AI19: =AH19+AG19 -> 11 | AJ19: =MOD(AI19-1,AF19)+1 -> 3 | AK19: 30 | AL19: =AG19+AK19 -> 38 | AM19: =AJ19+AK19 -> 33 | AO19: 4 | AP19: =$AM$18 -> 29 | AQ19: =$AL$19 -> 38 | AR19: =$AM$19 -> 33 | AS19: =$AL$18 -> 27 | AT19: =$AL$16 -> 1 | AU19: =$AM$16 -> 8 | AV19: =$AL$17 -> 18 | AW19: =$AM$17 -> 15
AF20: 1 | AG20: Apples | AH20: =INT(99*RAND())+101 -> 102 | AI20: =IF(AH20<100,1,0) -> 0 | AJ20: =IF(AH20/100=ROUNDDOWN(AH20/100,0),1,0) -> 0 | AK20: =IF(AH20/10=ROUNDDOWN(AH20/10,0),1,0) -> 0 | AL20: =AI20+AJ20*2+AK20*4 -> 0 | AM20: =IF(AL20=0,CONCATENATE($R$28,ROUND(AH20/100,2)),IF(AL20=1,CONCATENATE(ROUND(AH20,0),$S$28),IF(AL20=4,CONCATENATE($R$28,AH20/100,"0"),IF(AL20=5,CONCATENATE(AH20,$S$28),IF(AL20=6,CONCATENATE($R$28,AH20/100),"xxx"))))) -> £1.02 | AO20: 5 | AP20: =$AL$18 -> 27 | AQ20: =$AM$18 -> 29 | AR20: =$AL$17 -> 18 | AS20: =$AM$17 -> 15 | AT20: =$AL$19 -> 38 | AU20: =$AM$19 -> 33 | AV20: =$AL$16 -> 1 | AW20: =$AM$16 -> 8
AF21: 2 | AG21: Apricots | AH21: =INT(99*RAND())+201 -> 202 | AI21: =IF(AH21<100,1,0) -> 0 | AJ21: =IF(AH21/100=ROUNDDOWN(AH21/100,0),1,0) -> 0 | AK21: =IF(AH21/10=ROUNDDOWN(AH21/10,0),1,0) -> 0 | AL21: =AI21+AJ21*2+AK21*4 -> 0 | AM21: =IF(AL21=0,CONCATENATE($R$28,ROUND(AH21/100,2)),IF(AL21=1,CONCATENATE(ROUND(AH21,0),$S$28),IF(AL21=4,CONCATENATE($R$28,AH21/100,"0"),IF(AL21=5,CONCATENATE(AH21,$S$28),IF(AL21=6,CONCATENATE($R$28,AH21/100),"xxx"))))) -> £2.02 | AO21: 6 | AP21: =$AM$17 -> 15 | AQ21: =$AL$18 -> 27 | AR21: =$AL$17 -> 18 | AS21: =$AM$18 -> 29 | AT21: =$AL$19 -> 38 | AU21: =$AM$19 -> 33 | AV21: =$AL$16 -> 1 | AW21: =$AM$16 -> 8
AF22: 3 | AG22: Bananas | AH22: =INT(51*RAND())+101 -> 148 | AI22: 0 | AJ22: 0 | AK22: 0 | AL22: 0 | AM22: £1.48 | AO22: 7 | AP22: =$AL$17 -> 18 | AQ22: =$AM$17 -> 15 | AR22: =$AM$19 -> 33 | AS22: =$AL$16 -> 1 | AT22: =$AM$16 -> 8 | AU22: =$AL$18 -> 27 | AV22: =$AM$18 -> 29 | AW22: =$AL$19 -> 38
AF23: 4 | AG23: Blackcurrants | AH23: =INT(99*RAND())+301 -> 302 | AI23: 0 | AJ23: 0 | AK23: 0 | AL23: 0 | AM23: £3.02 | AO23: 8 | AP23: =$AM$16 -> 8 | AQ23: =$AM$18 -> 29 | AR23: =$AL$19 -> 38 | AS23: =$AM$19 -> 33 | AT23: =$AL$16 -> 1 | AU23: =$AL$17 -> 18 | AV23: =$AM$17 -> 15 | AW23: =$AL$18 -> 27
AF24: 5 | AG24: Blueberries | AH24: =INT(99*RAND())+501 -> 585 | AI24: 0 | AJ24: 0 | AK24: 0 | AL24: 0 | AM24: £5.85 | AO24: =INT(8*RAND())+1 -> 5
AF25: 6 | AG25: Cantaloupes | AH25: =INT(99*RAND())+301 -> 383 | AI25: 0 | AJ25: 0 | AK25: 0 | AL25: 0 | AM25: £3.83 | AO25: 1 | AP25: =VLOOKUP($AO$24,$AO$16:$AW$23,2) -> 27 | AQ25: =VLOOKUP(AP25,$AF$20:$AN$57,2) -> Peaches | AR25: =VLOOKUP(AP25,$AF$20:$AN$57,3) -> 260 | AS25: =AR25/100 -> 2.6 | AT25: =VLOOKUP(AP25,$AF$20:$AN$57,8) -> £2.60
AF26: 7 | AG26: Black Cherries | AH26: =INT(99*RAND())+501 -> 592 | AI26: 0 | AJ26: 0 | AK26: 0 | AL26: 0 | AM26: £5.92 | AO26: 2 | AP26: =VLOOKUP($AO$24,$AO$16:$AW$23,3) -> 29 | AQ26: =VLOOKUP(AP26,$AF$20:$AN$57,2) -> Physalis | AR26: =VLOOKUP(AP26,$AF$20:$AN$57,3) -> 713 | AS26: =AR26/100 -> 7.13 | AT26: =VLOOKUP(AP26,$AF$20:$AN$57,8) -> £7.13
AF27: 8 | AG27: Clementines | AH27: =INT(99*RAND())+101 -> 167 | AI27: 0 | AJ27: 0 | AK27: 0 | AL27: 0 | AM27: £1.67 | AO27: 3 | AP27: =VLOOKUP($AO$24,$AO$16:$AW$23,4) -> 18 | AQ27: Lemons | AR27: 181 | AS27: 1.81 | AT27: £1.81
Q28: =E1 -> 1 | R28: =IF(Q28=1,"£",IF(Q28=2,"$",IF(Q28=3,"€","R"))) -> £ | S28: =IF(Q28=1,"p","c") -> p | AF28: 9 | AG28: Cranberries | AH28: =INT(99*RAND())+201 -> 252 | AI28: 0 | AJ28: 0 | AK28: 0 | AL28: 0 | AM28: £2.52 | AO28: 4 | AP28: =VLOOKUP($AO$24,$AO$16:$AW$23,5) -> 15 | AQ28: Guavas | AR28: 435 | AS28: 4.35 | AT28: £4.35
AF29: 10 | AG29: Dates | AH29: =INT(99*RAND())+201 -> 249 | AI29: 0 | AJ29: 0 | AK29: 0 | AL29: 0 | AM29: £2.49 | AO29: 5 | AP29: =VLOOKUP($AO$24,$AO$16:$AW$23,6) -> 38 | AQ29: Tomatoes | AR29: 251 | AS29: 2.51 | AT29: £2.51
AF30: 11 | AG30: Figs | AH30: =INT(99*RAND())+301 -> 354 | AI30: 0 | AJ30: 0 | AK30: 0 | AL30: 0 | AM30: £3.54 | AO30: 6 | AP30: =VLOOKUP($AO$24,$AO$16:$AW$23,7) -> 33 | AQ30: Prunes | AR30: 275 | AS30: 2.75 | AT30: £2.75
AF31: 12 | AG31: Gooseberries | AH31: =INT(99*RAND())+201 -> 216 | AI31: 0 | AJ31: 0 | AK31: 0 | AL31: 0 | AM31: £2.16 | AO31: 7 | AP31: =VLOOKUP($AO$24,$AO$16:$AW$23,8) -> 1 | AQ31: Apples | AR31: 102 | AS31: 1.02 | AT31: £1.02
AF32: 13 | AG32: Grapefruit | AH32: =INT(99*RAND())+101 -> 193 | AI32: 0 | AJ32: 0 | AK32: 0 | AL32: 0 | AM32: £1.93 | AO32: 8 | AP32: =VLOOKUP($AO$24,$AO$16:$AW$23,9) -> 8 | AQ32: Clementines | AR32: 167 | AS32: 1.67 | AT32: £1.67
AF33: 14 | AG33: Red Grapes | AH33: =INT(99*RAND())+101 -> 172 | AI33: 0 | AJ33: 0 | AK33: 0 | AL33: 0 | AM33: £1.72 | AP33: 8 | AQ33: =1*(INT(AP33*RAND())+1) -> 4 | AR33: =1*(INT((AP33-1)*RAND())+1) -> 1 | AS33: =AR33+AQ33 -> 5 | AT33: =MOD(AS33-1,AP33)+1 -> 5
AF34: 15 | AG34: Guavas | AH34: =INT(99*RAND())+401 -> 435 | AI34: 0 | AJ34: 0 | AK34: 0 | AL34: 0 | AM34: £4.35
AF35: 16 | AG35: Kiwi Fruit | AH35: =INT(99*RAND())+201 -> 260 | AI35: 0 | AJ35: 0 | AK35: 1 | AL35: 4 | AM35: £2.60 | AO35: =AQ33 -> 4 | AP35: =VLOOKUP(AO35,$AO$25:$AU$32,2) -> 15 | AQ35: =VLOOKUP(AO35,$AO$25:$AU$32,3) -> Guavas | AR35: =VLOOKUP(AO35,$AO$25:$AU$32,4) -> 435 | AS35: =VLOOKUP(AO35,$AO$25:$AU$32,5) -> 4.35 | AT35: =VLOOKUP(AO35,$AO$25:$AU$32,6) -> £4.35
AF36: 17 | AG36: Kumquats | AH36: =INT(99*RAND())+501 -> 532 | AI36: 0 | AJ36: 0 | AK36: 0 | AL36: 0 | AM36: £5.32 | AO36: =AT33 -> 5 | AP36: =VLOOKUP(AO36,$AO$25:$AU$32,2) -> 38 | AQ36: =VLOOKUP(AO36,$AO$25:$AU$32,3) -> Tomatoes | AR36: =VLOOKUP(AO36,$AO$25:$AU$32,4) -> 251 | AS36: =VLOOKUP(AO36,$AO$25:$AU$32,5) -> 2.51 | AT36: =VLOOKUP(AO36,$AO$25:$AU$32,6) -> £2.51
AF37: 18 | AG37: Lemons | AH37: =INT(99*RAND())+101 -> 181 | AI37: 0 | AJ37: 0 | AK37: 0 | AL37: 0 | AM37: £1.81
AF38: 19 | AG38: Lychees | AH38: =INT(99*RAND())+701 -> 701 | AI38: 0 | AJ38: 0 | AK38: 0 | AL38: 0 | AM38: £7.01 | AO38: =50*(INT(41*RAND())+6) -> 2050 | AP38: =AO38/1000 -> 2.05 | AQ38: =IF(AO38>=1000,CONCATENATE(AP38," kg"),CONCATENATE(AO38," g")) -> 2.05 kg
AF39: 20 | AG39: Mandarins | AH39: =INT(99*RAND())+101 -> 115 | AI39: 0 | AJ39: 0 | AK39: 0 | AL39: 0 | AM39: £1.15 | AO39: =50*(INT(41*RAND())+6) -> 450 | AP39: =AO39/1000 -> 0.45 | AQ39: =IF(AO39>=1000,CONCATENATE(AP39," kg"),CONCATENATE(AO39," g")) -> 450 g
AF40: 21 | AG40: Mangoes | AH40: =INT(99*RAND())+201 -> 287 | AI40: 0 | AJ40: 0 | AK40: 0 | AL40: 0 | AM40: £2.87
AF41: 22 | AG41: Melons | AH41: =INT(99*RAND())+301 -> 379 | AI41: 0 | AJ41: 0 | AK41: 0 | AL41: 0 | AM41: £3.79 | AO41: =IF(AO38=AO39,1,0) -> 0 | AQ41: =CONCATENATE($AQ$38," of ",$AQ$35) -> 2.05 kg of Guavas | AU41: =CONCATENATE($AQ$38) -> 2.05 kg | AV41: =CONCATENATE($AQ$35) -> Guavas
AF42: 23 | AG42: Nectarines | AH42: =INT(99*RAND())+101 -> 105 | AI42: 0 | AJ42: 0 | AK42: 0 | AL42: 0 | AM42: £1.05 | AO42: =IF(AP38=1,1,0) -> 0 | AQ42: =CONCATENATE($AQ$39," of ",$AQ$36) -> 450 g of Tomatoes | AU42: =CONCATENATE($AQ$39) -> 450 g | AV42: =CONCATENATE($AQ$36) -> Tomatoes
AF43: 24 | AG43: Oranges | AH43: =INT(99*RAND())+101 -> 111 | AI43: 0 | AJ43: 0 | AK43: 0 | AL43: 0 | AM43: £1.11 | AO43: =IF(AP39=1,1,0) -> 0
AF44: 25 | AG44: Papayas | AH44: =INT(99*RAND())+501 -> 591 | AI44: 0 | AJ44: 0 | AK44: 0 | AL44: 0 | AM44: £5.91 | AO44: =SUM(AO41:AO43) -> 0 | AQ44: =CONCATENATE(AP38," × ",AS35) -> 2.05 × 4.35
AF45: 26 | AG45: Passion Fruit | AH45: =INT(99*RAND())+401 -> 474 | AI45: 0 | AJ45: 0 | AK45: 0 | AL45: 0 | AM45: £4.74 | AQ45: =CONCATENATE(AP39," × ",AS36) -> 0.45 × 2.51
AF46: 27 | AG46: Peaches | AH46: =INT(99*RAND())+201 -> 260 | AI46: 0 | AJ46: 0 | AK46: 1 | AL46: 4 | AM46: £2.60
AF47: 28 | AG47: Pears | AH47: =INT(99*RAND())+101 -> 127 | AI47: 0 | AJ47: 0 | AK47: 0 | AL47: 0 | AM47: £1.27 | AQ47: =ROUND(AP38*AS35,6) -> 8.9175 | AR47: =ROUND(AQ47*100,0) -> 892 | AS47: =IF(AR47<100,1,0) -> 0 | AT47: =IF(AR47/100=ROUNDDOWN(AR47/100,0),1,0) -> 0 | AU47: =IF(AR47/10=ROUNDDOWN(AR47/10,0),1,0) -> 0 | AV47: =AS47+AT47*2+AU47*4 -> 0 | AW47: =IF(AV47=0,CONCATENATE($R$28,ROUND(AR47/100,2)),IF(AV47=1,CONCATENATE(ROUND(AR47,0),$S$28),IF(AV47=4,CONCATENATE($R$28,AR47/100,"0"),IF(AV47=5,CONCATENATE(AR47,$S$28),IF(AV47=6,CONCATENATE($R$28,AR47/100),"xxx"))))) -> £8.92
AF48: 29 | AG48: Physalis | AH48: =INT(99*RAND())+701 -> 713 | AI48: 0 | AJ48: 0 | AK48: 0 | AL48: 0 | AM48: £7.13 | AQ48: =ROUND(AP39*AS36,6) -> 1.1295 | AR48: =ROUND(AQ48*100,0) -> 113 | AS48: =IF(AR48<100,1,0) -> 0 | AT48: =IF(AR48/100=ROUNDDOWN(AR48/100,0),1,0) -> 0 | AU48: =IF(AR48/10=ROUNDDOWN(AR48/10,0),1,0) -> 0 | AV48: =AS48+AT48*2+AU48*4 -> 0 | AW48: =IF(AV48=0,CONCATENATE($R$28,ROUND(AR48/100,2)),IF(AV48=1,CONCATENATE(ROUND(AR48,0),$S$28),IF(AV48=4,CONCATENATE($R$28,AR48/100,"0"),IF(AV48=5,CONCATENATE(AR48,$S$28),IF(AV48=6,CONCATENATE($R$28,AR48/100),"xxx"))))) -> £1.13
AF49: 30 | AG49: Pineapples | AH49: =INT(99*RAND())+201 -> 298 | AI49: 0 | AJ49: 0 | AK49: 0 | AL49: 0 | AM49: £2.98
AF50: 31 | AG50: Black Plums | AH50: =INT(99*RAND())+201 -> 247 | AI50: 0 | AJ50: 0 | AK50: 0 | AL50: 0 | AM50: £2.47
AF51: 32 | AG51: Pomegranates | AH51: =INT(99*RAND())+801 -> 803 | AI51: 0 | AJ51: 0 | AK51: 0 | AL51: 0 | AM51: £8.03 | AQ51: =AQ47*1000 -> 8917.5 | AR51: =MOD(AQ51,10) -> 7.5 | AS51: =IF(AR51=0,1,0) -> 0
AF52: 33 | AG52: Prunes | AH52: =INT(99*RAND())+201 -> 275 | AI52: 0 | AJ52: 0 | AK52: 0 | AL52: 0 | AM52: £2.75 | AQ52: =AQ48*1000 -> 1129.5 | AR52: =MOD(AQ52,10) -> 9.5 | AS52: =IF(AR52=0,1,0) -> 0
AF53: 34 | AG53: Raspberries | AH53: =INT(99*RAND())+301 -> 315 | AI53: 0 | AJ53: 0 | AK53: 0 | AL53: 0 | AM53: £3.15
AF54: 35 | AG54: Rhubarb | AH54: =INT(99*RAND())+201 -> 281 | AI54: 0 | AJ54: 0 | AK54: 0 | AL54: 0 | AM54: £2.81 | AQ54: =FRUITMET!AQ51 -> 8917.5 | AR54: =MOD(AQ54,10) -> 7.5 | AS54: =IF(AR54=0,0,1) -> 1 | AT54: =MOD(AQ54,1000) -> 917.5 | AU54: =IF(AT54=0,0,1) -> 1
AF55: 36 | AG55: Satsumas | AH55: =INT(99*RAND())+101 -> 174 | AI55: 0 | AJ55: 0 | AK55: 0 | AL55: 0 | AM55: £1.74 | AQ55: =FRUITMET!AQ52 -> 1129.5 | AR55: =MOD(AQ55,10) -> 9.5 | AS55: =IF(AR55=0,0,1) -> 1 | AT55: =MOD(AQ55,1000) -> 129.5 | AU55: =IF(AT55=0,0,1) -> 1
AF56: 37 | AG56: Strawberries | AH56: =INT(99*RAND())+201 -> 210 | AI56: 0 | AJ56: 0 | AK56: 1 | AL56: 4 | AM56: £2.10
AF57: 38 | AG57: Tomatoes | AH57: =INT(99*RAND())+201 -> 251 | AI57: 0 | AJ57: 0 | AK57: 0 | AL57: 0 | AM57: £2.51 | AS57: =IF($C$4=1,AS51,AS54) -> 1 | AU57: =IF($C$4=1,AU51,AU54) -> 1
AH58: =MIN(AH20:AH57) -> 102 | AM58: =MIN(AM20:AM57) -> 0 | AS58: =IF($C$4=1,AS52,AS55) -> 1 | AU58: =IF($C$4=1,AU52,AU55) -> 1
AF59: =AR47+AR48 -> 1005 | AG59: =IF(AF59<100,1,0) -> 0 | AH59: =IF(AF59/100=ROUNDDOWN(AF59/100,0),1,0) -> 0 | AI59: =IF(AF59/10=ROUNDDOWN(AF59/10,0),1,0) -> 0 | AJ59: =AG59+AH59*2+AI59*4 -> 0 | AK59: =IF(AJ59=0,CONCATENATE(AO59,ROUND(AF59/100,2)),IF(AJ59=1,CONCATENATE(ROUND(AF59,0),AL59),IF(AJ59=4,CONCATENATE(AO59,AF59/100,"0"),IF(AJ59=5,CONCATENATE(AF59,AL59),IF(AJ59=6,CONCATENATE(AO59,AF59/100),AM59))))) -> £10.05 | AL59: =IF(AN59=1,"p","c") -> p | AM59: =IF(AN59=1,"0p",IF(AN59=2,"0c","0c")) -> 0p | AN59: =E1 -> 1 | AO59: =IF(AN59=1,"£",IF(AN59=2,"$",IF(AN59=3,"€","R"))) -> £
AF60: =FRUITMET!AR47+FRUITMET!AR48 -> 1005 | AG60: =IF(AF60<100,1,0) -> 0 | AH60: =IF(AF60/100=ROUNDDOWN(AF60/100,0),1,0) -> 0 | AI60: =IF(AF60/10=ROUNDDOWN(AF60/10,0),1,0) -> 0 | AJ60: =AG60+AH60*2+AI60*4 -> 0 | AK60: =IF(AJ60=0,CONCATENATE(AO60,ROUND(AF60/100,2)),IF(AJ60=1,CONCATENATE(ROUND(AF60,0),AL60),IF(AJ60=4,CONCATENATE(AO60,AF60/100,"0"),IF(AJ60=5,CONCATENATE(AF60,AL60),IF(AJ60=6,CONCATENATE(AO60,AF60/100),AM60))))) -> £10.05 | AL60: =IF(AN60=1,"p","c") -> p | AM60: =IF(AN60=1,"0p",IF(AN60=2,"0c","0c")) -> 0p | AN60: =AN59 -> 1 | AO60: =IF(AN60=1,"£",IF(AN60=2,"$",IF(AN60=3,"€","R"))) -> £

Sheet IMPFRUIT
E1: 1
C2: Find (i) the cost of each imperial weight of fruit
C3: (ii) the total using these prices per pound. | Z3: =AO44 -> 0
C4: 1 | AA4: =IF(AU57=0,"ⁿ",IF(AS57=0,"•","∙")) -> ∙ | AC4: =IF(AU58=0,"ⁿ",IF(AS58=0,"•","∙")) -> •
C5: Type of Fruit | K5: Price
C6: =IF($C$4=1,AQ25,FRUITMET!C6) -> Papayas | K6: =IF($C$4=1,AT25,FRUITMET!K6) -> £2.88 | T6: =IF($C$4=1,$AU$41,FRUITMET!$AU41) -> ¾ lb | U6: of | V6: =IF($C$4=1,$AV$41,FRUITMET!$AV41) -> Clementines
C7: =IF($C$4=1,AQ26,FRUITMET!C7) -> Nectarines | K7: =IF($C$4=1,AT26,FRUITMET!K7) -> 92p | T7: =FRUITMET!T7 -> cost | U7: = | V7: =IF($C$4=1,AQ44,FRUITMET!V7) -> 0.75 × 69
C8: =IF($C$4=1,AQ27,FRUITMET!C8) -> Figs | K8: =IF($C$4=1,AT27,FRUITMET!K8) -> 73p | U8: = | V8: =IF($C$4=1,CONCATENATE(AS44,""),FRUITMET!V8) -> 51.75
C9: =IF($C$4=1,AQ28,FRUITMET!C9) -> Kumquats | K9: =IF($C$4=1,AT28,FRUITMET!K9) -> £2.89 | T9: =T7 -> cost | U9: = | V9: =IF($C$4=1,AW47,FRUITMET!V9) -> 52p
C10: =IF($C$4=1,AQ29,FRUITMET!C10) -> Satsumas | K10: =IF($C$4=1,AT29,FRUITMET!K10) -> 84p | T10: =IF($C$4=1,$AU$42,FRUITMET!$AU42) -> 2¼ lb | U10: of | V10: =IF($C$4=1,$AV$42,FRUITMET!$AV42) -> Nectarines
C11: =IF($C$4=1,AQ30,FRUITMET!C11) -> Prunes | K11: =IF($C$4=1,AT30,FRUITMET!K11) -> £1.46 | T11: =T7 -> cost | U11: = | V11: =IF($C$4=1,AQ45,FRUITMET!V11) -> 2.25 × 92
C12: =IF($C$4=1,AQ31,FRUITMET!C12) -> Blackcurrants | K12: =IF($C$4=1,AT31,FRUITMET!K12) -> £1.82 | U12: = | V12: =IF($C$4=1,CONCATENATE(AS45,""),FRUITMET!V12) -> 207
C13: =IF($C$4=1,AQ32,FRUITMET!C13) -> Clementines | K13: =IF($C$4=1,AT32,FRUITMET!K13) -> 69p | T13: =T11 -> cost | U13: = | V13: =IF($C$4=1,$AW$48,FRUITMET!$V$13) -> £2.07
T15: =FRUITMET!T15 -> total | U15: = | V15: =IF($C$4=1,AK59,AK60) -> £2.59
AF16: 10 | AG16: =1*(INT(AF16*RAND())+1) -> 4 | AH16: =1*(INT((AF16-1)*RAND())+1) -> 4 | AI16: =AH16+AG16 -> 8 | AJ16: =MOD(AI16-1,AF16)+1 -> 8 | AK16: 0 | AL16: =AG16+AK16 -> 4 | AM16: =AJ16+AK16 -> 8 | AO16: 1 | AP16: =$AL$16 -> 4 | AQ16: =$AM$16 -> 8 | AR16: =$AL$17 -> 11 | AS16: =$AL$19 -> 36 | AT16: =$AM$19 -> 33 | AU16: =$AM$17 -> 17 | AV16: =$AL$18 -> 25 | AW16: =$AM$18 -> 23
AF17: 10 | AG17: =1*(INT(AF17*RAND())+1) -> 1 | AH17: =1*(INT((AF17-1)*RAND())+1) -> 6 | AI17: =AH17+AG17 -> 7 | AJ17: =MOD(AI17-1,AF17)+1 -> 7 | AK17: 10 | AL17: =AG17+AK17 -> 11 | AM17: =AJ17+AK17 -> 17 | AO17: 2 | AP17: =$AM$19 -> 33 | AQ17: =$AL$16 -> 4 | AR17: =$AM$16 -> 8 | AS17: =$AL$17 -> 11 | AT17: =$AM$18 -> 23 | AU17: =$AL$19 -> 36 | AV17: =$AM$17 -> 17 | AW17: =$AL$18 -> 25
AF18: 10 | AG18: =1*(INT(AF18*RAND())+1) -> 5 | AH18: =1*(INT((AF18-1)*RAND())+1) -> 8 | AI18: =AH18+AG18 -> 13 | AJ18: =MOD(AI18-1,AF18)+1 -> 3 | AK18: 20 | AL18: =AG18+AK18 -> 25 | AM18: =AJ18+AK18 -> 23 | AO18: 3 | AP18: =$AL$19 -> 36 | AQ18: =$AM$17 -> 17 | AR18: =$AL$18 -> 25 | AS18: =$AM$18 -> 23 | AT18: =$AM$19 -> 33 | AU18: =$AL$16 -> 4 | AV18: =$AM$16 -> 8 | AW18: =$AL$17 -> 11
AF19: 8 | AG19: =1*(INT(AF19*RAND())+1) -> 6 | AH19: =1*(INT((AF19-1)*RAND())+1) -> 5 | AI19: =AH19+AG19 -> 11 | AJ19: =MOD(AI19-1,AF19)+1 -> 3 | AK19: 30 | AL19: =AG19+AK19 -> 36 | AM19: =AJ19+AK19 -> 33 | AO19: 4 | AP19: =$AM$18 -> 23 | AQ19: =$AL$19 -> 36 | AR19: =$AM$19 -> 33 | AS19: =$AL$18 -> 25 | AT19: =$AL$16 -> 4 | AU19: =$AM$16 -> 8 | AV19: =$AL$17 -> 11 | AW19: =$AM$17 -> 17
AF20: 1 | AG20: Apples | AH20: =INT(60*RAND())+40 -> 89 | AI20: =IF(AH20<100,1,0) -> 1 | AJ20: =IF(AH20/100=ROUNDDOWN(AH20/100,0),1,0) -> 0 | AK20: =IF(AH20/10=ROUNDDOWN(AH20/10,0),1,0) -> 0 | AL20: =AI20+AJ20*2+AK20*4 -> 1 | AM20: =IF(AL20=0,CONCATENATE($R$28,ROUND(AH20/100,2)),IF(AL20=1,CONCATENATE(ROUND(AH20,0),$S$28),IF(AL20=4,CONCATENATE($R$28,AH20/100,"0"),IF(AL20=5,CONCATENATE(AH20,$S$28),IF(AL20=6,CONCATENATE($R$28,AH20/100),"xxx"))))) -> 89p | AN20: p | AO20: 5 | AP20: =$AL$18 -> 25 | AQ20: =$AM$18 -> 23 | AR20: =$AL$17 -> 11 | AS20: =$AM$17 -> 17 | AT20: =$AL$19 -> 36 | AU20: =$AM$19 -> 33 | AV20: =$AL$16 -> 4 | AW20: =$AM$16 -> 8
AF21: 2 | AG21: Apricots | AH21: =INT(50*RAND())+101 -> 110 | AI21: 0 | AJ21: 0 | AK21: 1 | AL21: 4 | AM21: £1.10 | AO21: 6 | AP21: =$AM$17 -> 17 | AQ21: =$AL$18 -> 25 | AR21: =$AL$17 -> 11 | AS21: =$AM$18 -> 23 | AT21: =$AL$19 -> 36 | AU21: =$AM$19 -> 33 | AV21: =$AL$16 -> 4 | AW21: =$AM$16 -> 8
AF22: 3 | AG22: Bananas | AH22: =INT(60*RAND())+40 -> 77 | AI22: 1 | AJ22: 0 | AK22: 0 | AL22: 1 | AM22: 77p | AN22: p | AO22: 7 | AP22: =$AL$17 -> 11 | AQ22: =$AM$17 -> 17 | AR22: =$AM$19 -> 33 | AS22: =$AL$16 -> 4 | AT22: =$AM$16 -> 8 | AU22: =$AL$18 -> 25 | AV22: =$AM$18 -> 23 | AW22: =$AL$19 -> 36
AF23: 4 | AG23: Blackcurrants | AH23: =INT(50*RAND())+151 -> 182 | AI23: 0 | AJ23: 0 | AK23: 0 | AL23: 0 | AM23: £1.82 | AO23: 8 | AP23: =$AM$16 -> 8 | AQ23: =$AM$18 -> 23 | AR23: =$AL$19 -> 36 | AS23: =$AM$19 -> 33 | AT23: =$AL$16 -> 4 | AU23: =$AL$17 -> 11 | AV23: =$AM$17 -> 17 | AW23: =$AL$18 -> 25
AF24: 5 | AG24: Blueberries | AH24: =INT(50*RAND())+251 -> 299 | AI24: 0 | AJ24: 0 | AK24: 0 | AL24: 0 | AM24: £2.99 | AO24: =INT(8*RAND())+1 -> 5
AF25: 6 | AG25: Cantaloupes | AH25: =INT(50*RAND())+151 -> 190 | AI25: 0 | AJ25: 0 | AK25: 1 | AL25: 4 | AM25: £1.90 | AO25: 1 | AP25: =VLOOKUP($AO$24,$AO$16:$AW$23,2) -> 25 | AQ25: =VLOOKUP(AP25,$AF$20:$AN$57,2) -> Papayas | AR25: =VLOOKUP(AP25,$AF$20:$AN$57,3) -> 288 | AS25: =AR25/100 -> 2.88 | AT25: =VLOOKUP(AP25,$AF$20:$AN$57,8) -> £2.88 | AU25: =VLOOKUP(AP25,$AF$20:$AN$57,9) -> 0
AF26: 7 | AG26: Black Cherries | AH26: =INT(60*RAND())+40 -> 59 | AI26: 1 | AJ26: 0 | AK26: 0 | AL26: 1 | AM26: 59p | AN26: p | AO26: 2 | AP26: =VLOOKUP($AO$24,$AO$16:$AW$23,3) -> 23 | AQ26: Nectarines | AR26: 92 | AS26: 0.92 | AT26: 92p | AU26: p
AF27: 8 | AG27: Clementines | AH27: =INT(60*RAND())+40 -> 69 | AI27: 1 | AJ27: 0 | AK27: 0 | AL27: 1 | AM27: 69p | AN27: p | AO27: 3 | AP27: =VLOOKUP($AO$24,$AO$16:$AW$23,4) -> 11 | AQ27: Figs | AR27: 73 | AS27: 0.73 | AT27: 73p | AU27: p
Q28: =E1 -> 1 | R28: =IF(Q28=1,"£",IF(Q28=2,"$",IF(Q28=3,"€","R"))) -> £ | S28: =IF(Q28=1,"p","c") -> p | AF28: 9 | AG28: Cranberries | AH28: =INT(50*RAND())+101 -> 123 | AI28: 0 | AJ28: 0 | AK28: 0 | AL28: 0 | AM28: £1.23 | AO28: 4 | AP28: =VLOOKUP($AO$24,$AO$16:$AW$23,5) -> 17 | AQ28: Kumquats | AR28: 289 | AS28: 2.89 | AT28: £2.89 | AU28: 0
AF29: 10 | AG29: Dates | AH29: =INT(60*RAND())+40 -> 99 | AI29: 1 | AJ29: 0 | AK29: 0 | AL29: 1 | AM29: 99p | AN29: p | AO29: 5 | AP29: =VLOOKUP($AO$24,$AO$16:$AW$23,6) -> 36 | AQ29: Satsumas | AR29: 84 | AS29: 0.84 | AT29: 84p | AU29: p
AF30: 11 | AG30: Figs | AH30: =INT(60*RAND())+40 -> 73 | AI30: 1 | AJ30: 0 | AK30: 0 | AL30: 1 | AM30: 73p | AN30: p | AO30: 6 | AP30: =VLOOKUP($AO$24,$AO$16:$AW$23,7) -> 33 | AQ30: Prunes | AR30: 146 | AS30: 1.46 | AT30: £1.46 | AU30: 0
AF31: 12 | AG31: Gooseberries | AH31: =INT(50*RAND())+101 -> 110 | AI31: 0 | AJ31: 0 | AK31: 1 | AL31: 4 | AM31: £1.10 | AO31: 7 | AP31: =VLOOKUP($AO$24,$AO$16:$AW$23,8) -> 4 | AQ31: Blackcurrants | AR31: 182 | AS31: 1.82 | AT31: £1.82 | AU31: 0
AF32: 13 | AG32: Grapefruit | AH32: =INT(60*RAND())+40 -> 95 | AI32: 1 | AJ32: 0 | AK32: 0 | AL32: 1 | AM32: 95p | AN32: p | AO32: 8 | AP32: =VLOOKUP($AO$24,$AO$16:$AW$23,9) -> 8 | AQ32: Clementines | AR32: 69 | AS32: 0.69 | AT32: 69p | AU32: p
AF33: 14 | AG33: Red Grapes | AH33: =INT(60*RAND())+40 -> 89 | AI33: 1 | AJ33: 0 | AK33: 0 | AL33: 1 | AM33: 89p | AN33: p | AP33: 8 | AQ33: =1*(INT(AP33*RAND())+1) -> 8 | AR33: =1*(INT((AP33-1)*RAND())+1) -> 2 | AS33: =AR33+AQ33 -> 10 | AT33: =MOD(AS33-1,AP33)+1 -> 2
AF34: 15 | AG34: Guavas | AH34: =INT(50*RAND())+201 -> 211 | AI34: 0 | AJ34: 0 | AK34: 0 | AL34: 0 | AM34: £2.11
AF35: 16 | AG35: Kiwi Fruit | AH35: =INT(60*RAND())+40 -> 47 | AI35: 1 | AJ35: 0 | AK35: 0 | AL35: 1 | AM35: 47p | AN35: p | AO35: =AQ33 -> 8 | AP35: =VLOOKUP(AO35,$AO$25:$AU$32,2) -> 8 | AQ35: =VLOOKUP(AO35,$AO$25:$AU$32,3) -> Clementines | AR35: =VLOOKUP(AO35,$AO$25:$AU$32,4) -> 69 | AS35: =AR35 -> 69 | AT35: =VLOOKUP(AO35,$AO$25:$AU$32,6) -> 69p | AU35: =VLOOKUP(AO35,$AO$25:$AU$32,7) -> p
AF36: 17 | AG36: Kumquats | AH36: =INT(50*RAND())+251 -> 289 | AI36: 0 | AJ36: 0 | AK36: 0 | AL36: 0 | AM36: £2.89 | AO36: =AT33 -> 2 | AP36: =VLOOKUP(AO36,$AO$25:$AU$32,2) -> 23 | AQ36: =VLOOKUP(AO36,$AO$25:$AU$32,3) -> Nectarines | AR36: =VLOOKUP(AO36,$AO$25:$AU$32,4) -> 92 | AS36: =AR36 -> 92 | AT36: =VLOOKUP(AO36,$AO$25:$AU$32,6) -> 92p | AU36: =VLOOKUP(AO36,$AO$25:$AU$32,7) -> p
AF37: 18 | AG37: Lemons | AH37: =INT(60*RAND())+40 -> 96 | AI37: 1 | AJ37: 0 | AK37: 0 | AL37: 1 | AM37: 96p | AN37: p
AF38: 19 | AG38: Lychees | AH38: =INT(50*RAND())+351 -> 370 | AI38: 0 | AJ38: 0 | AK38: 1 | AL38: 4 | AM38: £3.70 | AO38: =250*(INT(21*RAND())+2) -> 750 | AP38: =AO38/1000 -> 0.75 | AQ38: =CONCATENATE(AU38," lb") -> ¾ lb | AT38: =AP38 -> 0.75 | AU38: =BB38 -> ¾ | AV38: =ABS(AT38) -> 0.75 | AW38: =IF(AT38<0,"-","") ->  | AX38: =ROUNDDOWN(AV38,0) -> 0 | AY38: =ROUND(AV38-AX38,3) -> 0.75 | AZ38: =IF(AY38=BC38,BC39,IF(AY38=BD38,BD39,IF(AY38=BE38,BE39,IF(AY38=BF38,BF39,IF(AY38=BG38,BG39,IF(AY38=BH38,BH39,IF(AY38=BI38,BI39,AY38))))))) -> 0.75 | BA38: =IF(AZ38=BJ38,BJ39,IF(AZ38=BK38,BK39,AZ38)) -> ¾ | BB38: =IF(BA38=AY38,CONCATENATE(AW38,AX38+BA38),IF(AX38=0,CONCATENATE(AW38,BA38),CONCATENATE(AW38,AX38,BA38))) -> ¾ | BC38: 0.125 | BD38: 0.25 | BE38: 0.333 | BF38: 0.375 | BG38: 0.5 | BH38: 0.625 | BI38: 0.667 | BJ38: 0.75 | BK38: 0.875
AF39: 20 | AG39: Mandarins | AH39: =INT(60*RAND())+40 -> 55 | AI39: 1 | AJ39: 0 | AK39: 0 | AL39: 1 | AM39: 55p | AN39: p | AO39: =250*(INT(21*RAND())+2) -> 2250 | AP39: =AO39/1000 -> 2.25 | AQ39: =CONCATENATE(AU39," lb") -> 2¼ lb | AT39: =AP39 -> 2.25 | AU39: =BB39 -> 2¼ | AV39: =ABS(AT39) -> 2.25 | AW39: =IF(AT39<0,"-","") ->  | AX39: =ROUNDDOWN(AV39,0) -> 2 | AY39: =ROUND(AV39-AX39,3) -> 0.25 | AZ39: =IF(AY39=BC38,BC39,IF(AY39=BD38,BD39,IF(AY39=BE38,BE39,IF(AY39=BF38,BF39,IF(AY39=BG38,BG39,IF(AY39=BH38,BH39,IF(AY39=BI38,BI39,AY39))))))) -> ¼ | BA39: =IF(AZ39=BJ38,BJ39,IF(AZ39=BK38,BK39,AZ39)) -> ¼ | BB39: =IF(BA39=AY39,CONCATENATE(AW39,AX39+BA39),IF(AX39=0,CONCATENATE(AW39,BA39),CONCATENATE(AW39,AX39,BA39))) -> 2¼ | BC39: ⅛ | BD39: ¼ | BE39: ⅓ | BF39: ⅜ | BG39: ½ | BH39: ⅝ | BI39: ⅔ | BJ39: ¾ | BK39: ⅞
AF40: 21 | AG40: Mangoes | AH40: =INT(50*RAND())+101 -> 150 | AI40: 0 | AJ40: 0 | AK40: 1 | AL40: 4 | AM40: £1.50
AF41: 22 | AG41: Melons | AH41: =INT(60*RAND())+40 -> 46 | AI41: 1 | AJ41: 0 | AK41: 0 | AL41: 1 | AM41: 46p | AN41: p | AO41: =IF(AO38=AO39,1,0) -> 0 | AQ41: =CONCATENATE($AU$38," lb of ",$AQ$35) -> ¾ lb of Clementines | AU41: =CONCATENATE($AQ$38) -> ¾ lb | AV41: =CONCATENATE($AQ$35) -> Clementines
AF42: 23 | AG42: Nectarines | AH42: =INT(60*RAND())+40 -> 92 | AI42: 1 | AJ42: 0 | AK42: 0 | AL42: 1 | AM42: 92p | AN42: p | AO42: =IF(AP38=1,1,0) -> 0 | AQ42: =CONCATENATE($AU$39," lb of ",$AQ$36) -> 2¼ lb of Nectarines | AU42: =CONCATENATE($AQ$39) -> 2¼ lb | AV42: =CONCATENATE($AQ$36) -> Nectarines
AF43: 24 | AG43: Oranges | AH43: =INT(60*RAND())+40 -> 99 | AI43: 1 | AJ43: 0 | AK43: 0 | AL43: 1 | AM43: 99p | AN43: p | AO43: =IF(AP39=1,1,0) -> 0
AF44: 25 | AG44: Papayas | AH44: =INT(50*RAND())+251 -> 288 | AI44: 0 | AJ44: 0 | AK44: 0 | AL44: 0 | AM44: £2.88 | AO44: =SUM(AO41:AO43) -> 0 | AQ44: =IF(AU35="p",CONCATENATE(AT38," × ",AS35),CONCATENATE(AT38," × ",AS35/100)) -> 0.75 × 69 | AS44: =IF(AU35="p",ROUND(AP38*AS35,6),ROUND(AP38*AS35/100,6)) -> 51.75
AF45: 26 | AG45: Passion Fruit | AH45: =INT(50*RAND())+201 -> 222 | AI45: 0 | AJ45: 0 | AK45: 0 | AL45: 0 | AM45: £2.22 | AQ45: =IF(AU36="p",CONCATENATE(AT39," × ",AS36),CONCATENATE(AT39," × ",AS36/100)) -> 2.25 × 92 | AS45: =IF(AU36="p",ROUND(AP39*AS36,6),ROUND(AP39*AS36/100,6)) -> 207
AF46: 27 | AG46: Peaches | AH46: =INT(60*RAND())+40 -> 79 | AI46: 1 | AJ46: 0 | AK46: 0 | AL46: 1 | AM46: 79p | AN46: p
AF47: 28 | AG47: Pears | AH47: =INT(60*RAND())+40 -> 68 | AI47: 1 | AJ47: 0 | AK47: 0 | AL47: 1 | AM47: 68p | AN47: p | AQ47: =ROUND(AP38*AS35,6) -> 51.75 | AR47: =ROUND(AQ47*1,0) -> 52 | AS47: =IF(AR47<100,1,0) -> 1 | AT47: =IF(AR47/100=ROUNDDOWN(AR47/100,0),1,0) -> 0 | AU47: =IF(AR47/10=ROUNDDOWN(AR47/10,0),1,0) -> 0 | AV47: =AS47+AT47*2+AU47*4 -> 1 | AW47: =IF(AV47=0,CONCATENATE($R$28,ROUND(AR47/100,2)),IF(AV47=1,CONCATENATE(ROUND(AR47,0),$S$28),IF(AV47=4,CONCATENATE($R$28,AR47/100,"0"),IF(AV47=5,CONCATENATE(AR47,$S$28),IF(AV47=6,CONCATENATE($R$28,AR47/100),"xxx"))))) -> 52p
AF48: 29 | AG48: Physalis | AH48: =INT(50*RAND())+351 -> 353 | AI48: 0 | AJ48: 0 | AK48: 0 | AL48: 0 | AM48: £3.53 | AQ48: =ROUND(AP39*AS36,6) -> 207 | AR48: =ROUND(AQ48*1,0) -> 207 | AS48: =IF(AR48<100,1,0) -> 0 | AT48: =IF(AR48/100=ROUNDDOWN(AR48/100,0),1,0) -> 0 | AU48: =IF(AR48/10=ROUNDDOWN(AR48/10,0),1,0) -> 0 | AV48: =AS48+AT48*2+AU48*4 -> 0 | AW48: =IF(AV48=0,CONCATENATE($R$28,ROUND(AR48/100,2)),IF(AV48=1,CONCATENATE(ROUND(AR48,0),$S$28),IF(AV48=4,CONCATENATE($R$28,AR48/100,"0"),IF(AV48=5,CONCATENATE(AR48,$S$28),IF(AV48=6,CONCATENATE($R$28,AR48/100),"xxx"))))) -> £2.07
AF49: 30 | AG49: Pineapples | AH49: =INT(50*RAND())+101 -> 145 | AI49: 0 | AJ49: 0 | AK49: 0 | AL49: 0 | AM49: £1.45
AF50: 31 | AG50: Black Plums | AH50: =INT(60*RAND())+40 -> 91 | AI50: 1 | AJ50: 0 | AK50: 0 | AL50: 1 | AM50: 91p | AN50: p | AW50: =R28 -> £
AF51: 32 | AG51: Pomegranates | AH51: =INT(50*RAND())+401 -> 427 | AI51: 0 | AJ51: 0 | AK51: 0 | AL51: 0 | AM51: £4.27 | AQ51: =AQ47*10 -> 517.5 | AR51: =MOD(AQ51,10) -> 7.5 | AS51: =IF(AR51=0,0,1) -> 1 | AT51: =MOD(AQ51,1000) -> 517.5 | AU51: =IF(AT51=0,0,1) -> 1 | AW51: =S28 -> p
AF52: 33 | AG52: Prunes | AH52: =INT(50*RAND())+101 -> 146 | AI52: 0 | AJ52: 0 | AK52: 0 | AL52: 0 | AM52: £1.46 | AQ52: =AQ48*10 -> 2070 | AR52: =MOD(AQ52,10) -> 0 | AS52: =IF(AR52=0,0,1) -> 0 | AT52: =MOD(AQ52,1000) -> 70 | AU52: =IF(AT52=0,0,1) -> 1
AF53: 34 | AG53: Raspberries | AH53: =INT(50*RAND())+151 -> 184 | AI53: 0 | AJ53: 0 | AK53: 0 | AL53: 0 | AM53: £1.84
AF54: 35 | AG54: Rhubarb | AH54: =INT(50*RAND())+101 -> 127 | AI54: 0 | AJ54: 0 | AK54: 0 | AL54: 0 | AM54: £1.27 | AQ54: =FRUITMET!AQ51 -> 8917.5 | AR54: =MOD(AQ54,10) -> 7.5 | AS54: =IF(AR54=0,0,1) -> 1 | AT54: =MOD(AQ54,1000) -> 917.5 | AU54: =IF(AT54=0,0,1) -> 1
AF55: 36 | AG55: Satsumas | AH55: =INT(60*RAND())+40 -> 84 | AI55: 1 | AJ55: 0 | AK55: 0 | AL55: 1 | AM55: 84p | AN55: =S28 -> p | AQ55: =FRUITMET!AQ52 -> 1129.5 | AR55: =MOD(AQ55,10) -> 9.5 | AS55: =IF(AR55=0,0,1) -> 1 | AT55: =MOD(AQ55,1000) -> 129.5 | AU55: =IF(AT55=0,0,1) -> 1
AF56: 37 | AG56: Strawberries | AH56: =INT(50*RAND())+101 -> 128 | AI56: 0 | AJ56: 0 | AK56: 0 | AL56: 0 | AM56: £1.28
AF57: 38 | AG57: Tomatoes | AH57: =INT(60*RAND())+40 -> 54 | AI57: 1 | AJ57: 0 | AK57: 0 | AL57: 1 | AM57: 54p | AN57: p | AS57: =IF($C$4=1,AS51,AS54) -> 1 | AU57: =IF($C$4=1,AU51,AU54) -> 1
AS58: =IF($C$4=1,AS52,AS55) -> 0 | AU58: =IF($C$4=1,AU52,AU55) -> 1
AF59: =AR47+AR48 -> 259 | AG59: =IF(AF59<100,1,0) -> 0 | AH59: =IF(AF59/100=ROUNDDOWN(AF59/100,0),1,0) -> 0 | AI59: =IF(AF59/10=ROUNDDOWN(AF59/10,0),1,0) -> 0 | AJ59: =AG59+AH59*2+AI59*4 -> 0 | AK59: =IF(AJ59=0,CONCATENATE(AO59,ROUND(AF59/100,2)),IF(AJ59=1,CONCATENATE(ROUND(AF59,0),AL59),IF(AJ59=4,CONCATENATE(AO59,AF59/100,"0"),IF(AJ59=5,CONCATENATE(AF59,AL59),IF(AJ59=6,CONCATENATE(AO59,AF59/100),AM59))))) -> £2.59 | AL59: =IF(AN59=1,"p","c") -> p | AM59: =IF(AN59=1,"0p",IF(AN59=2,"0c","0c")) -> 0p | AN59: =E1 -> 1 | AO59: =IF(AN59=1,"£",IF(AN59=2,"$",IF(AN59=3,"€","R"))) -> £
AF60: =FRUITMET!AR47+FRUITMET!AR48 -> 1005 | AG60: =IF(AF60<100,1,0) -> 0 | AH60: =IF(AF60/100=ROUNDDOWN(AF60/100,0),1,0) -> 0 | AI60: =IF(AF60/10=ROUNDDOWN(AF60/10,0),1,0) -> 0 | AJ60: =AG60+AH60*2+AI60*4 -> 0 | AK60: =IF(AJ60=0,CONCATENATE(AO60,ROUND(AF60/100,2)),IF(AJ60=1,CONCATENATE(ROUND(AF60,0),AL60),IF(AJ60=4,CONCATENATE(AO60,AF60/100,"0"),IF(AJ60=5,CONCATENATE(AF60,AL60),IF(AJ60=6,CONCATENATE(AO60,AF60/100),AM60))))) -> £10.05 | AL60: =IF(AN60=1,"p","c") -> p | AM60: =IF(AN60=1,"0p",IF(AN60=2,"0c","0c")) -> 0p | AN60: =AN59 -> 1 | AO60: =IF(AN60=1,"£",IF(AN60=2,"$",IF(AN60=3,"€","R"))) -> £

Sheet CALCMONE
E1: 1
C2: Interpret the value the calculator displays | AA2: =IF(AP11>2,"*","•") -> * | AB2: =IF(AP18>2,"* ","•") -> * | AJ2: =AJ7 -> 617 | AK2: =ABS(AJ2) -> 617 | AL2: =IF(AK2<100,1,0) -> 0 | AM2: =IF(AK2/100=ROUNDDOWN(AK2/100,0),1,0) -> 0 | AN2: =IF(AK2/10=ROUNDDOWN(AK2/10,0),1,0) -> 0 | AO2: =AL2+AM2*2+AN2*4 -> 0 | AP2: =IF(AO2=0,CONCATENATE(,AK2/100-MOD(AK2/100,1)," m ",ROUND(100*MOD(AK2/100,1),6)," cm"),IF(AO2=1,CONCATENATE(ROUND(AK2,0)," cm"),IF(AO2=4,CONCATENATE(,AK2/100-MOD(AK2/100,1)," m ",ROUND(10*MOD(AK2/100,1),6),"0 cm"),IF(AO2=5,CONCATENATE(AK2," cm"),IF(AO2=6,CONCATENATE("",AK2/100," m"),"0 m"))))) -> 6 m 17 cm
C3: after the division in the context of money. | AA3: 1 | AB3: =IF(AA3=0,"",R28) -> £ | AC3: =IF(AA3=0," m","") ->  | AD3: =IF(AA3=0," cm",T28) -> penny | AJ3: =AJ14 -> 792 | AK3: =ABS(AJ3) -> 792 | AL3: =IF(AK3<100,1,0) -> 0 | AM3: =IF(AK3/100=ROUNDDOWN(AK3/100,0),1,0) -> 0 | AN3: =IF(AK3/10=ROUNDDOWN(AK3/10,0),1,0) -> 0 | AO3: =AL3+AM3*2+AN3*4 -> 0 | AP3: =IF(AO3=0,CONCATENATE(,AK3/100-MOD(AK3/100,1)," m ",ROUND(100*MOD(AK3/100,1),6)," cm"),IF(AO3=1,CONCATENATE(ROUND(AK3,0)," cm"),IF(AO3=4,CONCATENATE(,AK3/100-MOD(AK3/100,1)," m ",ROUND(10*MOD(AK3/100,1),6),"0 cm"),IF(AO3=5,CONCATENATE(AK3," cm"),IF(AO3=6,CONCATENATE("",AK3/100," m"),"0 m"))))) -> 7 m 92 cm
C4: =INT(10*RAND())+0 -> 6 | D4: =RAND() -> 0.861072647 | E4: =IF(D4>0.5,"ms","hm") -> ms | F4: =RAND() -> 0.3426619198 | G4: =IF(F4>0.5,20,12) -> 12 | H4: =INT((G4-1)*RAND())+1 -> 2 | I4: =H4/G4 -> 0.1666666667 | K4: =H4*100+G4 -> 212 | M4: 60 | N4: =M4*H4/G4 -> 10 | O4: =IF(C4>1,"s","") -> s | Q4: =RAND() -> 0.2407512422 | R4: =IF(Q4>0.5,"What is ","Evaluate ") -> Evaluate | S4: =IF(Q4>0.5,"?",".") -> . | Y4: =AP11 -> 7 | Z4: =AP18 -> 7 | AA4: =IF(Y4=2,1,IF(Z4=2,1,0)) -> 0
C5: =CONCATENATE(R4,AB3,C4*AK20+AK19,AC3," divided by ",BX20," to the nearest",AD3,S4) -> Evaluate £37 divided by six to the nearest penny.
O6: = | P6: =IF(AA3=1,AO7,AP2) -> £6.17
AJ7: =ROUND((C4+AK19/AK20)*100,0) -> 617 | AK7: =IF(AJ7<100,1,0) -> 0 | AL7: =IF(AJ7/100=ROUNDDOWN(AJ7/100,0),1,0) -> 0 | AM7: =IF(AJ7/10=ROUNDDOWN(AJ7/10,0),1,0) -> 0 | AN7: =AK7+AL7*2+AM7*4 -> 0 | AO7: =IF(AN7=0,CONCATENATE($R$28,ROUND(AJ7/100,2)),IF(AN7=1,CONCATENATE(ROUND(AJ7,0),$S$28),IF(AN7=4,CONCATENATE($R$28,AJ7/100,"0"),IF(AN7=5,CONCATENATE(AJ7,$S$28),IF(AN7=6,CONCATENATE($R$28,AJ7/100),"xxx"))))) -> £6.17 | AP7: =AJ7/100 -> 6.17 | AQ7: =ROUND(AP7,0) -> 6 | AR7: =AQ7-AP7 -> -0.17 | AS7: =IF(AR7=0,0,1) -> 1
AJ8: =(C4+AK19/AK20)*10-ROUNDDOWN((C4+AK19/AK20)*10,0) -> 0.6666666667 | AK8: =100*AJ8 -> 66.66666667
D9: =VLOOKUP($K$4,$AG$23:$AW$59,4) -> 6 | E9: =VLOOKUP($K$4,$AG$23:$AW$59,5) -> 1 | G9: =VLOOKUP($K$4,$AG$23:$AW$59,6) -> 6 | H9: =VLOOKUP($K$4,$AG$23:$AW$59,7) -> 6 | J9: =VLOOKUP($K$4,$AG$23:$AW$59,8) -> 6 | L9: =VLOOKUP($K$4,$AG$23:$AW$59,9) -> 6 | M9: =VLOOKUP($K$4,$AG$23:$AW$59,10) -> 7
D10: =VLOOKUP($K$4,$AG$23:$AW$59,11) -> 1 | G10: =IF(D11>0.5,8,12) -> 8 | H10: 12 | I10: =VLOOKUP($K$4,$AG$23:$AW$59,12) -> 0 | K10: =VLOOKUP($K$4,$AG$23:$AW$59,13) -> 0 | L10: =VLOOKUP($K$4,$AG$23:$AW$59,14) -> 0 | AJ10: =ROUND((C4+AK19/AK20),9) -> 6.166666667 | AK10: =MOD(AJ10,1) -> 0.166666667 | AL10: =ROUND(1000*AK10,0) -> 167 | AM10: =(AL10-MOD(AL10,100))/100 -> 1 | AN10: =(AL10-AM11-MOD(AL10-AM11,10))/10 -> 6 | AO10: =ROUNDDOWN(AL10-AM11-AN11,0) -> 7 | AP10: =MOD(1000*AJ10,1) -> 0.666667
C11: =INT(10*RAND())+0 -> 7 | D11: =RAND() -> 0.9654376587 | E11: =IF(D11>0.5,"dh","ym") -> dh | F11: =RAND() -> 0.0421371949 | G11: =IF(F11>0.5,G10,H10) -> 12 | H11: =INT((G11-1)*RAND())+1 -> 11 | I11: =H11/G11 -> 0.9166666667 | K11: =H11*100+G11 -> 1112 | M11: =IF(D11>0.5,24,12) -> 24 | N11: =M11*H11/G11 -> 22 | O11: =IF(C11>1,"s","") -> s | AJ11: =CONCATENATE(AJ10) -> 6.166666667 | AM11: =AM10*100 -> 100 | AN11: =AN10*10 -> 60 | AO11: =AO10 -> 7 | AP11: =IF(AP10>0,7,IF(AO10>0,3,IF(AN10>0,2,1))) -> 7
C12: =CONCATENATE("Split ",AB3,C11*BK20+BK19,AC3," into ",BX21," parts to the nearest",AD3,".") -> Split £95 into twelve parts to the nearest penny.
O13: = | P13: =IF(AA3=1,AO14,AP3) -> £7.92
AJ14: =ROUND((C11+BK19/BK20)*100,0) -> 792 | AK14: =IF(AJ14<100,1,0) -> 0 | AL14: =IF(AJ14/100=ROUNDDOWN(AJ14/100,0),1,0) -> 0 | AM14: =IF(AJ14/10=ROUNDDOWN(AJ14/10,0),1,0) -> 0 | AN14: =AK14+AL14*2+AM14*4 -> 0 | AO14: =IF(AN14=0,CONCATENATE($R$28,ROUND(AJ14/100,2)),IF(AN14=1,CONCATENATE(ROUND(AJ14,0),$S$28),IF(AN14=4,CONCATENATE($R$28,AJ14/100,"0"),IF(AN14=5,CONCATENATE(AJ14,$S$28),IF(AN14=6,CONCATENATE($R$28,AJ14/100),"xxx"))))) -> £7.92 | AP14: =AJ14/100 -> 7.92 | AQ14: =ROUND(AP14,0) -> 8 | AR14: =AQ14-AP14 -> 0.08 | AS14: =IF(AR14=0,0,1) -> 1
AJ15: =ROUND((C11+BK19/BK20)*100,0) -> 792 | AK15: =100*AJ15 -> 79200
D16: =VLOOKUP($K$11,$BG$23:$BW$59,4) -> 7 | E16: =VLOOKUP($K$11,$BG$23:$BW$59,5) -> 9 | G16: =VLOOKUP($K$11,$BG$23:$BW$59,6) -> 1 | H16: =VLOOKUP($K$11,$BG$23:$BW$59,7) -> 6 | J16: =VLOOKUP($K$11,$BG$23:$BW$59,8) -> 6 | L16: =VLOOKUP($K$11,$BG$23:$BW$59,9) -> 6 | M16: =VLOOKUP($K$11,$BG$23:$BW$59,10) -> 7
D17: =VLOOKUP($K$11,$BG$23:$BW$59,11) -> 1 | I17: =VLOOKUP($K$11,$BG$23:$BW$59,12) -> 0 | K17: =VLOOKUP($K$11,$BG$23:$BW$59,13) -> 0 | L17: =VLOOKUP($K$11,$BG$23:$BW$59,14) -> 0 | AJ17: =ROUND((C11+BK19/BK20),9) -> 7.916666667 | AK17: =MOD(AJ17,1) -> 0.916666667 | AL17: =ROUND(1000*AK17,0) -> 917 | AM17: =(AL17-MOD(AL17,100))/100 -> 9 | AN17: =(AL17-AM18-MOD(AL17-AM18,10))/10 -> 1 | AO17: =ROUNDDOWN(AL17-AM18-AN18,0) -> 7 | AP17: =MOD(1000*AJ17,1) -> 0.666667
AJ18: =CONCATENATE(AJ17) -> 7.916666667 | AM18: =AM17*100 -> 900 | AN18: =AN17*10 -> 10 | AO18: =AO17 -> 7 | AP18: =IF(AP17>0,7,IF(AO17>0,3,IF(AN17>0,2,1))) -> 7
AI19: =H4 -> 2 | AJ19: =IF(AI19=0,1,AI19*AI20/(MAX(AI19:AI20)*LEFT(TEXT(MIN(AI19:AI20)/MAX(AI19:AI20),"000000000000000/000000000000000"),15))) -> 2 | AK19: =AI19/AJ19 -> 1 | BI19: =H11 -> 11 | BJ19: =IF(BI19=0,1,BI19*BI20/(MAX(BI19:BI20)*LEFT(TEXT(MIN(BI19:BI20)/MAX(BI19:BI20),"000000000000000/000000000000000"),15))) -> 1 | BK19: =BI19/BJ19 -> 11
AI20: =G4 -> 12 | AJ20: =MAX(AI19:AI20)*LEFT(TEXT(MIN(AI19:AI20)/MAX(AI19:AI20),"000000000000000/000000000000000"),15) -> 12 | AK20: =IF(AI19=0,"",IF(AI19=AI20,"",AI20/AJ19)) -> 6 | BI20: =G11 -> 12 | BJ20: =MAX(BI19:BI20)*LEFT(TEXT(MIN(BI19:BI20)/MAX(BI19:BI20),"000000000000000/000000000000000"),15) -> 132 | BK20: =IF(BI19=0,"",IF(BI19=BI20,"",BI20/BJ19)) -> 12 | BW20: =AK20 -> 6 | BX20: =VLOOKUP(BW20,$BW$22:$BX$33,2) -> six
BW21: =BK20 -> 12 | BX21: =VLOOKUP(BW21,$BW$22:$BX$33,2) -> twelve
AJ22: 1 | AK22: 2 | AL22: 3 | AM22: 4 | AN22: 5 | AO22: 6 | AP22: 7 | AQ22: 8 | AR22: 9 | AS22: 10 | AT22: 11 | BJ22: 1 | BK22: 2 | BL22: 3 | BM22: 4 | BN22: 5 | BO22: 6 | BP22: 7 | BQ22: 8 | BR22: 9 | BS22: 10 | BT22: 11 | BW22: 2 | BX22: two
AG23: 108 | AH23: 1 | AI23: 8 | AJ23: 10 | AK23: 10 | AL23: 10 | AM23: =$C$4 -> 6 | AN23: 1 | AO23: 2 | AP23: 5 | AR23: 1 | BG23: 108 | BH23: 1 | BI23: 8 | BJ23: 10 | BK23: 10 | BL23: 10 | BM23: =$C$11 -> 7 | BN23: 1 | BO23: 2 | BP23: 5 | BR23: 1 | BW23: 3 | BX23: three
AG24: 112 | AH24: 1 | AI24: 12 | AJ24: =$C$4 -> 6 | AK24: 0 | AL24: 8 | AM24: 3 | AN24: 3 | AO24: 3 | AP24: 3 | AQ24: 1 | BG24: 112 | BH24: 1 | BI24: 12 | BJ24: =$C$11 -> 7 | BK24: 0 | BL24: 8 | BM24: 3 | BN24: 3 | BO24: 3 | BP24: 3 | BQ24: 1 | BW24: 4 | BX24: four
AG25: 120 | AH25: 1 | AI25: 20 | AJ25: 10 | AK25: 10 | AL25: 10 | AM25: 10 | AN25: =$C$4 -> 6 | AO25: 0 | AP25: 5 | AS25: 1 | BG25: 120 | BH25: 1 | BI25: 20 | BJ25: 10 | BK25: 10 | BL25: 10 | BM25: 10 | BN25: =$C$11 -> 7 | BO25: 0 | BP25: 5 | BS25: 1 | BW25: 5 | BX25: five
AG26: 208 | AH26: 2 | AI26: 8 | AJ26: 10 | AK26: 10 | AL26: 10 | AM26: 10 | AN26: =$C$4 -> 6 | AO26: 2 | AP26: 5 | AS26: 1 | BG26: 208 | BH26: 2 | BI26: 8 | BJ26: 10 | BK26: 10 | BL26: 10 | BM26: 10 | BN26: =$C$11 -> 7 | BO26: 2 | BP26: 5 | BS26: 1 | BW26: 6 | BX26: six
AG27: 212 | AH27: 2 | AI27: 12 | AJ27: =$C$4 -> 6 | AK27: 1 | AL27: 6 | AM27: 6 | AN27: 6 | AO27: 6 | AP27: 7 | AQ27: 1 | BG27: 212 | BH27: 2 | BI27: 12 | BJ27: =$C$11 -> 7 | BK27: 1 | BL27: 6 | BM27: 6 | BN27: 6 | BO27: 6 | BP27: 7 | BQ27: 1 | BW27: 7 | BX27: seven
Q28: =E1 -> 1 | R28: =IF(Q28=1,"£",IF(Q28=2,"$",IF(Q28=3,"€","R"))) -> £ | S28: =IF(Q28=1,"p","c") -> p | T28: =IF(Q28=1," penny"," cent") -> penny | AG28: 220 | AH28: 2 | AI28: 20 | AJ28: 10 | AK28: 10 | AL28: 10 | AM28: 10 | AN28: 10 | AO28: =$C$4 -> 6 | AP28: 1 | AT28: 1 | BG28: 220 | BH28: 2 | BI28: 20 | BJ28: 10 | BK28: 10 | BL28: 10 | BM28: 10 | BN28: 10 | BO28: =$C$11 -> 7 | BP28: 1 | BT28: 1 | BW28: 8 | BX28: eight
AG29: 308 | AH29: 3 | AI29: 8 | AJ29: 10 | AK29: 10 | AL29: 10 | AM29: =$C$4 -> 6 | AN29: 3 | AO29: 7 | AP29: 5 | AR29: 1 | BG29: 308 | BH29: 3 | BI29: 8 | BJ29: 10 | BK29: 10 | BL29: 10 | BM29: =$C$11 -> 7 | BN29: 3 | BO29: 7 | BP29: 5 | BR29: 1 | BW29: 9 | BX29: nine
AG30: 312 | AH30: 3 | AI30: 12 | AJ30: 10 | AK30: 10 | AL30: 10 | AM30: 10 | AN30: =$C$4 -> 6 | AO30: 2 | AP30: 5 | AS30: 1 | BG30: 312 | BH30: 3 | BI30: 12 | BJ30: 10 | BK30: 10 | BL30: 10 | BM30: 10 | BN30: =$C$11 -> 7 | BO30: 2 | BP30: 5 | BS30: 1 | BW30: 10 | BX30: ten
AG31: 320 | AH31: 3 | AI31: 20 | AJ31: 10 | AK31: 10 | AL31: 10 | AM31: 10 | AN31: =$C$4 -> 6 | AO31: 1 | AP31: 5 | AS31: 1 | BG31: 320 | BH31: 3 | BI31: 20 | BJ31: 10 | BK31: 10 | BL31: 10 | BM31: 10 | BN31: =$C$11 -> 7 | BO31: 1 | BP31: 5 | BS31: 1 | BW31: 11 | BX31: eleven
AG32: 408 | AH32: 4 | AI32: 8 | AJ32: 10 | AK32: 10 | AL32: 10 | AM32: 10 | AN32: 10 | AO32: =$C$4 -> 6 | AP32: 5 | AT32: 1 | BG32: 408 | BH32: 4 | BI32: 8 | BJ32: 10 | BK32: 10 | BL32: 10 | BM32: 10 | BN32: 10 | BO32: =$C$11 -> 7 | BP32: 5 | BT32: 1 | BW32: 12 | BX32: twelve
AG33: 412 | AH33: 4 | AI33: 12 | AJ33: =$C$4 -> 6 | AK33: 3 | AL33: 3 | AM33: 3 | AN33: 3 | AO33: 3 | AP33: 3 | AQ33: 1 | BG33: 412 | BH33: 4 | BI33: 12 | BJ33: =$C$11 -> 7 | BK33: 3 | BL33: 3 | BM33: 3 | BN33: 3 | BO33: 3 | BP33: 3 | BQ33: 1 | BW33: 20 | BX33: twenty
AG34: 420 | AH34: 4 | AI34: 20 | AJ34: 10 | AK34: 10 | AL34: 10 | AM34: 10 | AN34: 10 | AO34: =$C$4 -> 6 | AP34: 2 | AT34: 1 | BG34: 420 | BH34: 4 | BI34: 20 | BJ34: 10 | BK34: 10 | BL34: 10 | BM34: 10 | BN34: 10 | BO34: =$C$11 -> 7 | BP34: 2 | BT34: 1
AG35: 508 | AH35: 5 | AI35: 8 | AJ35: 10 | AK35: 10 | AL35: 10 | AM35: =$C$4 -> 6 | AN35: 6 | AO35: 2 | AP35: 5 | AR35: 1 | BG35: 508 | BH35: 5 | BI35: 8 | BJ35: 10 | BK35: 10 | BL35: 10 | BM35: =$C$11 -> 7 | BN35: 6 | BO35: 2 | BP35: 5 | BR35: 1
AG36: 512 | AH36: 5 | AI36: 12 | AJ36: =$C$4 -> 6 | AK36: 4 | AL36: 1 | AM36: 6 | AN36: 6 | AO36: 6 | AP36: 7 | AQ36: 1 | BG36: 512 | BH36: 5 | BI36: 12 | BJ36: =$C$11 -> 7 | BK36: 4 | BL36: 1 | BM36: 6 | BN36: 6 | BO36: 6 | BP36: 7 | BQ36: 1
AG37: 520 | AH37: 5 | AI37: 20 | AJ37: 10 | AK37: 10 | AL37: 10 | AM37: 10 | AN37: =$C$4 -> 6 | AO37: 2 | AP37: 5 | AS37: 1 | BG37: 520 | BH37: 5 | BI37: 20 | BJ37: 10 | BK37: 10 | BL37: 10 | BM37: 10 | BN37: =$C$11 -> 7 | BO37: 2 | BP37: 5 | BS37: 1
AG38: 608 | AH38: 6 | AI38: 8 | AJ38: 10 | AK38: 10 | AL38: 10 | AM38: 10 | AN38: =$C$4 -> 6 | AO38: 7 | AP38: 5 | AS38: 1 | BG38: 608 | BH38: 6 | BI38: 8 | BJ38: 10 | BK38: 10 | BL38: 10 | BM38: 10 | BN38: =$C$11 -> 7 | BO38: 7 | BP38: 5 | BS38: 1
AG39: 612 | AH39: 6 | AI39: 12 | AJ39: 10 | AK39: 10 | AL39: 10 | AM39: 10 | AN39: 10 | AO39: =$C$4 -> 6 | AP39: 5 | AT39: 1 | BG39: 612 | BH39: 6 | BI39: 12 | BJ39: 10 | BK39: 10 | BL39: 10 | BM39: 10 | BN39: 10 | BO39: =$C$11 -> 7 | BP39: 5 | BT39: 1
AG40: 620 | AH40: 6 | AI40: 20 | AJ40: 10 | AK40: 10 | AL40: 10 | AM40: 10 | AN40: 10 | AO40: =$C$4 -> 6 | AP40: 3 | AT40: 1 | BG40: 620 | BH40: 6 | BI40: 20 | BJ40: 10 | BK40: 10 | BL40: 10 | BM40: 10 | BN40: 10 | BO40: =$C$11 -> 7 | BP40: 3 | BT40: 1
AG41: 708 | AH41: 7 | AI41: 8 | AJ41: 10 | AK41: 10 | AL41: 10 | AM41: =$C$4 -> 6 | AN41: 8 | AO41: 7 | AP41: 5 | AR41: 1 | BG41: 708 | BH41: 7 | BI41: 8 | BJ41: 10 | BK41: 10 | BL41: 10 | BM41: =$C$11 -> 7 | BN41: 8 | BO41: 7 | BP41: 5 | BR41: 1
AG42: 712 | AH42: 7 | AI42: 12 | AJ42: =$C$4 -> 6 | AK42: 5 | AL42: 8 | AM42: 3 | AN42: 3 | AO42: 3 | AP42: 3 | AQ42: 1 | BG42: 712 | BH42: 7 | BI42: 12 | BJ42: =$C$11 -> 7 | BK42: 5 | BL42: 8 | BM42: 3 | BN42: 3 | BO42: 3 | BP42: 3 | BQ42: 1
AG43: 720 | AH43: 7 | AI43: 20 | AJ43: 10 | AK43: 10 | AL43: 10 | AM43: 10 | AN43: =$C$4 -> 6 | AO43: 3 | AP43: 5 | AS43: 1 | BG43: 720 | BH43: 7 | BI43: 20 | BJ43: 10 | BK43: 10 | BL43: 10 | BM43: 10 | BN43: =$C$11 -> 7 | BO43: 3 | BP43: 5 | BS43: 1
AG44: 812 | AH44: 8 | AI44: 12 | AJ44: =$C$4 -> 6 | AK44: 6 | AL44: 6 | AM44: 6 | AN44: 6 | AO44: 6 | AP44: 7 | AQ44: 1 | BG44: 812 | BH44: 8 | BI44: 12 | BJ44: =$C$11 -> 7 | BK44: 6 | BL44: 6 | BM44: 6 | BN44: 6 | BO44: 6 | BP44: 7 | BQ44: 1
AG45: 820 | AH45: 8 | AI45: 20 | AJ45: 10 | AK45: 10 | AL45: 10 | AM45: 10 | AN45: 10 | AO45: =$C$4 -> 6 | AP45: 4 | AT45: 1 | BG45: 820 | BH45: 8 | BI45: 20 | BJ45: 10 | BK45: 10 | BL45: 10 | BM45: 10 | BN45: 10 | BO45: =$C$11 -> 7 | BP45: 4 | BT45: 1
AG46: 912 | AH46: 9 | AI46: 12 | AJ46: 10 | AK46: 10 | AL46: 10 | AM46: 10 | AN46: =$C$4 -> 6 | AO46: 7 | AP46: 5 | AS46: 1 | BG46: 912 | BH46: 9 | BI46: 12 | BJ46: 10 | BK46: 10 | BL46: 10 | BM46: 10 | BN46: =$C$11 -> 7 | BO46: 7 | BP46: 5 | BS46: 1
AG47: 920 | AH47: 9 | AI47: 20 | AJ47: 10 | AK47: 10 | AL47: 10 | AM47: 10 | AN47: =$C$4 -> 6 | AO47: 4 | AP47: 5 | AS47: 1 | BG47: 920 | BH47: 9 | BI47: 20 | BJ47: 10 | BK47: 10 | BL47: 10 | BM47: 10 | BN47: =$C$11 -> 7 | BO47: 4 | BP47: 5 | BS47: 1
AG48: 1012 | AH48: 10 | AI48: 12 | AJ48: =$C$4 -> 6 | AK48: 8 | AL48: 3 | AM48: 3 | AN48: 3 | AO48: 3 | AP48: 3 | AQ48: 1 | BG48: 1012 | BH48: 10 | BI48: 12 | BJ48: =$C$11 -> 7 | BK48: 8 | BL48: 3 | BM48: 3 | BN48: 3 | BO48: 3 | BP48: 3 | BQ48: 1
AG49: 1020 | AH49: 10 | AI49: 20 | AJ49: 10 | AK49: 10 | AL49: 10 | AM49: 10 | AN49: 10 | AO49: =$C$4 -> 6 | AP49: 5 | AT49: 1 | BG49: 1020 | BH49: 10 | BI49: 20 | BJ49: 10 | BK49: 10 | BL49: 10 | BM49: 10 | BN49: 10 | BO49: =$C$11 -> 7 | BP49: 5 | BT49: 1
AG50: 1112 | AH50: 11 | AI50: 12 | AJ50: =$C$4 -> 6 | AK50: 9 | AL50: 1 | AM50: 6 | AN50: 6 | AO50: 6 | AP50: 7 | AQ50: 1 | BG50: 1112 | BH50: 11 | BI50: 12 | BJ50: =$C$11 -> 7 | BK50: 9 | BL50: 1 | BM50: 6 | BN50: 6 | BO50: 6 | BP50: 7 | BQ50: 1
AG51: 1120 | AH51: 11 | AI51: 20 | AJ51: 10 | AK51: 10 | AL51: 10 | AM51: 10 | AN51: =$C$4 -> 6 | AO51: 5 | AP51: 5 | AS51: 1 | BG51: 1120 | BH51: 11 | BI51: 20 | BJ51: 10 | BK51: 10 | BL51: 10 | BM51: 10 | BN51: =$C$11 -> 7 | BO51: 5 | BP51: 5 | BS51: 1
AG52: 1220 | AH52: 12 | AI52: 20 | AJ52: 10 | AK52: 10 | AL52: 10 | AM52: 10 | AN52: 10 | AO52: =$C$4 -> 6 | AP52: 6 | AT52: 1 | BG52: 1220 | BH52: 12 | BI52: 20 | BJ52: 10 | BK52: 10 | BL52: 10 | BM52: 10 | BN52: 10 | BO52: =$C$11 -> 7 | BP52: 6 | BT52: 1
AG53: 1320 | AH53: 13 | AI53: 20 | AJ53: 10 | AK53: 10 | AL53: 10 | AM53: 10 | AN53: =$C$4 -> 6 | AO53: 6 | AP53: 5 | AS53: 1 | BG53: 1320 | BH53: 13 | BI53: 20 | BJ53: 10 | BK53: 10 | BL53: 10 | BM53: 10 | BN53: =$C$11 -> 7 | BO53: 6 | BP53: 5 | BS53: 1
AG54: 1420 | AH54: 14 | AI54: 20 | AJ54: 10 | AK54: 10 | AL54: 10 | AM54: 10 | AN54: 10 | AO54: =$C$4 -> 6 | AP54: 7 | AT54: 1 | BG54: 1420 | BH54: 14 | BI54: 20 | BJ54: 10 | BK54: 10 | BL54: 10 | BM54: 10 | BN54: 10 | BO54: =$C$11 -> 7 | BP54: 7 | BT54: 1
AG55: 1520 | AH55: 15 | AI55: 20 | AJ55: 10 | AK55: 10 | AL55: 10 | AM55: 10 | AN55: =$C$4 -> 6 | AO55: 7 | AP55: 5 | AS55: 1 | BG55: 1520 | BH55: 15 | BI55: 20 | BJ55: 10 | BK55: 10 | BL55: 10 | BM55: 10 | BN55: =$C$11 -> 7 | BO55: 7 | BP55: 5 | BS55: 1
AG56: 1620 | AH56: 16 | AI56: 20 | AJ56: 10 | AK56: 10 | AL56: 10 | AM56: 10 | AN56: 10 | AO56: =$C$4 -> 6 | AP56: 8 | AT56: 1 | BG56: 1620 | BH56: 16 | BI56: 20 | BJ56: 10 | BK56: 10 | BL56: 10 | BM56: 10 | BN56: 10 | BO56: =$C$11 -> 7 | BP56: 8 | BT56: 1
AG57: 1720 | AH57: 17 | AI57: 20 | AJ57: 10 | AK57: 10 | AL57: 10 | AM57: 10 | AN57: =$C$4 -> 6 | AO57: 8 | AP57: 5 | AS57: 1 | BG57: 1720 | BH57: 17 | BI57: 20 | BJ57: 10 | BK57: 10 | BL57: 10 | BM57: 10 | BN57: =$C$11 -> 7 | BO57: 8 | BP57: 5 | BS57: 1
AG58: 1820 | AH58: 18 | AI58: 20 | AJ58: 10 | AK58: 10 | AL58: 10 | AM58: 10 | AN58: 10 | AO58: =$C$4 -> 6 | AP58: 9 | AT58: 1 | BG58: 1820 | BH58: 18 | BI58: 20 | BJ58: 10 | BK58: 10 | BL58: 10 | BM58: 10 | BN58: 10 | BO58: =$C$11 -> 7 | BP58: 9 | BT58: 1
AG59: 1920 | AH59: 19 | AI59: 20 | AJ59: 10 | AK59: 10 | AL59: 10 | AM59: 10 | AN59: =$C$4 -> 6 | AO59: 9 | AP59: 5 | AS59: 1 | BG59: 1920 | BH59: 19 | BI59: 20 | BJ59: 10 | BK59: 10 | BL59: 10 | BM59: 10 | BN59: =$C$11 -> 7 | BO59: 9 | BP59: 5 | BS59: 1

Sheet CALCLENG
E1: 5
C2: Interpret the value the calculator displays | AA2: =IF(AK20=2,"•",IF(AK20=5,"•",IF(AK20=10,"•","*"))) -> * | AB2: =IF(BK20=2,"•",IF(BK20=5,"•",IF(BK20=10,"•","* "))) -> * | AJ2: =AJ7 -> 885 | AK2: =ABS(AJ2) -> 885 | AL2: =IF(AK2<100,1,0) -> 0 | AM2: =IF(AK2/100=ROUNDDOWN(AK2/100,0),1,0) -> 0 | AN2: =IF(AK2/10=ROUNDDOWN(AK2/10,0),1,0) -> 0 | AO2: =AL2+AM2*2+AN2*4 -> 0 | AP2: =IF(AO2=0,CONCATENATE(,AK2/100-MOD(AK2/100,1)," cm ",ROUND(100*MOD(AK2/100,1),6)," mm"),IF(AO2=1,CONCATENATE(ROUND(AK2,0)," mm"),IF(AO2=4,CONCATENATE(,AK2/100-MOD(AK2/100,1)," cm ",ROUND(10*MOD(AK2/100,1),6),"0 mm"),IF(AO2=5,CONCATENATE(AK2," mm"),IF(AO2=6,CONCATENATE("",AK2/100," cm"),"0 cm"))))) -> 8 cm 85 mm
C3: after the division in the context of length. | AA3: 0 | AB3: =IF(AA3=0,"",R28) ->  | AC3: =IF(AA3=0," cm","") -> cm | AD3: =IF(AA3=0," mm",T28) -> mm | AJ3: =AJ14 -> 433 | AK3: =ABS(AJ3) -> 433 | AL3: =IF(AK3<100,1,0) -> 0 | AM3: =IF(AK3/100=ROUNDDOWN(AK3/100,0),1,0) -> 0 | AN3: =IF(AK3/10=ROUNDDOWN(AK3/10,0),1,0) -> 0 | AO3: =AL3+AM3*2+AN3*4 -> 0 | AP3: =IF(AO3=0,CONCATENATE(,AK3/100-MOD(AK3/100,1)," m ",ROUND(100*MOD(AK3/100,1),6)," cm"),IF(AO3=1,CONCATENATE(ROUND(AK3,0)," cm"),IF(AO3=4,CONCATENATE(,AK3/100-MOD(AK3/100,1)," m ",ROUND(10*MOD(AK3/100,1),6),"0 cm"),IF(AO3=5,CONCATENATE(AK3," cm"),IF(AO3=6,CONCATENATE("",AK3/100," m"),"0 m"))))) -> 4 m 33 cm
C4: =INT(10*RAND())+0 -> 8 | D4: =1*RAND() -> 0.3547576703 | E4: =IF(D4>0.5,"ms","hm") -> hm | F4: =RAND() -> 0.8357667273 | G4: =IF(F4>0.5,20,12) -> 20 | H4: =INT((G4-1)*RAND())+1 -> 17 | I4: =H4/G4 -> 0.85 | K4: =H4*100+G4 -> 1720 | M4: 60 | N4: =M4*H4/G4 -> 51 | O4: =IF(C4>1,"s","") -> s | Q4: =RAND() -> 0.4613955921 | R4: =IF(Q4>0.5,"What is ","Evaluate ") -> Evaluate | S4: =IF(Q4>0.5,"?",".") -> . | Y4: =AP11 -> 2 | Z4: =AP18 -> 7 | AA4: =IF(Y4=2,1,IF(Z4=2,1,0)) -> 1
C5: =CONCATENATE(R4,AB3,C4*AK20+AK19,AC3," divided by ",BX20," to the nearest",AD3,S4) -> Evaluate 177 cm divided by twenty to the nearest mm.
O6: = | P6: =IF(AM20=0,CONCATENATE(AO20," mm"),CONCATENATE(AM20," cm ",AO20," mm")) -> 8 cm 9 mm
AJ7: =ROUND((C4+AK19/AK20)*100,0) -> 885 | AK7: =IF(AJ7<100,1,0) -> 0 | AL7: =IF(AJ7/100=ROUNDDOWN(AJ7/100,0),1,0) -> 0 | AM7: =IF(AJ7/10=ROUNDDOWN(AJ7/10,0),1,0) -> 0 | AN7: =AK7+AL7*2+AM7*4 -> 0 | AO7: =IF(AN7=0,CONCATENATE($R$28,ROUND(AJ7/100,2)),IF(AN7=1,CONCATENATE(ROUND(AJ7,0),$S$28),IF(AN7=4,CONCATENATE($R$28,AJ7/100,"0"),IF(AN7=5,CONCATENATE(AJ7,$S$28),IF(AN7=6,CONCATENATE($R$28,AJ7/100),"xxx"))))) -> R8.85 | AP7: =AJ7/100 -> 8.85 | AQ7: =ROUND(AP7,0) -> 9 | AR7: =AQ7-AP7 -> 0.15 | AS7: =IF(AR7=0,0,1) -> 1
AJ8: =(C4+AK19/AK20)*10-ROUNDDOWN((C4+AK19/AK20)*10,0) -> 0.5 | AK8: =100*AJ8 -> 50
D9: =VLOOKUP($K$4,$AG$23:$AW$59,4) -> 10 | E9: =VLOOKUP($K$4,$AG$23:$AW$59,5) -> 10 | G9: =VLOOKUP($K$4,$AG$23:$AW$59,6) -> 10 | H9: =VLOOKUP($K$4,$AG$23:$AW$59,7) -> 10 | J9: =VLOOKUP($K$4,$AG$23:$AW$59,8) -> 8 | L9: =VLOOKUP($K$4,$AG$23:$AW$59,9) -> 8 | M9: =VLOOKUP($K$4,$AG$23:$AW$59,10) -> 5
D10: =VLOOKUP($K$4,$AG$23:$AW$59,11) -> 0 | G10: =IF(D11>0.5,8,12) -> 8 | H10: 12 | I10: =VLOOKUP($K$4,$AG$23:$AW$59,12) -> 0 | K10: =VLOOKUP($K$4,$AG$23:$AW$59,13) -> 1 | L10: =VLOOKUP($K$4,$AG$23:$AW$59,14) -> 0 | AJ10: =ROUND((C4+AK19/AK20),9) -> 8.85 | AK10: =MOD(AJ10,1) -> 0.85 | AL10: =ROUND(1000*AK10,0) -> 850 | AM10: =(AL10-MOD(AL10,100))/100 -> 8 | AN10: =(AL10-AM11-MOD(AL10-AM11,10))/10 -> 5 | AO10: =ROUNDDOWN(AL10-AM11-AN11,0) -> 0 | AP10: =MOD(1000*AJ10,1) -> 0
C11: =INT(10*RAND())+0 -> 4 | D11: =1*RAND() -> 0.6919876118 | E11: =IF(D11>0.5,"dh","ym") -> dh | F11: =RAND() -> 0.4135434516 | G11: =IF(F11>0.5,G10,H10) -> 12 | H11: =INT((G11-1)*RAND())+1 -> 4 | I11: =H11/G11 -> 0.3333333333 | K11: =H11*100+G11 -> 412 | M11: =IF(D11>0.5,24,12) -> 24 | N11: =M11*H11/G11 -> 8 | O11: =IF(C11>1,"s","") -> s | AJ11: =CONCATENATE(AJ10) -> 8.85 | AM11: =AM10*100 -> 800 | AN11: =AN10*10 -> 50 | AO11: =AO10 -> 0 | AP11: =IF(AP10>0,7,IF(AO10>0,3,IF(AN10>0,2,1))) -> 2
C12: =CONCATENATE("Split ",AB3,C11*BK20+BK19," cm into ",BX21," parts to the nearest mm",".") -> Split 13 cm into three parts to the nearest mm.
O13: = | P13: =IF(BM20=0,CONCATENATE(BO20," mm"),CONCATENATE(BM20," cm ",BO20," mm")) -> 4 cm 3 mm
AJ14: =ROUND((C11+BK19/BK20)*100,0) -> 433 | AK14: =IF(AJ14<100,1,0) -> 0 | AL14: =IF(AJ14/100=ROUNDDOWN(AJ14/100,0),1,0) -> 0 | AM14: =IF(AJ14/10=ROUNDDOWN(AJ14/10,0),1,0) -> 0 | AN14: =AK14+AL14*2+AM14*4 -> 0 | AO14: =IF(AN14=0,CONCATENATE($R$28,ROUND(AJ14/100,2)),IF(AN14=1,CONCATENATE(ROUND(AJ14,0),$S$28),IF(AN14=4,CONCATENATE($R$28,AJ14/100,"0"),IF(AN14=5,CONCATENATE(AJ14,$S$28),IF(AN14=6,CONCATENATE($R$28,AJ14/100),"xxx"))))) -> R4.33 | AP14: =AJ14/100 -> 4.33 | AQ14: =ROUND(AP14,0) -> 4 | AR14: =AQ14-AP14 -> -0.33 | AS14: =IF(AR14=0,0,1) -> 1
AJ15: =ROUND((C11+BK19/BK20)*100,0) -> 433 | AK15: =100*AJ15 -> 43300
D16: =VLOOKUP($K$11,$BG$23:$BW$59,4) -> 4 | E16: =VLOOKUP($K$11,$BG$23:$BW$59,5) -> 3 | G16: =VLOOKUP($K$11,$BG$23:$BW$59,6) -> 3 | H16: =VLOOKUP($K$11,$BG$23:$BW$59,7) -> 3 | J16: =VLOOKUP($K$11,$BG$23:$BW$59,8) -> 3 | L16: =VLOOKUP($K$11,$BG$23:$BW$59,9) -> 3 | M16: =VLOOKUP($K$11,$BG$23:$BW$59,10) -> 3
D17: =VLOOKUP($K$11,$BG$23:$BW$59,11) -> 1 | I17: =VLOOKUP($K$11,$BG$23:$BW$59,12) -> 0 | K17: =VLOOKUP($K$11,$BG$23:$BW$59,13) -> 0 | L17: =VLOOKUP($K$11,$BG$23:$BW$59,14) -> 0 | AJ17: =ROUND((C11+BK19/BK20),9) -> 4.333333333 | AK17: =MOD(AJ17,1) -> 0.333333333 | AL17: =ROUND(1000*AK17,0) -> 333 | AM17: =(AL17-MOD(AL17,100))/100 -> 3 | AN17: =(AL17-AM18-MOD(AL17-AM18,10))/10 -> 3 | AO17: =ROUNDDOWN(AL17-AM18-AN18,0) -> 3 | AP17: =MOD(1000*AJ17,1) -> 0.333333
AJ18: =CONCATENATE(AJ17) -> 4.333333333 | AM18: =AM17*100 -> 300 | AN18: =AN17*10 -> 30 | AO18: =AO17 -> 3 | AP18: =IF(AP17>0,7,IF(AO17>0,3,IF(AN17>0,2,1))) -> 7
AI19: =H4 -> 17 | AJ19: =IF(AI19=0,1,AI19*AI20/(MAX(AI19:AI20)*LEFT(TEXT(MIN(AI19:AI20)/MAX(AI19:AI20),"000000000000000/000000000000000"),15))) -> 1 | AK19: =AI19/AJ19 -> 17 | BI19: =H11 -> 4 | BJ19: =IF(BI19=0,1,BI19*BI20/(MAX(BI19:BI20)*LEFT(TEXT(MIN(BI19:BI20)/MAX(BI19:BI20),"000000000000000/000000000000000"),15))) -> 4 | BK19: =BI19/BJ19 -> 1
AI20: =G4 -> 20 | AJ20: =MAX(AI19:AI20)*LEFT(TEXT(MIN(AI19:AI20)/MAX(AI19:AI20),"000000000000000/000000000000000"),15) -> 340 | AK20: =IF(AI19=0,"",IF(AI19=AI20,"",AI20/AJ19)) -> 20 | AL20: =C4*AK20+AK19 -> 177 | AM20: =ROUNDDOWN(AL20/AK20,0) -> 8 | AN20: =-AM20*AK20+AL20 -> 17 | AO20: =ROUND(AN20*10/AK20,0) -> 9 | BI20: =G11 -> 12 | BJ20: =MAX(BI19:BI20)*LEFT(TEXT(MIN(BI19:BI20)/MAX(BI19:BI20),"000000000000000/000000000000000"),15) -> 12 | BK20: =IF(BI19=0,"",IF(BI19=BI20,"",BI20/BJ19)) -> 3 | BL20: =C11*BK20+BK19 -> 13 | BM20: =ROUNDDOWN(BL20/BK20,0) -> 4 | BN20: =-BM20*BK20+BL20 -> 1 | BO20: =ROUND(BN20*10/BK20,0) -> 3 | BW20: =AK20 -> 20 | BX20: =VLOOKUP(BW20,$BW$22:$BX$33,2) -> twenty
BW21: =BK20 -> 3 | BX21: =VLOOKUP(BW21,$BW$22:$BX$33,2) -> three
AJ22: 1 | AK22: 2 | AL22: 3 | AM22: 4 | AN22: 5 | AO22: 6 | AP22: 7 | AQ22: 8 | AR22: 9 | AS22: 10 | AT22: 11 | BJ22: 1 | BK22: 2 | BL22: 3 | BM22: 4 | BN22: 5 | BO22: 6 | BP22: 7 | BQ22: 8 | BR22: 9 | BS22: 10 | BT22: 11 | BW22: 2 | BX22: two
AG23: 108 | AH23: 1 | AI23: 8 | AJ23: 10 | AK23: 10 | AL23: 10 | AM23: =$C$4 -> 8 | AN23: 1 | AO23: 2 | AP23: 5 | AR23: 1 | BG23: 108 | BH23: 1 | BI23: 8 | BJ23: 10 | BK23: 10 | BL23: 10 | BM23: =$C$11 -> 4 | BN23: 1 | BO23: 2 | BP23: 5 | BR23: 1 | BW23: 3 | BX23: three
AG24: 112 | AH24: 1 | AI24: 12 | AJ24: =$C$4 -> 8 | AK24: 0 | AL24: 8 | AM24: 3 | AN24: 3 | AO24: 3 | AP24: 3 | AQ24: 1 | BG24: 112 | BH24: 1 | BI24: 12 | BJ24: =$C$11 -> 4 | BK24: 0 | BL24: 8 | BM24: 3 | BN24: 3 | BO24: 3 | BP24: 3 | BQ24: 1 | BW24: 4 | BX24: four
AG25: 120 | AH25: 1 | AI25: 20 | AJ25: 10 | AK25: 10 | AL25: 10 | AM25: 10 | AN25: =$C$4 -> 8 | AO25: 0 | AP25: 5 | AS25: 1 | BG25: 120 | BH25: 1 | BI25: 20 | BJ25: 10 | BK25: 10 | BL25: 10 | BM25: 10 | BN25: =$C$11 -> 4 | BO25: 0 | BP25: 5 | BS25: 1 | BW25: 5 | BX25: five
AG26: 208 | AH26: 2 | AI26: 8 | AJ26: 10 | AK26: 10 | AL26: 10 | AM26: 10 | AN26: =$C$4 -> 8 | AO26: 2 | AP26: 5 | AS26: 1 | BG26: 208 | BH26: 2 | BI26: 8 | BJ26: 10 | BK26: 10 | BL26: 10 | BM26: 10 | BN26: =$C$11 -> 4 | BO26: 2 | BP26: 5 | BS26: 1 | BW26: 6 | BX26: six
AG27: 212 | AH27: 2 | AI27: 12 | AJ27: =$C$4 -> 8 | AK27: 1 | AL27: 6 | AM27: 6 | AN27: 6 | AO27: 6 | AP27: 7 | AQ27: 1 | BG27: 212 | BH27: 2 | BI27: 12 | BJ27: =$C$11 -> 4 | BK27: 1 | BL27: 6 | BM27: 6 | BN27: 6 | BO27: 6 | BP27: 7 | BQ27: 1 | BW27: 7 | BX27: seven
Q28: =E1 -> 5 | R28: =IF(Q28=1,"£",IF(Q28=2,"$",IF(Q28=3,"€","R"))) -> R | S28: =IF(Q28=1,"p","c") -> c | T28: =IF(Q28=1," penny"," cent") -> cent | AG28: 220 | AH28: 2 | AI28: 20 | AJ28: 10 | AK28: 10 | AL28: 10 | AM28: 10 | AN28: 10 | AO28: =$C$4 -> 8 | AP28: 1 | AT28: 1 | BG28: 220 | BH28: 2 | BI28: 20 | BJ28: 10 | BK28: 10 | BL28: 10 | BM28: 10 | BN28: 10 | BO28: =$C$11 -> 4 | BP28: 1 | BT28: 1 | BW28: 8 | BX28: eight
AG29: 308 | AH29: 3 | AI29: 8 | AJ29: 10 | AK29: 10 | AL29: 10 | AM29: =$C$4 -> 8 | AN29: 3 | AO29: 7 | AP29: 5 | AR29: 1 | BG29: 308 | BH29: 3 | BI29: 8 | BJ29: 10 | BK29: 10 | BL29: 10 | BM29: =$C$11 -> 4 | BN29: 3 | BO29: 7 | BP29: 5 | BR29: 1 | BW29: 9 | BX29: nine
AG30: 312 | AH30: 3 | AI30: 12 | AJ30: 10 | AK30: 10 | AL30: 10 | AM30: 10 | AN30: =$C$4 -> 8 | AO30: 2 | AP30: 5 | AS30: 1 | BG30: 312 | BH30: 3 | BI30: 12 | BJ30: 10 | BK30: 10 | BL30: 10 | BM30: 10 | BN30: =$C$11 -> 4 | BO30: 2 | BP30: 5 | BS30: 1 | BW30: 10 | BX30: ten
AG31: 320 | AH31: 3 | AI31: 20 | AJ31: 10 | AK31: 10 | AL31: 10 | AM31: 10 | AN31: =$C$4 -> 8 | AO31: 1 | AP31: 5 | AS31: 1 | BG31: 320 | BH31: 3 | BI31: 20 | BJ31: 10 | BK31: 10 | BL31: 10 | BM31: 10 | BN31: =$C$11 -> 4 | BO31: 1 | BP31: 5 | BS31: 1 | BW31: 11 | BX31: eleven
AG32: 408 | AH32: 4 | AI32: 8 | AJ32: 10 | AK32: 10 | AL32: 10 | AM32: 10 | AN32: 10 | AO32: =$C$4 -> 8 | AP32: 5 | AT32: 1 | BG32: 408 | BH32: 4 | BI32: 8 | BJ32: 10 | BK32: 10 | BL32: 10 | BM32: 10 | BN32: 10 | BO32: =$C$11 -> 4 | BP32: 5 | BT32: 1 | BW32: 12 | BX32: twelve
AG33: 412 | AH33: 4 | AI33: 12 | AJ33: =$C$4 -> 8 | AK33: 3 | AL33: 3 | AM33: 3 | AN33: 3 | AO33: 3 | AP33: 3 | AQ33: 1 | BG33: 412 | BH33: 4 | BI33: 12 | BJ33: =$C$11 -> 4 | BK33: 3 | BL33: 3 | BM33: 3 | BN33: 3 | BO33: 3 | BP33: 3 | BQ33: 1 | BW33: 20 | BX33: twenty
AG34: 420 | AH34: 4 | AI34: 20 | AJ34: 10 | AK34: 10 | AL34: 10 | AM34: 10 | AN34: 10 | AO34: =$C$4 -> 8 | AP34: 2 | AT34: 1 | BG34: 420 | BH34: 4 | BI34: 20 | BJ34: 10 | BK34: 10 | BL34: 10 | BM34: 10 | BN34: 10 | BO34: =$C$11 -> 4 | BP34: 2 | BT34: 1
AG35: 508 | AH35: 5 | AI35: 8 | AJ35: 10 | AK35: 10 | AL35: 10 | AM35: =$C$4 -> 8 | AN35: 6 | AO35: 2 | AP35: 5 | AR35: 1 | BG35: 508 | BH35: 5 | BI35: 8 | BJ35: 10 | BK35: 10 | BL35: 10 | BM35: =$C$11 -> 4 | BN35: 6 | BO35: 2 | BP35: 5 | BR35: 1
AG36: 512 | AH36: 5 | AI36: 12 | AJ36: =$C$4 -> 8 | AK36: 4 | AL36: 1 | AM36: 6 | AN36: 6 | AO36: 6 | AP36: 7 | AQ36: 1 | BG36: 512 | BH36: 5 | BI36: 12 | BJ36: =$C$11 -> 4 | BK36: 4 | BL36: 1 | BM36: 6 | BN36: 6 | BO36: 6 | BP36: 7 | BQ36: 1
AG37: 520 | AH37: 5 | AI37: 20 | AJ37: 10 | AK37: 10 | AL37: 10 | AM37: 10 | AN37: =$C$4 -> 8 | AO37: 2 | AP37: 5 | AS37: 1 | BG37: 520 | BH37: 5 | BI37: 20 | BJ37: 10 | BK37: 10 | BL37: 10 | BM37: 10 | BN37: =$C$11 -> 4 | BO37: 2 | BP37: 5 | BS37: 1
AG38: 608 | AH38: 6 | AI38: 8 | AJ38: 10 | AK38: 10 | AL38: 10 | AM38: 10 | AN38: =$C$4 -> 8 | AO38: 7 | AP38: 5 | AS38: 1 | BG38: 608 | BH38: 6 | BI38: 8 | BJ38: 10 | BK38: 10 | BL38: 10 | BM38: 10 | BN38: =$C$11 -> 4 | BO38: 7 | BP38: 5 | BS38: 1
AG39: 612 | AH39: 6 | AI39: 12 | AJ39: 10 | AK39: 10 | AL39: 10 | AM39: 10 | AN39: 10 | AO39: =$C$4 -> 8 | AP39: 5 | AT39: 1 | BG39: 612 | BH39: 6 | BI39: 12 | BJ39: 10 | BK39: 10 | BL39: 10 | BM39: 10 | BN39: 10 | BO39: =$C$11 -> 4 | BP39: 5 | BT39: 1
AG40: 620 | AH40: 6 | AI40: 20 | AJ40: 10 | AK40: 10 | AL40: 10 | AM40: 10 | AN40: 10 | AO40: =$C$4 -> 8 | AP40: 3 | AT40: 1 | BG40: 620 | BH40: 6 | BI40: 20 | BJ40: 10 | BK40: 10 | BL40: 10 | BM40: 10 | BN40: 10 | BO40: =$C$11 -> 4 | BP40: 3 | BT40: 1
AG41: 708 | AH41: 7 | AI41: 8 | AJ41: 10 | AK41: 10 | AL41: 10 | AM41: =$C$4 -> 8 | AN41: 8 | AO41: 7 | AP41: 5 | AR41: 1 | BG41: 708 | BH41: 7 | BI41: 8 | BJ41: 10 | BK41: 10 | BL41: 10 | BM41: =$C$11 -> 4 | BN41: 8 | BO41: 7 | BP41: 5 | BR41: 1
AG42: 712 | AH42: 7 | AI42: 12 | AJ42: =$C$4 -> 8 | AK42: 5 | AL42: 8 | AM42: 3 | AN42: 3 | AO42: 3 | AP42: 3 | AQ42: 1 | BG42: 712 | BH42: 7 | BI42: 12 | BJ42: =$C$11 -> 4 | BK42: 5 | BL42: 8 | BM42: 3 | BN42: 3 | BO42: 3 | BP42: 3 | BQ42: 1
AG43: 720 | AH43: 7 | AI43: 20 | AJ43: 10 | AK43: 10 | AL43: 10 | AM43: 10 | AN43: =$C$4 -> 8 | AO43: 3 | AP43: 5 | AS43: 1 | BG43: 720 | BH43: 7 | BI43: 20 | BJ43: 10 | BK43: 10 | BL43: 10 | BM43: 10 | BN43: =$C$11 -> 4 | BO43: 3 | BP43: 5 | BS43: 1
AG44: 812 | AH44: 8 | AI44: 12 | AJ44: =$C$4 -> 8 | AK44: 6 | AL44: 6 | AM44: 6 | AN44: 6 | AO44: 6 | AP44: 7 | AQ44: 1 | BG44: 812 | BH44: 8 | BI44: 12 | BJ44: =$C$11 -> 4 | BK44: 6 | BL44: 6 | BM44: 6 | BN44: 6 | BO44: 6 | BP44: 7 | BQ44: 1
AG45: 820 | AH45: 8 | AI45: 20 | AJ45: 10 | AK45: 10 | AL45: 10 | AM45: 10 | AN45: 10 | AO45: =$C$4 -> 8 | AP45: 4 | AT45: 1 | BG45: 820 | BH45: 8 | BI45: 20 | BJ45: 10 | BK45: 10 | BL45: 10 | BM45: 10 | BN45: 10 | BO45: =$C$11 -> 4 | BP45: 4 | BT45: 1
AG46: 912 | AH46: 9 | AI46: 12 | AJ46: 10 | AK46: 10 | AL46: 10 | AM46: 10 | AN46: =$C$4 -> 8 | AO46: 7 | AP46: 5 | AS46: 1 | BG46: 912 | BH46: 9 | BI46: 12 | BJ46: 10 | BK46: 10 | BL46: 10 | BM46: 10 | BN46: =$C$11 -> 4 | BO46: 7 | BP46: 5 | BS46: 1
AG47: 920 | AH47: 9 | AI47: 20 | AJ47: 10 | AK47: 10 | AL47: 10 | AM47: 10 | AN47: =$C$4 -> 8 | AO47: 4 | AP47: 5 | AS47: 1 | BG47: 920 | BH47: 9 | BI47: 20 | BJ47: 10 | BK47: 10 | BL47: 10 | BM47: 10 | BN47: =$C$11 -> 4 | BO47: 4 | BP47: 5 | BS47: 1
AG48: 1012 | AH48: 10 | AI48: 12 | AJ48: =$C$4 -> 8 | AK48: 8 | AL48: 3 | AM48: 3 | AN48: 3 | AO48: 3 | AP48: 3 | AQ48: 1 | BG48: 1012 | BH48: 10 | BI48: 12 | BJ48: =$C$11 -> 4 | BK48: 8 | BL48: 3 | BM48: 3 | BN48: 3 | BO48: 3 | BP48: 3 | BQ48: 1
AG49: 1020 | AH49: 10 | AI49: 20 | AJ49: 10 | AK49: 10 | AL49: 10 | AM49: 10 | AN49: 10 | AO49: =$C$4 -> 8 | AP49: 5 | AT49: 1 | BG49: 1020 | BH49: 10 | BI49: 20 | BJ49: 10 | BK49: 10 | BL49: 10 | BM49: 10 | BN49: 10 | BO49: =$C$11 -> 4 | BP49: 5 | BT49: 1
AG50: 1112 | AH50: 11 | AI50: 12 | AJ50: =$C$4 -> 8 | AK50: 9 | AL50: 1 | AM50: 6 | AN50: 6 | AO50: 6 | AP50: 7 | AQ50: 1 | BG50: 1112 | BH50: 11 | BI50: 12 | BJ50: =$C$11 -> 4 | BK50: 9 | BL50: 1 | BM50: 6 | BN50: 6 | BO50: 6 | BP50: 7 | BQ50: 1
AG51: 1120 | AH51: 11 | AI51: 20 | AJ51: 10 | AK51: 10 | AL51: 10 | AM51: 10 | AN51: =$C$4 -> 8 | AO51: 5 | AP51: 5 | AS51: 1 | BG51: 1120 | BH51: 11 | BI51: 20 | BJ51: 10 | BK51: 10 | BL51: 10 | BM51: 10 | BN51: =$C$11 -> 4 | BO51: 5 | BP51: 5 | BS51: 1
AG52: 1220 | AH52: 12 | AI52: 20 | AJ52: 10 | AK52: 10 | AL52: 10 | AM52: 10 | AN52: 10 | AO52: =$C$4 -> 8 | AP52: 6 | AT52: 1 | BG52: 1220 | BH52: 12 | BI52: 20 | BJ52: 10 | BK52: 10 | BL52: 10 | BM52: 10 | BN52: 10 | BO52: =$C$11 -> 4 | BP52: 6 | BT52: 1
AG53: 1320 | AH53: 13 | AI53: 20 | AJ53: 10 | AK53: 10 | AL53: 10 | AM53: 10 | AN53: =$C$4 -> 8 | AO53: 6 | AP53: 5 | AS53: 1 | BG53: 1320 | BH53: 13 | BI53: 20 | BJ53: 10 | BK53: 10 | BL53: 10 | BM53: 10 | BN53: =$C$11 -> 4 | BO53: 6 | BP53: 5 | BS53: 1
AG54: 1420 | AH54: 14 | AI54: 20 | AJ54: 10 | AK54: 10 | AL54: 10 | AM54: 10 | AN54: 10 | AO54: =$C$4 -> 8 | AP54: 7 | AT54: 1 | BG54: 1420 | BH54: 14 | BI54: 20 | BJ54: 10 | BK54: 10 | BL54: 10 | BM54: 10 | BN54: 10 | BO54: =$C$11 -> 4 | BP54: 7 | BT54: 1
AG55: 1520 | AH55: 15 | AI55: 20 | AJ55: 10 | AK55: 10 | AL55: 10 | AM55: 10 | AN55: =$C$4 -> 8 | AO55: 7 | AP55: 5 | AS55: 1 | BG55: 1520 | BH55: 15 | BI55: 20 | BJ55: 10 | BK55: 10 | BL55: 10 | BM55: 10 | BN55: =$C$11 -> 4 | BO55: 7 | BP55: 5 | BS55: 1
AG56: 1620 | AH56: 16 | AI56: 20 | AJ56: 10 | AK56: 10 | AL56: 10 | AM56: 10 | AN56: 10 | AO56: =$C$4 -> 8 | AP56: 8 | AT56: 1 | BG56: 1620 | BH56: 16 | BI56: 20 | BJ56: 10 | BK56: 10 | BL56: 10 | BM56: 10 | BN56: 10 | BO56: =$C$11 -> 4 | BP56: 8 | BT56: 1
AG57: 1720 | AH57: 17 | AI57: 20 | AJ57: 10 | AK57: 10 | AL57: 10 | AM57: 10 | AN57: =$C$4 -> 8 | AO57: 8 | AP57: 5 | AS57: 1 | BG57: 1720 | BH57: 17 | BI57: 20 | BJ57: 10 | BK57: 10 | BL57: 10 | BM57: 10 | BN57: =$C$11 -> 4 | BO57: 8 | BP57: 5 | BS57: 1
AG58: 1820 | AH58: 18 | AI58: 20 | AJ58: 10 | AK58: 10 | AL58: 10 | AM58: 10 | AN58: 10 | AO58: =$C$4 -> 8 | AP58: 9 | AT58: 1 | BG58: 1820 | BH58: 18 | BI58: 20 | BJ58: 10 | BK58: 10 | BL58: 10 | BM58: 10 | BN58: 10 | BO58: =$C$11 -> 4 | BP58: 9 | BT58: 1
AG59: 1920 | AH59: 19 | AI59: 20 | AJ59: 10 | AK59: 10 | AL59: 10 | AM59: 10 | AN59: =$C$4 -> 8 | AO59: 9 | AP59: 5 | AS59: 1 | BG59: 1920 | BH59: 19 | BI59: 20 | BJ59: 10 | BK59: 10 | BL59: 10 | BM59: 10 | BN59: =$C$11 -> 4 | BO59: 9 | BP59: 5 | BS59: 1

Sheet CALCWEIG
E1: 5
C2: Interpret the value the calculator displays | AA2: =IF(AK20=8,"•",IF(AP11>2,"*","•")) -> * | AB2: =IF(BK20=8,"•",IF(AP18>2,"* ","•")) -> • | AJ2: =AJ7 -> 2583 | AK2: =ABS(AJ2) -> 2583 | AL2: =IF(AK2<1000,1,0) -> 0 | AM2: =IF(AK2/1000=ROUNDDOWN(AK2/1000,0),1,0) -> 0 | AN2: =IF(AK2/10=ROUNDDOWN(AK2/10,0),1,0) -> 0 | AO2: =AL2+AM2*2+AN2*4 -> 0 | AP2: =IF(AO2=0,CONCATENATE(,AK2/1000-MOD(AK2/1000,1)," kg ",ROUND(1000*MOD(AK2/1000,1),6)," g"),IF(AO2=1,CONCATENATE(ROUND(AK2,0)," g"),IF(AO2=4,CONCATENATE(,AK2/1000-MOD(AK2/1000,1)," kg ",ROUND(100*MOD(AK2/1000,1),6),"0 g"),IF(AO2=5,CONCATENATE(AK2," g"),IF(AO2=6,CONCATENATE("",AK2/1000," kg"),"0 kg"))))) -> 2 kg 583 g
C3: after the division in the context of weight. | AA3: 0 | AB3: =IF(AA3=0,"",R28) ->  | AC3: =IF(AA3=0," kg","") -> kg | AD3: =IF(AA3=0," g",T28) -> g | AJ3: =AJ14 -> 2750 | AK3: =ABS(AJ3) -> 2750 | AL3: =IF(AK3<1000,1,0) -> 0 | AM3: =IF(AK3/1000=ROUNDDOWN(AK3/1000,0),1,0) -> 0 | AN3: =IF(AK3/10=ROUNDDOWN(AK3/10,0),1,0) -> 1 | AO3: =AL3+AM3*2+AN3*4 -> 4 | AP3: =IF(AO3=0,CONCATENATE(,AK3/1000-MOD(AK3/1000,1)," kg ",ROUND(1000*MOD(AK3/1000,1),6)," g"),IF(AO3=1,CONCATENATE(ROUND(AK3,0)," g"),IF(AO3=4,CONCATENATE(,AK3/1000-MOD(AK3/1000,1)," kg ",ROUND(100*MOD(AK3/1000,1),6),"0 g"),IF(AO3=5,CONCATENATE(AK3," g"),IF(AO3=6,CONCATENATE("",AK3/1000," kg"),"0 kg"))))) -> 2 kg 750 g
C4: =INT(10*RAND())+0 -> 2 | D4: =1*RAND() -> 0.5043990323 | E4: =IF(D4>0.5,"ms","hm") -> ms | F4: =RAND() -> 0.1940180775 | G4: =IF(F4>0.5,20,12) -> 12 | H4: =INT((G4-1)*RAND())+1 -> 7 | I4: =H4/G4 -> 0.5833333333 | K4: =H4*100+G4 -> 712 | M4: 60 | N4: =M4*H4/G4 -> 35 | O4: =IF(C4>1,"s","") -> s | Q4: =RAND() -> 0.3695208602 | R4: =IF(Q4>0.5,"What is ","Evaluate ") -> Evaluate | S4: =IF(Q4>0.5,"?",".") -> . | Y4: =AP11 -> 7 | Z4: =AP18 -> 2 | AA4: =IF(Y4=2,1,IF(Z4=2,1,0)) -> 1
C5: =CONCATENATE(R4,AB3,C4*AK20+AK19,AC3," divided by ",BX20," to the nearest",AD3,S4) -> Evaluate 31 kg divided by twelve to the nearest g.
O6: = | P6: =IF(AA3=1,AO7,AP2) -> 2 kg 583 g
AJ7: =ROUND((C4+AK19/AK20)*1000,0) -> 2583 | AK7: =IF(AJ7<100,1,0) -> 0 | AL7: =IF(AJ7/100=ROUNDDOWN(AJ7/100,0),1,0) -> 0 | AM7: =IF(AJ7/10=ROUNDDOWN(AJ7/10,0),1,0) -> 0 | AN7: =AK7+AL7*2+AM7*4 -> 0 | AO7: =IF(AN7=0,CONCATENATE($R$28,ROUND(AJ7/100,2)),IF(AN7=1,CONCATENATE(ROUND(AJ7,0),$S$28),IF(AN7=4,CONCATENATE($R$28,AJ7/100,"0"),IF(AN7=5,CONCATENATE(AJ7,$S$28),IF(AN7=6,CONCATENATE($R$28,AJ7/100),"xxx"))))) -> R25.83 | AP7: =AJ7/100 -> 25.83 | AQ7: =ROUND(AP7,0) -> 26 | AR7: =AQ7-AP7 -> 0.17 | AS7: =IF(AR7=0,0,1) -> 1
AJ8: =(C4+AK19/AK20)*10-ROUNDDOWN((C4+AK19/AK20)*10,0) -> 0.8333333333 | AK8: =100*AJ8 -> 83.33333333
D9: =VLOOKUP($K$4,$AG$23:$AW$59,4) -> 2 | E9: =VLOOKUP($K$4,$AG$23:$AW$59,5) -> 5 | G9: =VLOOKUP($K$4,$AG$23:$AW$59,6) -> 8 | H9: =VLOOKUP($K$4,$AG$23:$AW$59,7) -> 3 | J9: =VLOOKUP($K$4,$AG$23:$AW$59,8) -> 3 | L9: =VLOOKUP($K$4,$AG$23:$AW$59,9) -> 3 | M9: =VLOOKUP($K$4,$AG$23:$AW$59,10) -> 3
D10: =VLOOKUP($K$4,$AG$23:$AW$59,11) -> 1 | G10: =IF(D11>0.5,8,12) -> 8 | H10: 12 | I10: =VLOOKUP($K$4,$AG$23:$AW$59,12) -> 0 | K10: =VLOOKUP($K$4,$AG$23:$AW$59,13) -> 0 | L10: =VLOOKUP($K$4,$AG$23:$AW$59,14) -> 0 | AJ10: =ROUND((C4+AK19/AK20),9) -> 2.583333333 | AK10: =MOD(AJ10,1) -> 0.583333333 | AL10: =ROUND(1000*AK10,0) -> 583 | AM10: =(AL10-MOD(AL10,100))/100 -> 5 | AN10: =(AL10-AM11-MOD(AL10-AM11,10))/10 -> 8 | AO10: =ROUNDDOWN(AL10-AM11-AN11,0) -> 3 | AP10: =MOD(1000*AJ10,1) -> 0.333333
C11: =INT(10*RAND())+0 -> 2 | D11: =1*RAND() -> 0.8819961053 | E11: =IF(D11>0.5,"dh","ym") -> dh | F11: =RAND() -> 0.8767304726 | G11: =IF(F11>0.5,G10,H10) -> 8 | H11: =INT((G11-1)*RAND())+1 -> 6 | I11: =H11/G11 -> 0.75 | K11: =H11*100+G11 -> 608 | M11: =IF(D11>0.5,24,12) -> 24 | N11: =M11*H11/G11 -> 18 | O11: =IF(C11>1,"s","") -> s | AJ11: =CONCATENATE(AJ10) -> 2.583333333 | AM11: =AM10*100 -> 500 | AN11: =AN10*10 -> 80 | AO11: =AO10 -> 3 | AP11: =IF(AP10>0,7,IF(AO10>0,3,IF(AN10>0,2,1))) -> 7
C12: =CONCATENATE("Split ",AB3,C11*BK20+BK19," kilograms into ",BX21," parts to the nearest",AD3,".") -> Split 11 kilograms into four parts to the nearest g.
O13: = | P13: =IF(AA3=1,AO14,AP3) -> 2 kg 750 g
AJ14: =ROUND((C11+BK19/BK20)*1000,0) -> 2750 | AK14: =IF(AJ14<100,1,0) -> 0 | AL14: =IF(AJ14/100=ROUNDDOWN(AJ14/100,0),1,0) -> 0 | AM14: =IF(AJ14/10=ROUNDDOWN(AJ14/10,0),1,0) -> 1 | AN14: =AK14+AL14*2+AM14*4 -> 4 | AO14: =IF(AN14=0,CONCATENATE($R$28,ROUND(AJ14/100,2)),IF(AN14=1,CONCATENATE(ROUND(AJ14,0),$S$28),IF(AN14=4,CONCATENATE($R$28,AJ14/100,"0"),IF(AN14=5,CONCATENATE(AJ14,$S$28),IF(AN14=6,CONCATENATE($R$28,AJ14/100),"xxx"))))) -> R27.50 | AP14: =AJ14/100 -> 27.5 | AQ14: =ROUND(AP14,0) -> 28 | AR14: =AQ14-AP14 -> 0.5 | AS14: =IF(AR14=0,0,1) -> 1
AJ15: =ROUND((C11+BK19/BK20)*10,0) -> 28 | AK15: =100*AJ15 -> 2800
D16: =VLOOKUP($K$11,$BG$23:$BW$59,4) -> 10 | E16: =VLOOKUP($K$11,$BG$23:$BW$59,5) -> 10 | G16: =VLOOKUP($K$11,$BG$23:$BW$59,6) -> 10 | H16: =VLOOKUP($K$11,$BG$23:$BW$59,7) -> 10 | J16: =VLOOKUP($K$11,$BG$23:$BW$59,8) -> 2 | L16: =VLOOKUP($K$11,$BG$23:$BW$59,9) -> 7 | M16: =VLOOKUP($K$11,$BG$23:$BW$59,10) -> 5
D17: =VLOOKUP($K$11,$BG$23:$BW$59,11) -> 0 | I17: =VLOOKUP($K$11,$BG$23:$BW$59,12) -> 0 | K17: =VLOOKUP($K$11,$BG$23:$BW$59,13) -> 1 | L17: =VLOOKUP($K$11,$BG$23:$BW$59,14) -> 0 | AJ17: =ROUND((C11+BK19/BK20),9) -> 2.75 | AK17: =MOD(AJ17,1) -> 0.75 | AL17: =ROUND(1000*AK17,0) -> 750 | AM17: =(AL17-MOD(AL17,100))/100 -> 7 | AN17: =(AL17-AM18-MOD(AL17-AM18,10))/10 -> 5 | AO17: =ROUNDDOWN(AL17-AM18-AN18,0) -> 0 | AP17: =MOD(1000*AJ17,1) -> 0
AJ18: =CONCATENATE(AJ17) -> 2.75 | AM18: =AM17*100 -> 700 | AN18: =AN17*10 -> 50 | AO18: =AO17 -> 0 | AP18: =IF(AP17>0,7,IF(AO17>0,3,IF(AN17>0,2,1))) -> 2
AI19: =H4 -> 7 | AJ19: =IF(AI19=0,1,AI19*AI20/(MAX(AI19:AI20)*LEFT(TEXT(MIN(AI19:AI20)/MAX(AI19:AI20),"000000000000000/000000000000000"),15))) -> 1 | AK19: =AI19/AJ19 -> 7 | BI19: =H11 -> 6 | BJ19: =IF(BI19=0,1,BI19*BI20/(MAX(BI19:BI20)*LEFT(TEXT(MIN(BI19:BI20)/MAX(BI19:BI20),"000000000000000/000000000000000"),15))) -> 2 | BK19: =BI19/BJ19 -> 3
AI20: =G4 -> 12 | AJ20: =MAX(AI19:AI20)*LEFT(TEXT(MIN(AI19:AI20)/MAX(AI19:AI20),"000000000000000/000000000000000"),15) -> 84 | AK20: =IF(AI19=0,"",IF(AI19=AI20,"",AI20/AJ19)) -> 12 | BI20: =G11 -> 8 | BJ20: =MAX(BI19:BI20)*LEFT(TEXT(MIN(BI19:BI20)/MAX(BI19:BI20),"000000000000000/000000000000000"),15) -> 24 | BK20: =IF(BI19=0,"",IF(BI19=BI20,"",BI20/BJ19)) -> 4 | BW20: =AK20 -> 12 | BX20: =VLOOKUP(BW20,$BW$22:$BX$33,2) -> twelve
BW21: =BK20 -> 4 | BX21: =VLOOKUP(BW21,$BW$22:$BX$33,2) -> four
AJ22: 1 | AK22: 2 | AL22: 3 | AM22: 4 | AN22: 5 | AO22: 6 | AP22: 7 | AQ22: 8 | AR22: 9 | AS22: 10 | AT22: 11 | BJ22: 1 | BK22: 2 | BL22: 3 | BM22: 4 | BN22: 5 | BO22: 6 | BP22: 7 | BQ22: 8 | BR22: 9 | BS22: 10 | BT22: 11 | BW22: 2 | BX22: two
AG23: 108 | AH23: 1 | AI23: 8 | AJ23: 10 | AK23: 10 | AL23: 10 | AM23: =$C$4 -> 2 | AN23: 1 | AO23: 2 | AP23: 5 | AR23: 1 | BG23: 108 | BH23: 1 | BI23: 8 | BJ23: 10 | BK23: 10 | BL23: 10 | BM23: =$C$11 -> 2 | BN23: 1 | BO23: 2 | BP23: 5 | BR23: 1 | BW23: 3 | BX23: three
AG24: 112 | AH24: 1 | AI24: 12 | AJ24: =$C$4 -> 2 | AK24: 0 | AL24: 8 | AM24: 3 | AN24: 3 | AO24: 3 | AP24: 3 | AQ24: 1 | BG24: 112 | BH24: 1 | BI24: 12 | BJ24: =$C$11 -> 2 | BK24: 0 | BL24: 8 | BM24: 3 | BN24: 3 | BO24: 3 | BP24: 3 | BQ24: 1 | BW24: 4 | BX24: four
AG25: 120 | AH25: 1 | AI25: 20 | AJ25: 10 | AK25: 10 | AL25: 10 | AM25: 10 | AN25: =$C$4 -> 2 | AO25: 0 | AP25: 5 | AS25: 1 | BG25: 120 | BH25: 1 | BI25: 20 | BJ25: 10 | BK25: 10 | BL25: 10 | BM25: 10 | BN25: =$C$11 -> 2 | BO25: 0 | BP25: 5 | BS25: 1 | BW25: 5 | BX25: five
AG26: 208 | AH26: 2 | AI26: 8 | AJ26: 10 | AK26: 10 | AL26: 10 | AM26: 10 | AN26: =$C$4 -> 2 | AO26: 2 | AP26: 5 | AS26: 1 | BG26: 208 | BH26: 2 | BI26: 8 | BJ26: 10 | BK26: 10 | BL26: 10 | BM26: 10 | BN26: =$C$11 -> 2 | BO26: 2 | BP26: 5 | BS26: 1 | BW26: 6 | BX26: six
AG27: 212 | AH27: 2 | AI27: 12 | AJ27: =$C$4 -> 2 | AK27: 1 | AL27: 6 | AM27: 6 | AN27: 6 | AO27: 6 | AP27: 7 | AQ27: 1 | BG27: 212 | BH27: 2 | BI27: 12 | BJ27: =$C$11 -> 2 | BK27: 1 | BL27: 6 | BM27: 6 | BN27: 6 | BO27: 6 | BP27: 7 | BQ27: 1 | BW27: 7 | BX27: seven
Q28: =E1 -> 5 | R28: =IF(Q28=1,"£",IF(Q28=2,"$",IF(Q28=3,"€","R"))) -> R | S28: =IF(Q28=1,"p","c") -> c | T28: =IF(Q28=1," penny"," cent") -> cent | AG28: 220 | AH28: 2 | AI28: 20 | AJ28: 10 | AK28: 10 | AL28: 10 | AM28: 10 | AN28: 10 | AO28: =$C$4 -> 2 | AP28: 1 | AT28: 1 | BG28: 220 | BH28: 2 | BI28: 20 | BJ28: 10 | BK28: 10 | BL28: 10 | BM28: 10 | BN28: 10 | BO28: =$C$11 -> 2 | BP28: 1 | BT28: 1 | BW28: 8 | BX28: eight
AG29: 308 | AH29: 3 | AI29: 8 | AJ29: 10 | AK29: 10 | AL29: 10 | AM29: =$C$4 -> 2 | AN29: 3 | AO29: 7 | AP29: 5 | AR29: 1 | BG29: 308 | BH29: 3 | BI29: 8 | BJ29: 10 | BK29: 10 | BL29: 10 | BM29: =$C$11 -> 2 | BN29: 3 | BO29: 7 | BP29: 5 | BR29: 1 | BW29: 9 | BX29: nine
AG30: 312 | AH30: 3 | AI30: 12 | AJ30: 10 | AK30: 10 | AL30: 10 | AM30: 10 | AN30: =$C$4 -> 2 | AO30: 2 | AP30: 5 | AS30: 1 | BG30: 312 | BH30: 3 | BI30: 12 | BJ30: 10 | BK30: 10 | BL30: 10 | BM30: 10 | BN30: =$C$11 -> 2 | BO30: 2 | BP30: 5 | BS30: 1 | BW30: 10 | BX30: ten
AG31: 320 | AH31: 3 | AI31: 20 | AJ31: 10 | AK31: 10 | AL31: 10 | AM31: 10 | AN31: =$C$4 -> 2 | AO31: 1 | AP31: 5 | AS31: 1 | BG31: 320 | BH31: 3 | BI31: 20 | BJ31: 10 | BK31: 10 | BL31: 10 | BM31: 10 | BN31: =$C$11 -> 2 | BO31: 1 | BP31: 5 | BS31: 1 | BW31: 11 | BX31: eleven
AG32: 408 | AH32: 4 | AI32: 8 | AJ32: 10 | AK32: 10 | AL32: 10 | AM32: 10 | AN32: 10 | AO32: =$C$4 -> 2 | AP32: 5 | AT32: 1 | BG32: 408 | BH32: 4 | BI32: 8 | BJ32: 10 | BK32: 10 | BL32: 10 | BM32: 10 | BN32: 10 | BO32: =$C$11 -> 2 | BP32: 5 | BT32: 1 | BW32: 12 | BX32: twelve
AG33: 412 | AH33: 4 | AI33: 12 | AJ33: =$C$4 -> 2 | AK33: 3 | AL33: 3 | AM33: 3 | AN33: 3 | AO33: 3 | AP33: 3 | AQ33: 1 | BG33: 412 | BH33: 4 | BI33: 12 | BJ33: =$C$11 -> 2 | BK33: 3 | BL33: 3 | BM33: 3 | BN33: 3 | BO33: 3 | BP33: 3 | BQ33: 1 | BW33: 20 | BX33: twenty
AG34: 420 | AH34: 4 | AI34: 20 | AJ34: 10 | AK34: 10 | AL34: 10 | AM34: 10 | AN34: 10 | AO34: =$C$4 -> 2 | AP34: 2 | AT34: 1 | BG34: 420 | BH34: 4 | BI34: 20 | BJ34: 10 | BK34: 10 | BL34: 10 | BM34: 10 | BN34: 10 | BO34: =$C$11 -> 2 | BP34: 2 | BT34: 1
AG35: 508 | AH35: 5 | AI35: 8 | AJ35: 10 | AK35: 10 | AL35: 10 | AM35: =$C$4 -> 2 | AN35: 6 | AO35: 2 | AP35: 5 | AR35: 1 | BG35: 508 | BH35: 5 | BI35: 8 | BJ35: 10 | BK35: 10 | BL35: 10 | BM35: =$C$11 -> 2 | BN35: 6 | BO35: 2 | BP35: 5 | BR35: 1
AG36: 512 | AH36: 5 | AI36: 12 | AJ36: =$C$4 -> 2 | AK36: 4 | AL36: 1 | AM36: 6 | AN36: 6 | AO36: 6 | AP36: 7 | AQ36: 1 | BG36: 512 | BH36: 5 | BI36: 12 | BJ36: =$C$11 -> 2 | BK36: 4 | BL36: 1 | BM36: 6 | BN36: 6 | BO36: 6 | BP36: 7 | BQ36: 1
AG37: 520 | AH37: 5 | AI37: 20 | AJ37: 10 | AK37: 10 | AL37: 10 | AM37: 10 | AN37: =$C$4 -> 2 | AO37: 2 | AP37: 5 | AS37: 1 | BG37: 520 | BH37: 5 | BI37: 20 | BJ37: 10 | BK37: 10 | BL37: 10 | BM37: 10 | BN37: =$C$11 -> 2 | BO37: 2 | BP37: 5 | BS37: 1
AG38: 608 | AH38: 6 | AI38: 8 | AJ38: 10 | AK38: 10 | AL38: 10 | AM38: 10 | AN38: =$C$4 -> 2 | AO38: 7 | AP38: 5 | AS38: 1 | BG38: 608 | BH38: 6 | BI38: 8 | BJ38: 10 | BK38: 10 | BL38: 10 | BM38: 10 | BN38: =$C$11 -> 2 | BO38: 7 | BP38: 5 | BS38: 1
AG39: 612 | AH39: 6 | AI39: 12 | AJ39: 10 | AK39: 10 | AL39: 10 | AM39: 10 | AN39: 10 | AO39: =$C$4 -> 2 | AP39: 5 | AT39: 1 | BG39: 612 | BH39: 6 | BI39: 12 | BJ39: 10 | BK39: 10 | BL39: 10 | BM39: 10 | BN39: 10 | BO39: =$C$11 -> 2 | BP39: 5 | BT39: 1
AG40: 620 | AH40: 6 | AI40: 20 | AJ40: 10 | AK40: 10 | AL40: 10 | AM40: 10 | AN40: 10 | AO40: =$C$4 -> 2 | AP40: 3 | AT40: 1 | BG40: 620 | BH40: 6 | BI40: 20 | BJ40: 10 | BK40: 10 | BL40: 10 | BM40: 10 | BN40: 10 | BO40: =$C$11 -> 2 | BP40: 3 | BT40: 1
AG41: 708 | AH41: 7 | AI41: 8 | AJ41: 10 | AK41: 10 | AL41: 10 | AM41: =$C$4 -> 2 | AN41: 8 | AO41: 7 | AP41: 5 | AR41: 1 | BG41: 708 | BH41: 7 | BI41: 8 | BJ41: 10 | BK41: 10 | BL41: 10 | BM41: =$C$11 -> 2 | BN41: 8 | BO41: 7 | BP41: 5 | BR41: 1
AG42: 712 | AH42: 7 | AI42: 12 | AJ42: =$C$4 -> 2 | AK42: 5 | AL42: 8 | AM42: 3 | AN42: 3 | AO42: 3 | AP42: 3 | AQ42: 1 | BG42: 712 | BH42: 7 | BI42: 12 | BJ42: =$C$11 -> 2 | BK42: 5 | BL42: 8 | BM42: 3 | BN42: 3 | BO42: 3 | BP42: 3 | BQ42: 1
AG43: 720 | AH43: 7 | AI43: 20 | AJ43: 10 | AK43: 10 | AL43: 10 | AM43: 10 | AN43: =$C$4 -> 2 | AO43: 3 | AP43: 5 | AS43: 1 | BG43: 720 | BH43: 7 | BI43: 20 | BJ43: 10 | BK43: 10 | BL43: 10 | BM43: 10 | BN43: =$C$11 -> 2 | BO43: 3 | BP43: 5 | BS43: 1
AG44: 812 | AH44: 8 | AI44: 12 | AJ44: =$C$4 -> 2 | AK44: 6 | AL44: 6 | AM44: 6 | AN44: 6 | AO44: 6 | AP44: 7 | AQ44: 1 | BG44: 812 | BH44: 8 | BI44: 12 | BJ44: =$C$11 -> 2 | BK44: 6 | BL44: 6 | BM44: 6 | BN44: 6 | BO44: 6 | BP44: 7 | BQ44: 1
AG45: 820 | AH45: 8 | AI45: 20 | AJ45: 10 | AK45: 10 | AL45: 10 | AM45: 10 | AN45: 10 | AO45: =$C$4 -> 2 | AP45: 4 | AT45: 1 | BG45: 820 | BH45: 8 | BI45: 20 | BJ45: 10 | BK45: 10 | BL45: 10 | BM45: 10 | BN45: 10 | BO45: =$C$11 -> 2 | BP45: 4 | BT45: 1
AG46: 912 | AH46: 9 | AI46: 12 | AJ46: 10 | AK46: 10 | AL46: 10 | AM46: 10 | AN46: =$C$4 -> 2 | AO46: 7 | AP46: 5 | AS46: 1 | BG46: 912 | BH46: 9 | BI46: 12 | BJ46: 10 | BK46: 10 | BL46: 10 | BM46: 10 | BN46: =$C$11 -> 2 | BO46: 7 | BP46: 5 | BS46: 1
AG47: 920 | AH47: 9 | AI47: 20 | AJ47: 10 | AK47: 10 | AL47: 10 | AM47: 10 | AN47: =$C$4 -> 2 | AO47: 4 | AP47: 5 | AS47: 1 | BG47: 920 | BH47: 9 | BI47: 20 | BJ47: 10 | BK47: 10 | BL47: 10 | BM47: 10 | BN47: =$C$11 -> 2 | BO47: 4 | BP47: 5 | BS47: 1
AG48: 1012 | AH48: 10 | AI48: 12 | AJ48: =$C$4 -> 2 | AK48: 8 | AL48: 3 | AM48: 3 | AN48: 3 | AO48: 3 | AP48: 3 | AQ48: 1 | BG48: 1012 | BH48: 10 | BI48: 12 | BJ48: =$C$11 -> 2 | BK48: 8 | BL48: 3 | BM48: 3 | BN48: 3 | BO48: 3 | BP48: 3 | BQ48: 1
AG49: 1020 | AH49: 10 | AI49: 20 | AJ49: 10 | AK49: 10 | AL49: 10 | AM49: 10 | AN49: 10 | AO49: =$C$4 -> 2 | AP49: 5 | AT49: 1 | BG49: 1020 | BH49: 10 | BI49: 20 | BJ49: 10 | BK49: 10 | BL49: 10 | BM49: 10 | BN49: 10 | BO49: =$C$11 -> 2 | BP49: 5 | BT49: 1
AG50: 1112 | AH50: 11 | AI50: 12 | AJ50: =$C$4 -> 2 | AK50: 9 | AL50: 1 | AM50: 6 | AN50: 6 | AO50: 6 | AP50: 7 | AQ50: 1 | BG50: 1112 | BH50: 11 | BI50: 12 | BJ50: =$C$11 -> 2 | BK50: 9 | BL50: 1 | BM50: 6 | BN50: 6 | BO50: 6 | BP50: 7 | BQ50: 1
AG51: 1120 | AH51: 11 | AI51: 20 | AJ51: 10 | AK51: 10 | AL51: 10 | AM51: 10 | AN51: =$C$4 -> 2 | AO51: 5 | AP51: 5 | AS51: 1 | BG51: 1120 | BH51: 11 | BI51: 20 | BJ51: 10 | BK51: 10 | BL51: 10 | BM51: 10 | BN51: =$C$11 -> 2 | BO51: 5 | BP51: 5 | BS51: 1
AG52: 1220 | AH52: 12 | AI52: 20 | AJ52: 10 | AK52: 10 | AL52: 10 | AM52: 10 | AN52: 10 | AO52: =$C$4 -> 2 | AP52: 6 | AT52: 1 | BG52: 1220 | BH52: 12 | BI52: 20 | BJ52: 10 | BK52: 10 | BL52: 10 | BM52: 10 | BN52: 10 | BO52: =$C$11 -> 2 | BP52: 6 | BT52: 1
AG53: 1320 | AH53: 13 | AI53: 20 | AJ53: 10 | AK53: 10 | AL53: 10 | AM53: 10 | AN53: =$C$4 -> 2 | AO53: 6 | AP53: 5 | AS53: 1 | BG53: 1320 | BH53: 13 | BI53: 20 | BJ53: 10 | BK53: 10 | BL53: 10 | BM53: 10 | BN53: =$C$11 -> 2 | BO53: 6 | BP53: 5 | BS53: 1
AG54: 1420 | AH54: 14 | AI54: 20 | AJ54: 10 | AK54: 10 | AL54: 10 | AM54: 10 | AN54: 10 | AO54: =$C$4 -> 2 | AP54: 7 | AT54: 1 | BG54: 1420 | BH54: 14 | BI54: 20 | BJ54: 10 | BK54: 10 | BL54: 10 | BM54: 10 | BN54: 10 | BO54: =$C$11 -> 2 | BP54: 7 | BT54: 1
AG55: 1520 | AH55: 15 | AI55: 20 | AJ55: 10 | AK55: 10 | AL55: 10 | AM55: 10 | AN55: =$C$4 -> 2 | AO55: 7 | AP55: 5 | AS55: 1 | BG55: 1520 | BH55: 15 | BI55: 20 | BJ55: 10 | BK55: 10 | BL55: 10 | BM55: 10 | BN55: =$C$11 -> 2 | BO55: 7 | BP55: 5 | BS55: 1
AG56: 1620 | AH56: 16 | AI56: 20 | AJ56: 10 | AK56: 10 | AL56: 10 | AM56: 10 | AN56: 10 | AO56: =$C$4 -> 2 | AP56: 8 | AT56: 1 | BG56: 1620 | BH56: 16 | BI56: 20 | BJ56: 10 | BK56: 10 | BL56: 10 | BM56: 10 | BN56: 10 | BO56: =$C$11 -> 2 | BP56: 8 | BT56: 1
AG57: 1720 | AH57: 17 | AI57: 20 | AJ57: 10 | AK57: 10 | AL57: 10 | AM57: 10 | AN57: =$C$4 -> 2 | AO57: 8 | AP57: 5 | AS57: 1 | BG57: 1720 | BH57: 17 | BI57: 20 | BJ57: 10 | BK57: 10 | BL57: 10 | BM57: 10 | BN57: =$C$11 -> 2 | BO57: 8 | BP57: 5 | BS57: 1
AG58: 1820 | AH58: 18 | AI58: 20 | AJ58: 10 | AK58: 10 | AL58: 10 | AM58: 10 | AN58: 10 | AO58: =$C$4 -> 2 | AP58: 9 | AT58: 1 | BG58: 1820 | BH58: 18 | BI58: 20 | BJ58: 10 | BK58: 10 | BL58: 10 | BM58: 10 | BN58: 10 | BO58: =$C$11 -> 2 | BP58: 9 | BT58: 1
AG59: 1920 | AH59: 19 | AI59: 20 | AJ59: 10 | AK59: 10 | AL59: 10 | AM59: 10 | AN59: =$C$4 -> 2 | AO59: 9 | AP59: 5 | AS59: 1 | BG59: 1920 | BH59: 19 | BI59: 20 | BJ59: 10 | BK59: 10 | BL59: 10 | BM59: 10 | BN59: =$C$11 -> 2 | BO59: 9 | BP59: 5 | BS59: 1

Sheet CALCHEIG
E1: 5
C2: Interpret the value the calculator displays | AA2: =IF(AP11>2,"*","•") -> • | AB2: =IF(AP18>2,"* ","•") -> * | AJ2: =AJ7 -> 145 | AK2: =ABS(AJ2) -> 145 | AL2: =IF(AK2<100,1,0) -> 0 | AM2: =IF(AK2/100=ROUNDDOWN(AK2/100,0),1,0) -> 0 | AN2: =IF(AK2/10=ROUNDDOWN(AK2/10,0),1,0) -> 0 | AO2: =AL2+AM2*2+AN2*4 -> 0 | AP2: =IF(AO2=0,CONCATENATE(,AK2/100-MOD(AK2/100,1)," m ",ROUND(100*MOD(AK2/100,1),6)," cm"),IF(AO2=1,CONCATENATE(ROUND(AK2,0)," cm"),IF(AO2=4,CONCATENATE(,AK2/100-MOD(AK2/100,1)," m ",ROUND(10*MOD(AK2/100,1),6),"0 cm"),IF(AO2=5,CONCATENATE(AK2," cm"),IF(AO2=6,CONCATENATE("",AK2/100," m"),"0 m"))))) -> 1 m 45 cm
C3: after the division in the context of height. | AA3: 0 | AB3: =IF(AA3=0,"",R28) ->  | AC3: =IF(AA3=0," m","") -> m | AD3: =IF(AA3=0," cm",T28) -> cm | AJ3: =AJ14 -> 213 | AK3: =ABS(AJ3) -> 213 | AL3: =IF(AK3<100,1,0) -> 0 | AM3: =IF(AK3/100=ROUNDDOWN(AK3/100,0),1,0) -> 0 | AN3: =IF(AK3/10=ROUNDDOWN(AK3/10,0),1,0) -> 0 | AO3: =AL3+AM3*2+AN3*4 -> 0 | AP3: =IF(AO3=0,CONCATENATE(,AK3/100-MOD(AK3/100,1)," m ",ROUND(100*MOD(AK3/100,1),6)," cm"),IF(AO3=1,CONCATENATE(ROUND(AK3,0)," cm"),IF(AO3=4,CONCATENATE(,AK3/100-MOD(AK3/100,1)," m ",ROUND(10*MOD(AK3/100,1),6),"0 cm"),IF(AO3=5,CONCATENATE(AK3," cm"),IF(AO3=6,CONCATENATE("",AK3/100," m"),"0 m"))))) -> 2 m 13 cm
C4: =INT(10*RAND())+0 -> 1 | D4: =1*RAND() -> 0.04353079773 | E4: =IF(D4>0.5,"ms","hm") -> hm | F4: =RAND() -> 0.5944872621 | G4: =IF(F4>0.5,20,12) -> 20 | H4: =INT((G4-1)*RAND())+1 -> 9 | I4: =H4/G4 -> 0.45 | K4: =H4*100+G4 -> 920 | M4: 60 | N4: =M4*H4/G4 -> 27 | O4: =IF(C4>1,"s","") ->  | Q4: =RAND() -> 0.04737105572 | R4: =IF(Q4>0.5,"What is ","Evaluate ") -> Evaluate | S4: =IF(Q4>0.5,"?",".") -> . | Y4: =AP11 -> 2 | Z4: =AP18 -> 3 | AA4: =IF(Y4=2,1,IF(Z4=2,1,0)) -> 1
C5: =CONCATENATE(R4,AB3,C4*AK20+AK19,AC3," divided by ",BX20," to the nearest",AD3,S4) -> Evaluate 29 m divided by twenty to the nearest cm.
O6: = | P6: =IF(AA3=1,AO7,AP2) -> 1 m 45 cm
AJ7: =ROUND((C4+AK19/AK20)*100,0) -> 145 | AK7: =IF(AJ7<100,1,0) -> 0 | AL7: =IF(AJ7/100=ROUNDDOWN(AJ7/100,0),1,0) -> 0 | AM7: =IF(AJ7/10=ROUNDDOWN(AJ7/10,0),1,0) -> 0 | AN7: =AK7+AL7*2+AM7*4 -> 0 | AO7: =IF(AN7=0,CONCATENATE($R$28,ROUND(AJ7/100,2)),IF(AN7=1,CONCATENATE(ROUND(AJ7,0),$S$28),IF(AN7=4,CONCATENATE($R$28,AJ7/100,"0"),IF(AN7=5,CONCATENATE(AJ7,$S$28),IF(AN7=6,CONCATENATE($R$28,AJ7/100),"xxx"))))) -> R1.45 | AP7: =AJ7/100 -> 1.45 | AQ7: =ROUND(AP7,0) -> 1 | AR7: =AQ7-AP7 -> -0.45 | AS7: =IF(AR7=0,0,1) -> 1
AJ8: =(C4+AK19/AK20)*10-ROUNDDOWN((C4+AK19/AK20)*10,0) -> 0.5 | AK8: =100*AJ8 -> 50
D9: =VLOOKUP($K$4,$AG$23:$AW$59,4) -> 10 | E9: =VLOOKUP($K$4,$AG$23:$AW$59,5) -> 10 | G9: =VLOOKUP($K$4,$AG$23:$AW$59,6) -> 10 | H9: =VLOOKUP($K$4,$AG$23:$AW$59,7) -> 10 | J9: =VLOOKUP($K$4,$AG$23:$AW$59,8) -> 1 | L9: =VLOOKUP($K$4,$AG$23:$AW$59,9) -> 4 | M9: =VLOOKUP($K$4,$AG$23:$AW$59,10) -> 5
D10: =VLOOKUP($K$4,$AG$23:$AW$59,11) -> 0 | G10: =IF(D11>0.5,8,12) -> 8 | H10: 12 | I10: =VLOOKUP($K$4,$AG$23:$AW$59,12) -> 0 | K10: =VLOOKUP($K$4,$AG$23:$AW$59,13) -> 1 | L10: =VLOOKUP($K$4,$AG$23:$AW$59,14) -> 0 | AJ10: =ROUND((C4+AK19/AK20),9) -> 1.45 | AK10: =MOD(AJ10,1) -> 0.45 | AL10: =ROUND(1000*AK10,0) -> 450 | AM10: =(AL10-MOD(AL10,100))/100 -> 4 | AN10: =(AL10-AM11-MOD(AL10-AM11,10))/10 -> 5 | AO10: =ROUNDDOWN(AL10-AM11-AN11,0) -> 0 | AP10: =MOD(1000*AJ10,1) -> 0
C11: =INT(10*RAND())+0 -> 2 | D11: =1*RAND() -> 0.6818530663 | E11: =IF(D11>0.5,"dh","ym") -> dh | F11: =RAND() -> 0.6184003356 | G11: =IF(F11>0.5,G10,H10) -> 8 | H11: =INT((G11-1)*RAND())+1 -> 1 | I11: =H11/G11 -> 0.125 | K11: =H11*100+G11 -> 108 | M11: =IF(D11>0.5,24,12) -> 24 | N11: =M11*H11/G11 -> 3 | O11: =IF(C11>1,"s","") -> s | AJ11: =CONCATENATE(AJ10) -> 1.45 | AM11: =AM10*100 -> 400 | AN11: =AN10*10 -> 50 | AO11: =AO10 -> 0 | AP11: =IF(AP10>0,7,IF(AO10>0,3,IF(AN10>0,2,1))) -> 2
C12: =CONCATENATE("Split ",AB3,C11*BK20+BK19," metres into ",BX21," parts to the nearest",AD3,".") -> Split 17 metres into eight parts to the nearest cm.
O13: = | P13: =IF(AA3=1,AO14,AP3) -> 2 m 13 cm
AJ14: =ROUND((C11+BK19/BK20)*100,0) -> 213 | AK14: =IF(AJ14<100,1,0) -> 0 | AL14: =IF(AJ14/100=ROUNDDOWN(AJ14/100,0),1,0) -> 0 | AM14: =IF(AJ14/10=ROUNDDOWN(AJ14/10,0),1,0) -> 0 | AN14: =AK14+AL14*2+AM14*4 -> 0 | AO14: =IF(AN14=0,CONCATENATE($R$28,ROUND(AJ14/100,2)),IF(AN14=1,CONCATENATE(ROUND(AJ14,0),$S$28),IF(AN14=4,CONCATENATE($R$28,AJ14/100,"0"),IF(AN14=5,CONCATENATE(AJ14,$S$28),IF(AN14=6,CONCATENATE($R$28,AJ14/100),"xxx"))))) -> R2.13 | AP14: =AJ14/100 -> 2.13 | AQ14: =ROUND(AP14,0) -> 2 | AR14: =AQ14-AP14 -> -0.13 | AS14: =IF(AR14=0,0,1) -> 1
AJ15: =ROUND((C11+BK19/BK20)*100,0) -> 213 | AK15: =100*AJ15 -> 21300
D16: =VLOOKUP($K$11,$BG$23:$BW$59,4) -> 10 | E16: =VLOOKUP($K$11,$BG$23:$BW$59,5) -> 10 | G16: =VLOOKUP($K$11,$BG$23:$BW$59,6) -> 10 | H16: =VLOOKUP($K$11,$BG$23:$BW$59,7) -> 2 | J16: =VLOOKUP($K$11,$BG$23:$BW$59,8) -> 1 | L16: =VLOOKUP($K$11,$BG$23:$BW$59,9) -> 2 | M16: =VLOOKUP($K$11,$BG$23:$BW$59,10) -> 5
D17: =VLOOKUP($K$11,$BG$23:$BW$59,11) -> 0 | I17: =VLOOKUP($K$11,$BG$23:$BW$59,12) -> 1 | K17: =VLOOKUP($K$11,$BG$23:$BW$59,13) -> 0 | L17: =VLOOKUP($K$11,$BG$23:$BW$59,14) -> 0 | AJ17: =ROUND((C11+BK19/BK20),9) -> 2.125 | AK17: =MOD(AJ17,1) -> 0.125 | AL17: =ROUND(1000*AK17,0) -> 125 | AM17: =(AL17-MOD(AL17,100))/100 -> 1 | AN17: =(AL17-AM18-MOD(AL17-AM18,10))/10 -> 2 | AO17: =ROUNDDOWN(AL17-AM18-AN18,0) -> 5 | AP17: =MOD(1000*AJ17,1) -> 0
AJ18: =CONCATENATE(AJ17) -> 2.125 | AM18: =AM17*100 -> 100 | AN18: =AN17*10 -> 20 | AO18: =AO17 -> 5 | AP18: =IF(AP17>0,7,IF(AO17>0,3,IF(AN17>0,2,1))) -> 3
AI19: =H4 -> 9 | AJ19: =IF(AI19=0,1,AI19*AI20/(MAX(AI19:AI20)*LEFT(TEXT(MIN(AI19:AI20)/MAX(AI19:AI20),"000000000000000/000000000000000"),15))) -> 1 | AK19: =AI19/AJ19 -> 9 | BI19: =H11 -> 1 | BJ19: =IF(BI19=0,1,BI19*BI20/(MAX(BI19:BI20)*LEFT(TEXT(MIN(BI19:BI20)/MAX(BI19:BI20),"000000000000000/000000000000000"),15))) -> 1 | BK19: =BI19/BJ19 -> 1
AI20: =G4 -> 20 | AJ20: =MAX(AI19:AI20)*LEFT(TEXT(MIN(AI19:AI20)/MAX(AI19:AI20),"000000000000000/000000000000000"),15) -> 180 | AK20: =IF(AI19=0,"",IF(AI19=AI20,"",AI20/AJ19)) -> 20 | BI20: =G11 -> 8 | BJ20: =MAX(BI19:BI20)*LEFT(TEXT(MIN(BI19:BI20)/MAX(BI19:BI20),"000000000000000/000000000000000"),15) -> 8 | BK20: =IF(BI19=0,"",IF(BI19=BI20,"",BI20/BJ19)) -> 8 | BW20: =AK20 -> 20 | BX20: =VLOOKUP(BW20,$BW$22:$BX$33,2) -> twenty
BW21: =BK20 -> 8 | BX21: =VLOOKUP(BW21,$BW$22:$BX$33,2) -> eight
AJ22: 1 | AK22: 2 | AL22: 3 | AM22: 4 | AN22: 5 | AO22: 6 | AP22: 7 | AQ22: 8 | AR22: 9 | AS22: 10 | AT22: 11 | BJ22: 1 | BK22: 2 | BL22: 3 | BM22: 4 | BN22: 5 | BO22: 6 | BP22: 7 | BQ22: 8 | BR22: 9 | BS22: 10 | BT22: 11 | BW22: 2 | BX22: two
AG23: 108 | AH23: 1 | AI23: 8 | AJ23: 10 | AK23: 10 | AL23: 10 | AM23: =$C$4 -> 1 | AN23: 1 | AO23: 2 | AP23: 5 | AR23: 1 | BG23: 108 | BH23: 1 | BI23: 8 | BJ23: 10 | BK23: 10 | BL23: 10 | BM23: =$C$11 -> 2 | BN23: 1 | BO23: 2 | BP23: 5 | BR23: 1 | BW23: 3 | BX23: three
AG24: 112 | AH24: 1 | AI24: 12 | AJ24: =$C$4 -> 1 | AK24: 0 | AL24: 8 | AM24: 3 | AN24: 3 | AO24: 3 | AP24: 3 | AQ24: 1 | BG24: 112 | BH24: 1 | BI24: 12 | BJ24: =$C$11 -> 2 | BK24: 0 | BL24: 8 | BM24: 3 | BN24: 3 | BO24: 3 | BP24: 3 | BQ24: 1 | BW24: 4 | BX24: four
AG25: 120 | AH25: 1 | AI25: 20 | AJ25: 10 | AK25: 10 | AL25: 10 | AM25: 10 | AN25: =$C$4 -> 1 | AO25: 0 | AP25: 5 | AS25: 1 | BG25: 120 | BH25: 1 | BI25: 20 | BJ25: 10 | BK25: 10 | BL25: 10 | BM25: 10 | BN25: =$C$11 -> 2 | BO25: 0 | BP25: 5 | BS25: 1 | BW25: 5 | BX25: five
AG26: 208 | AH26: 2 | AI26: 8 | AJ26: 10 | AK26: 10 | AL26: 10 | AM26: 10 | AN26: =$C$4 -> 1 | AO26: 2 | AP26: 5 | AS26: 1 | BG26: 208 | BH26: 2 | BI26: 8 | BJ26: 10 | BK26: 10 | BL26: 10 | BM26: 10 | BN26: =$C$11 -> 2 | BO26: 2 | BP26: 5 | BS26: 1 | BW26: 6 | BX26: six
AG27: 212 | AH27: 2 | AI27: 12 | AJ27: =$C$4 -> 1 | AK27: 1 | AL27: 6 | AM27: 6 | AN27: 6 | AO27: 6 | AP27: 7 | AQ27: 1 | BG27: 212 | BH27: 2 | BI27: 12 | BJ27: =$C$11 -> 2 | BK27: 1 | BL27: 6 | BM27: 6 | BN27: 6 | BO27: 6 | BP27: 7 | BQ27: 1 | BW27: 7 | BX27: seven
Q28: =E1 -> 5 | R28: =IF(Q28=1,"£",IF(Q28=2,"$",IF(Q28=3,"€","R"))) -> R | S28: =IF(Q28=1,"p","c") -> c | T28: =IF(Q28=1," penny"," cent") -> cent | AG28: 220 | AH28: 2 | AI28: 20 | AJ28: 10 | AK28: 10 | AL28: 10 | AM28: 10 | AN28: 10 | AO28: =$C$4 -> 1 | AP28: 1 | AT28: 1 | BG28: 220 | BH28: 2 | BI28: 20 | BJ28: 10 | BK28: 10 | BL28: 10 | BM28: 10 | BN28: 10 | BO28: =$C$11 -> 2 | BP28: 1 | BT28: 1 | BW28: 8 | BX28: eight
AG29: 308 | AH29: 3 | AI29: 8 | AJ29: 10 | AK29: 10 | AL29: 10 | AM29: =$C$4 -> 1 | AN29: 3 | AO29: 7 | AP29: 5 | AR29: 1 | BG29: 308 | BH29: 3 | BI29: 8 | BJ29: 10 | BK29: 10 | BL29: 10 | BM29: =$C$11 -> 2 | BN29: 3 | BO29: 7 | BP29: 5 | BR29: 1 | BW29: 9 | BX29: nine
AG30: 312 | AH30: 3 | AI30: 12 | AJ30: 10 | AK30: 10 | AL30: 10 | AM30: 10 | AN30: =$C$4 -> 1 | AO30: 2 | AP30: 5 | AS30: 1 | BG30: 312 | BH30: 3 | BI30: 12 | BJ30: 10 | BK30: 10 | BL30: 10 | BM30: 10 | BN30: =$C$11 -> 2 | BO30: 2 | BP30: 5 | BS30: 1 | BW30: 10 | BX30: ten
AG31: 320 | AH31: 3 | AI31: 20 | AJ31: 10 | AK31: 10 | AL31: 10 | AM31: 10 | AN31: =$C$4 -> 1 | AO31: 1 | AP31: 5 | AS31: 1 | BG31: 320 | BH31: 3 | BI31: 20 | BJ31: 10 | BK31: 10 | BL31: 10 | BM31: 10 | BN31: =$C$11 -> 2 | BO31: 1 | BP31: 5 | BS31: 1 | BW31: 11 | BX31: eleven
AG32: 408 | AH32: 4 | AI32: 8 | AJ32: 10 | AK32: 10 | AL32: 10 | AM32: 10 | AN32: 10 | AO32: =$C$4 -> 1 | AP32: 5 | AT32: 1 | BG32: 408 | BH32: 4 | BI32: 8 | BJ32: 10 | BK32: 10 | BL32: 10 | BM32: 10 | BN32: 10 | BO32: =$C$11 -> 2 | BP32: 5 | BT32: 1 | BW32: 12 | BX32: twelve
AG33: 412 | AH33: 4 | AI33: 12 | AJ33: =$C$4 -> 1 | AK33: 3 | AL33: 3 | AM33: 3 | AN33: 3 | AO33: 3 | AP33: 3 | AQ33: 1 | BG33: 412 | BH33: 4 | BI33: 12 | BJ33: =$C$11 -> 2 | BK33: 3 | BL33: 3 | BM33: 3 | BN33: 3 | BO33: 3 | BP33: 3 | BQ33: 1 | BW33: 20 | BX33: twenty
AG34: 420 | AH34: 4 | AI34: 20 | AJ34: 10 | AK34: 10 | AL34: 10 | AM34: 10 | AN34: 10 | AO34: =$C$4 -> 1 | AP34: 2 | AT34: 1 | BG34: 420 | BH34: 4 | BI34: 20 | BJ34: 10 | BK34: 10 | BL34: 10 | BM34: 10 | BN34: 10 | BO34: =$C$11 -> 2 | BP34: 2 | BT34: 1
AG35: 508 | AH35: 5 | AI35: 8 | AJ35: 10 | AK35: 10 | AL35: 10 | AM35: =$C$4 -> 1 | AN35: 6 | AO35: 2 | AP35: 5 | AR35: 1 | BG35: 508 | BH35: 5 | BI35: 8 | BJ35: 10 | BK35: 10 | BL35: 10 | BM35: =$C$11 -> 2 | BN35: 6 | BO35: 2 | BP35: 5 | BR35: 1
AG36: 512 | AH36: 5 | AI36: 12 | AJ36: =$C$4 -> 1 | AK36: 4 | AL36: 1 | AM36: 6 | AN36: 6 | AO36: 6 | AP36: 7 | AQ36: 1 | BG36: 512 | BH36: 5 | BI36: 12 | BJ36: =$C$11 -> 2 | BK36: 4 | BL36: 1 | BM36: 6 | BN36: 6 | BO36: 6 | BP36: 7 | BQ36: 1
AG37: 520 | AH37: 5 | AI37: 20 | AJ37: 10 | AK37: 10 | AL37: 10 | AM37: 10 | AN37: =$C$4 -> 1 | AO37: 2 | AP37: 5 | AS37: 1 | BG37: 520 | BH37: 5 | BI37: 20 | BJ37: 10 | BK37: 10 | BL37: 10 | BM37: 10 | BN37: =$C$11 -> 2 | BO37: 2 | BP37: 5 | BS37: 1
AG38: 608 | AH38: 6 | AI38: 8 | AJ38: 10 | AK38: 10 | AL38: 10 | AM38: 10 | AN38: =$C$4 -> 1 | AO38: 7 | AP38: 5 | AS38: 1 | BG38: 608 | BH38: 6 | BI38: 8 | BJ38: 10 | BK38: 10 | BL38: 10 | BM38: 10 | BN38: =$C$11 -> 2 | BO38: 7 | BP38: 5 | BS38: 1
AG39: 612 | AH39: 6 | AI39: 12 | AJ39: 10 | AK39: 10 | AL39: 10 | AM39: 10 | AN39: 10 | AO39: =$C$4 -> 1 | AP39: 5 | AT39: 1 | BG39: 612 | BH39: 6 | BI39: 12 | BJ39: 10 | BK39: 10 | BL39: 10 | BM39: 10 | BN39: 10 | BO39: =$C$11 -> 2 | BP39: 5 | BT39: 1
AG40: 620 | AH40: 6 | AI40: 20 | AJ40: 10 | AK40: 10 | AL40: 10 | AM40: 10 | AN40: 10 | AO40: =$C$4 -> 1 | AP40: 3 | AT40: 1 | BG40: 620 | BH40: 6 | BI40: 20 | BJ40: 10 | BK40: 10 | BL40: 10 | BM40: 10 | BN40: 10 | BO40: =$C$11 -> 2 | BP40: 3 | BT40: 1
AG41: 708 | AH41: 7 | AI41: 8 | AJ41: 10 | AK41: 10 | AL41: 10 | AM41: =$C$4 -> 1 | AN41: 8 | AO41: 7 | AP41: 5 | AR41: 1 | BG41: 708 | BH41: 7 | BI41: 8 | BJ41: 10 | BK41: 10 | BL41: 10 | BM41: =$C$11 -> 2 | BN41: 8 | BO41: 7 | BP41: 5 | BR41: 1
AG42: 712 | AH42: 7 | AI42: 12 | AJ42: =$C$4 -> 1 | AK42: 5 | AL42: 8 | AM42: 3 | AN42: 3 | AO42: 3 | AP42: 3 | AQ42: 1 | BG42: 712 | BH42: 7 | BI42: 12 | BJ42: =$C$11 -> 2 | BK42: 5 | BL42: 8 | BM42: 3 | BN42: 3 | BO42: 3 | BP42: 3 | BQ42: 1
AG43: 720 | AH43: 7 | AI43: 20 | AJ43: 10 | AK43: 10 | AL43: 10 | AM43: 10 | AN43: =$C$4 -> 1 | AO43: 3 | AP43: 5 | AS43: 1 | BG43: 720 | BH43: 7 | BI43: 20 | BJ43: 10 | BK43: 10 | BL43: 10 | BM43: 10 | BN43: =$C$11 -> 2 | BO43: 3 | BP43: 5 | BS43: 1
AG44: 812 | AH44: 8 | AI44: 12 | AJ44: =$C$4 -> 1 | AK44: 6 | AL44: 6 | AM44: 6 | AN44: 6 | AO44: 6 | AP44: 7 | AQ44: 1 | BG44: 812 | BH44: 8 | BI44: 12 | BJ44: =$C$11 -> 2 | BK44: 6 | BL44: 6 | BM44: 6 | BN44: 6 | BO44: 6 | BP44: 7 | BQ44: 1
AG45: 820 | AH45: 8 | AI45: 20 | AJ45: 10 | AK45: 10 | AL45: 10 | AM45: 10 | AN45: 10 | AO45: =$C$4 -> 1 | AP45: 4 | AT45: 1 | BG45: 820 | BH45: 8 | BI45: 20 | BJ45: 10 | BK45: 10 | BL45: 10 | BM45: 10 | BN45: 10 | BO45: =$C$11 -> 2 | BP45: 4 | BT45: 1
AG46: 912 | AH46: 9 | AI46: 12 | AJ46: 10 | AK46: 10 | AL46: 10 | AM46: 10 | AN46: =$C$4 -> 1 | AO46: 7 | AP46: 5 | AS46: 1 | BG46: 912 | BH46: 9 | BI46: 12 | BJ46: 10 | BK46: 10 | BL46: 10 | BM46: 10 | BN46: =$C$11 -> 2 | BO46: 7 | BP46: 5 | BS46: 1
AG47: 920 | AH47: 9 | AI47: 20 | AJ47: 10 | AK47: 10 | AL47: 10 | AM47: 10 | AN47: =$C$4 -> 1 | AO47: 4 | AP47: 5 | AS47: 1 | BG47: 920 | BH47: 9 | BI47: 20 | BJ47: 10 | BK47: 10 | BL47: 10 | BM47: 10 | BN47: =$C$11 -> 2 | BO47: 4 | BP47: 5 | BS47: 1
AG48: 1012 | AH48: 10 | AI48: 12 | AJ48: =$C$4 -> 1 | AK48: 8 | AL48: 3 | AM48: 3 | AN48: 3 | AO48: 3 | AP48: 3 | AQ48: 1 | BG48: 1012 | BH48: 10 | BI48: 12 | BJ48: =$C$11 -> 2 | BK48: 8 | BL48: 3 | BM48: 3 | BN48: 3 | BO48: 3 | BP48: 3 | BQ48: 1
AG49: 1020 | AH49: 10 | AI49: 20 | AJ49: 10 | AK49: 10 | AL49: 10 | AM49: 10 | AN49: 10 | AO49: =$C$4 -> 1 | AP49: 5 | AT49: 1 | BG49: 1020 | BH49: 10 | BI49: 20 | BJ49: 10 | BK49: 10 | BL49: 10 | BM49: 10 | BN49: 10 | BO49: =$C$11 -> 2 | BP49: 5 | BT49: 1
AG50: 1112 | AH50: 11 | AI50: 12 | AJ50: =$C$4 -> 1 | AK50: 9 | AL50: 1 | AM50: 6 | AN50: 6 | AO50: 6 | AP50: 7 | AQ50: 1 | BG50: 1112 | BH50: 11 | BI50: 12 | BJ50: =$C$11 -> 2 | BK50: 9 | BL50: 1 | BM50: 6 | BN50: 6 | BO50: 6 | BP50: 7 | BQ50: 1
AG51: 1120 | AH51: 11 | AI51: 20 | AJ51: 10 | AK51: 10 | AL51: 10 | AM51: 10 | AN51: =$C$4 -> 1 | AO51: 5 | AP51: 5 | AS51: 1 | BG51: 1120 | BH51: 11 | BI51: 20 | BJ51: 10 | BK51: 10 | BL51: 10 | BM51: 10 | BN51: =$C$11 -> 2 | BO51: 5 | BP51: 5 | BS51: 1
AG52: 1220 | AH52: 12 | AI52: 20 | AJ52: 10 | AK52: 10 | AL52: 10 | AM52: 10 | AN52: 10 | AO52: =$C$4 -> 1 | AP52: 6 | AT52: 1 | BG52: 1220 | BH52: 12 | BI52: 20 | BJ52: 10 | BK52: 10 | BL52: 10 | BM52: 10 | BN52: 10 | BO52: =$C$11 -> 2 | BP52: 6 | BT52: 1
AG53: 1320 | AH53: 13 | AI53: 20 | AJ53: 10 | AK53: 10 | AL53: 10 | AM53: 10 | AN53: =$C$4 -> 1 | AO53: 6 | AP53: 5 | AS53: 1 | BG53: 1320 | BH53: 13 | BI53: 20 | BJ53: 10 | BK53: 10 | BL53: 10 | BM53: 10 | BN53: =$C$11 -> 2 | BO53: 6 | BP53: 5 | BS53: 1
AG54: 1420 | AH54: 14 | AI54: 20 | AJ54: 10 | AK54: 10 | AL54: 10 | AM54: 10 | AN54: 10 | AO54: =$C$4 -> 1 | AP54: 7 | AT54: 1 | BG54: 1420 | BH54: 14 | BI54: 20 | BJ54: 10 | BK54: 10 | BL54: 10 | BM54: 10 | BN54: 10 | BO54: =$C$11 -> 2 | BP54: 7 | BT54: 1
AG55: 1520 | AH55: 15 | AI55: 20 | AJ55: 10 | AK55: 10 | AL55: 10 | AM55: 10 | AN55: =$C$4 -> 1 | AO55: 7 | AP55: 5 | AS55: 1 | BG55: 1520 | BH55: 15 | BI55: 20 | BJ55: 10 | BK55: 10 | BL55: 10 | BM55: 10 | BN55: =$C$11 -> 2 | BO55: 7 | BP55: 5 | BS55: 1
AG56: 1620 | AH56: 16 | AI56: 20 | AJ56: 10 | AK56: 10 | AL56: 10 | AM56: 10 | AN56: 10 | AO56: =$C$4 -> 1 | AP56: 8 | AT56: 1 | BG56: 1620 | BH56: 16 | BI56: 20 | BJ56: 10 | BK56: 10 | BL56: 10 | BM56: 10 | BN56: 10 | BO56: =$C$11 -> 2 | BP56: 8 | BT56: 1
AG57: 1720 | AH57: 17 | AI57: 20 | AJ57: 10 | AK57: 10 | AL57: 10 | AM57: 10 | AN57: =$C$4 -> 1 | AO57: 8 | AP57: 5 | AS57: 1 | BG57: 1720 | BH57: 17 | BI57: 20 | BJ57: 10 | BK57: 10 | BL57: 10 | BM57: 10 | BN57: =$C$11 -> 2 | BO57: 8 | BP57: 5 | BS57: 1
AG58: 1820 | AH58: 18 | AI58: 20 | AJ58: 10 | AK58: 10 | AL58: 10 | AM58: 10 | AN58: 10 | AO58: =$C$4 -> 1 | AP58: 9 | AT58: 1 | BG58: 1820 | BH58: 18 | BI58: 20 | BJ58: 10 | BK58: 10 | BL58: 10 | BM58: 10 | BN58: 10 | BO58: =$C$11 -> 2 | BP58: 9 | BT58: 1
AG59: 1920 | AH59: 19 | AI59: 20 | AJ59: 10 | AK59: 10 | AL59: 10 | AM59: 10 | AN59: =$C$4 -> 1 | AO59: 9 | AP59: 5 | AS59: 1 | BG59: 1920 | BH59: 19 | BI59: 20 | BJ59: 10 | BK59: 10 | BL59: 10 | BM59: 10 | BN59: =$C$11 -> 2 | BO59: 9 | BP59: 5 | BS59: 1

Sheet CALCVOLU
E1: 5
C2: Interpret the value the calculator displays | AA2: =IF(AK20=8,"•",IF(AP11>2,"*","•")) -> • | AB2: =IF(BK20=8,"•",IF(AP18>2,"* ","•")) -> • | AF2: 𝒙 | AG2: 𝒍 | AH2: 𝒎 | AI2: =CONCATENATE(" ",AH2,AG2) -> 𝒎𝒍 | AJ2: =AJ7 -> 9800 | AK2: =ABS(AJ2) -> 9800 | AL2: =IF(AK2<1000,1,0) -> 0 | AM2: =IF(AK2/1000=ROUNDDOWN(AK2/1000,0),1,0) -> 0 | AN2: =IF(AK2/10=ROUNDDOWN(AK2/10,0),1,0) -> 1 | AO2: =AL2+AM2*2+AN2*4 -> 4 | AP2: =IF(AO2=0,CONCATENATE(,AK2/1000-MOD(AK2/1000,1)," ",AG2," ",ROUND(1000*MOD(AK2/1000,1),6),AI2),IF(AO2=1,CONCATENATE(ROUND(AK2,0),AI2),IF(AO2=4,CONCATENATE(,AK2/1000-MOD(AK2/1000,1)," ",AG2," ",ROUND(100*MOD(AK2/1000,1),6),"0",AI2),IF(AO2=5,CONCATENATE(AK2,AI2),IF(AO2=6,CONCATENATE("",AK2/1000," ",AG2,""),AI3))))) -> 9 𝒍 800 𝒎𝒍
C3: after the division in the context of volume. | AA3: 0 | AB3: =IF(AA3=0,"",R28) ->  | AC3: =IF(AA3=0," litres","") -> litres | AD3: =IF(AA3=0,AI2,T28) -> 𝒎𝒍 | AI3: =CONCATENATE(0," ",AG2) -> 0 𝒍 | AJ3: =AJ14 -> 9875 | AK3: =ABS(AJ3) -> 9875 | AL3: =IF(AK3<1000,1,0) -> 0 | AM3: =IF(AK3/1000=ROUNDDOWN(AK3/1000,0),1,0) -> 0 | AN3: =IF(AK3/10=ROUNDDOWN(AK3/10,0),1,0) -> 0 | AO3: =AL3+AM3*2+AN3*4 -> 0 | AP3: =IF(AO3=0,CONCATENATE(AK3/1000-MOD(AK3/1000,1)," ",AG2," ",ROUND(1000*MOD(AK3/1000,1),6),AI2),IF(AO3=1,CONCATENATE(ROUND(AK3,0),AI2),IF(AO3=4,CONCATENATE(AK3/1000-MOD(AK3/1000,1)," ",AG2," ",ROUND(100*MOD(AK3/1000,1),6),"0",AI2),IF(AO3=5,CONCATENATE(AK3,AI2),IF(AO3=6,CONCATENATE("",AK3/1000," ",AG2,""),AI3))))) -> 9 𝒍 875 𝒎𝒍
C4: =INT(10*RAND())+0 -> 9 | D4: =1*RAND() -> 0.1997004679 | E4: =IF(D4>0.5,"ms","hm") -> hm | F4: =RAND() -> 0.8601858815 | G4: =IF(F4>0.5,20,12) -> 20 | H4: =INT((G4-1)*RAND())+1 -> 16 | I4: =H4/G4 -> 0.8 | K4: =H4*100+G4 -> 1620 | M4: 60 | N4: =M4*H4/G4 -> 48 | O4: =IF(C4>1,"s","") -> s | Q4: =RAND() -> 0.790974431 | R4: =IF(Q4>0.5,"What is ","Evaluate ") -> What is | S4: =IF(Q4>0.5,"?",".") -> ? | Y4: =AP11 -> 1 | Z4: =AP18 -> 3 | AA4: =IF(Y4=2,1,IF(Z4=2,1,0)) -> 0
C5: =CONCATENATE(R4,AB3,C4*AK20+AK19," ",AG2," divided by ",BX20," to the nearest",AD3,S4) -> What is 49 𝒍 divided by five to the nearest 𝒎𝒍?
O6: = | P6: =IF(AA3=1,AO7,AP2) -> 9 𝒍 800 𝒎𝒍
AJ7: =ROUND((C4+AK19/AK20)*1000,0) -> 9800 | AK7: =IF(AJ7<100,1,0) -> 0 | AL7: =IF(AJ7/100=ROUNDDOWN(AJ7/100,0),1,0) -> 1 | AM7: =IF(AJ7/10=ROUNDDOWN(AJ7/10,0),1,0) -> 1 | AN7: =AK7+AL7*2+AM7*4 -> 6 | AO7: =IF(AN7=0,CONCATENATE($R$28,ROUND(AJ7/100,2)),IF(AN7=1,CONCATENATE(ROUND(AJ7,0),$S$28),IF(AN7=4,CONCATENATE($R$28,AJ7/100,"0"),IF(AN7=5,CONCATENATE(AJ7,$S$28),IF(AN7=6,CONCATENATE($R$28,AJ7/100),"xxx"))))) -> R98 | AP7: =AJ7/100 -> 98 | AQ7: =ROUND(AP7,0) -> 98 | AR7: =AQ7-AP7 -> 0 | AS7: =IF(AR7=0,0,1) -> 0
AJ8: =(C4+AK19/AK20)*10-ROUNDDOWN((C4+AK19/AK20)*10,0) -> 0 | AK8: =100*AJ8 -> 0
D9: =VLOOKUP($K$4,$AG$23:$AW$59,4) -> 10 | E9: =VLOOKUP($K$4,$AG$23:$AW$59,5) -> 10 | G9: =VLOOKUP($K$4,$AG$23:$AW$59,6) -> 10 | H9: =VLOOKUP($K$4,$AG$23:$AW$59,7) -> 10 | J9: =VLOOKUP($K$4,$AG$23:$AW$59,8) -> 10 | L9: =VLOOKUP($K$4,$AG$23:$AW$59,9) -> 9 | M9: =VLOOKUP($K$4,$AG$23:$AW$59,10) -> 8
D10: =VLOOKUP($K$4,$AG$23:$AW$59,11) -> 0 | G10: =IF(D11>0.5,8,12) -> 8 | H10: 12 | I10: =VLOOKUP($K$4,$AG$23:$AW$59,12) -> 0 | K10: =VLOOKUP($K$4,$AG$23:$AW$59,13) -> 0 | L10: =VLOOKUP($K$4,$AG$23:$AW$59,14) -> 1 | AJ10: =ROUND((C4+AK19/AK20),9) -> 9.8 | AK10: =MOD(AJ10,1) -> 0.8 | AL10: =ROUND(1000*AK10,0) -> 800 | AM10: =(AL10-MOD(AL10,100))/100 -> 8 | AN10: =(AL10-AM11-MOD(AL10-AM11,10))/10 -> 0 | AO10: =ROUNDDOWN(AL10-AM11-AN11,0) -> 0 | AP10: =MOD(1000*AJ10,1) -> 0
C11: =INT(10*RAND())+0 -> 9 | D11: =1*RAND() -> 0.6276851509 | E11: =IF(D11>0.5,"dh","ym") -> dh | F11: =RAND() -> 0.7631354026 | G11: =IF(F11>0.5,G10,H10) -> 8 | H11: =INT((G11-1)*RAND())+1 -> 7 | I11: =H11/G11 -> 0.875 | K11: =H11*100+G11 -> 708 | M11: =IF(D11>0.5,24,12) -> 24 | N11: =M11*H11/G11 -> 21 | O11: =IF(C11>1,"s","") -> s | AJ11: =CONCATENATE(AJ10) -> 9.8 | AM11: =AM10*100 -> 800 | AN11: =AN10*10 -> 0 | AO11: =AO10 -> 0 | AP11: =IF(AP10>0,7,IF(AO10>0,3,IF(AN10>0,2,1))) -> 1
C12: =CONCATENATE("Split ",AB3,C11*BK20+BK19,AC3," into ",BX21," parts to the nearest",AD3,".") -> Split 79 litres into eight parts to the nearest 𝒎𝒍.
O13: = | P13: =IF(AA3=1,AO14,AP3) -> 9 𝒍 875 𝒎𝒍
AJ14: =ROUND((C11+BK19/BK20)*1000,0) -> 9875 | AK14: =IF(AJ14<100,1,0) -> 0 | AL14: =IF(AJ14/100=ROUNDDOWN(AJ14/100,0),1,0) -> 0 | AM14: =IF(AJ14/10=ROUNDDOWN(AJ14/10,0),1,0) -> 0 | AN14: =AK14+AL14*2+AM14*4 -> 0 | AO14: =IF(AN14=0,CONCATENATE($R$28,ROUND(AJ14/100,2)),IF(AN14=1,CONCATENATE(ROUND(AJ14,0),$S$28),IF(AN14=4,CONCATENATE($R$28,AJ14/100,"0"),IF(AN14=5,CONCATENATE(AJ14,$S$28),IF(AN14=6,CONCATENATE($R$28,AJ14/100),"xxx"))))) -> R98.75 | AP14: =AJ14/100 -> 98.75 | AQ14: =ROUND(AP14,0) -> 99 | AR14: =AQ14-AP14 -> 0.25 | AS14: =IF(AR14=0,0,1) -> 1
AJ15: =ROUND((C11+BK19/BK20)*10,0) -> 99 | AK15: =100*AJ15 -> 9900
D16: =VLOOKUP($K$11,$BG$23:$BW$59,4) -> 10 | E16: =VLOOKUP($K$11,$BG$23:$BW$59,5) -> 10 | G16: =VLOOKUP($K$11,$BG$23:$BW$59,6) -> 10 | H16: =VLOOKUP($K$11,$BG$23:$BW$59,7) -> 9 | J16: =VLOOKUP($K$11,$BG$23:$BW$59,8) -> 8 | L16: =VLOOKUP($K$11,$BG$23:$BW$59,9) -> 7 | M16: =VLOOKUP($K$11,$BG$23:$BW$59,10) -> 5
D17: =VLOOKUP($K$11,$BG$23:$BW$59,11) -> 0 | I17: =VLOOKUP($K$11,$BG$23:$BW$59,12) -> 1 | K17: =VLOOKUP($K$11,$BG$23:$BW$59,13) -> 0 | L17: =VLOOKUP($K$11,$BG$23:$BW$59,14) -> 0 | AJ17: =ROUND((C11+BK19/BK20),9) -> 9.875 | AK17: =MOD(AJ17,1) -> 0.875 | AL17: =ROUND(1000*AK17,0) -> 875 | AM17: =(AL17-MOD(AL17,100))/100 -> 8 | AN17: =(AL17-AM18-MOD(AL17-AM18,10))/10 -> 7 | AO17: =ROUNDDOWN(AL17-AM18-AN18,0) -> 5 | AP17: =MOD(1000*AJ17,1) -> 0
AJ18: =CONCATENATE(AJ17) -> 9.875 | AM18: =AM17*100 -> 800 | AN18: =AN17*10 -> 70 | AO18: =AO17 -> 5 | AP18: =IF(AP17>0,7,IF(AO17>0,3,IF(AN17>0,2,1))) -> 3
AI19: =H4 -> 16 | AJ19: =IF(AI19=0,1,AI19*AI20/(MAX(AI19:AI20)*LEFT(TEXT(MIN(AI19:AI20)/MAX(AI19:AI20),"000000000000000/000000000000000"),15))) -> 4 | AK19: =AI19/AJ19 -> 4 | BI19: =H11 -> 7 | BJ19: =IF(BI19=0,1,BI19*BI20/(MAX(BI19:BI20)*LEFT(TEXT(MIN(BI19:BI20)/MAX(BI19:BI20),"000000000000000/000000000000000"),15))) -> 1 | BK19: =BI19/BJ19 -> 7
AI20: =G4 -> 20 | AJ20: =MAX(AI19:AI20)*LEFT(TEXT(MIN(AI19:AI20)/MAX(AI19:AI20),"000000000000000/000000000000000"),15) -> 80 | AK20: =IF(AI19=0,"",IF(AI19=AI20,"",AI20/AJ19)) -> 5 | BI20: =G11 -> 8 | BJ20: =MAX(BI19:BI20)*LEFT(TEXT(MIN(BI19:BI20)/MAX(BI19:BI20),"000000000000000/000000000000000"),15) -> 56 | BK20: =IF(BI19=0,"",IF(BI19=BI20,"",BI20/BJ19)) -> 8 | BW20: =AK20 -> 5 | BX20: =VLOOKUP(BW20,$BW$22:$BX$33,2) -> five
BW21: =BK20 -> 8 | BX21: =VLOOKUP(BW21,$BW$22:$BX$33,2) -> eight
AJ22: 1 | AK22: 2 | AL22: 3 | AM22: 4 | AN22: 5 | AO22: 6 | AP22: 7 | AQ22: 8 | AR22: 9 | AS22: 10 | AT22: 11 | BJ22: 1 | BK22: 2 | BL22: 3 | BM22: 4 | BN22: 5 | BO22: 6 | BP22: 7 | BQ22: 8 | BR22: 9 | BS22: 10 | BT22: 11 | BW22: 2 | BX22: two
AG23: 108 | AH23: 1 | AI23: 8 | AJ23: 10 | AK23: 10 | AL23: 10 | AM23: =$C$4 -> 9 | AN23: 1 | AO23: 2 | AP23: 5 | AR23: 1 | BG23: 108 | BH23: 1 | BI23: 8 | BJ23: 10 | BK23: 10 | BL23: 10 | BM23: =$C$11 -> 9 | BN23: 1 | BO23: 2 | BP23: 5 | BR23: 1 | BW23: 3 | BX23: three
AG24: 112 | AH24: 1 | AI24: 12 | AJ24: =$C$4 -> 9 | AK24: 0 | AL24: 8 | AM24: 3 | AN24: 3 | AO24: 3 | AP24: 3 | AQ24: 1 | BG24: 112 | BH24: 1 | BI24: 12 | BJ24: =$C$11 -> 9 | BK24: 0 | BL24: 8 | BM24: 3 | BN24: 3 | BO24: 3 | BP24: 3 | BQ24: 1 | BW24: 4 | BX24: four
AG25: 120 | AH25: 1 | AI25: 20 | AJ25: 10 | AK25: 10 | AL25: 10 | AM25: 10 | AN25: =$C$4 -> 9 | AO25: 0 | AP25: 5 | AS25: 1 | BG25: 120 | BH25: 1 | BI25: 20 | BJ25: 10 | BK25: 10 | BL25: 10 | BM25: 10 | BN25: =$C$11 -> 9 | BO25: 0 | BP25: 5 | BS25: 1 | BW25: 5 | BX25: five
AG26: 208 | AH26: 2 | AI26: 8 | AJ26: 10 | AK26: 10 | AL26: 10 | AM26: 10 | AN26: =$C$4 -> 9 | AO26: 2 | AP26: 5 | AS26: 1 | BG26: 208 | BH26: 2 | BI26: 8 | BJ26: 10 | BK26: 10 | BL26: 10 | BM26: 10 | BN26: =$C$11 -> 9 | BO26: 2 | BP26: 5 | BS26: 1 | BW26: 6 | BX26: six
AG27: 212 | AH27: 2 | AI27: 12 | AJ27: =$C$4 -> 9 | AK27: 1 | AL27: 6 | AM27: 6 | AN27: 6 | AO27: 6 | AP27: 7 | AQ27: 1 | BG27: 212 | BH27: 2 | BI27: 12 | BJ27: =$C$11 -> 9 | BK27: 1 | BL27: 6 | BM27: 6 | BN27: 6 | BO27: 6 | BP27: 7 | BQ27: 1 | BW27: 7 | BX27: seven
Q28: =E1 -> 5 | R28: =IF(Q28=1,"£",IF(Q28=2,"$",IF(Q28=3,"€","R"))) -> R | S28: =IF(Q28=1,"p","c") -> c | T28: =IF(Q28=1," penny"," cent") -> cent | AG28: 220 | AH28: 2 | AI28: 20 | AJ28: 10 | AK28: 10 | AL28: 10 | AM28: 10 | AN28: 10 | AO28: =$C$4 -> 9 | AP28: 1 | AT28: 1 | BG28: 220 | BH28: 2 | BI28: 20 | BJ28: 10 | BK28: 10 | BL28: 10 | BM28: 10 | BN28: 10 | BO28: =$C$11 -> 9 | BP28: 1 | BT28: 1 | BW28: 8 | BX28: eight
AG29: 308 | AH29: 3 | AI29: 8 | AJ29: 10 | AK29: 10 | AL29: 10 | AM29: =$C$4 -> 9 | AN29: 3 | AO29: 7 | AP29: 5 | AR29: 1 | BG29: 308 | BH29: 3 | BI29: 8 | BJ29: 10 | BK29: 10 | BL29: 10 | BM29: =$C$11 -> 9 | BN29: 3 | BO29: 7 | BP29: 5 | BR29: 1 | BW29: 9 | BX29: nine
AG30: 312 | AH30: 3 | AI30: 12 | AJ30: 10 | AK30: 10 | AL30: 10 | AM30: 10 | AN30: =$C$4 -> 9 | AO30: 2 | AP30: 5 | AS30: 1 | BG30: 312 | BH30: 3 | BI30: 12 | BJ30: 10 | BK30: 10 | BL30: 10 | BM30: 10 | BN30: =$C$11 -> 9 | BO30: 2 | BP30: 5 | BS30: 1 | BW30: 10 | BX30: ten
AG31: 320 | AH31: 3 | AI31: 20 | AJ31: 10 | AK31: 10 | AL31: 10 | AM31: 10 | AN31: =$C$4 -> 9 | AO31: 1 | AP31: 5 | AS31: 1 | BG31: 320 | BH31: 3 | BI31: 20 | BJ31: 10 | BK31: 10 | BL31: 10 | BM31: 10 | BN31: =$C$11 -> 9 | BO31: 1 | BP31: 5 | BS31: 1 | BW31: 11 | BX31: eleven
AG32: 408 | AH32: 4 | AI32: 8 | AJ32: 10 | AK32: 10 | AL32: 10 | AM32: 10 | AN32: 10 | AO32: =$C$4 -> 9 | AP32: 5 | AT32: 1 | BG32: 408 | BH32: 4 | BI32: 8 | BJ32: 10 | BK32: 10 | BL32: 10 | BM32: 10 | BN32: 10 | BO32: =$C$11 -> 9 | BP32: 5 | BT32: 1 | BW32: 12 | BX32: twelve
AG33: 412 | AH33: 4 | AI33: 12 | AJ33: =$C$4 -> 9 | AK33: 3 | AL33: 3 | AM33: 3 | AN33: 3 | AO33: 3 | AP33: 3 | AQ33: 1 | BG33: 412 | BH33: 4 | BI33: 12 | BJ33: =$C$11 -> 9 | BK33: 3 | BL33: 3 | BM33: 3 | BN33: 3 | BO33: 3 | BP33: 3 | BQ33: 1 | BW33: 20 | BX33: twenty
AG34: 420 | AH34: 4 | AI34: 20 | AJ34: 10 | AK34: 10 | AL34: 10 | AM34: 10 | AN34: 10 | AO34: =$C$4 -> 9 | AP34: 2 | AT34: 1 | BG34: 420 | BH34: 4 | BI34: 20 | BJ34: 10 | BK34: 10 | BL34: 10 | BM34: 10 | BN34: 10 | BO34: =$C$11 -> 9 | BP34: 2 | BT34: 1
AG35: 508 | AH35: 5 | AI35: 8 | AJ35: 10 | AK35: 10 | AL35: 10 | AM35: =$C$4 -> 9 | AN35: 6 | AO35: 2 | AP35: 5 | AR35: 1 | BG35: 508 | BH35: 5 | BI35: 8 | BJ35: 10 | BK35: 10 | BL35: 10 | BM35: =$C$11 -> 9 | BN35: 6 | BO35: 2 | BP35: 5 | BR35: 1
AG36: 512 | AH36: 5 | AI36: 12 | AJ36: =$C$4 -> 9 | AK36: 4 | AL36: 1 | AM36: 6 | AN36: 6 | AO36: 6 | AP36: 7 | AQ36: 1 | BG36: 512 | BH36: 5 | BI36: 12 | BJ36: =$C$11 -> 9 | BK36: 4 | BL36: 1 | BM36: 6 | BN36: 6 | BO36: 6 | BP36: 7 | BQ36: 1
AG37: 520 | AH37: 5 | AI37: 20 | AJ37: 10 | AK37: 10 | AL37: 10 | AM37: 10 | AN37: =$C$4 -> 9 | AO37: 2 | AP37: 5 | AS37: 1 | BG37: 520 | BH37: 5 | BI37: 20 | BJ37: 10 | BK37: 10 | BL37: 10 | BM37: 10 | BN37: =$C$11 -> 9 | BO37: 2 | BP37: 5 | BS37: 1
AG38: 608 | AH38: 6 | AI38: 8 | AJ38: 10 | AK38: 10 | AL38: 10 | AM38: 10 | AN38: =$C$4 -> 9 | AO38: 7 | AP38: 5 | AS38: 1 | BG38: 608 | BH38: 6 | BI38: 8 | BJ38: 10 | BK38: 10 | BL38: 10 | BM38: 10 | BN38: =$C$11 -> 9 | BO38: 7 | BP38: 5 | BS38: 1
AG39: 612 | AH39: 6 | AI39: 12 | AJ39: 10 | AK39: 10 | AL39: 10 | AM39: 10 | AN39: 10 | AO39: =$C$4 -> 9 | AP39: 5 | AT39: 1 | BG39: 612 | BH39: 6 | BI39: 12 | BJ39: 10 | BK39: 10 | BL39: 10 | BM39: 10 | BN39: 10 | BO39: =$C$11 -> 9 | BP39: 5 | BT39: 1
AG40: 620 | AH40: 6 | AI40: 20 | AJ40: 10 | AK40: 10 | AL40: 10 | AM40: 10 | AN40: 10 | AO40: =$C$4 -> 9 | AP40: 3 | AT40: 1 | BG40: 620 | BH40: 6 | BI40: 20 | BJ40: 10 | BK40: 10 | BL40: 10 | BM40: 10 | BN40: 10 | BO40: =$C$11 -> 9 | BP40: 3 | BT40: 1
AG41: 708 | AH41: 7 | AI41: 8 | AJ41: 10 | AK41: 10 | AL41: 10 | AM41: =$C$4 -> 9 | AN41: 8 | AO41: 7 | AP41: 5 | AR41: 1 | BG41: 708 | BH41: 7 | BI41: 8 | BJ41: 10 | BK41: 10 | BL41: 10 | BM41: =$C$11 -> 9 | BN41: 8 | BO41: 7 | BP41: 5 | BR41: 1
AG42: 712 | AH42: 7 | AI42: 12 | AJ42: =$C$4 -> 9 | AK42: 5 | AL42: 8 | AM42: 3 | AN42: 3 | AO42: 3 | AP42: 3 | AQ42: 1 | BG42: 712 | BH42: 7 | BI42: 12 | BJ42: =$C$11 -> 9 | BK42: 5 | BL42: 8 | BM42: 3 | BN42: 3 | BO42: 3 | BP42: 3 | BQ42: 1
AG43: 720 | AH43: 7 | AI43: 20 | AJ43: 10 | AK43: 10 | AL43: 10 | AM43: 10 | AN43: =$C$4 -> 9 | AO43: 3 | AP43: 5 | AS43: 1 | BG43: 720 | BH43: 7 | BI43: 20 | BJ43: 10 | BK43: 10 | BL43: 10 | BM43: 10 | BN43: =$C$11 -> 9 | BO43: 3 | BP43: 5 | BS43: 1
AG44: 812 | AH44: 8 | AI44: 12 | AJ44: =$C$4 -> 9 | AK44: 6 | AL44: 6 | AM44: 6 | AN44: 6 | AO44: 6 | AP44: 7 | AQ44: 1 | BG44: 812 | BH44: 8 | BI44: 12 | BJ44: =$C$11 -> 9 | BK44: 6 | BL44: 6 | BM44: 6 | BN44: 6 | BO44: 6 | BP44: 7 | BQ44: 1
AG45: 820 | AH45: 8 | AI45: 20 | AJ45: 10 | AK45: 10 | AL45: 10 | AM45: 10 | AN45: 10 | AO45: =$C$4 -> 9 | AP45: 4 | AT45: 1 | BG45: 820 | BH45: 8 | BI45: 20 | BJ45: 10 | BK45: 10 | BL45: 10 | BM45: 10 | BN45: 10 | BO45: =$C$11 -> 9 | BP45: 4 | BT45: 1
AG46: 912 | AH46: 9 | AI46: 12 | AJ46: 10 | AK46: 10 | AL46: 10 | AM46: 10 | AN46: =$C$4 -> 9 | AO46: 7 | AP46: 5 | AS46: 1 | BG46: 912 | BH46: 9 | BI46: 12 | BJ46: 10 | BK46: 10 | BL46: 10 | BM46: 10 | BN46: =$C$11 -> 9 | BO46: 7 | BP46: 5 | BS46: 1
AG47: 920 | AH47: 9 | AI47: 20 | AJ47: 10 | AK47: 10 | AL47: 10 | AM47: 10 | AN47: =$C$4 -> 9 | AO47: 4 | AP47: 5 | AS47: 1 | BG47: 920 | BH47: 9 | BI47: 20 | BJ47: 10 | BK47: 10 | BL47: 10 | BM47: 10 | BN47: =$C$11 -> 9 | BO47: 4 | BP47: 5 | BS47: 1
AG48: 1012 | AH48: 10 | AI48: 12 | AJ48: =$C$4 -> 9 | AK48: 8 | AL48: 3 | AM48: 3 | AN48: 3 | AO48: 3 | AP48: 3 | AQ48: 1 | BG48: 1012 | BH48: 10 | BI48: 12 | BJ48: =$C$11 -> 9 | BK48: 8 | BL48: 3 | BM48: 3 | BN48: 3 | BO48: 3 | BP48: 3 | BQ48: 1
AG49: 1020 | AH49: 10 | AI49: 20 | AJ49: 10 | AK49: 10 | AL49: 10 | AM49: 10 | AN49: 10 | AO49: =$C$4 -> 9 | AP49: 5 | AT49: 1 | BG49: 1020 | BH49: 10 | BI49: 20 | BJ49: 10 | BK49: 10 | BL49: 10 | BM49: 10 | BN49: 10 | BO49: =$C$11 -> 9 | BP49: 5 | BT49: 1
AG50: 1112 | AH50: 11 | AI50: 12 | AJ50: =$C$4 -> 9 | AK50: 9 | AL50: 1 | AM50: 6 | AN50: 6 | AO50: 6 | AP50: 7 | AQ50: 1 | BG50: 1112 | BH50: 11 | BI50: 12 | BJ50: =$C$11 -> 9 | BK50: 9 | BL50: 1 | BM50: 6 | BN50: 6 | BO50: 6 | BP50: 7 | BQ50: 1
AG51: 1120 | AH51: 11 | AI51: 20 | AJ51: 10 | AK51: 10 | AL51: 10 | AM51: 10 | AN51: =$C$4 -> 9 | AO51: 5 | AP51: 5 | AS51: 1 | BG51: 1120 | BH51: 11 | BI51: 20 | BJ51: 10 | BK51: 10 | BL51: 10 | BM51: 10 | BN51: =$C$11 -> 9 | BO51: 5 | BP51: 5 | BS51: 1
AG52: 1220 | AH52: 12 | AI52: 20 | AJ52: 10 | AK52: 10 | AL52: 10 | AM52: 10 | AN52: 10 | AO52: =$C$4 -> 9 | AP52: 6 | AT52: 1 | BG52: 1220 | BH52: 12 | BI52: 20 | BJ52: 10 | BK52: 10 | BL52: 10 | BM52: 10 | BN52: 10 | BO52: =$C$11 -> 9 | BP52: 6 | BT52: 1
AG53: 1320 | AH53: 13 | AI53: 20 | AJ53: 10 | AK53: 10 | AL53: 10 | AM53: 10 | AN53: =$C$4 -> 9 | AO53: 6 | AP53: 5 | AS53: 1 | BG53: 1320 | BH53: 13 | BI53: 20 | BJ53: 10 | BK53: 10 | BL53: 10 | BM53: 10 | BN53: =$C$11 -> 9 | BO53: 6 | BP53: 5 | BS53: 1
AG54: 1420 | AH54: 14 | AI54: 20 | AJ54: 10 | AK54: 10 | AL54: 10 | AM54: 10 | AN54: 10 | AO54: =$C$4 -> 9 | AP54: 7 | AT54: 1 | BG54: 1420 | BH54: 14 | BI54: 20 | BJ54: 10 | BK54: 10 | BL54: 10 | BM54: 10 | BN54: 10 | BO54: =$C$11 -> 9 | BP54: 7 | BT54: 1
AG55: 1520 | AH55: 15 | AI55: 20 | AJ55: 10 | AK55: 10 | AL55: 10 | AM55: 10 | AN55: =$C$4 -> 9 | AO55: 7 | AP55: 5 | AS55: 1 | BG55: 1520 | BH55: 15 | BI55: 20 | BJ55: 10 | BK55: 10 | BL55: 10 | BM55: 10 | BN55: =$C$11 -> 9 | BO55: 7 | BP55: 5 | BS55: 1
AG56: 1620 | AH56: 16 | AI56: 20 | AJ56: 10 | AK56: 10 | AL56: 10 | AM56: 10 | AN56: 10 | AO56: =$C$4 -> 9 | AP56: 8 | AT56: 1 | BG56: 1620 | BH56: 16 | BI56: 20 | BJ56: 10 | BK56: 10 | BL56: 10 | BM56: 10 | BN56: 10 | BO56: =$C$11 -> 9 | BP56: 8 | BT56: 1
AG57: 1720 | AH57: 17 | AI57: 20 | AJ57: 10 | AK57: 10 | AL57: 10 | AM57: 10 | AN57: =$C$4 -> 9 | AO57: 8 | AP57: 5 | AS57: 1 | BG57: 1720 | BH57: 17 | BI57: 20 | BJ57: 10 | BK57: 10 | BL57: 10 | BM57: 10 | BN57: =$C$11 -> 9 | BO57: 8 | BP57: 5 | BS57: 1
AG58: 1820 | AH58: 18 | AI58: 20 | AJ58: 10 | AK58: 10 | AL58: 10 | AM58: 10 | AN58: 10 | AO58: =$C$4 -> 9 | AP58: 9 | AT58: 1 | BG58: 1820 | BH58: 18 | BI58: 20 | BJ58: 10 | BK58: 10 | BL58: 10 | BM58: 10 | BN58: 10 | BO58: =$C$11 -> 9 | BP58: 9 | BT58: 1
AG59: 1920 | AH59: 19 | AI59: 20 | AJ59: 10 | AK59: 10 | AL59: 10 | AM59: 10 | AN59: =$C$4 -> 9 | AO59: 9 | AP59: 5 | AS59: 1 | BG59: 1920 | BH59: 19 | BI59: 20 | BJ59: 10 | BK59: 10 | BL59: 10 | BM59: 10 | BN59: =$C$11 -> 9 | BO59: 9 | BP59: 5 | BS59: 1

Sheet FUEL
E1: 1
C2: =IF(E1=1,"The cost of each fuel is given in pence per litre.","The cost of each fuel is given in cents per litre.") -> The cost of each fuel is given in pence per litre. | AD2: =CALCVOLU!AG2 -> 𝒍
C3: =INT(70*RAND())+1-30 -> 23 | D3: =IF(RAND()>0.5,0.9,0.5) -> 0.9 | E3: =D3+C3 -> 23.9 | F3: =IF(I3<0,I3+10,I3) -> 2 | G3: =MOD(C3,10) -> 3 | H3: =10*D3 -> 9 | I3: =($C$3-$G$3)/10 -> 2 | K3: =INT(5*RAND())+1 -> 1 | L3: =ROUND(N3-M3,0) -> 22 | M3: =D3 -> 0.9 | N3: =E3-K3 -> 22.9 | O3: =IF(S3<0,S3+10,S3) -> 2 | P3: =MOD(L3,10) -> 2 | Q3: =10*M3 -> 9 | S3: =($L$3-$P$3)/10 -> 2 | T3: =INT(5*RAND())+1 -> 2 | U3: =ROUND(W3-V3,0) -> 20 | V3: =M3 -> 0.9 | W3: =N3-T3 -> 20.9 | X3: =10*V3 -> 9 | Y3: =IF(AD3<0,AD3+10,AD3) -> 2 | Z3: =MOD(U3,10) -> 0 | AD3: =($U$3-$Z$3)/10 -> 2 | AF3: =IF(I3<0,0,1) -> 1 | AG3: =IF(S3<0,0,1) -> 1 | AH3: =IF(AD3<0,0,1) -> 1
C4: Unleaded | L4: Diesel | U4: Bio-Fuel
B6: =IF(RAND()>0.5,1,0) -> 1
C8: =INT(3*RAND())+1 -> 2 | D8: =IF(C8=1,100+$E$3,IF(C8=2,100+$N$3,100+$W$3)) -> 122.9 | E8: =INT(50*RAND())+10 -> 34 | F8: =INT(10*RAND())+0 -> 5 | G8: =INT(9*RAND())+1 -> 9 | H8: =E8+F8/10+G8/100 -> 34.59 | I8: =IF(C8=1,$C$4,IF(C8=2,$L$4,$U$4)) -> Diesel | L8: =IF(C8=1,INT(2*RAND())+2,IF(C8=2,IF(RAND()>0.5,1,3),INT(2*RAND())+1)) -> 1 | M8: =IF(L8=1,100+$E$3,IF(L8=2,100+$N$3,100+$W$3)) -> 123.9 | N8: =INT(46*RAND())+5 -> 8 | R8: =IF(L8=1,$C$4,IF(L8=2,$L$4,$U$4)) -> Unleaded
C9: =IF(B6=1,CONCATENATE("How much does ",H8," ",AD2," of ",I8," cost?"),CONCATENATE("Calculate the cost of ",H8," ",AD2," of ",I8,".")) -> How much does 34.59 𝒍 of Diesel cost? | AG9: =ROUND(H8*D8,0) -> 4251 | AH9: =IF(AG9<100,1,0) -> 0 | AI9: =IF(AG9/100=ROUNDDOWN(AG9/100,0),1,0) -> 0 | AJ9: =IF(AG9/10=ROUNDDOWN(AG9/10,0),1,0) -> 0 | AK9: =AH9+AI9*2+AJ9*4 -> 0 | AL9: =IF(AK9=0,CONCATENATE($R$28,ROUND(AG9/100,2)),IF(AK9=1,CONCATENATE(ROUND(AG9,0),$S$28),IF(AK9=4,CONCATENATE($R$28,AG9/100,"0"),IF(AK9=5,CONCATENATE(AG9,$S$28),IF(AK9=6,CONCATENATE($R$28,AG9/100),"xxx"))))) -> £42.51
E11: cost | F11: = | G11: =CONCATENATE(H8) -> 34.59 | J11: × | K11: =CONCATENATE($D$8/100) -> 1.229 | N11: = | O11: =CONCATENATE(H8*(D8/100)) -> 42.51111 | T11: = | U11: =CONCATENATE(AL9," (nearest ",S28,")") -> £42.51 (nearest p)
C13: =IF(B6=1,CONCATENATE("I have ",$R$28,N8,". What volume of ",R8," can I buy?"),CONCATENATE("How much ",R8," can I buy if I spend ",$R$28,N8,"?")) -> I have £8. What volume of Unleaded can I buy? | AG13: 2 | AH13: =N8/M8*100 -> 6.456820016 | AI13: =AH13^1 -> 6.456820016 | AJ13: =CONCATENATE(AH13) -> 6.45682001614205 | AK13: =IF(AH13=0,CONCATENATE("0",AH15,""),CONCATENATE(AN13,AM13)) -> 6.46 𝒍 (2 d.p.) | AL13: =CONCATENATE(ROUND(AJ14,9)) -> 6.456820016 | AM13: =IF(AN14=0,CONCATENATE(AH15),CONCATENATE(AR14,AH15," (",AG13," d.p.)")) -> 𝒍 (2 d.p.) | AN13: =IF(AN14=0,AI14,AH14) -> 6.46 | AO13: =ROUND(100*AH14,0) -> 646 | AP13: =AO13-AO14*100 -> 46 | AQ13: =IF(AN14=0,"",IF(AP14=0,".0","")) ->  | AR13: =AO13-AO14*100-AP14*10 -> 6
AG14: =ROUNDDOWN(AI13,0) -> 6 | AH14: =ROUND(AI13,AG13) -> 6.46 | AI14: =ROUND(AI13,6) -> 6.45682 | AJ14: =ROUND(AI13,9) -> 6.456820016 | AK14: =ROUND(AJ14-AG14,9) -> 0.456820016 | AL14: =ROUND(AI14-AG14,9) -> 0.45682 | AM14: =ROUND(AJ14-AG14,9) -> 0.456820016 | AN14: =AM14-AL14 -> 1.599999999e-08 | AO14: =ROUNDDOWN(AO13/100,0) -> 6 | AP14: =ROUNDDOWN(AP13/10,0) -> 4 | AQ14: =IF(AR13=0,0,"") ->  | AR14: =IF(AG13=2,IF(AR13=0,CONCATENATE(AQ13,AQ14),AQ14),AQ13) -> 
C15: fuel | F15: = | G15: =CONCATENATE(" ",N8," ") -> 8 | J15: = | K15: =CONCATENATE(ROUND(N8/M8*100,8)) -> 6.45682002 | T15: = | U15: =AK13 -> 6.46 𝒍 (2 d.p.) | AH15: =IF(AI15="cm"," cm",CONCATENATE(" ",AD2)) -> 𝒍 | AI15: litres | AK15: =ROUND(AI13,2) -> 6.46
G16: =CONCATENATE(M8/100) -> 1.239
Q28: =E1 -> 1 | R28: =IF(Q28=1,"£",IF(Q28=2,"$",IF(Q28=3,"€","R"))) -> £ | S28: =IF(Q28=1,"p","c") -> p

Sheet BUREAU
B2: =AJ6 -> 1 | C2: Currency exchange rates are displayed below.
F3: =(I3-G3)/10 -> 1 | G3: =MOD(I3,10) -> 1 | H3: =INT(10*RAND())+0 -> 7 | I3: =1*(INT(6*RAND())+10) -> 11 | O3: =INT(10*RAND())+0 -> 2 | P3: =INT(10*RAND())+0 -> 0 | Q3: =(T3-Y3)/10 -> 1 | T3: =1*(INT(6*RAND())+10) -> 12 | X3: =INT(10*RAND())+0 -> 6 | Y3: =MOD(T3,10) -> 2 | Z3: =INT(10*RAND())+0 -> 9 | AA3: =INT(10*RAND())+0 -> 1
AG6: =$V$8*$K$8 -> 1244.256 | AH6: =AG6*100 -> 124425.6 | AI6: =AH6-ROUND(AH6,0) -> -0.4 | AJ6: =IF(AI6=0,0,1) -> 1
C8: =I3/10+H3/100+O3/1000+P3/10000 -> 1.172 | D8: =CONCATENATE(C8) -> 1.172 | F8: =T3/10+Z3/100+X3/1000+AA3/10000 -> 1.2961 | G8: =CONCATENATE(F8) -> 1.2961 | H8: =IF(RAND()>0.5,1,2) -> 2 | I8: =IF($H$8=1,"US Dollars","Euros") -> Euros | J8: =IF($H$8=1,"$","€") -> € | K8: =IF($H$8=1,$C$8,$F$8) -> 1.2961 | L8: =IF($H$8=1,"c","c") -> c | N8: =IF($H$8=2,"dollars","euros") -> dollars | O8: =IF($H$8=2,"$","€") -> $ | P8: =IF($H$8=2,$C$8,$F$8) -> 1.172 | Q8: =IF($H$8=2,"¢","c") -> ¢ | V8: =W8+X8 -> 960 | W8: =100*(INT(9*RAND())+1) -> 900 | X8: =10*(INT(9*RAND())+1) -> 60 | Y8: =Z8+AA8 -> 240 | Z8: =100*(INT(9*RAND())+1) -> 200 | AA8: =10*(INT(9*RAND())+1) -> 40 | AL8: =J8 -> €
B9: =IF(RAND()>0.5,1,0) -> 1 | C9: =IF(B9=1,CONCATENATE("How many ",I8," can be bought for ","£",V8,"?"),CONCATENATE("Convert ","£",V8," into ",I8,".")) -> How many Euros can be bought for £960? | AG9: =ROUND(V8*K8*100,0) -> 124426 | AH9: =IF(AG9<100,1,0) -> 0 | AI9: =IF(AG9/100=ROUNDDOWN(AG9/100,0),1,0) -> 0 | AJ9: =IF(AG9/10=ROUNDDOWN(AG9/10,0),1,0) -> 0 | AK9: =AH9+AI9*2+AJ9*4 -> 0 | AL9: =IF(AK9=0,CONCATENATE(J8,ROUND(AG9/100,2)),IF(AK9=1,CONCATENATE(ROUND(AG9,0),"p"),IF(AK9=4,CONCATENATE(J8,AG9/100,"0"),IF(AK9=5,CONCATENATE(AG9,"p"),IF(AK9=6,CONCATENATE(J8,AG9/100),"xxx"))))) -> €1244.26
C11: =J8 -> € | D11: = | E11: =CONCATENATE($V$8) -> 960 | G11: × | H11: =CONCATENATE($K$8) -> 1.2961 | L11: = | M11: =CONCATENATE(,$V$8*$K$8,) -> 1244.256 | R11: = | S11: =CONCATENATE($AL$9," (nearest ",$L$8,")") -> €1244.26 (nearest c)
AG12: =ROUND(Y8/P8*100,0) -> 20478 | AH12: =IF(AG12<100,1,0) -> 0 | AI12: =IF(AG12/100=ROUNDDOWN(AG12/100,0),1,0) -> 0 | AJ12: =IF(AG12/10=ROUNDDOWN(AG12/10,0),1,0) -> 0 | AK12: =AH12+AI12*2+AJ12*4 -> 0 | AL12: =IF(AK12=0,CONCATENATE("£",ROUND(AG12/100,2)),IF(AK12=1,CONCATENATE(ROUND(AG12,0),"p"),IF(AK12=4,CONCATENATE("£",AG12/100,"0"),IF(AK12=5,CONCATENATE(AG12,"p"),IF(AK12=6,CONCATENATE("£",AG12/100),"xxx"))))) -> £204.78
C13: =IF(B9=1,CONCATENATE("Convert ",O8,Y8," into UK Pounds."),CONCATENATE("I change ",O8,Y8,". How many UK Pounds do I get?")) -> Convert $240 into UK Pounds.
C15: £ | D15: = | E15: =CONCATENATE(" ",$Y$8," ") -> 240 | I15: = | J15: =CONCATENATE("",ROUND($Y$8/$P$8,8)) -> 204.778157 | Q15: = | S15: =CONCATENATE("",$AL$12," (nearest p)") -> £204.78 (nearest p)
E16: =CONCATENATE($P$8,) -> 1.172

Sheet CAFEMENU
E1: 1 | F1: 4
C2: Prices of food and drink at a café are shown.
AV3: =F1 -> 4 | AX3: 0
E6: =AY21 -> Shake | R6: =CONCATENATE(AZ21) -> 85 | S6: =$BE$47 -> p | X6: =AY35 -> Bagel | AK6: =BF48 -> £1.60 | AP6: =IF(BK59<100,"*","") -> *
E7: =AY22 -> Tea | R7: =CONCATENATE(AZ22) -> 50 | S7: =$BE$47 -> p | X7: =AY36 -> Pie | AK7: =BF49 -> £2.10
E8: =AY23 -> Juice | R8: =CONCATENATE(AZ23) -> 90 | S8: =$BE$47 -> p | X8: =AY37 -> Pizza | AK8: =BF50 -> £3.55
E9: =AY24 -> Latté | R9: =CONCATENATE(AZ24) -> 75 | S9: =$BE$47 -> p | X9: =AY38 -> Cuban | AK9: =BF51 -> £3.15
C11: =IF(F1=2,BG49,IF(F1=3,BG50,BG52)) -> I give £20 for 2 shakes, a latté, a bagel and 5 cubans.
C12: Find (i) the total cost (ii) change from the note given.
E14: =BG53 -> 2 shakes | R14: =BP53 -> £1.70 | S14: =BQ53 -> 
E15: =IF(F1=4,BG54,IF(F1=3,BG55,BG55)) -> 1 latté | R15: =IF(F1=4,BP54,IF(F1=3,BP55,BP55)) -> 75 | S15: =IF(F1=4,BQ54,"") -> p | X15: note | AK15: =CONCATENATE(BC47,BI58,".00") -> £20.00
E16: =IF(F1=4,BG55,IF(F1=3,BG56,"total")) -> 1 bagel | R16: =IF(F1=4,BP55,IF(F1=3,BP56,BP58)) -> £1.60 | X16: total | AK16: =CONCATENATE("− ",BP58,"") -> − £19.80
E17: =IF(F1=4,BG56,IF(F1=3,"total","")) -> 5 cubans | R17: =IF(F1=4,BP56,IF(F1=3,BP58,"")) -> £15.75 | X17: change | AK17: =BP59 -> 20 | AL17: =BQ59 -> p
E18: =IF(F1=4,"total","") -> total | R18: =IF(F1=4,BP58,"") -> £19.80
BB20: =INT(12*RAND())+1 -> 6 | BC20: =VLOOKUP($BB$20,$BB$21:$BF$32,2) -> 4 | BD20: =VLOOKUP($BB$20,$BB$21:$BF$32,3) -> 10 | BE20: =VLOOKUP($BB$20,$BB$21:$BF$32,4) -> 9 | BF20: =VLOOKUP($BB$20,$BB$21:$BF$32,5) -> 3
AU21: 1 | AV21: Coffee | AW21: =5*(INT(8*RAND())+6) -> 50 | AX21: =BC20 -> 4 | AY21: =VLOOKUP(AX21,$AU$21:$AV$30,2) -> Shake | AZ21: =VLOOKUP(AX21,$AU$21:$AW$30,3) -> 85 | BA21: =INT(3*RAND())+1 -> 3 | BB21: 1 | BC21: =$BA$21 -> 3 | BD21: =$BA$22 -> 4 | BE21: =$BA$23 -> 9 | BF21: =$BA$24 -> 10 | BH21: 1 | BI21: coffee
AU22: 2 | AV22: Mocha | AW22: =5*(INT(6*RAND())+14) -> 90 | AX22: =BD20 -> 10 | AY22: =VLOOKUP(AX22,$AU$21:$AV$30,2) -> Tea | AZ22: =VLOOKUP(AX22,$AU$21:$AW$30,3) -> 50 | BA22: =INT(3*RAND())+4 -> 4 | BB22: 2 | BC22: =$BA$21 -> 3 | BD22: =$BA$23 -> 9 | BE22: =$BA$24 -> 10 | BF22: =$BA$22 -> 4 | BH22: 2 | BI22: mocha
AU23: 3 | AV23: Latté | AW23: =5*(INT(6*RAND())+14) -> 75 | AX23: =BE20 -> 9 | AY23: =VLOOKUP(AX23,$AU$21:$AV$30,2) -> Juice | AZ23: =VLOOKUP(AX23,$AU$21:$AW$30,3) -> 90 | BA23: =INT(3*RAND())+7 -> 9 | BB23: 3 | BC23: =$BA$21 -> 3 | BD23: =$BA$24 -> 10 | BE23: =$BA$22 -> 4 | BF23: =$BA$23 -> 9 | BH23: 3 | BI23: latté
AU24: 4 | AV24: Shake | AW24: =5*(INT(6*RAND())+14) -> 85 | AX24: =BF20 -> 3 | AY24: =VLOOKUP(AX24,$AU$21:$AV$30,2) -> Latté | AZ24: =VLOOKUP(AX24,$AU$21:$AW$30,3) -> 75 | BA24: =IF(BA23=7,INT(3*RAND())+8,IF(BA23=8,INT(2*RAND())+9,10)) -> 10 | BB24: 4 | BC24: =$BA$22 -> 4 | BD24: =$BA$21 -> 3 | BE24: =$BA$24 -> 10 | BF24: =$BA$23 -> 9 | BH24: 4 | BI24: shake
AU25: 5 | AV25: Cocoa | AW25: =5*(INT(6*RAND())+14) -> 75 | AX25: =AX21 -> 4 | AY25: =VLOOKUP(AX25,$BH$21:$BI$30,2) -> shake | BB25: 5 | BC25: =$BA$22 -> 4 | BD25: =$BA$23 -> 9 | BE25: =$BA$21 -> 3 | BF25: =$BA$24 -> 10 | BH25: 5 | BI25: cocoa
AU26: 6 | AV26: Milk | AW26: =5*(INT(8*RAND())+6) -> 45 | AX26: =AX22 -> 10 | AY26: =VLOOKUP(AX26,$BH$21:$BI$30,2) -> tea | BB26: 6 | BC26: =$BA$22 -> 4 | BD26: =$BA$24 -> 10 | BE26: =$BA$23 -> 9 | BF26: =$BA$21 -> 3 | BH26: 6 | BI26: milk
AU27: 7 | AV27: Cola | AW27: =5*(INT(8*RAND())+6) -> 55 | AX27: =AX23 -> 9 | AY27: =VLOOKUP(AX27,$BH$21:$BI$30,2) -> juice | BB27: 7 | BC27: =$BA$23 -> 9 | BD27: =$BA$21 -> 3 | BE27: =$BA$22 -> 4 | BF27: =$BA$24 -> 10 | BH27: 7 | BI27: cola
AU28: 8 | AV28: Soup | AW28: =5*(INT(6*RAND())+14) -> 75 | AX28: =AX24 -> 3 | AY28: =VLOOKUP(AX28,$BH$21:$BI$30,2) -> latté | BB28: 8 | BC28: =$BA$23 -> 9 | BD28: =$BA$24 -> 10 | BE28: =$BA$21 -> 3 | BF28: =$BA$22 -> 4 | BH28: 8 | BI28: soup
AU29: 9 | AV29: Juice | AW29: =5*(INT(10*RAND())+10) -> 90 | BB29: 9 | BC29: =$BA$23 -> 9 | BD29: =$BA$22 -> 4 | BE29: =$BA$24 -> 10 | BF29: =$BA$21 -> 3 | BH29: 9 | BI29: juice
AU30: 10 | AV30: Tea | AW30: =5*(INT(8*RAND())+6) -> 50 | BB30: 10 | BC30: =$BA$24 -> 10 | BD30: =$BA$21 -> 3 | BE30: =$BA$23 -> 9 | BF30: =$BA$22 -> 4 | BH30: 10 | BI30: tea
BB31: 11 | BC31: =$BA$24 -> 10 | BD31: =$BA$22 -> 4 | BE31: =$BA$21 -> 3 | BF31: =$BA$23 -> 9
BB32: 12 | BC32: =$BA$24 -> 10 | BD32: =$BA$23 -> 9 | BE32: =$BA$22 -> 4 | BF32: =$BA$21 -> 3
BB34: =INT(12*RAND())+1 -> 6 | BC34: =VLOOKUP($BB$34,$BB$35:$BF$46,2) -> 9 | BD34: =VLOOKUP($BB$34,$BB$35:$BF$46,3) -> 27 | BE34: =VLOOKUP($BB$34,$BB$35:$BF$46,4) -> 18 | BF34: =VLOOKUP($BB$34,$BB$35:$BF$46,5) -> 7
AO35: 1 | AP35: BLT | AQ35: =RAND() -> 0.7904869141 | AR35: =5*(INT(19*RAND())+21) -> 145 | AS35: =5*(INT(19*RAND())+41) -> 270 | AT35: =5*(INT(19*RAND())+61) -> 345 | AU35: 1 | AV35: BLT | AW35: =AS35 -> 270 | AX35: =BC34 -> 9 | AY35: =VLOOKUP(AX35,$AU$35:$AV$66,2) -> Bagel | AZ35: =VLOOKUP(AX35,$AU$35:$AW$66,3) -> 160 | BA35: =INT(7*RAND())+1 -> 7 | BB35: 1 | BC35: =$BA$35 -> 7 | BD35: =$BA$36 -> 9 | BE35: =$BA$37 -> 18 | BF35: =$BA$38 -> 27
AO36: 2 | AP36: burger | AQ36: 0.935965431 | AR36: 175 | AS36: =5*(INT(19*RAND())+41) -> 225 | AT36: =5*(INT(19*RAND())+61) -> 370 | AU36: 2 | AV36: Burger | AW36: =AT36 -> 370 | AX36: =BD34 -> 27 | AY36: =VLOOKUP(AX36,$AU$35:$AV$66,2) -> Pie | AZ36: =VLOOKUP(AX36,$AU$35:$AW$66,3) -> 210 | BA36: =INT(7*RAND())+8 -> 9 | BB36: 2 | BC36: =$BA$35 -> 7 | BD36: =$BA$37 -> 18 | BE36: =$BA$38 -> 27 | BF36: =$BA$36 -> 9
AO37: 3 | AP37: burrito | AQ37: 0.5290370656 | AR37: 135 | AS37: 220 | AT37: 310 | AU37: 3 | AV37: Burrito | AW37: =AT37 -> 310 | AX37: =BE34 -> 18 | AY37: =VLOOKUP(AX37,$AU$35:$AV$66,2) -> Pizza | AZ37: =VLOOKUP(AX37,$AU$35:$AW$66,3) -> 355 | BA37: =INT(7*RAND())+15 -> 18 | BB37: 3 | BC37: =$BA$35 -> 7 | BD37: =$BA$38 -> 27 | BE37: =$BA$36 -> 9 | BF37: =$BA$37 -> 18
AO38: 4 | AP38: cake | AQ38: 0.1228894437 | AR38: 190 | AS38: 220 | AT38: 340 | AU38: 4 | AV38: Cake | AW38: =AR38 -> 190 | AX38: =BF34 -> 7 | AY38: =VLOOKUP(AX38,$AU$35:$AV$66,2) -> Cuban | AZ38: =VLOOKUP(AX38,$AU$35:$AW$66,3) -> 315 | BA38: =INT(7*RAND())+22 -> 27 | BB38: 4 | BC38: =$BA$36 -> 9 | BD38: =$BA$35 -> 7 | BE38: =$BA$38 -> 27 | BF38: =$BA$37 -> 18
AO39: 5 | AP39: taco | AQ39: 0.5276991264 | AR39: 145 | AS39: 230 | AT39: 315 | AU39: 5 | AV39: Taco | AW39: =AT39 -> 315 | AX39: =AX35 -> 9 | AY39: =VLOOKUP(AX39,$AO$35:$AP$66,2) -> bagel | BB39: 5 | BC39: =$BA$36 -> 9 | BD39: =$BA$37 -> 18 | BE39: =$BA$35 -> 7 | BF39: =$BA$38 -> 27
AO40: 6 | AP40: cronut | AQ40: 0.5340460731 | AR40: 165 | AS40: 280 | AT40: 360 | AU40: 6 | AV40: Cronut | AW40: =AR40 -> 165 | AX40: =AX36 -> 27 | AY40: =VLOOKUP(AX40,$AO$35:$AP$66,2) -> pie | BB40: 6 | BC40: =$BA$36 -> 9 | BD40: =$BA$38 -> 27 | BE40: =$BA$37 -> 18 | BF40: =$BA$35 -> 7
AO41: 7 | AP41: cuban | AQ41: 0.8888242429 | AR41: 135 | AS41: 290 | AT41: 315 | AU41: 7 | AV41: Cuban | AW41: =AT41 -> 315 | AX41: =AX37 -> 18 | AY41: =VLOOKUP(AX41,$AO$35:$AP$66,2) -> pizza | BB41: 7 | BC41: =$BA$37 -> 18 | BD41: =$BA$35 -> 7 | BE41: =$BA$36 -> 9 | BF41: =$BA$38 -> 27
AO42: 8 | AP42: donut | AQ42: 0.2327562481 | AR42: 165 | AS42: 295 | AT42: 385 | AU42: 8 | AV42: Donut | AW42: =AR42 -> 165 | AX42: =AX38 -> 7 | AY42: =VLOOKUP(AX42,$AO$35:$AP$66,2) -> cuban | BB42: 8 | BC42: =$BA$37 -> 18 | BD42: =$BA$38 -> 27 | BE42: =$BA$35 -> 7 | BF42: =$BA$36 -> 9
AO43: 9 | AP43: bagel | AQ43: 0.4730422686 | AR43: 160 | AS43: 250 | AT43: 325 | AU43: 9 | AV43: Bagel | AW43: =AR43 -> 160 | BB43: 9 | BC43: =$BA$37 -> 18 | BD43: =$BA$36 -> 9 | BE43: =$BA$38 -> 27 | BF43: =$BA$35 -> 7
AO44: 10 | AP44: fajita | AQ44: 0.2397838043 | AR44: 105 | AS44: 285 | AT44: 330 | AU44: 10 | AV44: Fajita | AW44: =AT44 -> 330 | BB44: 10 | BC44: =$BA$38 -> 27 | BD44: =$BA$35 -> 7 | BE44: =$BA$37 -> 18 | BF44: =$BA$36 -> 9
AO45: 11 | AP45: fritter | AQ45: 0.4888778501 | AR45: 145 | AS45: 225 | AT45: 350 | AU45: 11 | AV45: Fritter | AW45: =AR45 -> 145 | BB45: 11 | BC45: =$BA$38 -> 27 | BD45: =$BA$36 -> 9 | BE45: =$BA$35 -> 7 | BF45: =$BA$37 -> 18
AO46: 12 | AP46: gyro | AQ46: 0.4148961706 | AR46: 105 | AS46: 230 | AT46: 385 | AU46: 12 | AV46: Gyro | AW46: =AS46 -> 230 | BB46: 12 | BC46: =$BA$38 -> 27 | BD46: =$BA$37 -> 18 | BE46: =$BA$36 -> 9 | BF46: =$BA$35 -> 7
AO47: 13 | AP47: hotdog | AQ47: 0.4617464829 | AR47: 190 | AS47: 255 | AT47: 380 | AU47: 13 | AV47: Hotdog | AW47: =AR47 -> 190 | BB47: =E1 -> 1 | BC47: =IF(BB47=1,"£",IF(BB47=2,"$",IF(BB47=3,"€","R"))) -> £ | BD47: =IF(BB47=1,"","") ->  | BE47: =IF(BB47=1,"p","c") -> p
AO48: 14 | AP48: kebab | AQ48: 0.471053321 | AR48: 130 | AS48: 240 | AT48: 365 | AU48: 14 | AV48: Kebab | AW48: =AT48 -> 365 | BA48: =AZ35 -> 160 | BB48: =IF(BA48<100,1,0) -> 0 | BC48: =IF(BA48/100=ROUNDDOWN(BA48/100,0),1,0) -> 0 | BD48: =IF(BA48/10=ROUNDDOWN(BA48/10,0),1,0) -> 1 | BE48: =BB48+BC48*2+BD48*4 -> 4 | BF48: =IF(BE48=0,CONCATENATE($BC$47,ROUND(BA48/100,2)),IF(BE48=1,CONCATENATE(ROUND(BA48,0),$BD$47),IF(BE48=4,CONCATENATE($BC$47,BA48/100,"0"),IF(BE48=5,CONCATENATE(BA48,$BD$47),IF(BE48=6,CONCATENATE($BC$47,BA48/100),"xxx"))))) -> £1.60
AO49: 15 | AP49: muffin | AQ49: 0.2628129893 | AR49: 120 | AS49: 240 | AT49: 305 | AU49: 15 | AV49: Muffin | AW49: =AR49 -> 120 | BA49: =AZ36 -> 210 | BB49: =IF(BA49<100,1,0) -> 0 | BC49: =IF(BA49/100=ROUNDDOWN(BA49/100,0),1,0) -> 0 | BD49: =IF(BA49/10=ROUNDDOWN(BA49/10,0),1,0) -> 1 | BE49: =BB49+BC49*2+BD49*4 -> 4 | BF49: =IF(BE49=0,CONCATENATE($BC$47,ROUND(BA49/100,2)),IF(BE49=1,CONCATENATE(ROUND(BA49,0),$BD$47),IF(BE49=4,CONCATENATE($BC$47,BA49/100,"0"),IF(BE49=5,CONCATENATE(BA49,$BD$47),IF(BE49=6,CONCATENATE($BC$47,BA49/100),"xxx"))))) -> £2.10 | BG49: =CONCATENATE("I give ",BC47,BI58," for ",BI53," and ",BI55,".") -> I give £20 for 2 shakes and a bagel.
AO50: 16 | AP50: panini | AQ50: 0.3520905592 | AR50: 135 | AS50: 265 | AT50: 315 | AU50: 16 | AV50: Panini | AW50: =AS50 -> 265 | BA50: =AZ37 -> 355 | BB50: =IF(BA50<100,1,0) -> 0 | BC50: =IF(BA50/100=ROUNDDOWN(BA50/100,0),1,0) -> 0 | BD50: =IF(BA50/10=ROUNDDOWN(BA50/10,0),1,0) -> 0 | BE50: =BB50+BC50*2+BD50*4 -> 0 | BF50: =IF(BE50=0,CONCATENATE($BC$47,ROUND(BA50/100,2)),IF(BE50=1,CONCATENATE(ROUND(BA50,0),$BD$47),IF(BE50=4,CONCATENATE($BC$47,BA50/100,"0"),IF(BE50=5,CONCATENATE(BA50,$BD$47),IF(BE50=6,CONCATENATE($BC$47,BA50/100),"xxx"))))) -> £3.55 | BG50: =CONCATENATE("I give ",BC47,BI58," for ",BI53,", ",BI55," and ",BI56,".") -> I give £20 for 2 shakes, a bagel and 5 cubans.
AO51: 17 | AP51: pastie | AQ51: 0.7133807169 | AR51: 150 | AS51: 235 | AT51: 330 | AU51: 17 | AV51: Pastie | AW51: =AR51 -> 150 | BA51: =AZ38 -> 315 | BB51: =IF(BA51<100,1,0) -> 0 | BC51: =IF(BA51/100=ROUNDDOWN(BA51/100,0),1,0) -> 0 | BD51: =IF(BA51/10=ROUNDDOWN(BA51/10,0),1,0) -> 0 | BE51: =BB51+BC51*2+BD51*4 -> 0 | BF51: =IF(BE51=0,CONCATENATE($BC$47,ROUND(BA51/100,2)),IF(BE51=1,CONCATENATE(ROUND(BA51,0),$BD$47),IF(BE51=4,CONCATENATE($BC$47,BA51/100,"0"),IF(BE51=5,CONCATENATE(BA51,$BD$47),IF(BE51=6,CONCATENATE($BC$47,BA51/100),"xxx"))))) -> £3.15 | BG51: =CONCATENATE("I buy ",BI53,", ",BI54,", ",BI55," and ",BI56," with ",BC47,BI58,".") -> I buy 2 shakes, a latté, a bagel and 5 cubans with £20.
AO52: 18 | AP52: pizza | AQ52: 0.4645845396 | AR52: 140 | AS52: 285 | AT52: 355 | AU52: 18 | AV52: Pizza | AW52: =AT52 -> 355 | AZ52: =INT(6*RAND())+1 -> 3 | BA52: =F1 -> 4 | BG52: =CONCATENATE("I give ",BC47,BI58," for ",BI53,", ",BI54,", ",BI55," and ",BI56,".") -> I give £20 for 2 shakes, a latté, a bagel and 5 cubans.
AO53: 19 | AP53: quiche | AQ53: 0.2014493388 | AR53: 155 | AS53: 265 | AT53: 320 | AU53: 19 | AV53: Quiche | AW53: =AS53 -> 265 | AZ53: =VLOOKUP($AZ$52,$BB$53:$BD$58,2) -> 1 | BA53: =IF(F1=4,INT(5*RAND())+1,IF(F1=3,INT(4*RAND())+2,INT(3*RAND())+1)) -> 2 | BB53: 1 | BC53: 1 | BD53: 2 | BE53: =IF(AZ53=1,$AZ$21,IF(AZ53=2,$AZ$22,IF(AZ53=3,$AZ$23,$AZ$24))) -> 85 | BF53: =IF(AZ53=1,$AY$21,IF(AZ53=2,$AY$22,IF(AZ53=3,$AY$23,$AY$24))) -> Shake | BG53: =IF(BA53=1,CONCATENATE(BA53," ",BH53,""),CONCATENATE(BA53," ",BH53,"s")) -> 2 shakes | BH53: =IF(AZ53=1,$AY$25,IF(AZ53=2,$AY$26,IF(AZ53=3,$AY$27,$AY$28))) -> shake | BI53: =IF(BA53=1,CONCATENATE("a ",BH53,""),CONCATENATE(BA53," ",BH53,"s")) -> 2 shakes | BJ53: =BE53*BA53 -> 170 | BK53: =BJ53 -> 170 | BL53: =IF(BK53<100,1,0) -> 0 | BM53: =IF(BK53/100=ROUNDDOWN(BK53/100,0),1,0) -> 0 | BN53: =IF(BK53/10=ROUNDDOWN(BK53/10,0),1,0) -> 1 | BO53: =BL53+BM53*2+BN53*4 -> 4 | BP53: =IF(BO53=0,CONCATENATE($BC$47,ROUND(BK53/100,2)),IF(BO53=1,CONCATENATE(ROUND(BK53,0),$BD$47),IF(BO53=4,CONCATENATE($BC$47,BK53/100,"0"),IF(BO53=5,CONCATENATE(BK53,$BD$47),IF(BO53=6,CONCATENATE($BC$47,BK53/100,".00"),"xxx"))))) -> £1.70 | BQ53: =IF(OR(BO53=1,BO53=5),$BE$47,"") -> 
AO54: 20 | AP54: salad | AQ54: 0.3651695169 | AR54: 125 | AS54: 265 | AT54: 380 | AU54: 20 | AV54: Salad | AW54: =AS54 -> 265 | AZ54: =VLOOKUP($AZ$52,$BB$53:$BD$58,3) -> 4 | BA54: =IF(BA53=1,INT(4*RAND())+2,1) -> 1 | BB54: 2 | BC54: 1 | BD54: 3 | BE54: =IF(AZ54=1,$AZ$21,IF(AZ54=2,$AZ$22,IF(AZ54=3,$AZ$23,$AZ$24))) -> 75 | BF54: =IF(AZ54=1,$AY$21,IF(AZ54=2,$AY$22,IF(AZ54=3,$AY$23,$AY$24))) -> Latté | BG54: =IF(BA54=1,CONCATENATE(BA54," ",BH54,""),CONCATENATE(BA54," ",BH54,"s")) -> 1 latté | BH54: =IF(AZ54=1,$AY$25,IF(AZ54=2,$AY$26,IF(AZ54=3,$AY$27,$AY$28))) -> latté | BI54: =IF(BA54=1,CONCATENATE("a ",BH54,""),CONCATENATE(BA54," ",BH54,"s")) -> a latté | BJ54: =BE54*BA54 -> 75 | BK54: =BJ54 -> 75 | BL54: 1 | BM54: 0 | BN54: 0 | BO54: 1 | BP54: 75 | BQ54: p
AO55: 21 | AP55: scone | AQ55: 0.05826697164 | AR55: 145 | AS55: 295 | AT55: 390 | AU55: 21 | AV55: Scone | AW55: =AR55 -> 145 | AZ55: =VLOOKUP($AZ$57,$BB$53:$BD$58,2) -> 1 | BA55: =IF(F1=2,INT(3*RAND())+1,INT(5*RAND())+1) -> 1 | BB55: 3 | BC55: 1 | BD55: 4 | BE55: =IF(AZ55=1,$AZ$35,IF(AZ55=2,$AZ$36,IF(AZ55=3,$AZ$37,$AZ$38))) -> 160 | BF55: =IF(AZ55=1,$AY$35,IF(AZ55=2,$AY$36,IF(AZ55=3,$AY$37,$AY$38))) -> Bagel | BG55: =IF(BA55=1,CONCATENATE(BA55," ",BH55,""),CONCATENATE(BA55," ",BH55,"s")) -> 1 bagel | BH55: =IF(AZ55=1,$AY$39,IF(AZ55=2,$AY$40,IF(AZ55=3,$AY$41,$AY$42))) -> bagel | BI55: =IF(BA55=1,CONCATENATE("a ",BH55,""),CONCATENATE(BA55," ",BH55,"s")) -> a bagel | BJ55: =BE55*BA55 -> 160 | BK55: =BJ55 -> 160 | BL55: 0 | BM55: 0 | BN55: 1 | BO55: 4 | BP55: £1.60
AO56: 22 | AP56: sub | AQ56: 0.553043304 | AR56: 125 | AS56: 290 | AT56: 380 | AU56: 22 | AV56: Sub | AW56: =AR56 -> 125 | AZ56: =VLOOKUP($AZ$57,$BB$53:$BD$58,3) -> 4 | BA56: =IF(BA55=1,INT(4*RAND())+2,1) -> 5 | BB56: 4 | BC56: 2 | BD56: 3 | BE56: =IF(AZ56=1,$AZ$35,IF(AZ56=2,$AZ$36,IF(AZ56=3,$AZ$37,$AZ$38))) -> 315 | BF56: =IF(AZ56=1,$AY$35,IF(AZ56=2,$AY$36,IF(AZ56=3,$AY$37,$AY$38))) -> Cuban | BG56: =IF(BA56=1,CONCATENATE(BA56," ",BH56,""),CONCATENATE(BA56," ",BH56,"s")) -> 5 cubans | BH56: =IF(AZ56=1,$AY$39,IF(AZ56=2,$AY$40,IF(AZ56=3,$AY$41,$AY$42))) -> cuban | BI56: =IF(BA56=1,CONCATENATE("a ",BH56,""),CONCATENATE(BA56," ",BH56,"s")) -> 5 cubans | BJ56: =BE56*BA56 -> 1575 | BK56: =BJ56 -> 1575 | BL56: 0 | BM56: 0 | BN56: 0 | BO56: 0 | BP56: £15.75
AO57: 23 | AP57: fry-up | AQ57: 0.1109837688 | AR57: 195 | AS57: 290 | AT57: 380 | AU57: 23 | AV57: Fry-up | AW57: =AT57 -> 380 | AZ57: =INT(6*RAND())+1 -> 3 | BB57: 5 | BC57: 2 | BD57: 4 | BK57: 90 | BL57: 1 | BM57: 0 | BN57: 1 | BO57: 5 | BP57: 90 | BQ57: p
AO58: 24 | AP58: tart | AQ58: 0.0413657473 | AR58: 190 | AS58: 245 | AT58: 350 | AU58: 24 | AV58: Tart | AW58: =AR58 -> 190 | BB58: 6 | BC58: 3 | BD58: 4 | BI58: =BJ58/100 -> 20 | BJ58: =IF(BK58>1999,5000,IF(BK58>999,2000,IF(BK58>499,1000,500))) -> 2000 | BK58: =IF(F1=4,BK53+BK54+BK55+BK56,IF(F1=3,BK53+0+BK55+BK56,BK53+0+BK55+0)) -> 1980 | BL58: 0 | BM58: 0 | BN58: 1 | BO58: 4 | BP58: £19.80
AO59: 25 | AP59: toastie | AQ59: 0.01754445793 | AR59: 125 | AS59: 230 | AT59: 375 | AU59: 25 | AV59: Toastie | AW59: =AR59 -> 125 | BK59: =BJ58-BK58 -> 20 | BL59: 1 | BM59: 0 | BN59: 1 | BO59: 5 | BP59: 20 | BQ59: p
AO60: 26 | AP60: trifle | AQ60: 0.2521989762 | AR60: 155 | AS60: 295 | AT60: 315 | AU60: 26 | AV60: Trifle | AW60: =AR60 -> 155
AO61: 27 | AP61: pie | AQ61: 0.9387948202 | AR61: 125 | AS61: 210 | AT61: 355 | AU61: 27 | AV61: Pie | AW61: =AS61 -> 210
AO62: 28 | AP62: yogurt | AQ62: 0.2171400096 | AR62: 160 | AS62: 285 | AT62: 340 | AU62: 28 | AV62: Yogurt | AW62: =AR62 -> 160
AO63: 29 | AP63: x | AU63: 29 | AV63: x
AO64: 30 | AP64: x | AU64: 30 | AV64: x
AO65: 31 | AP65: x | AU65: 31 | AV65: x
AO66: 32 | AP66: x | AU66: 32 | AV66: x

Sheet REALMONEY
E1: 1
C2: =CONCATENATE("Prices and quantities of two items are given.",) -> Prices and quantities of two items are given. | AI2: =ROUND(AJ34*100,0) -> 590 | AJ2: =IF(AI2<100,1,0) -> 0 | AK2: =IF(AI2/100=ROUNDDOWN(AI2/100,0),1,0) -> 0 | AL2: =IF(AI2/10=ROUNDDOWN(AI2/10,0),1,0) -> 1 | AM2: =AJ2+AK2*2+AL2*4 -> 4 | AN2: =IF(AM2=0,CONCATENATE(AR2,ROUND(AI2/100,2)),IF(AM2=1,CONCATENATE(ROUND(AI2,0),AO2),IF(AM2=4,CONCATENATE(AR2,AI2/100,"0"),IF(AM2=5,CONCATENATE(AI2,AO2),IF(AM2=6,CONCATENATE(AR2,AI2/100),AP2))))) -> £5.90 | AO2: =IF(AQ2=1,"p","c") -> p | AP2: =IF(AQ2=1,"0p",IF(AQ2=2,"0c","0c")) -> 0p | AQ2: =E1 -> 1 | AR2: =IF(AQ2=1,"£",IF(AQ2=2,"$",IF(AQ2=3,"€","R"))) -> £
AI3: =1-AT31 -> 0 | AJ3: =AI3 -> 0
C4: =AF26 -> Nineteen designer tiles at £1.10 each and four
C5: =AF27 -> plain tiles at 80p each are purchased together.
C6: =CONCATENATE(AF28," given.") -> Find (i) the total cost (ii) change from £30 given.
O8: total cost | P8: =AK29 -> = | Q8: =CONCATENATE(AL29) -> (19 × 1.1) + (4 × 0.8)
P9: =AK30 -> = | Q9: =CONCATENATE(AL30) -> 20.9 + 3.2
P10: =AK31 -> = | Q10: =CONCATENATE(AL31) -> 24.1
O12: =O8 -> total cost | P12: =AK32 -> = | Q12: =CONCATENATE(AL32) -> £24.10
O13: change | P13: =AK33 -> = | Q13: =CONCATENATE(AL35) -> 30 − 24.1
P14: = | Q14: =CONCATENATE(AJ34) -> 5.9
O16: =O13 -> change | P16: =AK34 -> = | Q16: =CONCATENATE(AN2) -> £5.90
AE25: =2*(INT(10*RAND())+1)-1 -> 15
AE26: =11*AE25-10 -> 155 | AF26: =VLOOKUP(AE26,$AE$37:$AU$325,2) -> Nineteen designer tiles at £1.10 each and four
AE27: =AE26+1 -> 156 | AF27: =VLOOKUP(AE27,$AE$37:$AU$325,2) -> plain tiles at 80p each are purchased together.
Q28: =E1 -> 1 | R28: =IF(Q28=1,"£",IF(Q28=2,"$",IF(Q28=3,"€","R"))) -> £ | S28: =IF(Q28=1,"p","c") -> p | AE28: 157 | AF28: =VLOOKUP(AE28,$AE$37:$AU$325,2) -> Find (i) the total cost (ii) change from £30
AE29: 158 | AJ29: =VLOOKUP(AE29,$AE$37:$AU$325,6) -> Total cost | AK29: = | AL29: =VLOOKUP(AE29,$AE$37:$AU$325,8) -> (19 × 1.1) + (4 × 0.8)
AE30: 159 | AJ30: 0 | AK30: = | AL30: 20.9 + 3.2
AE31: 160 | AJ31: 0 | AK31: = | AL31: 24.1 | AT31: =VLOOKUP(AE31,$AE$37:$AU$325,16) -> 1
AE32: 161 | AJ32: 0 | AK32: = | AL32: £24.10
AE33: 162 | AJ33: change | AK33: = | AL33: £30 − £24.10
AE34: 163 | AJ34: 5.9 | AK34: = | AL34: £5.90 | AM34: =VLOOKUP(AE34,$AE$37:$AU$325,9) -> 0
AE35: 164 | AJ35: 0 | AK35: = | AL35: 30 − 24.1 | AM35: =VLOOKUP(AE35,$AE$37:$AU$325,9) -> 0
AE36: 165 | AJ36: 0 | AK36: = | AL36: 0 | AM36: =VLOOKUP(AE36,$AE$37:$AU$325,9) -> 0
AE37: 1 | AF37: =CONCATENATE(AQ43," adult tickets at ",AT37," each and ",AP44) -> Nineteen adult tickets at £6.55 each and five | AO37: =ROUND((INT(5*RAND())+12)/2*100+AR43,0) -> 655 | AP37: =IF(AO37<100,1,0) -> 0 | AQ37: =IF(AO37/100=ROUNDDOWN(AO37/100,0),1,0) -> 0 | AR37: =IF(AO37/10=ROUNDDOWN(AO37/10,0),1,0) -> 0 | AS37: =AP37+AQ37*2+AR37*4 -> 0 | AT37: =IF(AS37=0,CONCATENATE($R$28,ROUND(AO37/100,2)),IF(AS37=1,CONCATENATE(ROUND(AO37,0),$S$28),IF(AS37=4,CONCATENATE($R$28,AO37/100,"0"),IF(AS37=5,CONCATENATE(AO37,$S$28),IF(AS37=6,CONCATENATE($R$28,AO37/100),"xxx"))))) -> £6.55 | AX37: 1 | AY37: one | AZ37: One
AE38: 2 | AF38: =CONCATENATE("child tickets at ",AT38," each are purchased together.") -> child tickets at £3.25 each are purchased together. | AO38: =ROUND((INT(5*RAND())+5)/2*100+AR44,0) -> 325 | AP38: =IF(AO38<100,1,0) -> 0 | AQ38: =IF(AO38/100=ROUNDDOWN(AO38/100,0),1,0) -> 0 | AR38: =IF(AO38/10=ROUNDDOWN(AO38/10,0),1,0) -> 0 | AS38: =AP38+AQ38*2+AR38*4 -> 0 | AT38: =IF(AS38=0,CONCATENATE($R$28,ROUND(AO38/100,2)),IF(AS38=1,CONCATENATE(ROUND(AO38,0),$S$28),IF(AS38=4,CONCATENATE($R$28,AO38/100,"0"),IF(AS38=5,CONCATENATE(AO38,$S$28),IF(AS38=6,CONCATENATE($R$28,AO38/100),"xxx"))))) -> £3.25 | AX38: 2 | AY38: two | AZ38: Two
AE39: 3 | AF39: =CONCATENATE("Find (i) the total cost (ii) change from ",AT40,"") -> Find (i) the total cost (ii) change from £150 | AO39: =ROUND(AO43*AO37+AO44*AO38,0) -> 14070 | AP39: =IF(AO39<100,1,0) -> 0 | AQ39: =IF(AO39/100=ROUNDDOWN(AO39/100,0),1,0) -> 0 | AR39: =IF(AO39/10=ROUNDDOWN(AO39/10,0),1,0) -> 1 | AS39: =AP39+AQ39*2+AR39*4 -> 4 | AT39: =IF(AS39=0,CONCATENATE($R$28,ROUND(AO39/100,2)),IF(AS39=1,CONCATENATE(ROUND(AO39,0),$S$28),IF(AS39=4,CONCATENATE($R$28,AO39/100,"0"),IF(AS39=5,CONCATENATE(AO39,$S$28),IF(AS39=6,CONCATENATE($R$28,AO39/100),"xxx"))))) -> £140.70 | AX39: 3 | AY39: three | AZ39: Three
AE40: 4 | AJ40: Total cost | AK40: = | AL40: =CONCATENATE("(",AO43," × ",AO37/100,") + (",AO44," × ",AO38/100,")") -> (19 × 6.55) + (5 × 3.25) | AO40: =ROUNDUP(AO39,-3) -> 15000 | AP40: =IF(AO40<100,1,0) -> 0 | AQ40: =IF(AO40/100=ROUNDDOWN(AO40/100,0),1,0) -> 1 | AR40: =IF(AO40/10=ROUNDDOWN(AO40/10,0),1,0) -> 1 | AS40: =AP40+AQ40*2+AR40*4 -> 6 | AT40: =IF(AS40=0,CONCATENATE($R$28,ROUND(AO40/100,2)),IF(AS40=1,CONCATENATE(ROUND(AO40,0),$S$28),IF(AS40=4,CONCATENATE($R$28,AO40/100,"0"),IF(AS40=5,CONCATENATE(AO40,$S$28),IF(AS40=6,CONCATENATE($R$28,AO40/100),"xxx"))))) -> £150 | AX40: 4 | AY40: four | AZ40: Four
AE41: 5 | AK41: = | AL41: =CONCATENATE(AO43*AO37/100," + ",AO44*AO38/100) -> 124.45 + 16.25 | AO41: =ROUND(AO40-AO39,0) -> 930 | AP41: =IF(AO41<100,1,0) -> 0 | AQ41: =IF(AO41/100=ROUNDDOWN(AO41/100,0),1,0) -> 0 | AR41: =IF(AO41/10=ROUNDDOWN(AO41/10,0),1,0) -> 1 | AS41: =AP41+AQ41*2+AR41*4 -> 4 | AT41: =IF(AS41=0,CONCATENATE($R$28,ROUND(AO41/100,2)),IF(AS41=1,CONCATENATE(ROUND(AO41,0),$S$28),IF(AS41=4,CONCATENATE($R$28,AO41/100,"0"),IF(AS41=5,CONCATENATE(AO41,$S$28),IF(AS41=6,CONCATENATE($R$28,AO41/100),"xxx"))))) -> £9.30 | AX41: 5 | AY41: five | AZ41: Five
AE42: 6 | AK42: = | AL42: =CONCATENATE(AO43*AO37/100+AO44*AO38/100) -> 140.7 | AO42: 19 | AP42: =1*(INT(AO42*RAND())+1) -> 18 | AQ42: =1*(INT((AO42-1)*RAND())+1) -> 5 | AR42: =AQ42+AP42 -> 23 | AS42: =MOD(AR42-1,AO42)+1 -> 4 | AT42: =IF(AO41=0,0,1) -> 1 | AX42: 6 | AY42: six | AZ42: Six
AE43: 7 | AK43: = | AL43: =AT39 -> £140.70 | AO43: =AP42+1 -> 19 | AP43: =VLOOKUP(AO43,$AX$37:$AY$56,2) -> nineteen | AQ43: =VLOOKUP(AO43,$AX$37:$AZ$56,3) -> Nineteen | AR43: =5*(INT(9*RAND())+1) -> 5 | AX43: 7 | AY43: seven | AZ43: Seven
AE44: 8 | AJ44: change | AK44: = | AL44: =CONCATENATE(AT40," − ",AT39) -> £150 − £140.70 | AO44: =AS42+1 -> 5 | AP44: =VLOOKUP(AO44,$AX$37:$AY$56,2) -> five | AQ44: =VLOOKUP(AO44,$AX$37:$AZ$56,3) -> Five | AR44: =5*(INT(9*RAND())+1) -> 25 | AX44: 8 | AY44: eight | AZ44: Eight
AE45: 9 | AJ45: =AO41/100 -> 9.3 | AK45: = | AL45: =AT41*1 -> 9.3 | AO45: =AO40/100 -> 150 | AX45: 9 | AY45: nine | AZ45: Nine
AE46: 10 | AK46: = | AL46: =CONCATENATE(AO45," − ",AL42) -> 150 − 140.7 | AX46: 10 | AY46: ten | AZ46: Ten
AE47: 11 | AL47: =AO41/100 -> 9.3 | AX47: 11 | AY47: eleven | AZ47: Eleven
AE48: =AE37+11 -> 12 | AX48: 12 | AY48: twelve | AZ48: Twelve
AE49: 13 | AX49: 13 | AY49: thirteen | AZ49: Thirteen
AE50: 14 | AX50: 14 | AY50: fourteen | AZ50: Fourteen
AE51: 15 | AX51: 15 | AY51: fifteen | AZ51: Fifteen
AE52: 16 | AX52: 16 | AY52: sixteen | AZ52: Sixteen
AE53: 17 | AX53: 17 | AY53: seventeen | AZ53: Seventeen
AE54: 18 | AX54: 18 | AY54: eighteen | AZ54: Eighteen
AE55: 19 | AX55: 19 | AY55: nineteen | AZ55: Nineteen
AE56: 20 | AX56: 20 | AY56: twenty | AZ56: Twenty
AE57: 21
AE58: 22
AE59: 23 | AF59: =CONCATENATE(AQ65," 12'' pizzas at ",AT59," each and ",AP66) -> Two 12'' pizzas at £8.30 each and ten | AO59: =ROUND((INT(5*RAND())+16)/2*100+AR65,0) -> 830 | AP59: =IF(AO59<100,1,0) -> 0 | AQ59: =IF(AO59/100=ROUNDDOWN(AO59/100,0),1,0) -> 0 | AR59: =IF(AO59/10=ROUNDDOWN(AO59/10,0),1,0) -> 1 | AS59: =AP59+AQ59*2+AR59*4 -> 4 | AT59: =IF(AS59=0,CONCATENATE($R$28,ROUND(AO59/100,2)),IF(AS59=1,CONCATENATE(ROUND(AO59,0),$S$28),IF(AS59=4,CONCATENATE($R$28,AO59/100,"0"),IF(AS59=5,CONCATENATE(AO59,$S$28),IF(AS59=6,CONCATENATE($R$28,AO59/100),"xxx"))))) -> £8.30
AE60: 24 | AF60: =CONCATENATE("8'' pizzas at ",AT60," each are purchased together.") -> 8'' pizzas at £6.10 each are purchased together. | AO60: =ROUND((INT(5*RAND())+8)/2*100+AR66,0) -> 610 | AP60: =IF(AO60<100,1,0) -> 0 | AQ60: =IF(AO60/100=ROUNDDOWN(AO60/100,0),1,0) -> 0 | AR60: =IF(AO60/10=ROUNDDOWN(AO60/10,0),1,0) -> 1 | AS60: =AP60+AQ60*2+AR60*4 -> 4 | AT60: =IF(AS60=0,CONCATENATE($R$28,ROUND(AO60/100,2)),IF(AS60=1,CONCATENATE(ROUND(AO60,0),$S$28),IF(AS60=4,CONCATENATE($R$28,AO60/100,"0"),IF(AS60=5,CONCATENATE(AO60,$S$28),IF(AS60=6,CONCATENATE($R$28,AO60/100),"xxx"))))) -> £6.10
AE61: 25 | AF61: =CONCATENATE("Find (i) the total cost (ii) change from ",AT62,"") -> Find (i) the total cost (ii) change from £80 | AO61: =ROUND(AO65*AO59+AO66*AO60,0) -> 7760 | AP61: =IF(AO61<100,1,0) -> 0 | AQ61: =IF(AO61/100=ROUNDDOWN(AO61/100,0),1,0) -> 0 | AR61: =IF(AO61/10=ROUNDDOWN(AO61/10,0),1,0) -> 1 | AS61: =AP61+AQ61*2+AR61*4 -> 4 | AT61: =IF(AS61=0,CONCATENATE($R$28,ROUND(AO61/100,2)),IF(AS61=1,CONCATENATE(ROUND(AO61,0),$S$28),IF(AS61=4,CONCATENATE($R$28,AO61/100,"0"),IF(AS61=5,CONCATENATE(AO61,$S$28),IF(AS61=6,CONCATENATE($R$28,AO61/100),"xxx"))))) -> £77.60
AE62: 26 | AJ62: Total cost | AK62: = | AL62: =CONCATENATE("(",AO65," × ",AO59/100,") + (",AO66," × ",AO60/100,")") -> (2 × 8.3) + (10 × 6.1) | AO62: =ROUNDUP(AO61,-3) -> 8000 | AP62: =IF(AO62<100,1,0) -> 0 | AQ62: =IF(AO62/100=ROUNDDOWN(AO62/100,0),1,0) -> 1 | AR62: =IF(AO62/10=ROUNDDOWN(AO62/10,0),1,0) -> 1 | AS62: =AP62+AQ62*2+AR62*4 -> 6 | AT62: =IF(AS62=0,CONCATENATE($R$28,ROUND(AO62/100,2)),IF(AS62=1,CONCATENATE(ROUND(AO62,0),$S$28),IF(AS62=4,CONCATENATE($R$28,AO62/100,"0"),IF(AS62=5,CONCATENATE(AO62,$S$28),IF(AS62=6,CONCATENATE($R$28,AO62/100),"xxx"))))) -> £80
AE63: 27 | AK63: = | AL63: =CONCATENATE(AO65*AO59/100," + ",AO66*AO60/100) -> 16.6 + 61 | AO63: =ROUND(AO62-AO61,0) -> 240 | AP63: =IF(AO63<100,1,0) -> 0 | AQ63: =IF(AO63/100=ROUNDDOWN(AO63/100,0),1,0) -> 0 | AR63: =IF(AO63/10=ROUNDDOWN(AO63/10,0),1,0) -> 1 | AS63: =AP63+AQ63*2+AR63*4 -> 4 | AT63: =IF(AS63=0,CONCATENATE($R$28,ROUND(AO63/100,2)),IF(AS63=1,CONCATENATE(ROUND(AO63,0),$S$28),IF(AS63=4,CONCATENATE($R$28,AO63/100,"0"),IF(AS63=5,CONCATENATE(AO63,$S$28),IF(AS63=6,CONCATENATE($R$28,AO63/100),"xxx"))))) -> £2.40
AE64: 28 | AK64: = | AL64: =CONCATENATE(AO65*AO59/100+AO66*AO60/100) -> 77.6 | AO64: 19 | AP64: =1*(INT(AO64*RAND())+1) -> 1 | AQ64: =1*(INT((AO64-1)*RAND())+1) -> 8 | AR64: =AQ64+AP64 -> 9 | AS64: =MOD(AR64-1,AO64)+1 -> 9 | AT64: =IF(AO63=0,0,1) -> 1
AE65: 29 | AK65: = | AL65: =AT61 -> £77.60 | AO65: =AP64+1 -> 2 | AP65: =VLOOKUP(AO65,$AX$37:$AY$56,2) -> two | AQ65: =VLOOKUP(AO65,$AX$37:$AZ$56,3) -> Two | AR65: =10*(INT(5*RAND())+1) -> 30
AE66: 30 | AJ66: change | AK66: = | AL66: =CONCATENATE(AT62," − ",AT61) -> £80 − £77.60 | AO66: =AS64+1 -> 10 | AP66: =VLOOKUP(AO66,$AX$37:$AY$56,2) -> ten | AQ66: =VLOOKUP(AO66,$AX$37:$AZ$56,3) -> Ten | AR66: =10*(INT(5*RAND())+1) -> 10
AE67: 31 | AJ67: =AO63/100 -> 2.4 | AK67: = | AL67: =AT63 -> £2.40 | AO67: =AO62/100 -> 80
AE68: 32 | AK68: = | AL68: =CONCATENATE(AO67," − ",AL64) -> 80 − 77.6 | AO68: =AO63/100 -> 2.4
AE69: 33
AE70: 34
AE71: 35
AE72: 36
AE73: 37
AE74: 38
AE75: 39
AE76: 40
AE77: 41 | AF77: A carafe of wine costs £4 more than a ½-litre.
AE78: 42 | AF78: The total cost of 5 carafes and 5 ½-litres is £80.
AE79: 43
AE80: 44
AE81: 45 | AF81: =CONCATENATE(AQ87," carafes of wine at ",AT81," each and ",AP88) -> Five carafes of wine at £8.50 each and eighteen | AO81: =ROUND(2*(INT(7*RAND())+4)*100+AR87,0) -> 850 | AP81: =IF(AO81<100,1,0) -> 0 | AQ81: =IF(AO81/100=ROUNDDOWN(AO81/100,0),1,0) -> 0 | AR81: =IF(AO81/10=ROUNDDOWN(AO81/10,0),1,0) -> 1 | AS81: =AP81+AQ81*2+AR81*4 -> 4 | AT81: =IF(AS81=0,CONCATENATE($R$28,ROUND(AO81/100,2)),IF(AS81=1,CONCATENATE(ROUND(AO81,0),$S$28),IF(AS81=4,CONCATENATE($R$28,AO81/100,"0"),IF(AS81=5,CONCATENATE(AO81,$S$28),IF(AS81=6,CONCATENATE($R$28,AO81/100),"xxx"))))) -> £8.50
AE82: 46 | AF82: =CONCATENATE("½-litre bottles at ",AT82," each are purchased together.") -> ½-litre bottles at £5.75 each are purchased together. | AO82: =ROUND(AO81/2+100+AR88,0) -> 575 | AP82: =IF(AO82<100,1,0) -> 0 | AQ82: =IF(AO82/100=ROUNDDOWN(AO82/100,0),1,0) -> 0 | AR82: =IF(AO82/10=ROUNDDOWN(AO82/10,0),1,0) -> 0 | AS82: =AP82+AQ82*2+AR82*4 -> 0 | AT82: =IF(AS82=0,CONCATENATE($R$28,ROUND(AO82/100,2)),IF(AS82=1,CONCATENATE(ROUND(AO82,0),$S$28),IF(AS82=4,CONCATENATE($R$28,AO82/100,"0"),IF(AS82=5,CONCATENATE(AO82,$S$28),IF(AS82=6,CONCATENATE($R$28,AO82/100),"xxx"))))) -> £5.75
AE83: 47 | AF83: =CONCATENATE("Find (i) the total cost (ii) change from ",AT84,"") -> Find (i) the total cost (ii) change from £150 | AO83: =ROUND(AO87*AO81+AO88*AO82,0) -> 14600 | AP83: =IF(AO83<100,1,0) -> 0 | AQ83: =IF(AO83/100=ROUNDDOWN(AO83/100,0),1,0) -> 1 | AR83: =IF(AO83/10=ROUNDDOWN(AO83/10,0),1,0) -> 1 | AS83: =AP83+AQ83*2+AR83*4 -> 6 | AT83: =IF(AS83=0,CONCATENATE($R$28,ROUND(AO83/100,2)),IF(AS83=1,CONCATENATE(ROUND(AO83,0),$S$28),IF(AS83=4,CONCATENATE($R$28,AO83/100,"0"),IF(AS83=5,CONCATENATE(AO83,$S$28),IF(AS83=6,CONCATENATE($R$28,AO83/100),"xxx"))))) -> £146
AE84: 48 | AJ84: Total cost | AK84: = | AL84: =CONCATENATE("(",AO87," × ",AO81/100,") + (",AO88," × ",AO82/100,")") -> (5 × 8.5) + (18 × 5.75) | AO84: =ROUNDUP(AO83,-3) -> 15000 | AP84: =IF(AO84<100,1,0) -> 0 | AQ84: =IF(AO84/100=ROUNDDOWN(AO84/100,0),1,0) -> 1 | AR84: =IF(AO84/10=ROUNDDOWN(AO84/10,0),1,0) -> 1 | AS84: =AP84+AQ84*2+AR84*4 -> 6 | AT84: =IF(AS84=0,CONCATENATE($R$28,ROUND(AO84/100,2)),IF(AS84=1,CONCATENATE(ROUND(AO84,0),$S$28),IF(AS84=4,CONCATENATE($R$28,AO84/100,"0"),IF(AS84=5,CONCATENATE(AO84,$S$28),IF(AS84=6,CONCATENATE($R$28,AO84/100),"xxx"))))) -> £150
AE85: 49 | AK85: = | AL85: =CONCATENATE(AO87*AO81/100," + ",AO88*AO82/100) -> 42.5 + 103.5 | AO85: =ROUND(AO84-AO83,0) -> 400 | AP85: =IF(AO85<100,1,0) -> 0 | AQ85: =IF(AO85/100=ROUNDDOWN(AO85/100,0),1,0) -> 1 | AR85: =IF(AO85/10=ROUNDDOWN(AO85/10,0),1,0) -> 1 | AS85: =AP85+AQ85*2+AR85*4 -> 6 | AT85: =IF(AS85=0,CONCATENATE($R$28,ROUND(AO85/100,2)),IF(AS85=1,CONCATENATE(ROUND(AO85,0),$S$28),IF(AS85=4,CONCATENATE($R$28,AO85/100,"0"),IF(AS85=5,CONCATENATE(AO85,$S$28),IF(AS85=6,CONCATENATE($R$28,AO85/100),"xxx"))))) -> £4
AE86: 50 | AK86: = | AL86: =CONCATENATE(AO87*AO81/100+AO88*AO82/100) -> 146 | AO86: 19 | AP86: =1*(INT(AO86*RAND())+1) -> 4 | AQ86: =1*(INT((AO86-1)*RAND())+1) -> 13 | AR86: =AQ86+AP86 -> 17 | AS86: =MOD(AR86-1,AO86)+1 -> 17 | AT86: =IF(AO85=0,0,1) -> 1
AE87: 51 | AK87: = | AL87: =AT83 -> £146 | AO87: =AP86+1 -> 5 | AP87: =VLOOKUP(AO87,$AX$37:$AY$56,2) -> five | AQ87: =VLOOKUP(AO87,$AX$37:$AZ$56,3) -> Five | AR87: =50*(INT(2*RAND())+1) -> 50
AE88: 52 | AJ88: change | AK88: = | AL88: =CONCATENATE(AT84," − ",AT83) -> £150 − £146 | AO88: =AS86+1 -> 18 | AP88: =VLOOKUP(AO88,$AX$37:$AY$56,2) -> eighteen | AQ88: =VLOOKUP(AO88,$AX$37:$AZ$56,3) -> Eighteen | AR88: =25*(INT(4*RAND())+1) -> 50
AE89: 53 | AJ89: =AO85/100 -> 4 | AK89: = | AL89: =AT85 -> £4 | AO89: =AO84/100 -> 150
AE90: 54 | AK90: = | AL90: =CONCATENATE(AO89," − ",AL86) -> 150 − 146 | AO90: =AO85/100 -> 4
AE91: 55 | AL91: =AO85/100 -> 4
AE92: 56
AE93: 57
AE94: 58
AE95: 59
AE96: 60
AE97: 61
AE98: 62
AE99: 63 | AF99: A colour print costs £3.50 more than a sepia.
AE100: 64 | AF100: The total cost of 4 colour and 5 sepia is £72.50.
AE101: 65
AE102: 66
AE103: 67 | AF103: =CONCATENATE(AQ109," colour prints at ",AT103," each and ",AP110) -> Ten colour prints at £1.10 each and sixteen | AO103: =ROUND(2*(INT(12*RAND())+4)/2*10,0) -> 110 | AP103: =IF(AO103<100,1,0) -> 0 | AQ103: =IF(AO103/100=ROUNDDOWN(AO103/100,0),1,0) -> 0 | AR103: =IF(AO103/10=ROUNDDOWN(AO103/10,0),1,0) -> 1 | AS103: =AP103+AQ103*2+AR103*4 -> 4 | AT103: =IF(AS103=0,CONCATENATE($R$28,ROUND(AO103/100,2)),IF(AS103=1,CONCATENATE(ROUND(AO103,0),$S$28),IF(AS103=4,CONCATENATE($R$28,AO103/100,"0"),IF(AS103=5,CONCATENATE(AO103,$S$28),IF(AS103=6,CONCATENATE($R$28,AO103/100),"xxx"))))) -> £1.10
AE104: 68 | AF104: =CONCATENATE("sepia prints at ",AT104," each are purchased together.") -> sepia prints at 70p each are purchased together. | AO104: =ROUND(AO103/2+15,0) -> 70 | AP104: =IF(AO104<100,1,0) -> 1 | AQ104: =IF(AO104/100=ROUNDDOWN(AO104/100,0),1,0) -> 0 | AR104: =IF(AO104/10=ROUNDDOWN(AO104/10,0),1,0) -> 1 | AS104: =AP104+AQ104*2+AR104*4 -> 5 | AT104: =IF(AS104=0,CONCATENATE($R$28,ROUND(AO104/100,2)),IF(AS104=1,CONCATENATE(ROUND(AO104,0),$S$28),IF(AS104=4,CONCATENATE($R$28,AO104/100,"0"),IF(AS104=5,CONCATENATE(AO104,$S$28),IF(AS104=6,CONCATENATE($R$28,AO104/100),"xxx"))))) -> 70p
AE105: 69 | AF105: =CONCATENATE("Find (i) the total cost (ii) change from ",AT106,"") -> Find (i) the total cost (ii) change from £30 | AO105: =ROUND(AO109*AO103+AO110*AO104,0) -> 2220 | AP105: =IF(AO105<100,1,0) -> 0 | AQ105: =IF(AO105/100=ROUNDDOWN(AO105/100,0),1,0) -> 0 | AR105: =IF(AO105/10=ROUNDDOWN(AO105/10,0),1,0) -> 1 | AS105: =AP105+AQ105*2+AR105*4 -> 4 | AT105: =IF(AS105=0,CONCATENATE($R$28,ROUND(AO105/100,2)),IF(AS105=1,CONCATENATE(ROUND(AO105,0),$S$28),IF(AS105=4,CONCATENATE($R$28,AO105/100,"0"),IF(AS105=5,CONCATENATE(AO105,$S$28),IF(AS105=6,CONCATENATE($R$28,AO105/100),"xxx"))))) -> £22.20
AE106: 70 | AJ106: Total cost | AK106: = | AL106: =CONCATENATE("(",AO109," × ",AO103/100,") + (",AO110," × ",AO104/100,")") -> (10 × 1.1) + (16 × 0.7) | AO106: =ROUNDUP(AO105,-3) -> 3000 | AP106: =IF(AO106<100,1,0) -> 0 | AQ106: =IF(AO106/100=ROUNDDOWN(AO106/100,0),1,0) -> 1 | AR106: =IF(AO106/10=ROUNDDOWN(AO106/10,0),1,0) -> 1 | AS106: =AP106+AQ106*2+AR106*4 -> 6 | AT106: =IF(AS106=0,CONCATENATE($R$28,ROUND(AO106/100,2)),IF(AS106=1,CONCATENATE(ROUND(AO106,0),$S$28),IF(AS106=4,CONCATENATE($R$28,AO106/100,"0"),IF(AS106=5,CONCATENATE(AO106,$S$28),IF(AS106=6,CONCATENATE($R$28,AO106/100),"xxx"))))) -> £30
AE107: 71 | AK107: = | AL107: =CONCATENATE(AO109*AO103/100," + ",AO110*AO104/100) -> 11 + 11.2 | AO107: =ROUND(AO106-AO105,0) -> 780 | AP107: =IF(AO107<100,1,0) -> 0 | AQ107: =IF(AO107/100=ROUNDDOWN(AO107/100,0),1,0) -> 0 | AR107: =IF(AO107/10=ROUNDDOWN(AO107/10,0),1,0) -> 1 | AS107: =AP107+AQ107*2+AR107*4 -> 4 | AT107: =IF(AS107=0,CONCATENATE($R$28,ROUND(AO107/100,2)),IF(AS107=1,CONCATENATE(ROUND(AO107,0),$S$28),IF(AS107=4,CONCATENATE($R$28,AO107/100,"0"),IF(AS107=5,CONCATENATE(AO107,$S$28),IF(AS107=6,CONCATENATE($R$28,AO107/100),"xxx"))))) -> £7.80
AE108: 72 | AK108: = | AL108: =CONCATENATE(AO109*AO103/100+AO110*AO104/100) -> 22.2 | AO108: 19 | AP108: =1*(INT(AO108*RAND())+1) -> 9 | AQ108: =1*(INT((AO108-1)*RAND())+1) -> 6 | AR108: =AQ108+AP108 -> 15 | AS108: =MOD(AR108-1,AO108)+1 -> 15 | AT108: =IF(AO107=0,0,1) -> 1
AE109: 73 | AK109: = | AL109: =AT105 -> £22.20 | AO109: =AP108+1 -> 10 | AP109: =VLOOKUP(AO109,$AX$37:$AY$56,2) -> ten | AQ109: =VLOOKUP(AO109,$AX$37:$AZ$56,3) -> Ten | AR109: x
AE110: 74 | AJ110: change | AK110: = | AL110: =CONCATENATE(AT106," − ",AT105) -> £30 − £22.20 | AO110: =AS108+1 -> 16 | AP110: =VLOOKUP(AO110,$AX$37:$AY$56,2) -> sixteen | AQ110: =VLOOKUP(AO110,$AX$37:$AZ$56,3) -> Sixteen | AR110: x
AE111: 75 | AJ111: =AO107/100 -> 7.8 | AK111: = | AL111: =AT107 -> £7.80 | AO111: =AO106/100 -> 30
AE112: =AE101+11 -> 76 | AK112: = | AL112: =CONCATENATE(AO111," − ",AL108) -> 30 − 22.2 | AO112: =AO107/100 -> 7.8
AE113: 77
AE114: 78
AE115: 79
AE116: 80
AE117: 81
AE118: 82
AE119: 83
AE120: 84
AE121: 85 | AF121: A large cola costs £1.10 more than a regular.
AE122: 86 | AF122: The total cost of 4 large and 4 regular is £14.80.
AE123: 87
AE124: 88
AE125: 89 | AF125: =CONCATENATE(AQ131," large colas at ",AT125," each and ",AP132) -> Eighteen large colas at £1.30 each and eleven | AO125: =ROUND(0.2*(INT(7*RAND())+2)*100+AR131,0) -> 130 | AP125: =IF(AO125<100,1,0) -> 0 | AQ125: =IF(AO125/100=ROUNDDOWN(AO125/100,0),1,0) -> 0 | AR125: =IF(AO125/10=ROUNDDOWN(AO125/10,0),1,0) -> 1 | AS125: =AP125+AQ125*2+AR125*4 -> 4 | AT125: =IF(AS125=0,CONCATENATE($R$28,ROUND(AO125/100,2)),IF(AS125=1,CONCATENATE(ROUND(AO125,0),$S$28),IF(AS125=4,CONCATENATE($R$28,AO125/100,"0"),IF(AS125=5,CONCATENATE(AO125,$S$28),IF(AS125=6,CONCATENATE($R$28,AO125/100),"xxx"))))) -> £1.30
AE126: 90 | AF126: =CONCATENATE("regular colas at ",AT126," each are purchased together.") -> regular colas at 81p each are purchased together. | AO126: =ROUND(AO125/2+10+AR132,0) -> 81 | AP126: =IF(AO126<100,1,0) -> 1 | AQ126: =IF(AO126/100=ROUNDDOWN(AO126/100,0),1,0) -> 0 | AR126: =IF(AO126/10=ROUNDDOWN(AO126/10,0),1,0) -> 0 | AS126: =AP126+AQ126*2+AR126*4 -> 1 | AT126: =IF(AS126=0,CONCATENATE($R$28,ROUND(AO126/100,2)),IF(AS126=1,CONCATENATE(ROUND(AO126,0),$S$28),IF(AS126=4,CONCATENATE($R$28,AO126/100,"0"),IF(AS126=5,CONCATENATE(AO126,$S$28),IF(AS126=6,CONCATENATE($R$28,AO126/100),"xxx"))))) -> 81p
AE127: 91 | AF127: =CONCATENATE("Find (i) the total cost (ii) change from ",AT128,"") -> Find (i) the total cost (ii) change from £40 | AO127: =ROUND(AO131*AO125+AO132*AO126,0) -> 3231 | AP127: =IF(AO127<100,1,0) -> 0 | AQ127: =IF(AO127/100=ROUNDDOWN(AO127/100,0),1,0) -> 0 | AR127: =IF(AO127/10=ROUNDDOWN(AO127/10,0),1,0) -> 0 | AS127: =AP127+AQ127*2+AR127*4 -> 0 | AT127: =IF(AS127=0,CONCATENATE($R$28,ROUND(AO127/100,2)),IF(AS127=1,CONCATENATE(ROUND(AO127,0),$S$28),IF(AS127=4,CONCATENATE($R$28,AO127/100,"0"),IF(AS127=5,CONCATENATE(AO127,$S$28),IF(AS127=6,CONCATENATE($R$28,AO127/100),"xxx"))))) -> £32.31
AE128: 92 | AJ128: Total cost | AK128: = | AL128: =CONCATENATE("(",AO131," × ",AO125/100,") + (",AO132," × ",AO126/100,")") -> (18 × 1.3) + (11 × 0.81) | AO128: =ROUNDUP(AO127,-3) -> 4000 | AP128: =IF(AO128<100,1,0) -> 0 | AQ128: =IF(AO128/100=ROUNDDOWN(AO128/100,0),1,0) -> 1 | AR128: =IF(AO128/10=ROUNDDOWN(AO128/10,0),1,0) -> 1 | AS128: =AP128+AQ128*2+AR128*4 -> 6 | AT128: =IF(AS128=0,CONCATENATE($R$28,ROUND(AO128/100,2)),IF(AS128=1,CONCATENATE(ROUND(AO128,0),$S$28),IF(AS128=4,CONCATENATE($R$28,AO128/100,"0"),IF(AS128=5,CONCATENATE(AO128,$S$28),IF(AS128=6,CONCATENATE($R$28,AO128/100),"xxx"))))) -> £40
AE129: 93 | AK129: = | AL129: =CONCATENATE(AO131*AO125/100," + ",AO132*AO126/100) -> 23.4 + 8.91 | AO129: =ROUND(AO128-AO127,0) -> 769 | AP129: =IF(AO129<100,1,0) -> 0 | AQ129: =IF(AO129/100=ROUNDDOWN(AO129/100,0),1,0) -> 0 | AR129: =IF(AO129/10=ROUNDDOWN(AO129/10,0),1,0) -> 0 | AS129: =AP129+AQ129*2+AR129*4 -> 0 | AT129: =IF(AS129=0,CONCATENATE($R$28,ROUND(AO129/100,2)),IF(AS129=1,CONCATENATE(ROUND(AO129,0),$S$28),IF(AS129=4,CONCATENATE($R$28,AO129/100,"0"),IF(AS129=5,CONCATENATE(AO129,$S$28),IF(AS129=6,CONCATENATE($R$28,AO129/100),"xxx"))))) -> £7.69
AE130: 94 | AK130: = | AL130: =CONCATENATE(AO131*AO125/100+AO132*AO126/100) -> 32.31 | AO130: 19 | AP130: =1*(INT(AO130*RAND())+1) -> 17 | AQ130: =1*(INT((AO130-1)*RAND())+1) -> 12 | AR130: =AQ130+AP130 -> 29 | AS130: =MOD(AR130-1,AO130)+1 -> 10 | AT130: =IF(AO129=0,0,1) -> 1
AE131: 95 | AK131: = | AL131: =AT127 -> £32.31 | AO131: =AP130+1 -> 18 | AP131: =VLOOKUP(AO131,$AX$37:$AY$56,2) -> eighteen | AQ131: =VLOOKUP(AO131,$AX$37:$AZ$56,3) -> Eighteen | AR131: =2*(INT(5*RAND())+1) -> 10
AE132: 96 | AJ132: change | AK132: = | AL132: =CONCATENATE(AT128," − ",AT127) -> £40 − £32.31 | AO132: =AS130+1 -> 11 | AP132: =VLOOKUP(AO132,$AX$37:$AY$56,2) -> eleven | AQ132: =VLOOKUP(AO132,$AX$37:$AZ$56,3) -> Eleven | AR132: =2*(INT(5*RAND())+1) -> 6
AE133: 97 | AJ133: =AO129/100 -> 7.69 | AK133: = | AL133: =AT129 -> £7.69 | AO133: =AO128/100 -> 40
AE134: 98 | AK134: = | AL134: =CONCATENATE(AO133," − ",AL130) -> 40 − 32.31 | AO134: =AO129/100 -> 7.69
AE135: 99
AE136: 100
AE137: 101
AE138: 102
AE139: 103
AE140: 104
AE141: 105
AE142: 106
AE143: 107 | AF143: Burgers cost 90p more than portions of fries.
AE144: 108 | AF144: The total cost of 3 burgers and 4 fries is £10.40.
AE145: 109
AE146: 110
AE147: 111 | AF147: =CONCATENATE(AQ153," burgers at ",AT147," each and ",AP154) -> Seventeen burgers at 60p each and six | AO147: =ROUND(0.2*(INT(6*RAND())+3)*100,0) -> 60 | AP147: =IF(AO147<100,1,0) -> 1 | AQ147: =IF(AO147/100=ROUNDDOWN(AO147/100,0),1,0) -> 0 | AR147: =IF(AO147/10=ROUNDDOWN(AO147/10,0),1,0) -> 1 | AS147: =AP147+AQ147*2+AR147*4 -> 5 | AT147: =IF(AS147=0,CONCATENATE($R$28,ROUND(AO147/100,2)),IF(AS147=1,CONCATENATE(ROUND(AO147,0),$S$28),IF(AS147=4,CONCATENATE($R$28,AO147/100,"0"),IF(AS147=5,CONCATENATE(AO147,$S$28),IF(AS147=6,CONCATENATE($R$28,AO147/100),"xxx"))))) -> 60p
AE148: 112 | AF148: =CONCATENATE("hot-dogs at ",AT148," each are purchased together.") -> hot-dogs at 45p each are purchased together. | AO148: =ROUND(AO147/2+15,0) -> 45 | AP148: =IF(AO148<100,1,0) -> 1 | AQ148: =IF(AO148/100=ROUNDDOWN(AO148/100,0),1,0) -> 0 | AR148: =IF(AO148/10=ROUNDDOWN(AO148/10,0),1,0) -> 0 | AS148: =AP148+AQ148*2+AR148*4 -> 1 | AT148: =IF(AS148=0,CONCATENATE($R$28,ROUND(AO148/100,2)),IF(AS148=1,CONCATENATE(ROUND(AO148,0),$S$28),IF(AS148=4,CONCATENATE($R$28,AO148/100,"0"),IF(AS148=5,CONCATENATE(AO148,$S$28),IF(AS148=6,CONCATENATE($R$28,AO148/100),"xxx"))))) -> 45p
AE149: 113 | AF149: =CONCATENATE("Find (i) the total cost (ii) change from ",AT150,"") -> Find (i) the total cost (ii) change from £20 | AO149: =ROUND(AO153*AO147+AO154*AO148,0) -> 1290 | AP149: =IF(AO149<100,1,0) -> 0 | AQ149: =IF(AO149/100=ROUNDDOWN(AO149/100,0),1,0) -> 0 | AR149: =IF(AO149/10=ROUNDDOWN(AO149/10,0),1,0) -> 1 | AS149: =AP149+AQ149*2+AR149*4 -> 4 | AT149: =IF(AS149=0,CONCATENATE($R$28,ROUND(AO149/100,2)),IF(AS149=1,CONCATENATE(ROUND(AO149,0),$S$28),IF(AS149=4,CONCATENATE($R$28,AO149/100,"0"),IF(AS149=5,CONCATENATE(AO149,$S$28),IF(AS149=6,CONCATENATE($R$28,AO149/100),"xxx"))))) -> £12.90
AE150: 114 | AJ150: Total cost | AK150: = | AL150: =CONCATENATE("(",AO153," × ",AO147/100,") + (",AO154," × ",AO148/100,")") -> (17 × 0.6) + (6 × 0.45) | AO150: =ROUNDUP(AO149,-3) -> 2000 | AP150: =IF(AO150<100,1,0) -> 0 | AQ150: =IF(AO150/100=ROUNDDOWN(AO150/100,0),1,0) -> 1 | AR150: =IF(AO150/10=ROUNDDOWN(AO150/10,0),1,0) -> 1 | AS150: =AP150+AQ150*2+AR150*4 -> 6 | AT150: =IF(AS150=0,CONCATENATE($R$28,ROUND(AO150/100,2)),IF(AS150=1,CONCATENATE(ROUND(AO150,0),$S$28),IF(AS150=4,CONCATENATE($R$28,AO150/100,"0"),IF(AS150=5,CONCATENATE(AO150,$S$28),IF(AS150=6,CONCATENATE($R$28,AO150/100),"xxx"))))) -> £20
AE151: 115 | AK151: = | AL151: =CONCATENATE(AO153*AO147/100," + ",AO154*AO148/100) -> 10.2 + 2.7 | AO151: =ROUND(AO150-AO149,0) -> 710 | AP151: =IF(AO151<100,1,0) -> 0 | AQ151: =IF(AO151/100=ROUNDDOWN(AO151/100,0),1,0) -> 0 | AR151: =IF(AO151/10=ROUNDDOWN(AO151/10,0),1,0) -> 1 | AS151: =AP151+AQ151*2+AR151*4 -> 4 | AT151: =IF(AS151=0,CONCATENATE($R$28,ROUND(AO151/100,2)),IF(AS151=1,CONCATENATE(ROUND(AO151,0),$S$28),IF(AS151=4,CONCATENATE($R$28,AO151/100,"0"),IF(AS151=5,CONCATENATE(AO151,$S$28),IF(AS151=6,CONCATENATE($R$28,AO151/100),"xxx"))))) -> £7.10
AE152: 116 | AK152: = | AL152: =CONCATENATE(AO153*AO147/100+AO154*AO148/100) -> 12.9 | AO152: 19 | AP152: =1*(INT(AO152*RAND())+1) -> 16 | AQ152: =1*(INT((AO152-1)*RAND())+1) -> 8 | AR152: =AQ152+AP152 -> 24 | AS152: =MOD(AR152-1,AO152)+1 -> 5 | AT152: =IF(AO151=0,0,1) -> 1
AE153: 117 | AK153: = | AL153: =AT149 -> £12.90 | AO153: =AP152+1 -> 17 | AP153: =VLOOKUP(AO153,$AX$37:$AY$56,2) -> seventeen | AQ153: =VLOOKUP(AO153,$AX$37:$AZ$56,3) -> Seventeen | AR153: x
AE154: 118 | AJ154: change | AK154: = | AL154: =CONCATENATE(AT150," − ",AT149) -> £20 − £12.90 | AO154: =AS152+1 -> 6 | AP154: =VLOOKUP(AO154,$AX$37:$AY$56,2) -> six | AQ154: =VLOOKUP(AO154,$AX$37:$AZ$56,3) -> Six | AR154: x
AE155: 119 | AJ155: =AO151/100 -> 7.1 | AK155: = | AL155: =AT151 -> £7.10 | AO155: =AO150/100 -> 20
AE156: 120 | AK156: = | AL156: =CONCATENATE(AO155," − ",AL152) -> 20 − 12.9 | AO156: =AO151/100 -> 7.1
AE157: 121
AE158: 122
AE159: 123
AE160: 124
AE161: 125
AE162: 126
AE163: 127
AE164: 128
AE165: 129 | AF165: A 1ˢᵗ class ticket costs £41 more than a 2ⁿᵈ.
AE166: 130 | AF166: The total cost of 6 firsts and 4 seconds is £756.
AE167: 131
AE168: 132
AE169: 133 | AF169: =CONCATENATE(AQ175," 1ˢᵗ class tickets at ",AT169," each and ",AP176) -> Ten 1ˢᵗ class tickets at £74 each and thirteen | AO169: =ROUND(2*(INT(35*RAND())+15)*100,0) -> 7400 | AP169: =IF(AO169<100,1,0) -> 0 | AQ169: =IF(AO169/100=ROUNDDOWN(AO169/100,0),1,0) -> 1 | AR169: =IF(AO169/10=ROUNDDOWN(AO169/10,0),1,0) -> 1 | AS169: =AP169+AQ169*2+AR169*4 -> 6 | AT169: =IF(AS169=0,CONCATENATE($R$28,ROUND(AO169/100,2)),IF(AS169=1,CONCATENATE(ROUND(AO169,0),$S$28),IF(AS169=4,CONCATENATE($R$28,AO169/100,"0"),IF(AS169=5,CONCATENATE(AO169,$S$28),IF(AS169=6,CONCATENATE($R$28,AO169/100),"xxx"))))) -> £74
AE170: 134 | AF170: =CONCATENATE("2ⁿᵈ class tickets at ",AT170," each are purchased together.") -> 2ⁿᵈ class tickets at £42 each are purchased together. | AO170: =ROUND(AO169/2+AR176,0) -> 4200 | AP170: =IF(AO170<100,1,0) -> 0 | AQ170: =IF(AO170/100=ROUNDDOWN(AO170/100,0),1,0) -> 1 | AR170: =IF(AO170/10=ROUNDDOWN(AO170/10,0),1,0) -> 1 | AS170: =AP170+AQ170*2+AR170*4 -> 6 | AT170: =IF(AS170=0,CONCATENATE($R$28,ROUND(AO170/100,2)),IF(AS170=1,CONCATENATE(ROUND(AO170,0),$S$28),IF(AS170=4,CONCATENATE($R$28,AO170/100,"0"),IF(AS170=5,CONCATENATE(AO170,$S$28),IF(AS170=6,CONCATENATE($R$28,AO170/100),"xxx"))))) -> £42
AE171: 135 | AF171: =CONCATENATE("Find (i) the total cost (ii) change from ",AT172,"") -> Find (i) the total cost (ii) change from £1300 | AO171: =ROUND(AO175*AO169+AO176*AO170,0) -> 128600 | AP171: =IF(AO171<100,1,0) -> 0 | AQ171: =IF(AO171/100=ROUNDDOWN(AO171/100,0),1,0) -> 1 | AR171: =IF(AO171/10=ROUNDDOWN(AO171/10,0),1,0) -> 1 | AS171: =AP171+AQ171*2+AR171*4 -> 6 | AT171: =IF(AS171=0,CONCATENATE($R$28,ROUND(AO171/100,2)),IF(AS171=1,CONCATENATE(ROUND(AO171,0),$S$28),IF(AS171=4,CONCATENATE($R$28,AO171/100,"0"),IF(AS171=5,CONCATENATE(AO171,$S$28),IF(AS171=6,CONCATENATE($R$28,AO171/100),"xxx"))))) -> £1286
AE172: 136 | AJ172: Total cost | AK172: = | AL172: =CONCATENATE("(",AO175," × ",AO169/100,") + (",AO176," × ",AO170/100,")") -> (10 × 74) + (13 × 42) | AO172: =ROUNDUP(AO171,-4) -> 130000 | AP172: =IF(AO172<100,1,0) -> 0 | AQ172: =IF(AO172/100=ROUNDDOWN(AO172/100,0),1,0) -> 1 | AR172: =IF(AO172/10=ROUNDDOWN(AO172/10,0),1,0) -> 1 | AS172: =AP172+AQ172*2+AR172*4 -> 6 | AT172: =IF(AS172=0,CONCATENATE($R$28,ROUND(AO172/100,2)),IF(AS172=1,CONCATENATE(ROUND(AO172,0),$S$28),IF(AS172=4,CONCATENATE($R$28,AO172/100,"0"),IF(AS172=5,CONCATENATE(AO172,$S$28),IF(AS172=6,CONCATENATE($R$28,AO172/100),"xxx"))))) -> £1300
AE173: 137 | AK173: = | AL173: =CONCATENATE(AO175*AO169/100," + ",AO176*AO170/100) -> 740 + 546 | AO173: =ROUND(AO172-AO171,0) -> 1400 | AP173: =IF(AO173<100,1,0) -> 0 | AQ173: =IF(AO173/100=ROUNDDOWN(AO173/100,0),1,0) -> 1 | AR173: =IF(AO173/10=ROUNDDOWN(AO173/10,0),1,0) -> 1 | AS173: =AP173+AQ173*2+AR173*4 -> 6 | AT173: =IF(AS173=0,CONCATENATE($R$28,ROUND(AO173/100,2)),IF(AS173=1,CONCATENATE(ROUND(AO173,0),$S$28),IF(AS173=4,CONCATENATE($R$28,AO173/100,"0"),IF(AS173=5,CONCATENATE(AO173,$S$28),IF(AS173=6,CONCATENATE($R$28,AO173/100),"xxx"))))) -> £14
AE174: 138 | AK174: = | AL174: =CONCATENATE(AO175*AO169/100+AO176*AO170/100) -> 1286 | AO174: 19 | AP174: =1*(INT(AO174*RAND())+1) -> 9 | AQ174: =1*(INT((AO174-1)*RAND())+1) -> 3 | AR174: =AQ174+AP174 -> 12 | AS174: =MOD(AR174-1,AO174)+1 -> 12 | AT174: =IF(AO173=0,0,1) -> 1
AE175: 139 | AK175: = | AL175: =AT171 -> £1286 | AO175: =AP174+1 -> 10 | AP175: =VLOOKUP(AO175,$AX$37:$AY$56,2) -> ten | AQ175: =VLOOKUP(AO175,$AX$37:$AZ$56,3) -> Ten | AR175: x
AE176: =AE165+11 -> 140 | AJ176: change | AK176: = | AL176: =CONCATENATE(AT172," − ",AT171) -> £1300 − £1286 | AO176: =AS174+1 -> 13 | AP176: =VLOOKUP(AO176,$AX$37:$AY$56,2) -> thirteen | AQ176: =VLOOKUP(AO176,$AX$37:$AZ$56,3) -> Thirteen | AR176: =100*(INT(5*RAND())+1) -> 500
AE177: 141 | AJ177: =AO173/100 -> 14 | AK177: = | AL177: =AT173 -> £14 | AO177: =AO172/100 -> 1300
AE178: 142 | AK178: = | AL178: =CONCATENATE(AO177," − ",AL174) -> 1300 − 1286 | AO178: =AO173/100 -> 14
AE179: 143
AE180: 144
AE181: 145
AE182: 146
AE183: 147
AE184: 148
AE185: 149
AE186: 150
AE187: 151 | AF187: A designer tile costs £2 more than a plain tile.
AE188: 152 | AF188: The total cost of 5 designer and 2 plain is £59.
AE189: 153
AE190: 154
AE191: 155 | AF191: =CONCATENATE(AQ197," designer tiles at ",AT191," each and ",AP198) -> Nineteen designer tiles at £1.10 each and four | AO191: =ROUND((INT(6*RAND())+11)*10,0) -> 110 | AP191: =IF(AO191<100,1,0) -> 0 | AQ191: =IF(AO191/100=ROUNDDOWN(AO191/100,0),1,0) -> 0 | AR191: =IF(AO191/10=ROUNDDOWN(AO191/10,0),1,0) -> 1 | AS191: =AP191+AQ191*2+AR191*4 -> 4 | AT191: =IF(AS191=0,CONCATENATE($R$28,ROUND(AO191/100,2)),IF(AS191=1,CONCATENATE(ROUND(AO191,0),$S$28),IF(AS191=4,CONCATENATE($R$28,AO191/100,"0"),IF(AS191=5,CONCATENATE(AO191,$S$28),IF(AS191=6,CONCATENATE($R$28,AO191/100),"xxx"))))) -> £1.10
AE192: 156 | AF192: =CONCATENATE("plain tiles at ",AT192," each are purchased together.") -> plain tiles at 80p each are purchased together. | AO192: =ROUND((INT(5*RAND())+4)*10+AR198,0) -> 80 | AP192: =IF(AO192<100,1,0) -> 1 | AQ192: =IF(AO192/100=ROUNDDOWN(AO192/100,0),1,0) -> 0 | AR192: =IF(AO192/10=ROUNDDOWN(AO192/10,0),1,0) -> 1 | AS192: =AP192+AQ192*2+AR192*4 -> 5 | AT192: =IF(AS192=0,CONCATENATE($R$28,ROUND(AO192/100,2)),IF(AS192=1,CONCATENATE(ROUND(AO192,0),$S$28),IF(AS192=4,CONCATENATE($R$28,AO192/100,"0"),IF(AS192=5,CONCATENATE(AO192,$S$28),IF(AS192=6,CONCATENATE($R$28,AO192/100),"xxx"))))) -> 80p
AE193: 157 | AF193: =CONCATENATE("Find (i) the total cost (ii) change from ",AT194,"") -> Find (i) the total cost (ii) change from £30 | AO193: =ROUND(AO197*AO191+AO198*AO192,0) -> 2410 | AP193: =IF(AO193<100,1,0) -> 0 | AQ193: =IF(AO193/100=ROUNDDOWN(AO193/100,0),1,0) -> 0 | AR193: =IF(AO193/10=ROUNDDOWN(AO193/10,0),1,0) -> 1 | AS193: =AP193+AQ193*2+AR193*4 -> 4 | AT193: =IF(AS193=0,CONCATENATE($R$28,ROUND(AO193/100,2)),IF(AS193=1,CONCATENATE(ROUND(AO193,0),$S$28),IF(AS193=4,CONCATENATE($R$28,AO193/100,"0"),IF(AS193=5,CONCATENATE(AO193,$S$28),IF(AS193=6,CONCATENATE($R$28,AO193/100),"xxx"))))) -> £24.10
AE194: 158 | AJ194: Total cost | AK194: = | AL194: =CONCATENATE("(",AO197," × ",AO191/100,") + (",AO198," × ",AO192/100,")") -> (19 × 1.1) + (4 × 0.8) | AO194: =ROUNDUP(AO193,-3) -> 3000 | AP194: =IF(AO194<100,1,0) -> 0 | AQ194: =IF(AO194/100=ROUNDDOWN(AO194/100,0),1,0) -> 1 | AR194: =IF(AO194/10=ROUNDDOWN(AO194/10,0),1,0) -> 1 | AS194: =AP194+AQ194*2+AR194*4 -> 6 | AT194: =IF(AS194=0,CONCATENATE($R$28,ROUND(AO194/100,2)),IF(AS194=1,CONCATENATE(ROUND(AO194,0),$S$28),IF(AS194=4,CONCATENATE($R$28,AO194/100,"0"),IF(AS194=5,CONCATENATE(AO194,$S$28),IF(AS194=6,CONCATENATE($R$28,AO194/100),"xxx"))))) -> £30
AE195: 159 | AK195: = | AL195: =CONCATENATE(AO197*AO191/100," + ",AO198*AO192/100) -> 20.9 + 3.2 | AO195: =ROUND(AO194-AO193,0) -> 590 | AP195: =IF(AO195<100,1,0) -> 0 | AQ195: =IF(AO195/100=ROUNDDOWN(AO195/100,0),1,0) -> 0 | AR195: =IF(AO195/10=ROUNDDOWN(AO195/10,0),1,0) -> 1 | AS195: =AP195+AQ195*2+AR195*4 -> 4 | AT195: =IF(AS195=0,CONCATENATE($R$28,ROUND(AO195/100,2)),IF(AS195=1,CONCATENATE(ROUND(AO195,0),$S$28),IF(AS195=4,CONCATENATE($R$28,AO195/100,"0"),IF(AS195=5,CONCATENATE(AO195,$S$28),IF(AS195=6,CONCATENATE($R$28,AO195/100),"xxx"))))) -> £5.90
AE196: 160 | AK196: = | AL196: =CONCATENATE(AO197*AO191/100+AO198*AO192/100) -> 24.1 | AO196: 19 | AP196: =1*(INT(AO196*RAND())+1) -> 18 | AQ196: =1*(INT((AO196-1)*RAND())+1) -> 4 | AR196: =AQ196+AP196 -> 22 | AS196: =MOD(AR196-1,AO196)+1 -> 3 | AT196: =IF(AO195=0,0,1) -> 1
AE197: 161 | AK197: = | AL197: =AT193 -> £24.10 | AO197: =AP196+1 -> 19 | AP197: =VLOOKUP(AO197,$AX$37:$AY$56,2) -> nineteen | AQ197: =VLOOKUP(AO197,$AX$37:$AZ$56,3) -> Nineteen | AR197: x
AE198: 162 | AJ198: change | AK198: = | AL198: =CONCATENATE(AT194," − ",AT193) -> £30 − £24.10 | AO198: =AS196+1 -> 4 | AP198: =VLOOKUP(AO198,$AX$37:$AY$56,2) -> four | AQ198: =VLOOKUP(AO198,$AX$37:$AZ$56,3) -> Four | AR198: =5*(INT(2*RAND())+1) -> 10
AE199: 163 | AJ199: =AO195/100 -> 5.9 | AK199: = | AL199: =AT195 -> £5.90 | AO199: =AO194/100 -> 30
AE200: 164 | AK200: = | AL200: =CONCATENATE(AO199," − ",AL196) -> 30 − 24.1 | AO200: =AO195/100 -> 5.9
AE201: 165
AE202: 166
AE203: 167
AE204: 168
AE205: 169
AE206: 170
AE207: 171
AE208: 172
AE209: 173 | AF209: A cake costs 90p more than a pot of tea.
AE210: 174 | AF210: The total cost of 3 cakes and 3 pots of tea is £15.30.
AE211: 175
... 243 more rows

Sheet RESTBILL
E1: 1
B2: 1 | AD2: 1 | AE2: =IF(AD2=1,10,IF(AD2=2,10,1)) -> 10 | AJ2: =AJ3+AJ4 -> 13200 | AK2: =IF(AJ2<100,1,0) -> 0 | AL2: =IF(AJ2/100=ROUNDDOWN(AJ2/100,0),1,0) -> 1 | AM2: =IF(AJ2/10=ROUNDDOWN(AJ2/10,0),1,0) -> 1 | AN2: =AK2+AL2*2+AM2*4 -> 6 | AO2: =IF(AN2=0,CONCATENATE($D$3,ROUND(AJ2/100,2)),IF(AN2=1,CONCATENATE(ROUND(AJ2,0),$AQ$4),IF(AN2=4,CONCATENATE($D$3,AJ2/100,"0"),IF(AN2=5,CONCATENATE(AJ2,$AQ$4),IF(AN2=6,CONCATENATE($D$3,AJ2/100),AR2))))) -> £132 | AR2: =IF(E1=1,"0p",IF(E1=2,"0¢","0c")) -> 0p
B3: 1 | D3: =IF(E1=1,"£",IF(E1=2,"$",IF(E1=3,"€","R"))) -> £ | E3: 8 | F3: =VLOOKUP(E3,AG4:AH103,2) -> eight | G3: 102 | H3: 1800 | I3: =G3*100+H3 -> 12000 | J3: 20 | K3: =J3/2 -> 10 | L3: =K3/100 -> 0.1 | M3: =I3/100 -> 120 | AJ3: =ROUND(L3*M3*100,0) -> 1200 | AK3: =IF(AJ3<100,1,0) -> 0 | AL3: =IF(AJ3/100=ROUNDDOWN(AJ3/100,0),1,0) -> 1 | AM3: =IF(AJ3/10=ROUNDDOWN(AJ3/10,0),1,0) -> 1 | AN3: =AK3+AL3*2+AM3*4 -> 6 | AO3: =IF(AN3=0,CONCATENATE($D$3,ROUND(AJ3/100,2)),IF(AN3=1,CONCATENATE(ROUND(AJ3,0),$AQ$4),IF(AN3=4,CONCATENATE($D$3,AJ3/100,"0"),IF(AN3=5,CONCATENATE(AJ3,$AQ$4),IF(AN3=6,CONCATENATE($D$3,AJ3/100),AR2))))) -> £12 | AQ3: =L3*M3*100-AJ3 -> 0 | AR3: =IF(AQ3=0,"",$AR$4) -> 
B4: 1 | C4: The total cost of the | O4: food | P4: =CONCATENATE("",IF($B$4=1,$F$3," ? "),IF(E3=1," person "," people ")) -> eight people | Z4: =IF(ROUND(AP9,0)=ROUND(AP9,9)," ⁿ ",IF(AND(AQ9=0,AQ3=0)," • "," ∙ ")) -> • | AG4: 1 | AH4: one | AJ4: =I3 -> 12000 | AK4: =IF(AJ4<100,1,0) -> 0 | AL4: =IF(AJ4/100=ROUNDDOWN(AJ4/100,0),1,0) -> 1 | AM4: =IF(AJ4/10=ROUNDDOWN(AJ4/10,0),1,0) -> 1 | AN4: =AK4+AL4*2+AM4*4 -> 6 | AO4: =IF(AN4=0,CONCATENATE($D$3,ROUND(AJ4/100,2)),IF(AN4=1,CONCATENATE(ROUND(AJ4,0),$AQ$4),IF(AN4=4,CONCATENATE($D$3,AJ4/100,"0"),IF(AN4=5,CONCATENATE(AJ4,$AQ$4),IF(AN4=6,CONCATENATE($D$3,AJ4/100,".00"),AR2))))) -> £120.00 | AP4: =IF(E1=1,"£",IF(E1=2,"$",IF(E1=3,"€","R"))) -> £ | AQ4: =IF(E1=1,"p","c") -> p | AR4: =IF(E1=1,"(nearest p)","(nearest c)") -> (nearest p) | AT4: =IF(AJ4>=100000," ",IF(AJ4>=10000," ",IF(AJ4>=1000," "," "))) -> 
C5: eat | E5: is | F5: =IF(B2=0,CONCATENATE(D3," ?"),CONCATENATE("",IF($B$2=1,$AO$4,CONCATENATE($D$3,$AT$4)),IF($B$2=1,"",""))) -> £120.00 | J5: and then they | S5: add a | T5: =CONCATENATE("",IF($B$3=1,$AK$6," ? "),"% tip.") -> 10% tip. | AG5: 2 | AH5: two
C6: Find (i) the tip (ii) total bill (iii) each share. | AG6: 3 | AH6: three | AJ6: =K3 -> 10 | AK6: =AQ6 -> 10 | AL6: =ABS(AJ6) -> 10 | AM6: =IF(AJ6<0,"-","") ->  | AN6: =ROUNDDOWN(AL6,0) -> 10 | AO6: =ROUND(AL6-AN6,3) -> 0 | AP6: =IF(AO6=AR6,AR7,IF(AO6=AS6,AS7,IF(AO6=AT6,AT7,IF(AO6=AU6,AU7,IF(AO6=AV6,AV7,IF(AO6=AW6,AW7,IF(AO6=AX6,AX7,AO6))))))) -> 0 | AQ6: =IF(AP6=AO6,CONCATENATE(AM6,AN6+AP6),IF(AN6=0,CONCATENATE(AM6,AP6),CONCATENATE(AM6,AN6,AP6))) -> 10 | AR6: 0.125 | AS6: 0.25 | AT6: 0.375 | AU6: 0.5 | AV6: 0.625 | AW6: 0.75 | AX6: 0.875
AG7: 4 | AH7: four | AK7: =AQ7 -> 0 | AL7: =ABS(AJ7) -> 0 | AM7: =IF(AJ7<0,"-","") ->  | AN7: =ROUNDDOWN(AL7,0) -> 0 | AO7: =ROUND(AL7-AN7,3) -> 0 | AP7: =IF(AO7=AR6,AR7,IF(AO7=AS6,AS7,IF(AO7=AT6,AT7,IF(AO7=AU6,AU7,IF(AO7=AV6,AV7,IF(AO7=AW6,AW7,IF(AO7=AX6,AX7,AO7))))))) -> 0 | AQ7: =IF(AP7=AO7,CONCATENATE(AM7,AN7+AP7),IF(AN7=0,CONCATENATE(AM7,AP7),CONCATENATE(AM7,AN7,AP7))) -> 0 | AR7: ⅛ | AS7: ¼ | AT7: ⅜ | AU7: ½ | AV7: ⅝ | AW7: ¾ | AX7: ⅞
AG8: 5 | AH8: five
B9: 1 | K9: =CONCATENATE("",$AK$6,"% of ",AP33) -> 10% of £120 | L9: = | M9: =IF(B9=1,CONCATENATE($L$3),IF(B9=2,CONCATENATE($L$3," × ",),CONCATENATE($L$3," × ",I3/100))) -> 0.1 | AG9: 6 | AH9: six | AJ9: =ROUND(AJ2/E3,0) -> 1650 | AK9: =IF(AJ9<100,1,0) -> 0 | AL9: =IF(AJ9/100=ROUNDDOWN(AJ9/100,0),1,0) -> 0 | AM9: =IF(AJ9/10=ROUNDDOWN(AJ9/10,0),1,0) -> 1 | AN9: =AK9+AL9*2+AM9*4 -> 4 | AO9: =IF(AN9=0,CONCATENATE($D$3,ROUND(AJ9/100,2)),IF(AN9=1,CONCATENATE(ROUND(AJ9,0),$AQ$4),IF(AN9=4,CONCATENATE($D$3,AJ9/100,"0"),IF(AN9=5,CONCATENATE(AJ9,$AQ$4),IF(AN9=6,CONCATENATE($D$3,AJ9/100),AR2))))) -> £16.50 | AP9: =AJ2/E3/100 -> 16.5 | AQ9: =AJ9/100-AP9 -> 0 | AR9: =IF(AQ9=0,"(exact)",$AR$4) -> (exact)
L10: = | M10: =CONCATENATE(,$L$3*$M$3,) -> 12 | AG10: 7 | AH10: seven
K11: tip | L11: = | M11: =CONCATENATE($AO$3," ",AR3) -> £12 | AG11: 8 | AH11: eight
B12: 1 | K12: cost of food plus tip | L12: = | M12: =IF(B12=1,CONCATENATE($AP33),IF(B12=2,CONCATENATE($AP33," +"),CONCATENATE($AP33," + ",$AO$3))) -> £120 | AG12: 9 | AH12: nine
K13: total bill | L13: = | M13: =CONCATENATE($AO$2) -> £132 | AG13: 10 | AH13: ten
C14: each share | L14: = | M14: =IF(AJ2>=100000,CONCATENATE("",AJ2/100," "),IF(AJ2>=10000,CONCATENATE(" ",AJ2/100," "),IF(AJ2>=100,CONCATENATE(" ",AJ2/100," "),IF(AJ2>=10,CONCATENATE(" ",AJ2/100," "),CONCATENATE(" ",AJ2/100," "))))) -> 132 | AG14: 11 | AH14: eleven
M15: =IF(E3>=100,CONCATENATE(" ",E3),IF(E3>=10,CONCATENATE(" ",E3),CONCATENATE(" ",E3))) -> 8 | AG15: 12 | AH15: twelve
L16: = | M16: =CONCATENATE(,ROUND(AP9,9)) -> 16.5 | AG16: 13 | AH16: thirteen
AG17: 14 | AH17: fourteen
K18: =C14 -> each share | L18: = | M18: =CONCATENATE($AO$9," ",AR9) -> £16.50 (exact) | AG18: 15 | AH18: fifteen
AG19: 16 | AH19: sixteen
AG20: 17 | AH20: seventeen
AG21: 18 | AH21: eighteen
AG22: 19 | AH22: nineteen
AG23: 20 | AH23: twenty
AG24: 21 | AH24: twenty-one
AG25: 22 | AH25: twenty-two
AG26: 23 | AH26: twenty-three
AG27: 24 | AH27: twenty-four
AG28: 25 | AH28: twenty-five
AG29: 26 | AH29: twenty-six
AG30: 27 | AH30: twenty-seven
AG31: 28 | AH31: twenty-eight
AG32: 29 | AH32: twenty-nine
AG33: 30 | AH33: thirty | AK33: =I3 -> 12000 | AL33: =IF(AK33<100,1,0) -> 0 | AM33: =IF(AK33/100=ROUNDDOWN(AK33/100,0),1,0) -> 1 | AN33: =IF(AK33/10=ROUNDDOWN(AK33/10,0),1,0) -> 1 | AO33: =AL33+AM33*2+AN33*4 -> 6 | AP33: =IF(AO33=0,CONCATENATE(AT33,ROUND(AK33/100,2)),IF(AO33=1,CONCATENATE(ROUND(AK33,0),AQ33),IF(AO33=4,CONCATENATE(AT33,AK33/100,"0"),IF(AO33=5,CONCATENATE(AK33,AQ33),IF(AO33=6,CONCATENATE(AT33,AK33/100),AR33))))) -> £120 | AQ33: =IF(AS33=1,"p","c") -> p | AR33: =IF(AS33=1,"0p",IF(AS33=2,"0c","0c")) -> 0p | AS33: =E1 -> 1 | AT33: =IF(AS33=1,"£",IF(AS33=2,"$",IF(AS33=3,"€","R"))) -> £
AG34: 31 | AH34: thirty-one
AG35: 32 | AH35: thirty-two
AG36: 33 | AH36: thirty-three
AG37: 34 | AH37: thirty-four
AG38: 35 | AH38: thirty-five
AG39: 36 | AH39: thirty-six
AG40: 37 | AH40: thirty-seven
AG41: 38 | AH41: thirty-eight
AG42: 39 | AH42: thirty-nine
AG43: 40 | AH43: forty
AG44: 41 | AH44: forty-one
AG45: 42 | AH45: forty-two
AG46: 43 | AH46: forty-three
AG47: 44 | AH47: forty-four
AG48: 45 | AH48: forty-five
AG49: 46 | AH49: forty-six
AG50: 47 | AH50: forty-seven
AG51: 48 | AH51: forty-eight
AG52: 49 | AH52: forty-nine
AG53: 50 | AH53: fifty
AG54: 51 | AH54: =CONCATENATE(AH53,"-",$AH$4) -> fifty-one
AG55: 52 | AH55: =CONCATENATE(AH53,"-",$AH$5) -> fifty-two
AG56: 53 | AH56: =CONCATENATE(AH53,"-",$AH$6) -> fifty-three
AG57: 54 | AH57: =CONCATENATE(AH53,"-",$AH$7) -> fifty-four
AG58: 55 | AH58: =CONCATENATE(AH53,"-",$AH$8) -> fifty-five
AG59: 56 | AH59: =CONCATENATE(AH53,"-",$AH$9) -> fifty-six
AG60: 57 | AH60: =CONCATENATE(AH53,"-",$AH$10) -> fifty-seven
AG61: 58 | AH61: =CONCATENATE(AH53,"-",$AH$11) -> fifty-eight
AG62: 59 | AH62: =CONCATENATE($AH$53,"-",$AH$12) -> fifty-nine
AG63: 60 | AH63: sixty
AG64: 61 | AH64: =CONCATENATE(AH63,"-",$AH$4) -> sixty-one
AG65: 62 | AH65: =CONCATENATE(AH63,"-",$AH$5) -> sixty-two
AG66: 63 | AH66: =CONCATENATE(AH63,"-",$AH$6) -> sixty-three
AG67: 64 | AH67: =CONCATENATE(AH63,"-",$AH$7) -> sixty-four
AG68: 65 | AH68: =CONCATENATE(AH63,"-",$AH$8) -> sixty-five
AG69: 66 | AH69: =CONCATENATE(AH63,"-",$AH$9) -> sixty-six
AG70: 67 | AH70: =CONCATENATE(AH63,"-",$AH$10) -> sixty-seven
AG71: 68 | AH71: =CONCATENATE(AH63,"-",$AH$11) -> sixty-eight
AG72: 69 | AH72: =CONCATENATE(AH63,"-",$AH$12) -> sixty-nine
AG73: 70 | AH73: seventy
AG74: 71 | AH74: =CONCATENATE(AH73,"-",$AH$4) -> seventy-one
AG75: 72 | AH75: =CONCATENATE(AH73,"-",$AH$5) -> seventy-two
AG76: 73 | AH76: =CONCATENATE(AH73,"-",$AH$6) -> seventy-three
AG77: 74 | AH77: =CONCATENATE(AH73,"-",$AH$7) -> seventy-four
AG78: 75 | AH78: =CONCATENATE(AH73,"-",$AH$8) -> seventy-five
AG79: 76 | AH79: =CONCATENATE(AH73,"-",$AH$9) -> seventy-six
AG80: 77 | AH80: =CONCATENATE(AH73,"-",$AH$10) -> seventy-seven
AG81: 78 | AH81: =CONCATENATE(AH73,"-",$AH$11) -> seventy-eight
AG82: 79 | AH82: =CONCATENATE(AH73,"-",$AH$12) -> seventy-nine
AG83: 80 | AH83: eighty
AG84: 81 | AH84: =CONCATENATE(AH83,"-",$AH$4) -> eighty-one
AG85: 82 | AH85: =CONCATENATE(AH83,"-",$AH$5) -> eighty-two
AG86: 83 | AH86: =CONCATENATE(AH83,"-",$AH$6) -> eighty-three
AG87: 84 | AH87: =CONCATENATE(AH83,"-",$AH$7) -> eighty-four
AG88: 85 | AH88: =CONCATENATE(AH83,"-",$AH$8) -> eighty-five
AG89: 86 | AH89: =CONCATENATE(AH83,"-",$AH$9) -> eighty-six
AG90: 87 | AH90: =CONCATENATE(AH83,"-",$AH$10) -> eighty-seven
AG91: 88 | AH91: =CONCATENATE(AH83,"-",$AH$11) -> eighty-eight
AG92: 89 | AH92: =CONCATENATE(AH83,"-",$AH$12) -> eighty-nine
AG93: 90 | AH93: ninety
AG94: 91 | AH94: =CONCATENATE(AH93,"-",$AH$4) -> ninety-one
AG95: 92 | AH95: =CONCATENATE(AH93,"-",$AH$5) -> ninety-two
AG96: 93 | AH96: =CONCATENATE(AH93,"-",$AH$6) -> ninety-three
AG97: 94 | AH97: =CONCATENATE(AH93,"-",$AH$7) -> ninety-four
AG98: 95 | AH98: =CONCATENATE(AH93,"-",$AH$8) -> ninety-five
AG99: 96 | AH99: =CONCATENATE(AH93,"-",$AH$9) -> ninety-six
AG100: 97 | AH100: =CONCATENATE(AH93,"-",$AH$10) -> ninety-seven
AG101: 98 | AH101: =CONCATENATE(AH93,"-",$AH$11) -> ninety-eight
AG102: 99 | AH102: =CONCATENATE(AH93,"-",$AH$12) -> ninety-nine
AG103: 100 | AH103: one-hundred
AG104: 101
AG105: 102
AG106: 103
AG107: 104
AG108: 105
AG109: 106
AG110: 107
AG111: 108
AG112: 109
AG113: 110
AG114: 111
AG115: 112
AG116: 113
AG117: 114
AG118: 115
AG119: 116
AG120: 117
AG121: 118
AG122: 119
AG123: 120

Sheet HOUSE
E1: 1
C2: Find each option’s cost and the amount saved.
C3: =INT(31*RAND())+20 -> 40 | D3: =99-C3 -> 59 | E3: =IF(ROUNDDOWN(D3/3,0)>20,20,ROUNDDOWN(D3/3,0)) -> 19 | F3: =INT((E3-9)*RAND())+9 -> 14 | G3: =C3 -> 40 | H3: =G3+F3 -> 54 | I3: =H3+F3 -> 68 | J3: =I3+F3 -> 82 | K3: =INT(4*RAND())+2 -> 3 | L3: =IF(K3=2,"two",IF(K3=3,"three",IF(K3=4,"four",IF(K3=5,"five")))) -> three | M3: =50*(INT(10*RAND())+0) -> 0 | N3: =IF(K3=2,300,IF(K3=3,200,IF(K3=4,100,IF(K3=5,100)))) -> 200 | O3: =N3+M3 -> 200 | P3: =O3*K3 -> 600 | Q3: =IF(O3>=1000,$G$3,IF(O3>=500,$H$3,IF(O3>=200,$I$3,$J$3))) -> 68 | R3: =IF(P3>=1000,$G$3,IF(P3>=500,$H$3,IF(P3>=200,$I$3,$J$3))) -> 54 | Y3: =AR18 -> 
C4: The table shows the unit | P4: Quantity | U4: Unit cost
C5: cost a production house | P5: 100 − 199 | U5: =CONCATENATE($J$3,S28) -> 82p
C6: charges to press one CD. | P6: 200 − 499 | U6: =CONCATENATE($I$3,S28) -> 68p
C7: Unit cost decreases due | P7: 500 − 999 | U7: =CONCATENATE($H$3,S28) -> 54p
C8: to economy of scale. | P8: ≥ 1000 | U8: =CONCATENATE($G$3,S28) -> 40p
C10: =CONCATENATE("Find the amount saved if I bulk-press ",P3," CDs") -> Find the amount saved if I bulk-press 600 CDs
C11: =CONCATENATE("instead of ",L3," separate batches of ",O3," each.") -> instead of three separate batches of 200 each.
H13: bulk-press | I13: = | M13: =CONCATENATE($P$3) -> 600 | N13: × | P13: =CONCATENATE("0.",$R$3) -> 0.54 | Q13: = | R13: =AM13 -> £324 | AH13: =P3*R3 -> 32400 | AI13: =IF(AH13<100,1,0) -> 0 | AJ13: =IF(AH13/100=ROUNDDOWN(AH13/100,0),1,0) -> 1 | AK13: =IF(AH13/10=ROUNDDOWN(AH13/10,0),1,0) -> 1 | AL13: =AI13+AJ13*2+AK13*4 -> 6 | AM13: =IF(AL13=0,CONCATENATE($R$28,ROUND(AH13/100,2)),IF(AL13=1,CONCATENATE(ROUND(AH13,0),$S$28),IF(AL13=4,CONCATENATE($R$28,AH13/100,"0"),IF(AL13=5,CONCATENATE(AH13,$S$28),IF(AL13=6,CONCATENATE($R$28,AH13/100),"xxx"))))) -> £324 | AN13: =AH13/100 -> 324 | AO13: =ROUND(AN13,0) -> 324 | AP13: =AO13-AN13 -> 0 | AQ13: =IF(AP13=0,0,1) -> 0
H15: batch-press | I15: = | J15: =CONCATENATE($K$3) -> 3 | K15: × | M15: =CONCATENATE($O$3) -> 200 | N15: × | P15: =CONCATENATE("0.",$Q$3) -> 0.68 | Q15: = | R15: =AM15 -> £408 | AH15: =K3*O3*Q3 -> 40800 | AI15: =IF(AH15<100,1,0) -> 0 | AJ15: =IF(AH15/100=ROUNDDOWN(AH15/100,0),1,0) -> 1 | AK15: =IF(AH15/10=ROUNDDOWN(AH15/10,0),1,0) -> 1 | AL15: =AI15+AJ15*2+AK15*4 -> 6 | AM15: =IF(AL15=0,CONCATENATE($R$28,ROUND(AH15/100,2)),IF(AL15=1,CONCATENATE(ROUND(AH15,0),$S$28),IF(AL15=4,CONCATENATE($R$28,AH15/100,"0"),IF(AL15=5,CONCATENATE(AH15,$S$28),IF(AL15=6,CONCATENATE($R$28,AH15/100),"xxx"))))) -> £408 | AN15: =AH15/100 -> 408 | AO15: =ROUND(AN15,0) -> 408 | AP15: =AO15-AN15 -> 0 | AQ15: =IF(AP15=0,0,1) -> 0
P17: difference or amount saved | Q17: = | R17: =AM17 -> £84 | AH17: =AH15-AH13 -> 8400 | AI17: =IF(AH17<100,1,0) -> 0 | AJ17: =IF(AH17/100=ROUNDDOWN(AH17/100,0),1,0) -> 1 | AK17: =IF(AH17/10=ROUNDDOWN(AH17/10,0),1,0) -> 1 | AL17: =AI17+AJ17*2+AK17*4 -> 6 | AM17: =IF(AL17=0,CONCATENATE($R$28,ROUND(AH17/100,2)),IF(AL17=1,CONCATENATE(ROUND(AH17,0),$S$28),IF(AL17=4,CONCATENATE($R$28,AH17/100,"0"),IF(AL17=5,CONCATENATE(AH17,$S$28),IF(AL17=6,CONCATENATE($R$28,AH17/100),"xxx"))))) -> £84 | AN17: =AH17/100 -> 84 | AO17: =ROUND(AN17,0) -> 84 | AP17: =AO17-AN17 -> 0 | AQ17: =IF(AP17=0,0,1) -> 0
AQ18: =AQ17+AQ15+AQ13 -> 0 | AR18: =IF(AQ18=0,"","*") -> 
Q28: =E1 -> 1 | R28: =IF(Q28=1,"£",IF(Q28=2,"$",IF(Q28=3,"€","R"))) -> £ | S28: =IF(Q28=1,"p","c") -> p

Sheet GASBILL
E1: 1
C2: Find (i) the cost of gas used (ii) the total bill
C3: including a standing charge plus 20% VAT. | Z3: =AF9 -> 0
C4: =INT(8000*RAND())+1000 -> 6734 | D4: =INT(500*RAND())+200 -> 577 | E4: =D4+C4 -> 7311 | F4: =(INT(5*RAND())+5) -> 8 | G4: =(INT(9*RAND())+1)/10 -> 0.7 | H4: =F4+G4 -> 8.7 | I4: =(INT(5*RAND())+5) -> 7 | J4: =(INT(19*RAND())+1)*5 -> 80 | K4: =I4*100+J4 -> 780 | AF4: =ROUND(K4,0) -> 780 | AG4: =ROUND(AF4*1,0) -> 780 | AH4: =IF(AG4<100,1,0) -> 0 | AI4: =IF(AG4/100=ROUNDDOWN(AG4/100,0),1,0) -> 0 | AJ4: =IF(AG4/10=ROUNDDOWN(AG4/10,0),1,0) -> 1 | AK4: =AH4+AI4*2+AJ4*4 -> 4 | AL4: =IF(AK4=0,CONCATENATE($R$28,ROUND(AG4/100,2)),IF(AK4=1,CONCATENATE(ROUND(AG4,0),$S$28),IF(AK4=4,CONCATENATE($R$28,AG4/100,"0"),IF(AK4=5,CONCATENATE(AG4,$S$28),IF(AK4=6,CONCATENATE($R$28,AG4/100),"xxx"))))) -> £7.80
C5: A gas meter at the start of the month | W5: read | X5: =CONCATENATE(" ",C4,) -> 6734 | AA5: m³. | AF5: =ROUND(H4*D4,0) -> 5020 | AG5: =ROUND(AF5*1,0) -> 5020 | AH5: =IF(AG5<100,1,0) -> 0 | AI5: =IF(AG5/100=ROUNDDOWN(AG5/100,0),1,0) -> 0 | AJ5: =IF(AG5/10=ROUNDDOWN(AG5/10,0),1,0) -> 1 | AK5: =AH5+AI5*2+AJ5*4 -> 4 | AL5: =IF(AK5=0,CONCATENATE($R$28,ROUND(AG5/100,2)),IF(AK5=1,CONCATENATE(ROUND(AG5,0),$S$28),IF(AK5=4,CONCATENATE($R$28,AG5/100,"0"),IF(AK5=5,CONCATENATE(AG5,$S$28),IF(AK5=6,CONCATENATE($R$28,AG5/100),"xxx"))))) -> £50.20
C6: At the end of the month the meter | W6: showed | X6: =CONCATENATE(," ",E4) -> 7311 | AA6: =AA5 -> m³. | AF6: =ROUND(AF5+AF4,0) -> 5800 | AG6: =ROUND(AF6*1,0) -> 5800 | AH6: =IF(AG6<100,1,0) -> 0 | AI6: =IF(AG6/100=ROUNDDOWN(AG6/100,0),1,0) -> 1 | AJ6: =IF(AG6/10=ROUNDDOWN(AG6/10,0),1,0) -> 1 | AK6: =AH6+AI6*2+AJ6*4 -> 6 | AL6: =IF(AK6=0,CONCATENATE($R$28,ROUND(AG6/100,2)),IF(AK6=1,CONCATENATE(ROUND(AG6,0),$S$28),IF(AK6=4,CONCATENATE($R$28,AG6/100,"0"),IF(AK6=5,CONCATENATE(AG6,$S$28),IF(AK6=6,CONCATENATE($R$28,AG6/100),"xxx"))))) -> £58
C7: =CONCATENATE("Find the total bill if the supplier charges") -> Find the total bill if the supplier charges | V7: =CONCATENATE("",$H$4,$S$28,) -> 8.7p | Z7: per | AA7: =CONCATENATE("m³,") -> m³, | AF7: =ROUND(H4*D4,0) -> 5020
C8: adds a standing charge of | Q8: =CONCATENATE($AL$4) -> £7.80 | R8: a month then VAT. | AF8: =AF7-AF5 -> 0
AF9: =IF(AF8=0,0,1) -> 0
K10: cost of gas used | L10: = | M10: =CONCATENATE("(",E4) -> (7311 | P10: − | Q10: =CONCATENATE(C4,")") -> 6734) | T10: × | U10: =CONCATENATE(H4,S28) -> 8.7p | AF10: =ROUND(1.2*AF6,0) -> 6960 | AG10: =ROUND(AF10*1,0) -> 6960 | AH10: =IF(AG10<100,1,0) -> 0 | AI10: =IF(AG10/100=ROUNDDOWN(AG10/100,0),1,0) -> 0 | AJ10: =IF(AG10/10=ROUNDDOWN(AG10/10,0),1,0) -> 1 | AK10: =AH10+AI10*2+AJ10*4 -> 4 | AL10: =IF(AK10=0,CONCATENATE($R$28,ROUND(AG10/100,2)),IF(AK10=1,CONCATENATE(ROUND(AG10,0),$S$28),IF(AK10=4,CONCATENATE($R$28,AG10/100,"0"),IF(AK10=5,CONCATENATE(AG10,$S$28),IF(AK10=6,CONCATENATE($R$28,AG10/100),"xxx"))))) -> £69.60
J11: =IF(K11>0,CONCATENATE(" (nearest ",S28,")"),"") -> (nearest p) | K11: =H4*D4-ROUNDDOWN(H4*D4,0) -> 0.9 | L11: = | M11: =CONCATENATE(" ",E4-C4," × ",H4,S28) -> 577 × 8.7p
K12: =K10 -> cost of gas used | L12: = | M12: =CONCATENATE(" ",AL5,J11) -> £50.20 (nearest p)
K13: total bill | L13: = | M13: =CONCATENATE("(",AL5,"") -> (£50.20 | Q13: + | R13: =CONCATENATE("",AL4,")") -> £7.80) | V13: × | W13: =CONCATENATE(1.2) -> 1.2
L14: = | M14: =CONCATENATE(" ",AL6) -> £58 | Q14: × | R14: =CONCATENATE(1.2) -> 1.2
K15: =K13 -> total bill | L15: = | M15: =CONCATENATE(" ",AL10," (nearest ",S28,")") -> £69.60 (nearest p)
Q28: =E1 -> 1 | R28: =IF(Q28=1,"£",IF(Q28=2,"$",IF(Q28=3,"€","R"))) -> £ | S28: =IF(Q28=1,"p","c") -> p

Sheet WATER
E1: 1
C2: Find (i) the cost of water used (ii) the total bill
C3: =GASBILL!C3 -> including a standing charge plus 20% VAT. | Z3: =AF9 -> 0
C4: =INT(800*RAND())+100 -> 632 | D4: =N4*10+O4 -> 12 | E4: =D4+C4 -> 644 | F4: =1*(INT(55*RAND())+175) -> 198 | G4: =IF(R4>0.5,P4,Q4) -> 0.9 | H4: =F4+G4 -> 198.9 | I4: =(INT(5*RAND())+5) -> 6 | J4: =(INT(19*RAND())+1)*5 -> 55 | K4: =I4*100+J4 -> 655 | L4: =ROUND(H4/100,3) -> 1.989 | M4: =ROUND(H4*D4/100,5) -> 23.868 | N4: =INT(3*RAND())+1 -> 1 | O4: =IF(U4>0.5,S4,T4) -> 2 | P4: =(INT(4*RAND())+6)/10 -> 0.9 | Q4: =(INT(4*RAND())+1)/10 -> 0.2 | R4: =RAND() -> 0.7015986739 | S4: =(INT(4*RAND())+6)/1 -> 8 | T4: =(INT(4*RAND())+1)/1 -> 2 | U4: =RAND() -> 0.06179369387 | AF4: =ROUND(K4,0) -> 655 | AG4: =ROUND(AF4*1,0) -> 655 | AH4: =IF(AG4<100,1,0) -> 0 | AI4: =IF(AG4/100=ROUNDDOWN(AG4/100,0),1,0) -> 0 | AJ4: =IF(AG4/10=ROUNDDOWN(AG4/10,0),1,0) -> 0 | AK4: =AH4+AI4*2+AJ4*4 -> 0 | AL4: =IF(AK4=0,CONCATENATE($R$28,ROUND(AG4/100,2)),IF(AK4=1,CONCATENATE(ROUND(AG4,0),$S$28),IF(AK4=4,CONCATENATE($R$28,AG4/100,"0"),IF(AK4=5,CONCATENATE(AG4,$S$28),IF(AK4=6,CONCATENATE($R$28,AG4/100),"xxx"))))) -> £6.55
C5: A water meter at the start of the month read | Y5: =CONCATENATE(C4,) -> 632 | AA5: m³. | AF5: =ROUND(H4*D4,0) -> 2387 | AG5: =ROUND(AF5*1,0) -> 2387 | AH5: =IF(AG5<100,1,0) -> 0 | AI5: =IF(AG5/100=ROUNDDOWN(AG5/100,0),1,0) -> 0 | AJ5: =IF(AG5/10=ROUNDDOWN(AG5/10,0),1,0) -> 0 | AK5: =AH5+AI5*2+AJ5*4 -> 0 | AL5: =IF(AK5=0,CONCATENATE($R$28,ROUND(AG5/100,2)),IF(AK5=1,CONCATENATE(ROUND(AG5,0),$S$28),IF(AK5=4,CONCATENATE($R$28,AG5/100,"0"),IF(AK5=5,CONCATENATE(AG5,$S$28),IF(AK5=6,CONCATENATE($R$28,AG5/100),"xxx"))))) -> £23.87
C6: At the end of the month the | R6: meter | S6: indicated | Y6: =CONCATENATE(E4) -> 644 | AA6: =AA5 -> m³. | AF6: =ROUND(AF5+AF4,0) -> 3042 | AG6: =ROUND(AF6*1,0) -> 3042 | AH6: =IF(AG6<100,1,0) -> 0 | AI6: =IF(AG6/100=ROUNDDOWN(AG6/100,0),1,0) -> 0 | AJ6: =IF(AG6/10=ROUNDDOWN(AG6/10,0),1,0) -> 0 | AK6: =AH6+AI6*2+AJ6*4 -> 0 | AL6: =IF(AK6=0,CONCATENATE($R$28,ROUND(AG6/100,2)),IF(AK6=1,CONCATENATE(ROUND(AG6,0),$S$28),IF(AK6=4,CONCATENATE($R$28,AG6/100,"0"),IF(AK6=5,CONCATENATE(AG6,$S$28),IF(AK6=6,CONCATENATE($R$28,AG6/100),"xxx"))))) -> £30.42
C7: =CONCATENATE("Find the total bill if the utility charges") -> Find the total bill if the utility charges | X7: =CONCATENATE("",$R$28,$L$4,) -> £1.989 | Z7: per | AA7: =CONCATENATE("m³,") -> m³, | AF7: =ROUND(H4*D4,0) -> 2387
C8: =CONCATENATE("adds a standing charge of") -> adds a standing charge of | Q8: =CONCATENATE("",$AL$4,) -> £6.55 | R8: a month then VAT. | AF8: =AF7-AF5 -> 0
AF9: =IF(AF8=0,0,1) -> 0
K10: cost of water used | L10: = | M10: =CONCATENATE("(",E4) -> (644 | O10: − | P10: =CONCATENATE(C4,")") -> 632) | S10: × | T10: =CONCATENATE(R28,L4) -> £1.989 | AF10: =ROUND(1.2*AF6,0) -> 3650 | AG10: =ROUND(AF10*1,0) -> 3650 | AH10: =IF(AG10<100,1,0) -> 0 | AI10: =IF(AG10/100=ROUNDDOWN(AG10/100,0),1,0) -> 0 | AJ10: =IF(AG10/10=ROUNDDOWN(AG10/10,0),1,0) -> 1 | AK10: =AH10+AI10*2+AJ10*4 -> 4 | AL10: =IF(AK10=0,CONCATENATE($R$28,ROUND(AG10/100,2)),IF(AK10=1,CONCATENATE(ROUND(AG10,0),$S$28),IF(AK10=4,CONCATENATE($R$28,AG10/100,"0"),IF(AK10=5,CONCATENATE(AG10,$S$28),IF(AK10=6,CONCATENATE($R$28,AG10/100),"xxx"))))) -> £36.50
J11: =IF(K11>0,CONCATENATE(" (nearest ",S28,")"),"") -> (nearest p) | K11: =H4*D4-ROUNDDOWN(H4*D4,0) -> 0.8 | L11: = | M11: =CONCATENATE(" ",E4-C4," × ",R28,L4) -> 12 × £1.989
K12: =K10 -> cost of water used | L12: = | M12: =CONCATENATE(" ",AL5,J11) -> £23.87 (nearest p)
K13: =GASBILL!K13 -> total bill | L13: = | M13: =CONCATENATE("(",AL5,"") -> (£23.87 | Q13: + | R13: =CONCATENATE("",AL4,")") -> £6.55) | V13: × | W13: =CONCATENATE(1.2) -> 1.2
L14: = | M14: =CONCATENATE(" ",AL6) -> £30.42 | Q14: × | R14: =CONCATENATE(1.2) -> 1.2
K15: =K13 -> total bill | L15: = | M15: =CONCATENATE(" ",AL10," (nearest ",S28,")") -> £36.50 (nearest p)
Q28: =E1 -> 1 | R28: =IF(Q28=1,"£",IF(Q28=2,"$",IF(Q28=3,"€","R"))) -> £ | S28: =IF(Q28=1,"p","c") -> p

Sheet BASINT+VE
C2: =RFPDEPOSVE!C2 -> Evaluate each expression using a calculator.
AH3: =IF(AK4>5,INT(5*RAND())+5,IF(AK4>4,INT(6*RAND())+4,IF(AK4>2.5,INT(7*RAND())+3,INT(8*RAND())+2))) -> 8 | AK3: =(INT(12*RAND())+3)/2 -> 6.5
C4: =INT(10*RAND())+0 -> 0 | D4: =IF(RAND()>0.5,0,INT(9*RAND())+1) -> 0 | E4: =INT(9*RAND())+1 -> 3 | F4: =IF(RAND()>0.5,0,INT(9*RAND())+1) -> 8 | G4: =C4*1000+D4*100+E4*10+F4 -> 38 | H4: 1 | I4: 1 | J4: =(G4/H4)*I4 -> 38 | K4: =IF(RAND()>0.5,1,-1) -> 1 | L4: =IF(K4=1," + "," − ") -> + | M4: =INT(10*RAND())+0 -> 1 | N4: =IF(RAND()>0.5,0,INT(9*RAND())+1) -> 0 | O4: =INT(9*RAND())+1 -> 2 | P4: =IF(RAND()>0.5,0,INT(9*RAND())+1) -> 4 | Q4: =M4*1000+N4*100+O4*10+P4 -> 1024 | R4: 1 | S4: 1 | T4: =(Q4/R4)*S4 -> 1024 | U4: =IF(RAND()>0.5,1,-1) -> -1 | V4: =IF(U4=1," + "," − ") -> − | W4: =INT(10*RAND())+0 -> 5 | X4: =IF(RAND()>0.5,0,INT(9*RAND())+1) -> 0 | Y4: =INT(9*RAND())+1 -> 5 | Z4: =IF(RAND()>0.5,0,INT(9*RAND())+1) -> 2 | AA4: =W4*1000+X4*100+Y4*10+Z4 -> 5052 | AB4: 1 | AC4: 1 | AD4: =(AA4/AB4)*AC4 -> 5052 | AG4: =INT(10*RAND())+0 -> 4 | AH4: =IF(AG4=0,AH3,INT(9*RAND())+1) -> 7 | AI4: =IF(AI5=1,INT(9*RAND())+1,0) -> 0 | AJ4: =AG4+AH4/10+AI4/100 -> 4.7 | AK4: =(INT(12*RAND())+3)/2 -> 5
C5: =IF(RAND()>0.5,1,0) -> 0 | D5: =IF(C5=1,CONCATENATE(J4,L4,T4,V4,AD4),CONCATENATE(J4,L4,T4)) -> 38 + 1024 | AI5: =IF(RAND()>0.5,1,0) -> 0 | AJ5: =AJ4^AK4 -> 2293.45007 | AK5: =IF(AK9=0,0,1/300000000) -> 3.333333333e-09
U6: =D5 -> 38 + 1024 | V6: = | W6: =IF(C5=1,CONCATENATE(IF(ROUND(J4+K4*T4+U4*AD4,6)<0,"−",""),ABS(ROUND(J4+K4*T4+U4*AD4,6)),),CONCATENATE(IF(ROUND(J4+K4*T4,6)<0,"−",""),ABS(ROUND(J4+K4*T4,6)),)) -> 1062 | AI6: 2 | AJ6: =AJ5+AK5 -> 2293.45007 | AK6: =AJ6^1 -> 2293.45007 | AL6: =CONCATENATE(AJ6) -> 2293.45007000333 | AM6: =IF(AJ6=0,CONCATENATE("0",AJ8,""),CONCATENATE(AP6,AO6)) -> 2293.45 (2 d.p.) | AN6: =CONCATENATE(ROUND(AL7,9)) -> 2293.450070003 | AO6: =IF(AP7=0,CONCATENATE(AJ8),CONCATENATE(AT7,AJ8," (",AI6," d.p.)")) -> (2 d.p.) | AP6: =IF(AP7=0,AK7,AJ7) -> 2293.45 | AQ6: =ROUND(100*AJ7,0) -> 229345 | AR6: =AQ6-AQ7*100 -> 45 | AS6: =IF(AP7=0,"",IF(AR7=0,".0","")) ->  | AT6: =AQ6-AQ7*100-AR7*10 -> 5
C7: =INT(10*RAND())+0 -> 7 | D7: =INT(9*RAND())+1 -> 9 | E7: =C7*10+D7*1 -> 79 | F7: 1 | G7: 1 | H7: =(E7/F7)*G7 -> 79 | I7: × | J7: =INT(10*RAND())+0 -> 6 | K7: =INT(9*RAND())+1 -> 4 | L7: 0 | M7: =J7*10+K7*1 -> 64 | N7: 1 | O7: 1 | P7: =(M7/N7)*O7 -> 64 | Q7: × | R7: =INT(10*RAND())+0 -> 8 | S7: =INT(9*RAND())+1 -> 7 | T7: =R7*10+S7*1 -> 87 | U7: 1 | V7: 1 | W7: =(T7/U7)*V7 -> 87 | AI7: =ROUNDDOWN(AK6,0) -> 2293 | AJ7: =ROUND(AK6,AI6) -> 2293.45 | AK7: =ROUND(AK6,6) -> 2293.45007 | AL7: =ROUND(AK6,9) -> 2293.45007 | AM7: =ROUND(AL7-AI7,9) -> 0.450070003 | AN7: =ROUND(AK7-AI7,9) -> 0.45007 | AO7: =ROUND(AL7-AI7,9) -> 0.450070003 | AP7: =AO7-AN7 -> 2.999999971e-09 | AQ7: =ROUNDDOWN(AQ6/100,0) -> 2293 | AR7: =ROUNDDOWN(AR6/10,0) -> 4 | AS7: =IF(AT6=0,0,"") ->  | AT7: =IF(AI6=2,IF(AT6=0,CONCATENATE(AS6,AS7),AS7),AS6) -> 
C8: =INT(4*RAND())+1 -> 1 | D8: =IF(C8=1,CONCATENATE(H7,I7,P7,Q7,W7),IF(C8=2,CONCATENATE(H7,I7,P7),IF(C8=3,CONCATENATE("(",H7*P7," ÷ ",P7,") × ",W7),CONCATENATE(H7*P7," ÷ ",P7)))) -> 79 × 64 × 87 | AJ8: =IF(AK8="cm","","") ->  | AK8: NIL | AM8: =ROUND(AK6,2) -> 2293.45 | AN8: =AM6 -> 2293.45 (2 d.p.)
U9: =D8 -> 79 × 64 × 87 | V9: = | W9: =IF(C8=1,CONCATENATE(H7*P7*W7),IF(C8=2,CONCATENATE(H7*P7),IF(C8=3,CONCATENATE(W7*H7),CONCATENATE(H7)))) -> 439872 | AK9: =ROUND((AM9-AL9)*10000,7) -> 6999.999993 | AL9: =ROUNDDOWN(AM9,0) -> 22934500 | AM9: =10000*AN9 -> 22934500.7 | AN9: =CONCATENATE(AJ4^AK4) -> 2293.45007
C10: =INT(10*RAND())+0 -> 6 | D10: =IF(RAND()>0.5,0,INT(9*RAND())+1) -> 0 | E10: =INT(9*RAND())+1 -> 1 | F10: 0 | G10: =C10*100+D10*10+E10*1 -> 601 | H10: 1 | I10: 1 | J10: =(G10/H10)*I10 -> 601 | K10: 1 | L10: =IF(K10=1," + "," − ") -> + | M10: =INT(10*RAND())+0 -> 6 | N10: =IF(RAND()>0.5,0,INT(9*RAND())+1) -> 0 | O10: =INT(9*RAND())+1 -> 1 | P10: 0 | Q10: =M10*100+N10*10+O10*1 -> 601 | R10: 1 | S10: 1 | T10: =(Q10/R10)*S10 -> 601 | U10: =IF(RAND()>0.5,1,-1) -> 1 | V10: =IF(U10=1," + "," − ") -> + | W10: =INT(10*RAND())+0 -> 7 | X10: =IF(RAND()>0.5,0,INT(9*RAND())+1) -> 5 | Y10: =INT(9*RAND())+1 -> 7 | Z10: 0 | AA10: =W10*100+X10*10+Y10*1 -> 757 | AB10: 1 | AC10: 1 | AD10: =(AA10/AB10)*AC10 -> 757 | AH10: =IF(RAND()>0.5,1,0) -> 1 | AI10: =IF(RAND()>0.5,1,0) -> 0 | AJ10: =IF(RAND()>0.5,1,0) -> 0 | AK10: =IF(RAND()>0.5,1,0) -> 0 | AL10: =IF(AM10>0.75,1,IF(AM10>0.5,10,IF(AM10>0.25,100,1000))) -> 100 | AM10: =RAND() -> 0.3737944481
C11: =INT(8*RAND())+2 -> 3 | D11: =CONCATENATE(J10,L10,C11,"(",T10,V10,AD10,")") -> 601 + 3(601 + 757) | AH11: =IF(AI10=0,INT(99*RAND())+1,INT(9*RAND())+1) -> 45 | AI11: =IF(AI10=0,INT(10*RAND())+0,0) -> 4 | AJ11: =IF(AJ10=0,INT(10*RAND())+0,0) -> 0 | AK11: =IF(AK10=0,INT(10*RAND())+0,0) -> 5 | AL11: =(AH11*1000+AI11*100+AJ11*10+AK11)/AL10 -> 454.05 | AM11: =INT(6*RAND())+4 -> 4
U12: =D11 -> 601 + 3(601 + 757) | V12: = | W12: =CONCATENATE(IF(ROUND(J10+K10*C11*(T10+U10*AD10),6)<0,"−",""),ABS(ROUND(J10+K10*C11*(T10+U10*AD10),6))) -> 4675 | AI12: 2 | AJ12: =AL11^(1/AM11) -> 4.616107562 | AK12: =AJ12^1 -> 4.616107562 | AL12: =CONCATENATE(AJ12) -> 4.61610756249199 | AM12: =IF(AJ12=0,CONCATENATE("0",AJ14,""),CONCATENATE(AP12,AO12)) -> 4.62 (2 d.p.) | AN12: =CONCATENATE(ROUND(AL13,9)) -> 4.616107562 | AO12: =IF(AP13=0,CONCATENATE(AJ14),CONCATENATE(AT13,AJ14," (",AI12," d.p.)")) -> (2 d.p.) | AP12: =IF(AP13=0,AK13,AJ13) -> 4.62 | AQ12: =ROUND(100*AJ13,0) -> 462 | AR12: =AQ12-AQ13*100 -> 62 | AS12: =IF(AP13=0,"",IF(AR13=0,".0","")) ->  | AT12: =AQ12-AQ13*100-AR13*10 -> 2
AI13: =ROUNDDOWN(AK12,0) -> 4 | AJ13: =ROUND(AK12,AI12) -> 4.62 | AK13: =ROUND(AK12,6) -> 4.616108 | AL13: =ROUND(AK12,9) -> 4.616107562 | AM13: =ROUND(AL13-AI13,9) -> 0.616107562 | AN13: =ROUND(AK13-AI13,9) -> 0.616108 | AO13: =ROUND(AL13-AI13,9) -> 0.616107562 | AP13: =AO13-AN13 -> -4.379999999e-07 | AQ13: =ROUNDDOWN(AQ12/100,0) -> 4 | AR13: =ROUNDDOWN(AR12/10,0) -> 6 | AS13: =IF(AT12=0,0,"") ->  | AT13: =IF(AI12=2,IF(AT12=0,CONCATENATE(AS12,AS13),AS13),AS12) -> 
C14: =IF(RAND()>0.5,1,0) -> 0 | D14: =IF(C14=1,Y22,Y21) -> 250 × 37 − (18 − 94) | AH14: =IF(AI14<0,-1,1) ->  | AI14: =G7^(1/I7)+L7*R7^(1/T7) ->  | AJ14: =IF(AK14="cm","","") ->  | AK14: litres | AM14: =ROUND(AK12,2) -> 4.62 | AN14: =AM12 -> 4.62 (2 d.p.)
U15: =D14 -> 250 × 37 − (18 − 94) | V15: = | W15: =IF(C14=1,CONCATENATE(IF(AB22<0,"−",""),ABS(AB22)),CONCATENATE(IF(AB21<0,"−",""),ABS(AB21))) -> 9326 | AH15: 2 | AI15: =ABS(AI14) ->  | AJ15: =AI15^1 ->  | AK15: =CONCATENATE(AI15) ->  | AL15: =IF(AI15=0,CONCATENATE("0",AI17,""),CONCATENATE(AO15,AN15)) ->  | AM15: =CONCATENATE(ROUND(AK16,9)) ->  | AN15: =IF(AO16=0,CONCATENATE(AI17),CONCATENATE(AS16,AI17," (",AH15," d.p.)")) ->  | AO15: =IF(AO16=0,AJ16,AI16) ->  | AP15: =ROUND(100*AI16,0) ->  | AQ15: =AP15-AP16*100 ->  | AR15: =IF(AO16=0,"",IF(AQ16=0,".0","")) ->  | AS15: =AP15-AP16*100-AQ16*10 -> 
AH16: =ROUNDDOWN(AJ15,0) ->  | AI16: =ROUND(AJ15,AH15) ->  | AJ16: =ROUND(AJ15,6) ->  | AK16: =ROUND(AJ15,9) ->  | AL16: =ROUND(AK16-AH16,9) ->  | AM16: =ROUND(AJ16-AH16,9) ->  | AN16: =ROUND(AK16-AH16,9) ->  | AO16: =AN16-AM16 ->  | AP16: =ROUNDDOWN(AP15/100,0) ->  | AQ16: =ROUNDDOWN(AQ15/10,0) ->  | AR16: =IF(AS15=0,0,"") ->  | AS16: =IF(AH15=2,IF(AS15=0,CONCATENATE(AR15,AR16),AR16),AR15) -> 
AI17: =IF(AJ17="cm","","") ->  | AJ17: NIL | AL17: =ROUND(AJ15,2) -> 
AG20: (15.1² ± 3.2 × 15.123)³
C21: =INT(10*RAND())+0 -> 2 | D21: =INT(9*RAND())+1 -> 5 | E21: 0 | F21: 1 | G21: =((C21*100+D21*10+E21*1)/1)*F21 -> 250 | H21: =INT(10*RAND())+0 -> 3 | I21: =INT(9*RAND())+1 -> 7 | J21: 1 | K21: =((H21*10+I21*1)/1)*J21 -> 37 | L21: -1 | M21: =IF(L21=1," + "," − ") -> − | N21: =INT(10*RAND())+0 -> 1 | O21: =INT(9*RAND())+1 -> 8 | Q21: 1 | R21: =((N21*10+O21*1+P21*1)/1)*Q21 -> 18 | S21: =IF(RAND()>0.5,1,-1) -> -1 | T21: =IF(S21=1," + "," − ") -> − | U21: =INT(10*RAND())+0 -> 9 | V21: =INT(9*RAND())+1 -> 4 | W21: 1 | X21: =((U21*10+V21*1)/1)*W21 -> 94 | Y21: =CONCATENATE(G21," × ",K21,M21,"(",R21,T21,X21,")") -> 250 × 37 − (18 − 94) | AB21: =ROUND(G21*K21+L21*(R21+S21*X21),6) -> 9326 | AG21: 5 × √(3.2² ± 6.78³)
C22: =INT(10*RAND())+0 -> 2 | D22: =INT(9*RAND())+1 -> 9 | E22: 0 | F22: =((C22*10+D22*1+E22*1)/1) -> 29 | G22: =IF(RAND()>0.5,1,-1) -> -1 | H22: =IF(G22=1," + "," − ") -> − | I22: =INT(10*RAND())+0 -> 3 | J22: =INT(9*RAND())+1 -> 2 | K22: 1 | L22: =((I22*10+J22*1)/1)*K22 -> 32 | M22: =INT(10*RAND())+0 -> 6 | N22: =INT(9*RAND())+1 -> 9 | O22: =((M22*10+N22*1)/1) -> 69 | P22: =IF(RAND()>0.5,1,-1) -> -1 | Q22: =IF(P22=1," + "," − ") -> − | R22: =INT(10*RAND())+0 -> 9 | S22: =INT(9*RAND())+1 -> 8 | T22: 0 | U22: 1 | V22: =((R22*10+S22*1)/1)*U22 -> 98 | Y22: =IF(RAND()>0.5,CONCATENATE("(",F22,H22,L22,") × (",O22,Q22,V22,")"),CONCATENATE("(",O22,Q22,V22,") × (",F22,H22,L22,")")) -> (29 − 32) × (69 − 98) | AB22: =ROUND((F22+G22*L22)*(O22+P22*V22),6) -> 87 | AG22: ⅔ × √(3.2² + 6.78³)
AG23: ³√(3.2² + 6.78³)
AG24: √(3.2 + 6.78)
AG25: ³√(8.7 × 10¹º)
AG26: ³√(3.2 − 6.78)
AG27: √6.78 × ³√5.6
AG28: √(15.1² ± 3.2³)
AG29: ³√(15.1² ± 3.2 × 15.123)
AG30: (43.6 ± 13.92)³ + √4.68
AG31: (43.6 ± 13.92)² ± ³√4.68
AG33: 3.7² ± 6.7³
AG34: 3.7² × 6.7³
AG35: 5 × 6.78³
AG36: 1⅔ × 6.78³
AG37: √4.68 ± ³√4.68
AG38: √4.68 × ³√4.68
AG39: √4.68 ÷ ³√4.68
AG40: 6.7³ ± ³√4.68
AG41: 6.7³ × ³√4.68
AG42: 6.7³ ÷ ³√4.68
AG43: 6.78³³ × 5.6³³
AG44: 6.78³³ ÷ 5.6³³
AG45: 2⅝³

Sheet BASINT-VE
C2: ='BASINT+VE'!C2 -> Evaluate each expression using a calculator. | AH2: =IF(C8=1,H7*P7*W7,IF(C8=2,H7*P7,IF(C8=3,W7*H7,H7))) -> -46046 | AI2: =CONCATENATE(IF(H7<0,"−",""),ABS(H7),I7,IF(P7<0,"−",""),ABS(P7),Q7,IF(W7<0,"−",""),ABS(W7)) -> −13 × 77 × 46 | AJ2: =CONCATENATE(IF(H7<0,"−",""),ABS(H7),I7,IF(P7<0,"−",""),ABS(P7)) -> −13 × 77 | AK2: =CONCATENATE("(",IF(H7*P7<0,"−",""),ABS(H7*P7)," ÷ ",IF(P7<0,"−",""),ABS(P7),") × ",IF(W7<0,"−",""),ABS(W7)) -> (−1001 ÷ 77) × 46 | AL2: =CONCATENATE(IF(H7*P7<0,"−",""),ABS(H7*P7)," ÷ ",IF(P7<0,"−",""),ABS(P7)) -> −1001 ÷ 77 | AM2: x | AN2: x | AO2: x | AP2: x | AQ2: x | AR2: x | AS2: x | AT2: x
AH3: =IF(AK4>5,INT(5*RAND())+5,IF(AK4>4,INT(6*RAND())+4,IF(AK4>2.5,INT(7*RAND())+3,INT(8*RAND())+2))) -> 3 | AK3: =(INT(12*RAND())+3)/2 -> 2
C4: =INT(10*RAND())+0 -> 0 | D4: =IF(RAND()>0.5,0,INT(9*RAND())+1) -> 9 | E4: =INT(9*RAND())+1 -> 5 | F4: =IF(RAND()>0.5,0,INT(9*RAND())+1) -> 5 | G4: =C4*1000+D4*100+E4*10+F4 -> 955 | H4: 1 | I4: =IF(RAND()>0.5,1,-1) -> -1 | J4: =(G4/H4)*I4 -> -955 | K4: =IF(RAND()>0.5,1,-1) -> 1 | L4: =IF(K4=1," + "," − ") -> + | M4: =INT(10*RAND())+0 -> 7 | N4: =IF(RAND()>0.5,0,INT(9*RAND())+1) -> 0 | O4: =INT(9*RAND())+1 -> 4 | P4: =IF(RAND()>0.5,0,INT(9*RAND())+1) -> 8 | Q4: =M4*1000+N4*100+O4*10+P4 -> 7048 | R4: 1 | S4: =-I4 -> 1 | T4: =(Q4/R4)*S4 -> 7048 | U4: =IF(RAND()>0.5,1,-1) -> -1 | V4: =IF(U4=1," + "," − ") -> − | W4: =INT(10*RAND())+0 -> 9 | X4: =IF(RAND()>0.5,0,INT(9*RAND())+1) -> 6 | Y4: =INT(9*RAND())+1 -> 6 | Z4: =IF(RAND()>0.5,0,INT(9*RAND())+1) -> 0 | AA4: =W4*1000+X4*100+Y4*10+Z4 -> 9660 | AB4: 1 | AC4: =IF(RAND()>0.5,1,-1) -> -1 | AD4: =(AA4/AB4)*AC4 -> -9660 | AG4: =INT(10*RAND())+0 -> 4 | AH4: =IF(AG4=0,AH3,INT(9*RAND())+1) -> 6 | AI4: =IF(AI5=1,INT(9*RAND())+1,0) -> 0 | AJ4: =AG4+AH4/10+AI4/100 -> 4.6 | AK4: =(INT(12*RAND())+3)/2 -> 3.5
C5: =IF(RAND()>0.5,1,0) -> 0 | D5: =IF(C5=1,CONCATENATE(IF(J4<0,"−",""),ABS(J4),L4,IF(T4<0,"−",""),ABS(T4),V4,IF(AD4<0,"−",""),ABS(AD4)),CONCATENATE(IF(J4<0,"−",""),ABS(J4),L4,IF(T4<0,"−",""),ABS(T4))) -> −955 + 7048 | AI5: =IF(RAND()>0.5,1,0) -> 0 | AJ5: =AJ4^AK4 -> 208.7624624 | AK5: =IF(AK9=0,0,1/300000000) -> 3.333333333e-09
U6: =D5 -> −955 + 7048 | V6: = | W6: =IF(C5=1,CONCATENATE(IF(ROUND(J4+K4*T4+U4*AD4,6)<0,"−",""),ABS(ROUND(J4+K4*T4+U4*AD4,6)),),CONCATENATE(IF(ROUND(J4+K4*T4,6)<0,"−",""),ABS(ROUND(J4+K4*T4,6)),)) -> 6093 | AI6: 2 | AJ6: =AJ5+AK5 -> 208.7624624 | AK6: =AJ6^1 -> 208.7624624 | AL6: =CONCATENATE(AJ6) -> 208.762462437555 | AM6: =IF(AJ6=0,CONCATENATE("0",AJ8,""),CONCATENATE(AP6,AO6)) -> 208.76 (2 d.p.) | AN6: =CONCATENATE(ROUND(AL7,9)) -> 208.762462438 | AO6: =IF(AP7=0,CONCATENATE(AJ8),CONCATENATE(AT7,AJ8," (",AI6," d.p.)")) -> (2 d.p.) | AP6: =IF(AP7=0,AK7,AJ7) -> 208.76 | AQ6: =ROUND(100*AJ7,0) -> 20876 | AR6: =AQ6-AQ7*100 -> 76 | AS6: =IF(AP7=0,"",IF(AR7=0,".0","")) ->  | AT6: =AQ6-AQ7*100-AR7*10 -> 6
C7: =INT(10*RAND())+0 -> 1 | D7: =INT(9*RAND())+1 -> 3 | E7: =C7*10+D7*1 -> 13 | F7: 1 | G7: =IF(RAND()>0.5,1,-1) -> -1 | H7: =(E7/F7)*G7 -> -13 | I7: × | J7: =INT(10*RAND())+0 -> 7 | K7: =INT(9*RAND())+1 -> 7 | L7: 0 | M7: =J7*10+K7*1 -> 77 | N7: 1 | O7: =-G7 -> 1 | P7: =(M7/N7)*O7 -> 77 | Q7: × | R7: =INT(10*RAND())+0 -> 4 | S7: =INT(9*RAND())+1 -> 6 | T7: =R7*10+S7*1 -> 46 | U7: 1 | V7: =IF(RAND()>0.5,1,-1) -> 1 | W7: =(T7/U7)*V7 -> 46 | AI7: =ROUNDDOWN(AK6,0) -> 208 | AJ7: =ROUND(AK6,AI6) -> 208.76 | AK7: =ROUND(AK6,6) -> 208.762462 | AL7: =ROUND(AK6,9) -> 208.7624624 | AM7: =ROUND(AL7-AI7,9) -> 0.762462438 | AN7: =ROUND(AK7-AI7,9) -> 0.762462 | AO7: =ROUND(AL7-AI7,9) -> 0.762462438 | AP7: =AO7-AN7 -> 4.38e-07 | AQ7: =ROUNDDOWN(AQ6/100,0) -> 208 | AR7: =ROUNDDOWN(AR6/10,0) -> 7 | AS7: =IF(AT6=0,0,"") ->  | AT7: =IF(AI6=2,IF(AT6=0,CONCATENATE(AS6,AS7),AS7),AS6) -> 
C8: =INT(4*RAND())+1 -> 1 | D8: =IF(C8=1,AI2,IF(C8=2,AJ2,IF(C8=3,AK2,AL2))) -> −13 × 77 × 46 | AJ8: =IF(AK8="cm","","") ->  | AK8: NIL | AM8: =ROUND(AK6,2) -> 208.76 | AN8: =AM6 -> 208.76 (2 d.p.)
U9: =D8 -> −13 × 77 × 46 | V9: = | W9: =CONCATENATE(IF(AH2<0,"−",""),ABS(AH2)) -> −46046 | AK9: =ROUND((AM9-AL9)*10000,7) -> 6243.422199 | AL9: =ROUNDDOWN(AM9,0) -> 2087624 | AM9: =10000*AN9 -> 2087624.624 | AN9: =CONCATENATE(AJ4^AK4) -> 208.762462434222
C10: =INT(10*RAND())+0 -> 0 | D10: =IF(RAND()>0.5,0,INT(9*RAND())+1) -> 2 | E10: =INT(9*RAND())+1 -> 6 | F10: 0 | G10: =C10*100+D10*10+E10*1 -> 26 | H10: 1 | I10: =IF(RAND()>0.5,1,-1) -> -1 | J10: =(G10/H10)*I10 -> -26 | K10: =IF(RAND()>0.5,1,-1) -> -1 | L10: =IF(K10=1," + "," − ") -> − | M10: =INT(10*RAND())+0 -> 1 | N10: =IF(RAND()>0.5,0,INT(9*RAND())+1) -> 4 | O10: =INT(9*RAND())+1 -> 7 | P10: 0 | Q10: =M10*100+N10*10+O10*1 -> 147 | R10: 1 | S10: 1 | T10: =(Q10/R10)*S10 -> 147 | U10: =IF(RAND()>0.5,1,-1) -> 1 | V10: =IF(U10=1," + "," − ") -> + | W10: =INT(10*RAND())+0 -> 7 | X10: =IF(RAND()>0.5,0,INT(9*RAND())+1) -> 9 | Y10: =INT(9*RAND())+1 -> 1 | Z10: 0 | AA10: =W10*100+X10*10+Y10*1 -> 791 | AB10: 1 | AC10: =IF(RAND()>0.5,1,-1) -> 1 | AD10: =(AA10/AB10)*AC10 -> 791 | AH10: =IF(RAND()>0.5,1,0) -> 1 | AI10: =IF(RAND()>0.5,1,0) -> 0 | AJ10: =IF(RAND()>0.5,1,0) -> 1 | AK10: =IF(RAND()>0.5,1,0) -> 0 | AL10: =IF(AM10>0.75,1,IF(AM10>0.5,10,IF(AM10>0.25,100,1000))) -> 10 | AM10: =RAND() -> 0.6111230259
C11: =INT(8*RAND())+2 -> 4 | D11: =CONCATENATE(IF(J10<0,"−",""),ABS(J10),L10,C11,"(",T10,V10,IF(AD10<0,"−",""),ABS(AD10),")") -> −26 − 4(147 + 791) | AH11: =IF(AI10=0,INT(99*RAND())+1,INT(9*RAND())+1) -> 41 | AI11: =IF(AI10=0,INT(10*RAND())+0,0) -> 1 | AJ11: =IF(AJ10=0,INT(10*RAND())+0,0) -> 0 | AK11: =IF(AK10=0,INT(10*RAND())+0,0) -> 3 | AL11: =(AH11*1000+AI11*100+AJ11*10+AK11)/AL10 -> 4110.3 | AM11: =INT(6*RAND())+4 -> 6
U12: =D11 -> −26 − 4(147 + 791) | V12: = | W12: =CONCATENATE(IF(ROUND(J10+K10*C11*(T10+U10*AD10),6)<0,"−",""),ABS(ROUND(J10+K10*C11*(T10+U10*AD10),6))) -> −3778 | AI12: 2 | AJ12: =AL11^(1/AM11) -> 4.002324095 | AK12: =AJ12^1 -> 4.002324095 | AL12: =CONCATENATE(AJ12) -> 4.0023240954546 | AM12: =IF(AJ12=0,CONCATENATE("0",AJ14,""),CONCATENATE(AP12,AO12)) -> 4.00 (2 d.p.) | AN12: =CONCATENATE(ROUND(AL13,9)) -> 4.002324095 | AO12: =IF(AP13=0,CONCATENATE(AJ14),CONCATENATE(AT13,AJ14," (",AI12," d.p.)")) -> .00 (2 d.p.) | AP12: =IF(AP13=0,AK13,AJ13) -> 4 | AQ12: =ROUND(100*AJ13,0) -> 400 | AR12: =AQ12-AQ13*100 -> 0 | AS12: =IF(AP13=0,"",IF(AR13=0,".0","")) -> .0 | AT12: =AQ12-AQ13*100-AR13*10 -> 0
AI13: =ROUNDDOWN(AK12,0) -> 4 | AJ13: =ROUND(AK12,AI12) -> 4 | AK13: =ROUND(AK12,6) -> 4.002324 | AL13: =ROUND(AK12,9) -> 4.002324095 | AM13: =ROUND(AL13-AI13,9) -> 0.002324095 | AN13: =ROUND(AK13-AI13,9) -> 0.002324 | AO13: =ROUND(AL13-AI13,9) -> 0.002324095 | AP13: =AO13-AN13 -> 9.5e-08 | AQ13: =ROUNDDOWN(AQ12/100,0) -> 4 | AR13: =ROUNDDOWN(AR12/10,0) -> 0 | AS13: =IF(AT12=0,0,"") -> 0 | AT13: =IF(AI12=2,IF(AT12=0,CONCATENATE(AS12,AS13),AS13),AS12) -> .00
C14: =IF(RAND()>0.5,1,0) -> 0 | D14: =IF(C14=1,Y22,Y21) -> −370 × 6 − (85 + −11) | AH14: =IF(AI14<0,-1,1) ->  | AI14: =G7^(1/I7)+L7*R7^(1/T7) ->  | AJ14: =IF(AK14="cm","","") ->  | AK14: litres | AM14: =ROUND(AK12,2) -> 4 | AN14: =AM12 -> 4.00 (2 d.p.)
U15: =D14 -> −370 × 6 − (85 + −11) | V15: = | W15: =IF(C14=1,CONCATENATE(IF(AB22<0,"−",""),ABS(AB22)),CONCATENATE(IF(AB21<0,"−",""),ABS(AB21))) -> −2294 | AH15: 2 | AI15: =ABS(AI14) ->  | AJ15: =AI15^1 ->  | AK15: =CONCATENATE(AI15) ->  | AL15: =IF(AI15=0,CONCATENATE("0",AI17,""),CONCATENATE(AO15,AN15)) ->  | AM15: =CONCATENATE(ROUND(AK16,9)) ->  | AN15: =IF(AO16=0,CONCATENATE(AI17),CONCATENATE(AS16,AI17," (",AH15," d.p.)")) ->  | AO15: =IF(AO16=0,AJ16,AI16) ->  | AP15: =ROUND(100*AI16,0) ->  | AQ15: =AP15-AP16*100 ->  | AR15: =IF(AO16=0,"",IF(AQ16=0,".0","")) ->  | AS15: =AP15-AP16*100-AQ16*10 -> 
AH16: =ROUNDDOWN(AJ15,0) ->  | AI16: =ROUND(AJ15,AH15) ->  | AJ16: =ROUND(AJ15,6) ->  | AK16: =ROUND(AJ15,9) ->  | AL16: =ROUND(AK16-AH16,9) ->  | AM16: =ROUND(AJ16-AH16,9) ->  | AN16: =ROUND(AK16-AH16,9) ->  | AO16: =AN16-AM16 ->  | AP16: =ROUNDDOWN(AP15/100,0) ->  | AQ16: =ROUNDDOWN(AQ15/10,0) ->  | AR16: =IF(AS15=0,0,"") ->  | AS16: =IF(AH15=2,IF(AS15=0,CONCATENATE(AR15,AR16),AR16),AR15) -> 
AI17: =IF(AJ17="cm","","") ->  | AJ17: NIL | AL17: =ROUND(AJ15,2) -> 
AG20: (15.1² ± 3.2 × 15.123)³
C21: =INT(10*RAND())+0 -> 3 | D21: =INT(9*RAND())+1 -> 7 | E21: 0 | F21: =IF(RAND()>0.5,1,-1) -> -1 | G21: =((C21*100+D21*10+E21*1)/1)*F21 -> -370 | H21: =INT(10*RAND())+0 -> 0 | I21: =INT(9*RAND())+1 -> 6 | J21: =IF(RAND()>0.5,1,-1) -> 1 | K21: =((H21*10+I21*1)/1)*J21 -> 6 | L21: -1 | M21: =IF(L21=1," + "," − ") -> − | N21: =INT(10*RAND())+0 -> 8 | O21: =INT(9*RAND())+1 -> 5 | Q21: 1 | R21: =((N21*10+O21*1+P21*1)/1)*Q21 -> 85 | S21: =IF(RAND()>0.5,1,-1) -> 1 | T21: =IF(S21=1," + "," − ") -> + | U21: =INT(10*RAND())+0 -> 1 | V21: =INT(9*RAND())+1 -> 1 | W21: =-Q21 -> -1 | X21: =((U21*10+V21*1)/1)*W21 -> -11 | Y21: =CONCATENATE(IF(G21<0,"−",""),ABS(G21)," × ",IF(K21<0,"−",""),ABS(K21),M21,"(",R21,T21,IF(X21<0,"−",""),ABS(X21),")") -> −370 × 6 − (85 + −11) | AB21: =ROUND(G21*K21+L21*(R21+S21*X21),6) -> -2294 | AG21: 5 × √(3.2² ± 6.78³)
C22: =INT(10*RAND())+0 -> 0 | D22: =INT(9*RAND())+1 -> 3 | E22: 0 | F22: =((C22*10+D22*1+E22*1)/1) -> 3 | G22: =IF(RAND()>0.5,1,-1) -> -1 | H22: =IF(G22=1," + "," − ") -> − | I22: =INT(10*RAND())+0 -> 6 | J22: =INT(9*RAND())+1 -> 3 | K22: =IF(RAND()>0.5,1,-1) -> -1 | L22: =((I22*10+J22*1)/1)*K22 -> -63 | M22: =INT(10*RAND())+0 -> 9 | N22: =INT(9*RAND())+1 -> 6 | O22: =((M22*10+N22*1)/1) -> 96 | P22: =IF(RAND()>0.5,1,-1) -> 1 | Q22: =IF(P22=1," + "," − ") -> + | R22: =INT(10*RAND())+0 -> 7 | S22: =INT(9*RAND())+1 -> 6 | T22: 0 | U22: =IF(RAND()>0.5,1,-1) -> 1 | V22: =((R22*10+S22*1)/1)*U22 -> 76 | Y22: =IF(RAND()>0.5,Y23,Y24) -> (3 − −63) × (96 + 76) | AB22: =ROUND((F22+G22*L22)*(O22+P22*V22),6) -> 11352 | AG22: ⅔ × √(3.2² + 6.78³)
Y23: =CONCATENATE("(",F22,H22,IF(L22<0,"−",""),ABS(L22),") × (",O22,Q22,IF(V22<0,"−",""),ABS(V22),")") -> (3 − −63) × (96 + 76) | AG23: ³√(3.2² + 6.78³)
Y24: =CONCATENATE("(",O22,Q22,IF(V22<0,"−",""),ABS(V22),") × (",F22,H22,IF(L22<0,"−",""),ABS(L22),")") -> (96 + 76) × (3 − −63) | AG24: √(3.2 + 6.78)
AG25: ³√(8.7 × 10¹º)
AG26: ³√(3.2 − 6.78)
AG27: √6.78 × ³√5.6
AG28: √(15.1² ± 3.2³)
AG29: ³√(15.1² ± 3.2 × 15.123)
AG30: (43.6 ± 13.92)³ + √4.68
AG31: (43.6 ± 13.92)² ± ³√4.68
AG33: 3.7² ± 6.7³
AG34: 3.7² × 6.7³
AG35: 5 × 6.78³
AG36: 1⅔ × 6.78³
AG37: √4.68 ± ³√4.68
AG38: √4.68 × ³√4.68
AG39: √4.68 ÷ ³√4.68
AG40: 6.7³ ± ³√4.68
AG41: 6.7³ × ³√4.68
AG42: 6.7³ ÷ ³√4.68
AG43: 6.78³³ × 5.6³³
AG44: 6.78³³ ÷ 5.6³³
AG45: 2⅝³

Sheet BASDEC+VE
C2: =RFPDEPOSVE!C2 -> Evaluate each expression using a calculator. | AH2: x | AI2: x | AJ2: x
AH3: =IF(AK4>5,INT(5*RAND())+5,IF(AK4>4,INT(6*RAND())+4,IF(AK4>2.5,INT(7*RAND())+3,INT(8*RAND())+2))) -> 7 | AK3: =(INT(12*RAND())+3)/2 -> 4.5
C4: =INT(10*RAND())+0 -> 6 | D4: =IF(RAND()>0.5,0,INT(9*RAND())+1) -> 2 | E4: =INT(9*RAND())+1 -> 1 | F4: =IF(RAND()>0.5,0,INT(9*RAND())+1) -> 9 | G4: =C4*1000+D4*100+E4*10+F4 -> 6219 | H4: =IF(RAND()>0.5,100,1000) -> 100 | I4: 1 | J4: =(G4/H4)*I4 -> 62.19 | K4: =IF(RAND()>0.5,1,-1) -> -1 | L4: =IF(K4=1," + "," − ") -> − | M4: =INT(10*RAND())+0 -> 9 | N4: =IF(RAND()>0.5,0,INT(9*RAND())+1) -> 6 | O4: =INT(9*RAND())+1 -> 8 | P4: =IF(RAND()>0.5,0,INT(9*RAND())+1) -> 0 | Q4: =M4*1000+N4*100+O4*10+P4 -> 9680 | R4: =IF(RAND()>0.5,100,1000) -> 1000 | S4: 1 | T4: =(Q4/R4)*S4 -> 9.68 | U4: =IF(RAND()>0.5,1,-1) -> 1 | V4: =IF(U4=1," + "," − ") -> + | W4: =INT(10*RAND())+0 -> 4 | X4: =IF(RAND()>0.5,0,INT(9*RAND())+1) -> 0 | Y4: =INT(9*RAND())+1 -> 5 | Z4: =IF(RAND()>0.5,0,INT(9*RAND())+1) -> 8 | AA4: =W4*1000+X4*100+Y4*10+Z4 -> 4058 | AB4: =IF(RAND()>0.5,100,1000) -> 1000 | AC4: 1 | AD4: =(AA4/AB4)*AC4 -> 4.058 | AG4: =INT(10*RAND())+0 -> 2 | AH4: =IF(AG4=0,AH3,INT(9*RAND())+1) -> 5 | AI4: =IF(AI5=1,INT(9*RAND())+1,0) -> 0 | AJ4: =AG4+AH4/10+AI4/100 -> 2.5 | AK4: =(INT(12*RAND())+3)/2 -> 5.5
C5: =IF(RAND()>0.5,1,0) -> 0 | D5: =IF(C5=1,CONCATENATE(J4,L4,T4,V4,AD4),CONCATENATE(J4,L4,T4)) -> 62.19 − 9.68 | AI5: =IF(RAND()>0.5,1,0) -> 0 | AJ5: =AJ4^AK4 -> 154.4080889 | AK5: =IF(AK9=0,0,1/300000000) -> 3.333333333e-09
U6: =D5 -> 62.19 − 9.68 | V6: = | W6: =IF(C5=1,CONCATENATE(IF(ROUND(J4+K4*T4+U4*AD4,6)<0,"−",""),ABS(ROUND(J4+K4*T4+U4*AD4,6)),),CONCATENATE(IF(ROUND(J4+K4*T4,6)<0,"−",""),ABS(ROUND(J4+K4*T4,6)),)) -> 52.51 | AI6: 2 | AJ6: =AJ5+AK5 -> 154.4080889 | AK6: =AJ6^1 -> 154.4080889 | AL6: =CONCATENATE(AJ6) -> 154.408088878742 | AM6: =IF(AJ6=0,CONCATENATE("0",AJ8,""),CONCATENATE(AP6,AO6)) -> 154.41 (2 d.p.) | AN6: =CONCATENATE(ROUND(AL7,9)) -> 154.408088879 | AO6: =IF(AP7=0,CONCATENATE(AJ8),CONCATENATE(AT7,AJ8," (",AI6," d.p.)")) -> (2 d.p.) | AP6: =IF(AP7=0,AK7,AJ7) -> 154.41 | AQ6: =ROUND(100*AJ7,0) -> 15441 | AR6: =AQ6-AQ7*100 -> 41 | AS6: =IF(AP7=0,"",IF(AR7=0,".0","")) ->  | AT6: =AQ6-AQ7*100-AR7*10 -> 1
C7: =INT(10*RAND())+0 -> 6 | D7: =INT(9*RAND())+1 -> 6 | E7: =C7*1000+D7*100 -> 6600 | F7: 1000 | G7: 1 | H7: =(E7/F7)*G7 -> 6.6 | I7: × | J7: =INT(10*RAND())+0 -> 0 | K7: =INT(9*RAND())+1 -> 4 | L7: =IF(RAND()>0.5,0,INT(9*RAND())+1) -> 0 | M7: =J7*1000+K7*100+L7*10 -> 400 | N7: 1000 | O7: 1 | P7: =(M7/N7)*O7 -> 0.4 | Q7: × | R7: =INT(10*RAND())+0 -> 9 | S7: =INT(9*RAND())+1 -> 2 | T7: =R7*1000+S7*100 -> 9200 | U7: 1000 | V7: 1 | W7: =(T7/U7)*V7 -> 9.2 | AI7: =ROUNDDOWN(AK6,0) -> 154 | AJ7: =ROUND(AK6,AI6) -> 154.41 | AK7: =ROUND(AK6,6) -> 154.408089 | AL7: =ROUND(AK6,9) -> 154.4080889 | AM7: =ROUND(AL7-AI7,9) -> 0.408088879 | AN7: =ROUND(AK7-AI7,9) -> 0.408089 | AO7: =ROUND(AL7-AI7,9) -> 0.408088879 | AP7: =AO7-AN7 -> -1.21e-07 | AQ7: =ROUNDDOWN(AQ6/100,0) -> 154 | AR7: =ROUNDDOWN(AR6/10,0) -> 4 | AS7: =IF(AT6=0,0,"") ->  | AT7: =IF(AI6=2,IF(AT6=0,CONCATENATE(AS6,AS7),AS7),AS6) -> 
C8: =INT(4*RAND())+1 -> 4 | D8: =IF(C8=1,CONCATENATE(H7,I7,P7,Q7,W7),IF(C8=2,CONCATENATE(H7,I7,P7),IF(C8=3,CONCATENATE("(",H7*P7," ÷ ",P7,") × ",W7),CONCATENATE(H7*P7," ÷ ",P7)))) -> 2.64 ÷ 0.4 | AJ8: =IF(AK8="cm","","") ->  | AK8: NIL | AM8: =ROUND(AK6,2) -> 154.41 | AN8: =AM6 -> 154.41 (2 d.p.)
U9: =D8 -> 2.64 ÷ 0.4 | V9: = | W9: =IF(C8=1,CONCATENATE(H7*P7*W7),IF(C8=2,CONCATENATE(H7*P7),IF(C8=3,CONCATENATE(W7*H7),CONCATENATE(H7)))) -> 6.6 | AK9: =ROUND((AM9-AL9)*10000,7) -> 8887.540898 | AL9: =ROUNDDOWN(AM9,0) -> 1544080 | AM9: =10000*AN9 -> 1544080.889 | AN9: =CONCATENATE(AJ4^AK4) -> 154.408088875409
C10: =INT(10*RAND())+0 -> 4 | D10: =IF(RAND()>0.5,0,INT(9*RAND())+1) -> 0 | E10: =INT(9*RAND())+1 -> 4 | F10: =IF(RAND()>0.5,0,INT(9*RAND())+1) -> 0 | G10: =C10*1000+D10*100+E10*10+F10 -> 4040 | H10: =IF(RAND()>0.5,100,1000) -> 1000 | I10: 1 | J10: =(G10/H10)*I10 -> 4.04 | K10: 1 | L10: =IF(K10=1," + "," − ") -> + | M10: =INT(10*RAND())+0 -> 9 | N10: =IF(RAND()>0.5,0,INT(9*RAND())+1) -> 0 | O10: =INT(9*RAND())+1 -> 7 | P10: =IF(RAND()>0.5,0,INT(9*RAND())+1) -> 4 | Q10: =M10*1000+N10*100+O10*10+P10 -> 9074 | R10: =IF(RAND()>0.5,100,1000) -> 1000 | S10: 1 | T10: =(Q10/R10)*S10 -> 9.074 | U10: =IF(RAND()>0.5,1,-1) -> 1 | V10: =IF(U10=1," + "," − ") -> + | W10: =INT(10*RAND())+0 -> 8 | X10: =IF(RAND()>0.5,0,INT(9*RAND())+1) -> 3 | Y10: =INT(9*RAND())+1 -> 4 | Z10: =IF(RAND()>0.5,0,INT(9*RAND())+1) -> 5 | AA10: =W10*1000+X10*100+Y10*10+Z10 -> 8345 | AB10: =IF(RAND()>0.5,100,1000) -> 1000 | AC10: 1 | AD10: =(AA10/AB10)*AC10 -> 8.345 | AH10: =IF(RAND()>0.5,1,0) -> 0 | AI10: =IF(RAND()>0.5,1,0) -> 0 | AJ10: =IF(RAND()>0.5,1,0) -> 0 | AK10: =IF(RAND()>0.5,1,0) -> 1 | AL10: =IF(AM10>0.75,1,IF(AM10>0.5,10,IF(AM10>0.25,100,1000))) -> 1 | AM10: =RAND() -> 0.9923040459
C11: =INT(8*RAND())+2 -> 3 | D11: =CONCATENATE(J10,L10,C11,"(",T10,V10,AD10,")") -> 4.04 + 3(9.074 + 8.345) | AH11: =IF(AI10=0,INT(99*RAND())+1,INT(9*RAND())+1) -> 56 | AI11: =IF(AI10=0,INT(10*RAND())+0,0) -> 6 | AJ11: =IF(AJ10=0,INT(10*RAND())+0,0) -> 2 | AK11: =IF(AK10=0,INT(10*RAND())+0,0) -> 0 | AL11: =(AH11*1000+AI11*100+AJ11*10+AK11)/AL10 -> 56620 | AM11: =INT(6*RAND())+4 -> 8
U12: =D11 -> 4.04 + 3(9.074 + 8.345) | V12: = | W12: =CONCATENATE(IF(ROUND(J10+K10*C11*(T10+U10*AD10),6)<0,"−",""),ABS(ROUND(J10+K10*C11*(T10+U10*AD10),6))) -> 56.297 | AI12: 2 | AJ12: =AL11^(1/AM11) -> 3.927545574 | AK12: =AJ12^1 -> 3.927545574 | AL12: =CONCATENATE(AJ12) -> 3.92754557373959 | AM12: =IF(AJ12=0,CONCATENATE("0",AJ14,""),CONCATENATE(AP12,AO12)) -> 3.93 (2 d.p.) | AN12: =CONCATENATE(ROUND(AL13,9)) -> 3.927545574 | AO12: =IF(AP13=0,CONCATENATE(AJ14),CONCATENATE(AT13,AJ14," (",AI12," d.p.)")) -> (2 d.p.) | AP12: =IF(AP13=0,AK13,AJ13) -> 3.93 | AQ12: =ROUND(100*AJ13,0) -> 393 | AR12: =AQ12-AQ13*100 -> 93 | AS12: =IF(AP13=0,"",IF(AR13=0,".0","")) ->  | AT12: =AQ12-AQ13*100-AR13*10 -> 3
AI13: =ROUNDDOWN(AK12,0) -> 3 | AJ13: =ROUND(AK12,AI12) -> 3.93 | AK13: =ROUND(AK12,6) -> 3.927546 | AL13: =ROUND(AK12,9) -> 3.927545574 | AM13: =ROUND(AL13-AI13,9) -> 0.927545574 | AN13: =ROUND(AK13-AI13,9) -> 0.927546 | AO13: =ROUND(AL13-AI13,9) -> 0.927545574 | AP13: =AO13-AN13 -> -4.259999999e-07 | AQ13: =ROUNDDOWN(AQ12/100,0) -> 3 | AR13: =ROUNDDOWN(AR12/10,0) -> 9 | AS13: =IF(AT12=0,0,"") ->  | AT13: =IF(AI12=2,IF(AT12=0,CONCATENATE(AS12,AS13),AS13),AS12) -> 
C14: =IF(RAND()>0.5,1,0) -> 0 | D14: =IF(C14=1,Y22,Y21) -> 0.09 × 1.2 − (3.13 + 2.3) | AH14: =IF(AI14<0,-1,1) ->  | AI14: =G7^(1/I7)+L7*R7^(1/T7) ->  | AJ14: =IF(AK14="cm","","") ->  | AK14: litres | AM14: =ROUND(AK12,2) -> 3.93 | AN14: =AM12 -> 3.93 (2 d.p.)
U15: =D14 -> 0.09 × 1.2 − (3.13 + 2.3) | V15: = | W15: =IF(C14=1,CONCATENATE(IF(AB22<0,"−",""),ABS(AB22)),CONCATENATE(IF(AB21<0,"−",""),ABS(AB21))) -> −5.322 | AH15: 2 | AI15: =ABS(AI14) ->  | AJ15: =AI15^1 ->  | AK15: =CONCATENATE(AI15) ->  | AL15: =IF(AI15=0,CONCATENATE("0",AI17,""),CONCATENATE(AO15,AN15)) ->  | AM15: =CONCATENATE(ROUND(AK16,9)) ->  | AN15: =IF(AO16=0,CONCATENATE(AI17),CONCATENATE(AS16,AI17," (",AH15," d.p.)")) ->  | AO15: =IF(AO16=0,AJ16,AI16) ->  | AP15: =ROUND(100*AI16,0) ->  | AQ15: =AP15-AP16*100 ->  | AR15: =IF(AO16=0,"",IF(AQ16=0,".0","")) ->  | AS15: =AP15-AP16*100-AQ16*10 -> 
AH16: =ROUNDDOWN(AJ15,0) ->  | AI16: =ROUND(AJ15,AH15) ->  | AJ16: =ROUND(AJ15,6) ->  | AK16: =ROUND(AJ15,9) ->  | AL16: =ROUND(AK16-AH16,9) ->  | AM16: =ROUND(AJ16-AH16,9) ->  | AN16: =ROUND(AK16-AH16,9) ->  | AO16: =AN16-AM16 ->  | AP16: =ROUNDDOWN(AP15/100,0) ->  | AQ16: =ROUNDDOWN(AQ15/10,0) ->  | AR16: =IF(AS15=0,0,"") ->  | AS16: =IF(AH15=2,IF(AS15=0,CONCATENATE(AR15,AR16),AR16),AR15) -> 
AI17: =IF(AJ17="cm","","") ->  | AJ17: NIL | AL17: =ROUND(AJ15,2) -> 
AG20: (15.1² ± 3.2 × 15.123)³
C21: =INT(10*RAND())+0 -> 0 | D21: =IF(RAND()>0.5,0,INT(9*RAND())+1) -> 0 | E21: =INT(9*RAND())+1 -> 9 | F21: 1 | G21: =((C21*1000+D21*100+E21*10)/1000)*F21 -> 0.09 | H21: =INT(10*RAND())+0 -> 1 | I21: =INT(9*RAND())+1 -> 2 | J21: 1 | K21: =((H21*1000+I21*100)/1000)*J21 -> 1.2 | L21: -1 | M21: =IF(L21=1," + "," − ") -> − | N21: =INT(10*RAND())+0 -> 3 | O21: =IF(RAND()>0.5,0,INT(9*RAND())+1) -> 1 | P21: =INT(9*RAND())+1 -> 3 | Q21: 1 | R21: =((N21*1000+O21*100+P21*10)/1000)*Q21 -> 3.13 | S21: =IF(RAND()>0.5,1,-1) -> 1 | T21: =IF(S21=1," + "," − ") -> + | U21: =INT(10*RAND())+0 -> 2 | V21: =INT(9*RAND())+1 -> 3 | W21: 1 | X21: =((U21*1000+V21*100)/1000)*W21 -> 2.3 | Y21: =CONCATENATE(G21," × ",K21,M21,"(",R21,T21,X21,")") -> 0.09 × 1.2 − (3.13 + 2.3) | AB21: =ROUND(G21*K21+L21*(R21+S21*X21),6) -> -5.322 | AG21: 5 × √(3.2² ± 6.78³)
C22: =INT(10*RAND())+0 -> 2 | D22: =IF(RAND()>0.5,0,INT(9*RAND())+1) -> 0 | E22: =INT(9*RAND())+1 -> 3 | F22: =((C22*1000+D22*100+E22*10)/1000) -> 2.03 | G22: =IF(RAND()>0.5,1,-1) -> 1 | H22: =IF(G22=1," + "," − ") -> + | I22: =INT(10*RAND())+0 -> 2 | J22: =INT(9*RAND())+1 -> 2 | K22: 1 | L22: =((I22*1000+J22*100)/1000)*K22 -> 2.2 | M22: =INT(10*RAND())+0 -> 7 | N22: =INT(9*RAND())+1 -> 6 | O22: =((M22*1000+N22*100)/1000) -> 7.6 | P22: =IF(RAND()>0.5,1,-1) -> 1 | Q22: =IF(P22=1," + "," − ") -> + | R22: =INT(10*RAND())+0 -> 0 | S22: =IF(RAND()>0.5,0,INT(9*RAND())+1) -> 0 | T22: =INT(9*RAND())+1 -> 1 | U22: 1 | V22: =((R22*1000+S22*100+T22*10)/1000)*U22 -> 0.01 | Y22: =IF(RAND()>0.5,CONCATENATE("(",F22,H22,L22,") × (",O22,Q22,V22,")"),CONCATENATE("(",O22,Q22,V22,") × (",F22,H22,L22,")")) -> (2.03 + 2.2) × (7.6 + 0.01) | AB22: =ROUND((F22+G22*L22)*(O22+P22*V22),6) -> 32.1903 | AG22: ⅔ × √(3.2² + 6.78³)
AG23: ³√(3.2² + 6.78³)
AG24: √(3.2 + 6.78)
AG25: ³√(8.7 × 10¹º)
AG26: ³√(3.2 − 6.78)
AG27: √6.78 × ³√5.6
AG28: √(15.1² ± 3.2³)
AG29: ³√(15.1² ± 3.2 × 15.123)
AG30: (43.6 ± 13.92)³ + √4.68
AG31: (43.6 ± 13.92)² ± ³√4.68
AG33: 3.7² ± 6.7³
AG34: 3.7² × 6.7³
AG35: 5 × 6.78³
AG36: 1⅔ × 6.78³
AG37: √4.68 ± ³√4.68
AG38: √4.68 × ³√4.68
AG39: √4.68 ÷ ³√4.68
AG40: 6.7³ ± ³√4.68
AG41: 6.7³ × ³√4.68
AG42: 6.7³ ÷ ³√4.68
AG43: 6.78³³ × 5.6³³
AG44: 6.78³³ ÷ 5.6³³
AG45: 2⅝³

Sheet BASDEC-VE
C2: =RFPDEPOSVE!C2 -> Evaluate each expression using a calculator. | AH2: =IF(C8=1,H7*P7*W7,IF(C8=2,H7*P7,IF(C8=3,W7*H7,H7))) -> -36.96 | AI2: =IF(C14=1,AB22,AB21) -> -5.3784 | AJ2: =CONCATENATE(IF(H7<0,"−",""),ABS(H7),I7,IF(P7<0,"−",""),ABS(P7),Q7,IF(W7<0,"−",""),ABS(W7)) -> 5.6 × −9.3 × −6.6 | AK2: =CONCATENATE(IF(H7<0,"−",""),ABS(H7),I7,IF(P7<0,"−",""),ABS(P7)) -> 5.6 × −9.3 | AL2: =CONCATENATE("(",IF(H7*P7<0,"−",""),ABS(H7*P7)," ÷ ",IF(P7<0,"−",""),ABS(P7),") × ",IF(W7<0,"−",""),ABS(W7)) -> (−52.08 ÷ −9.3) × −6.6 | AM2: =CONCATENATE(IF(H7*P7<0,"−",""),ABS(H7*P7)," ÷ ",IF(P7<0,"−",""),ABS(P7)) -> −52.08 ÷ −9.3 | AN2: x | AO2: x | AP2: x | AQ2: x
AH3: =IF(AK4>5,INT(5*RAND())+5,IF(AK4>4,INT(6*RAND())+4,IF(AK4>2.5,INT(7*RAND())+3,INT(8*RAND())+2))) -> 6 | AK3: =(INT(12*RAND())+3)/2 -> 2.5
C4: =INT(10*RAND())+0 -> 3 | D4: =IF(RAND()>0.5,0,INT(9*RAND())+1) -> 0 | E4: =INT(9*RAND())+1 -> 4 | F4: =IF(RAND()>0.5,0,INT(9*RAND())+1) -> 0 | G4: =C4*1000+D4*100+E4*10+F4 -> 3040 | H4: =IF(RAND()>0.5,100,1000) -> 1000 | I4: =IF(RAND()>0.5,1,-1) -> -1 | J4: =(G4/H4)*I4 -> -3.04 | K4: =IF(RAND()>0.5,1,-1) -> -1 | L4: =IF(K4=1," + "," − ") -> − | M4: =INT(10*RAND())+0 -> 3 | N4: =IF(RAND()>0.5,0,INT(9*RAND())+1) -> 0 | O4: =INT(9*RAND())+1 -> 7 | P4: =IF(RAND()>0.5,0,INT(9*RAND())+1) -> 7 | Q4: =M4*1000+N4*100+O4*10+P4 -> 3077 | R4: =IF(RAND()>0.5,100,1000) -> 1000 | S4: =-I4 -> 1 | T4: =(Q4/R4)*S4 -> 3.077 | U4: =IF(RAND()>0.5,1,-1) -> -1 | V4: =IF(U4=1," + "," − ") -> − | W4: =INT(10*RAND())+0 -> 7 | X4: =IF(RAND()>0.5,0,INT(9*RAND())+1) -> 0 | Y4: =INT(9*RAND())+1 -> 7 | Z4: =IF(RAND()>0.5,0,INT(9*RAND())+1) -> 0 | AA4: =W4*1000+X4*100+Y4*10+Z4 -> 7070 | AB4: =IF(RAND()>0.5,100,1000) -> 100 | AC4: =IF(RAND()>0.5,1,-1) -> 1 | AD4: =(AA4/AB4)*AC4 -> 70.7 | AG4: =INT(10*RAND())+0 -> 2 | AH4: =IF(AG4=0,AH3,INT(9*RAND())+1) -> 8 | AI4: =IF(AI5=1,INT(9*RAND())+1,0) -> 9 | AJ4: =AG4+AH4/10+AI4/100 -> 2.89 | AK4: =(INT(12*RAND())+3)/2 -> 6.5
C5: =IF(RAND()>0.5,1,0) -> 1 | D5: =IF(C5=1,CONCATENATE(IF(J4<0,"−",""),ABS(J4),L4,IF(T4<0,"−",""),ABS(T4),V4,IF(AD4<0,"−",""),ABS(AD4)),CONCATENATE(IF(J4<0,"−",""),ABS(J4),L4,IF(T4<0,"−",""),ABS(T4))) -> −3.04 − 3.077 − 70.7 | AI5: =IF(RAND()>0.5,1,0) -> 1 | AJ5: =AJ4^AK4 -> 990.4578033 | AK5: =IF(AK9=0,0,1/300000000) -> 3.333333333e-09
U6: =D5 -> −3.04 − 3.077 − 70.7 | V6: = | W6: =IF(C5=1,CONCATENATE(IF(ROUND(J4+K4*T4+U4*AD4,6)<0,"−",""),ABS(ROUND(J4+K4*T4+U4*AD4,6)),),CONCATENATE(IF(ROUND(J4+K4*T4,6)<0,"−",""),ABS(ROUND(J4+K4*T4,6)),)) -> −76.817 | AI6: 2 | AJ6: =AJ5+AK5 -> 990.4578033 | AK6: =AJ6^1 -> 990.4578033 | AL6: =CONCATENATE(AJ6) -> 990.457803293927 | AM6: =IF(AJ6=0,CONCATENATE("0",AJ8,""),CONCATENATE(AP6,AO6)) -> 990.46 (2 d.p.) | AN6: =CONCATENATE(ROUND(AL7,9)) -> 990.457803294 | AO6: =IF(AP7=0,CONCATENATE(AJ8),CONCATENATE(AT7,AJ8," (",AI6," d.p.)")) -> (2 d.p.) | AP6: =IF(AP7=0,AK7,AJ7) -> 990.46 | AQ6: =ROUND(100*AJ7,0) -> 99046 | AR6: =AQ6-AQ7*100 -> 46 | AS6: =IF(AP7=0,"",IF(AR7=0,".0","")) ->  | AT6: =AQ6-AQ7*100-AR7*10 -> 6
C7: =INT(10*RAND())+0 -> 5 | D7: =INT(9*RAND())+1 -> 6 | E7: =C7*1000+D7*100 -> 5600 | F7: 1000 | G7: =IF(RAND()>0.5,1,-1) -> 1 | H7: =(E7/F7)*G7 -> 5.6 | I7: × | J7: =INT(10*RAND())+0 -> 9 | K7: =INT(9*RAND())+1 -> 3 | L7: =IF(RAND()>0.5,0,INT(9*RAND())+1) -> 0 | M7: =J7*1000+K7*100+L7*10 -> 9300 | N7: 1000 | O7: =-G7 -> -1 | P7: =(M7/N7)*O7 -> -9.3 | Q7: × | R7: =INT(10*RAND())+0 -> 6 | S7: =INT(9*RAND())+1 -> 6 | T7: =R7*1000+S7*100 -> 6600 | U7: 1000 | V7: =IF(RAND()>0.5,1,-1) -> -1 | W7: =(T7/U7)*V7 -> -6.6 | AI7: =ROUNDDOWN(AK6,0) -> 990 | AJ7: =ROUND(AK6,AI6) -> 990.46 | AK7: =ROUND(AK6,6) -> 990.457803 | AL7: =ROUND(AK6,9) -> 990.4578033 | AM7: =ROUND(AL7-AI7,9) -> 0.457803294 | AN7: =ROUND(AK7-AI7,9) -> 0.457803 | AO7: =ROUND(AL7-AI7,9) -> 0.457803294 | AP7: =AO7-AN7 -> 2.94e-07 | AQ7: =ROUNDDOWN(AQ6/100,0) -> 990 | AR7: =ROUNDDOWN(AR6/10,0) -> 4 | AS7: =IF(AT6=0,0,"") ->  | AT7: =IF(AI6=2,IF(AT6=0,CONCATENATE(AS6,AS7),AS7),AS6) -> 
C8: =INT(4*RAND())+1 -> 3 | D8: =IF(C8=1,AJ2,IF(C8=2,AK2,IF(C8=3,AL2,AM2))) -> (−52.08 ÷ −9.3) × −6.6 | AJ8: =IF(AK8="cm","","") ->  | AK8: NIL | AM8: =ROUND(AK6,2) -> 990.46 | AN8: =AM6 -> 990.46 (2 d.p.)
U9: =D8 -> (−52.08 ÷ −9.3) × −6.6 | V9: = | W9: =CONCATENATE(IF(AH2<0,"−",""),ABS(AH2)) -> −36.96 | AK9: =ROUND((AM9-AL9)*10000,7) -> 329.0593997 | AL9: =ROUNDDOWN(AM9,0) -> 9904578 | AM9: =10000*AN9 -> 9904578.033 | AN9: =CONCATENATE(AJ4^AK4) -> 990.457803290594
C10: =INT(10*RAND())+0 -> 5 | D10: =IF(RAND()>0.5,0,INT(9*RAND())+1) -> 0 | E10: =INT(9*RAND())+1 -> 3 | F10: =IF(RAND()>0.5,0,INT(9*RAND())+1) -> 0 | G10: =C10*1000+D10*100+E10*10+F10 -> 5030 | H10: =IF(RAND()>0.5,100,1000) -> 100 | I10: =IF(RAND()>0.5,1,-1) -> -1 | J10: =(G10/H10)*I10 -> -50.3 | K10: =IF(RAND()>0.5,1,-1) -> -1 | L10: =IF(K10=1," + "," − ") -> − | M10: =INT(10*RAND())+0 -> 2 | N10: =IF(RAND()>0.5,0,INT(9*RAND())+1) -> 6 | O10: =INT(9*RAND())+1 -> 4 | P10: =IF(RAND()>0.5,0,INT(9*RAND())+1) -> 8 | Q10: =M10*1000+N10*100+O10*10+P10 -> 2648 | R10: =IF(RAND()>0.5,100,1000) -> 1000 | S10: 1 | T10: =(Q10/R10)*S10 -> 2.648 | U10: =IF(RAND()>0.5,1,-1) -> 1 | V10: =IF(U10=1," + "," − ") -> + | W10: =INT(10*RAND())+0 -> 7 | X10: =IF(RAND()>0.5,0,INT(9*RAND())+1) -> 3 | Y10: =INT(9*RAND())+1 -> 6 | Z10: =IF(RAND()>0.5,0,INT(9*RAND())+1) -> 7 | AA10: =W10*1000+X10*100+Y10*10+Z10 -> 7367 | AB10: =IF(RAND()>0.5,100,1000) -> 1000 | AC10: =IF(RAND()>0.5,1,-1) -> 1 | AD10: =(AA10/AB10)*AC10 -> 7.367 | AH10: =IF(RAND()>0.5,1,0) -> 1 | AI10: =IF(RAND()>0.5,1,0) -> 0 | AJ10: =IF(RAND()>0.5,1,0) -> 1 | AK10: =IF(RAND()>0.5,1,0) -> 1 | AL10: =IF(AM10>0.75,1,IF(AM10>0.5,10,IF(AM10>0.25,100,1000))) -> 1000 | AM10: =RAND() -> 0.1366710131
C11: =INT(8*RAND())+2 -> 4 | D11: =CONCATENATE(IF(J10<0,"−",""),ABS(J10),L10,C11,"(",T10,V10,IF(AD10<0,"−",""),ABS(AD10),")") -> −50.3 − 4(2.648 + 7.367) | AH11: =IF(AI10=0,INT(99*RAND())+1,INT(9*RAND())+1) -> 84 | AI11: =IF(AI10=0,INT(10*RAND())+0,0) -> 6 | AJ11: =IF(AJ10=0,INT(10*RAND())+0,0) -> 0 | AK11: =IF(AK10=0,INT(10*RAND())+0,0) -> 0 | AL11: =(AH11*1000+AI11*100+AJ11*10+AK11)/AL10 -> 84.6 | AM11: =INT(6*RAND())+4 -> 9
U12: =D11 -> −50.3 − 4(2.648 + 7.367) | V12: = | W12: =CONCATENATE(IF(ROUND(J10+K10*C11*(T10+U10*AD10),6)<0,"−",""),ABS(ROUND(J10+K10*C11*(T10+U10*AD10),6))) -> −90.36 | AI12: 2 | AJ12: =AL11^(1/AM11) -> 1.637390486 | AK12: =AJ12^1 -> 1.637390486 | AL12: =CONCATENATE(AJ12) -> 1.63739048581857 | AM12: =IF(AJ12=0,CONCATENATE("0",AJ14,""),CONCATENATE(AP12,AO12)) -> 1.64 (2 d.p.) | AN12: =CONCATENATE(ROUND(AL13,9)) -> 1.637390486 | AO12: =IF(AP13=0,CONCATENATE(AJ14),CONCATENATE(AT13,AJ14," (",AI12," d.p.)")) -> (2 d.p.) | AP12: =IF(AP13=0,AK13,AJ13) -> 1.64 | AQ12: =ROUND(100*AJ13,0) -> 164 | AR12: =AQ12-AQ13*100 -> 64 | AS12: =IF(AP13=0,"",IF(AR13=0,".0","")) ->  | AT12: =AQ12-AQ13*100-AR13*10 -> 4
AI13: =ROUNDDOWN(AK12,0) -> 1 | AJ13: =ROUND(AK12,AI12) -> 1.64 | AK13: =ROUND(AK12,6) -> 1.63739 | AL13: =ROUND(AK12,9) -> 1.637390486 | AM13: =ROUND(AL13-AI13,9) -> 0.637390486 | AN13: =ROUND(AK13-AI13,9) -> 0.63739 | AO13: =ROUND(AL13-AI13,9) -> 0.637390486 | AP13: =AO13-AN13 -> 4.86e-07 | AQ13: =ROUNDDOWN(AQ12/100,0) -> 1 | AR13: =ROUNDDOWN(AR12/10,0) -> 6 | AS13: =IF(AT12=0,0,"") ->  | AT13: =IF(AI12=2,IF(AT12=0,CONCATENATE(AS12,AS13),AS13),AS12) -> 
C14: =IF(RAND()>0.5,1,0) -> 1 | D14: =IF(C14=1,Y22,Y21) -> (5.06 + −3.4) × (5.9 − 9.14) | AH14: =IF(AI14<0,-1,1) ->  | AI14: =G7^(1/I7)+L7*R7^(1/T7) ->  | AJ14: =IF(AK14="cm","","") ->  | AK14: litres | AM14: =ROUND(AK12,2) -> 1.64 | AN14: =AM12 -> 1.64 (2 d.p.)
U15: =D14 -> (5.06 + −3.4) × (5.9 − 9.14) | V15: = | W15: =CONCATENATE(IF(AI2<0,"−",""),ABS(AI2)) -> −5.3784 | AH15: 2 | AI15: =ABS(AI14) ->  | AJ15: =AI15^1 ->  | AK15: =CONCATENATE(AI15) ->  | AL15: =IF(AI15=0,CONCATENATE("0",AI17,""),CONCATENATE(AO15,AN15)) ->  | AM15: =CONCATENATE(ROUND(AK16,9)) ->  | AN15: =IF(AO16=0,CONCATENATE(AI17),CONCATENATE(AS16,AI17," (",AH15," d.p.)")) ->  | AO15: =IF(AO16=0,AJ16,AI16) ->  | AP15: =ROUND(100*AI16,0) ->  | AQ15: =AP15-AP16*100 ->  | AR15: =IF(AO16=0,"",IF(AQ16=0,".0","")) ->  | AS15: =AP15-AP16*100-AQ16*10 -> 
AH16: =ROUNDDOWN(AJ15,0) ->  | AI16: =ROUND(AJ15,AH15) ->  | AJ16: =ROUND(AJ15,6) ->  | AK16: =ROUND(AJ15,9) ->  | AL16: =ROUND(AK16-AH16,9) ->  | AM16: =ROUND(AJ16-AH16,9) ->  | AN16: =ROUND(AK16-AH16,9) ->  | AO16: =AN16-AM16 ->  | AP16: =ROUNDDOWN(AP15/100,0) ->  | AQ16: =ROUNDDOWN(AQ15/10,0) ->  | AR16: =IF(AS15=0,0,"") ->  | AS16: =IF(AH15=2,IF(AS15=0,CONCATENATE(AR15,AR16),AR16),AR15) -> 
AI17: =IF(AJ17="cm","","") ->  | AJ17: NIL | AL17: =ROUND(AJ15,2) -> 
AG20: (15.1² ± 3.2 × 15.123)³
C21: =INT(10*RAND())+0 -> 5 | D21: =IF(RAND()>0.5,0,INT(9*RAND())+1) -> 7 | E21: =INT(9*RAND())+1 -> 7 | F21: =IF(RAND()>0.5,1,-1) -> 1 | G21: =((C21*1000+D21*100+E21*10)/1000)*F21 -> 5.77 | H21: =INT(10*RAND())+0 -> 6 | I21: =INT(9*RAND())+1 -> 7 | J21: =IF(RAND()>0.5,1,-1) -> 1 | K21: =((H21*1000+I21*100)/1000)*J21 -> 6.7 | L21: -1 | M21: =IF(L21=1," + "," − ") -> − | N21: =INT(10*RAND())+0 -> 0 | O21: =IF(RAND()>0.5,0,INT(9*RAND())+1) -> 0 | P21: =INT(9*RAND())+1 -> 6 | Q21: 1 | R21: =((N21*1000+O21*100+P21*10)/1000)*Q21 -> 0.06 | S21: =IF(RAND()>0.5,1,-1) -> -1 | T21: =IF(S21=1," + "," − ") -> − | U21: =INT(10*RAND())+0 -> 0 | V21: =INT(9*RAND())+1 -> 1 | W21: =-Q21 -> -1 | X21: =((U21*1000+V21*100)/1000)*W21 -> -0.1 | Y21: =CONCATENATE(IF(G21<0,"−",""),ABS(G21)," × ",IF(K21<0,"−",""),ABS(K21),M21,"(",R21,T21,IF(X21<0,"−",""),ABS(X21),")") -> 5.77 × 6.7 − (0.06 − −0.1) | AB21: =ROUND(G21*K21+L21*(R21+S21*X21),6) -> 38.499 | AG21: 5 × √(3.2² ± 6.78³)
C22: =INT(10*RAND())+0 -> 5 | D22: =IF(RAND()>0.5,0,INT(9*RAND())+1) -> 0 | E22: =INT(9*RAND())+1 -> 6 | F22: =((C22*1000+D22*100+E22*10)/1000) -> 5.06 | G22: =IF(RAND()>0.5,1,-1) -> 1 | H22: =IF(G22=1," + "," − ") -> + | I22: =INT(10*RAND())+0 -> 3 | J22: =INT(9*RAND())+1 -> 4 | K22: =IF(RAND()>0.5,1,-1) -> -1 | L22: =((I22*1000+J22*100)/1000)*K22 -> -3.4 | M22: =INT(10*RAND())+0 -> 5 | N22: =INT(9*RAND())+1 -> 9 | O22: =((M22*1000+N22*100)/1000) -> 5.9 | P22: =IF(RAND()>0.5,1,-1) -> -1 | Q22: =IF(P22=1," + "," − ") -> − | R22: =INT(10*RAND())+0 -> 9 | S22: =IF(RAND()>0.5,0,INT(9*RAND())+1) -> 1 | T22: =INT(9*RAND())+1 -> 4 | U22: =IF(RAND()>0.5,1,-1) -> 1 | V22: =((R22*1000+S22*100+T22*10)/1000)*U22 -> 9.14 | Y22: =IF(RAND()>0.5,Y23,Y24) -> (5.06 + −3.4) × (5.9 − 9.14) | AB22: =ROUND((F22+G22*L22)*(O22+P22*V22),6) -> -5.3784 | AG22: ⅔ × √(3.2² + 6.78³)
Y23: =CONCATENATE("(",F22,H22,IF(L22<0,"−",""),ABS(L22),") × (",O22,Q22,IF(V22<0,"−",""),ABS(V22),")") -> (5.06 + −3.4) × (5.9 − 9.14) | AG23: ³√(3.2² + 6.78³)
Y24: =CONCATENATE("(",O22,Q22,IF(V22<0,"−",""),ABS(V22),") × (",F22,H22,IF(L22<0,"−",""),ABS(L22),")") -> (5.9 − 9.14) × (5.06 + −3.4) | AG24: √(3.2 + 6.78)
AG25: ³√(8.7 × 10¹º)
AG26: ³√(3.2 − 6.78)
AG27: √6.78 × ³√5.6
AG28: √(15.1² ± 3.2³)
AG29: ³√(15.1² ± 3.2 × 15.123)
AG30: (43.6 ± 13.92)³ + √4.68
AG31: (43.6 ± 13.92)² ± ³√4.68
AG33: 3.7² ± 6.7³
AG34: 3.7² × 6.7³
AG35: 5 × 6.78³
AG36: 1⅔ × 6.78³
AG37: √4.68 ± ³√4.68
AG38: √4.68 × ³√4.68
AG39: √4.68 ÷ ³√4.68
AG40: 6.7³ ± ³√4.68
AG41: 6.7³ × ³√4.68
AG42: 6.7³ ÷ ³√4.68
AG43: 6.78³³ × 5.6³³
AG44: 6.78³³ ÷ 5.6³³
AG45: 2⅝³

Sheet FRAINT+VE
C2: =RFPDEPOSVE!C2 -> Evaluate each expression using a calculator. | AH2: x | AI2: x | AJ2: x
C3: =RFPDEPOSVE!C3 -> Round to 2 d.p. when necessary.
B4: =10*(INT(9*RAND())+1)+1*(INT(9*RAND())+1) -> 91 | C4: =IF(RAND()>0.5,0,B4) -> 0 | D4: =IF(C4=0,0,IF(RAND()>0.5,1,-1)) -> 0 | E4: =IF(D4=1,"+",IF(D4=0,"","−")) ->  | F4: 1 | G4: =IF(F4=2,"",3) -> 3 | H4: =IF(RAND()>0.5,100*(INT(9*RAND())+1)+10*(INT(9*RAND())+1)+INT(9*RAND())+1,10*(INT(9*RAND())+1)+INT(9*RAND())+1) -> 82 | I4: 1 | J4: =H4/I4 -> 82 | K4: =1*(INT(9*RAND())+1)+10*(INT(9*RAND())+1) -> 89 | L4: =RAND() -> 0.336221306 | M4: 1 | N4: =IF(M4=1,"",IF(M4=2,"²","³")) ->  | O4: =IF(D4=-1,C4-1*(((K4^M4)/J4)^(1/F4)),C4+1*(((K4^M4)/J4)^(1/F4))) -> 1.085365854 | P4: =RAND() -> 0.3609641089
C5: =IF(C4=0,"",CONCATENATE(" ",C4," ",E4," ")) ->  | G5: =CONCATENATE(" ",K4,N4," ") -> 89
I6: = | J6: =CONCATENATE(IF(ROUND(O4,8)<0,"−",""),ABS(ROUND(O4,8))) -> 1.08536585 | S6: = | T6: =AJ6 -> 1.09 (2 d.p.) | AF6: 2 | AG6: =O4 -> 1.085365854 | AH6: =AG6^1 -> 1.085365854 | AI6: =CONCATENATE(AG6) -> 1.08536585365854 | AJ6: =IF(AG6=0,CONCATENATE("0",AG8,""),CONCATENATE(AM6,AL6)) -> 1.09 (2 d.p.) | AK6: =CONCATENATE(ROUND(AI7,9)) -> 1.085365854 | AL6: =IF(AM7=0,CONCATENATE(AG8),CONCATENATE(AQ7,AG8," (",AF6," d.p.)")) -> (2 d.p.) | AM6: =IF(AM7=0,AH7,AG7) -> 1.09 | AN6: =ROUND(100*AG7,0) -> 109 | AO6: =AN6-AN7*100 -> 9 | AP6: =IF(AM7=0,"",IF(AO7=0,".0","")) -> .0 | AQ6: =AN6-AN7*100-AO7*10 -> 9
G7: =CONCATENATE(" ",J4," ") -> 82 | AF7: =ROUNDDOWN(AH6,0) -> 1 | AG7: =ROUND(AH6,AF6) -> 1.09 | AH7: =ROUND(AH6,6) -> 1.085366 | AI7: =ROUND(AH6,9) -> 1.085365854 | AJ7: =ROUND(AI7-AF7,9) -> 0.085365854 | AK7: =ROUND(AH7-AF7,9) -> 0.085366 | AL7: =ROUND(AI7-AF7,9) -> 0.085365854 | AM7: =AL7-AK7 -> -1.46e-07 | AN7: =ROUNDDOWN(AN6/100,0) -> 1 | AO7: =ROUNDDOWN(AO6/10,0) -> 0 | AP7: =IF(AQ6=0,0,"") ->  | AQ7: =IF(AF6=2,IF(AQ6=0,CONCATENATE(AP6,AP7),AP7),AP6) -> 
AG8: =IF(AH8="cm","","") ->  | AH8: NIL | AJ8: =ROUND(AH6,2) -> 1.09
B10: =10*(INT(9*RAND())+1)+1*(INT(9*RAND())+1) -> 42 | C10: =IF(RAND()>0.5,0,B10) -> 0 | D10: =IF(C10=0,0,IF(RAND()>0.5,1,-1)) -> 0 | E10: =IF(D10=1,"+",IF(D10=0,"","−")) ->  | F10: 1 | G10: =IF(F10=2,"",3) -> 3 | H10: =IF(RAND()>0.5,100*(INT(9*RAND())+1)+10*(INT(9*RAND())+1)+INT(9*RAND())+1,10*(INT(9*RAND())+1)+INT(9*RAND())+1) -> 343 | I10: 1 | J10: =H10/I10 -> 343 | K10: =1*(INT(9*RAND())+1)+10*(INT(9*RAND())+1) -> 89 | L10: =RAND() -> 0.1796234243 | M10: 1 | N10: =IF(M10=1,"",IF(M10=2,"²","³")) ->  | O10: =IF(D10=-1,C10-1*((J10/(K10^M10))^(1/F10)),C10+1*((J10/(K10^M10))^(1/F10))) -> 3.853932584 | P10: =RAND() -> 0.6814799641
C11: =IF(C10=0,"",CONCATENATE(" ",C10," ",E10," ")) ->  | G11: =CONCATENATE(" ",J10," ") -> 343
I12: = | J12: =CONCATENATE(IF(ROUND(O10,8)<0,"−",""),ABS(ROUND(O10,8))) -> 3.85393258 | S12: = | T12: =CONCATENATE(IF(O10<0,"−",""),AJ12) -> 3.85 (2 d.p.) | AF12: 2 | AG12: =ABS(O10) -> 3.853932584 | AH12: =AG12^1 -> 3.853932584 | AI12: =CONCATENATE(AG12) -> 3.85393258426966 | AJ12: =IF(AG12=0,CONCATENATE("0",AG14,""),CONCATENATE(AM12,AL12)) -> 3.85 (2 d.p.) | AK12: =CONCATENATE(ROUND(AI13,9)) -> 3.853932584 | AL12: =IF(AM13=0,CONCATENATE(AG14),CONCATENATE(AQ13,AG14," (",AF12," d.p.)")) -> (2 d.p.) | AM12: =IF(AM13=0,AH13,AG13) -> 3.85 | AN12: =ROUND(100*AG13,0) -> 385 | AO12: =AN12-AN13*100 -> 85 | AP12: =IF(AM13=0,"",IF(AO13=0,".0","")) ->  | AQ12: =AN12-AN13*100-AO13*10 -> 5
G13: =CONCATENATE(K10,N10) -> 89 | AF13: =ROUNDDOWN(AH12,0) -> 3 | AG13: =ROUND(AH12,AF12) -> 3.85 | AH13: =ROUND(AH12,6) -> 3.853933 | AI13: =ROUND(AH12,9) -> 3.853932584 | AJ13: =ROUND(AI13-AF13,9) -> 0.853932584 | AK13: =ROUND(AH13-AF13,9) -> 0.853933 | AL13: =ROUND(AI13-AF13,9) -> 0.853932584 | AM13: =AL13-AK13 -> -4.16e-07 | AN13: =ROUNDDOWN(AN12/100,0) -> 3 | AO13: =ROUNDDOWN(AO12/10,0) -> 8 | AP13: =IF(AQ12=0,0,"") ->  | AQ13: =IF(AF12=2,IF(AQ12=0,CONCATENATE(AP12,AP13),AP13),AP12) -> 
AG14: =IF(AH14="cm","","") ->  | AH14: NIL | AJ14: =ROUND(AH12,2) -> 3.85
C15: =D44 -> 3
D16: =IF($C$15=1,D37,IF($C$15=2,D38,IF($C$15=3,D39,IF($C$15=4,D40,IF($C$15=5,D41,D42))))) -> 1 | O16: =IF($C$15=1,O37,IF($C$15=2,O38,IF($C$15=3,O39,IF($C$15=4,O40,IF($C$15=5,O41,O42))))) -> 80 − 51 | P16: =IF($C$15=1,P37,IF($C$15=2,P38,IF($C$15=3,P39,IF($C$15=4,P40,IF($C$15=5,P41,P42))))) -> 29 | Q16: =IF($C$15=1,Q37,IF($C$15=2,Q38,IF($C$15=3,Q39,IF($C$15=4,Q40,IF($C$15=5,Q41,Q42))))) -> 43 | R16: =IF($C$15=1,R37,IF($C$15=2,R38,IF($C$15=3,R39,IF($C$15=4,R40,IF($C$15=5,R41,R42))))) -> 1 | AA16: =IF($C$15=1,AA37,IF($C$15=2,AA38,IF($C$15=3,AA39,IF($C$15=4,AA40,IF($C$15=5,AA41,AA42))))) -> 43 − 1 | AB16: =IF($C$15=1,AB37,IF($C$15=2,AB38,IF($C$15=3,AB39,IF($C$15=4,AB40,IF($C$15=5,AB41,AB42))))) -> 42 | AC16: =IF($C$15=1,AC37,IF($C$15=2,AC38,IF($C$15=3,AC39,IF($C$15=4,AC40,IF($C$15=5,AC41,AC42))))) -> 0.6904761905
E17: =O16 -> 80 − 51
I18: = | J18: =CONCATENATE(ROUND(AC16,8)) -> 0.69047619 | S18: = | T18: =$AJ18 -> 0.69 (2 d.p.) | AF18: 2 | AG18: =AC16 -> 0.6904761905 | AH18: =AG18^1 -> 0.6904761905 | AI18: =CONCATENATE(AG18) -> 0.69047619047619 | AJ18: =IF(AG18=0,CONCATENATE("0",AG20,""),CONCATENATE(AM18,AL18)) -> 0.69 (2 d.p.) | AK18: =CONCATENATE(ROUND(AI19,9)) -> 0.69047619 | AL18: =IF(AM19=0,CONCATENATE(AG20),CONCATENATE(AQ19,AG20," (",AF18," d.p.)")) -> (2 d.p.) | AM18: =IF(AM19=0,AH19,AG19) -> 0.69 | AN18: =ROUND(100*AG19,0) -> 69 | AO18: =AN18-AN19*100 -> 69 | AP18: =IF(AM19=0,"",IF(AO19=0,".0","")) ->  | AQ18: =AN18-AN19*100-AO19*10 -> 9
E19: =AA16 -> 43 − 1 | AF19: =ROUNDDOWN(AH18,0) -> 0 | AG19: =ROUND(AH18,AF18) -> 0.69 | AH19: =ROUND(AH18,6) -> 0.690476 | AI19: =ROUND(AH18,9) -> 0.69047619 | AJ19: =ROUND(AI19-AF19,9) -> 0.69047619 | AK19: =ROUND(AH19-AF19,9) -> 0.690476 | AL19: =ROUND(AI19-AF19,9) -> 0.69047619 | AM19: =AL19-AK19 -> 1.900000001e-07 | AN19: =ROUNDDOWN(AN18/100,0) -> 0 | AO19: =ROUNDDOWN(AO18/10,0) -> 6 | AP19: =IF(AQ18=0,0,"") ->  | AQ19: =IF(AF18=2,IF(AQ18=0,CONCATENATE(AP18,AP19),AP19),AP18) -> 
AG20: =IF(AH20="cm","","") ->  | AH20: NIL | AJ20: =ROUND(AH18,2) -> 0.69
C21: =G44 -> 2
D22: =IF(C21=1,$D$37,IF(C21=2,$D$38,IF(C21=3,$D$39,IF(C21=4,$D$40,IF(C21=5,$D$41,$D$42))))) -> 1 | O22: =IF(C21=1,O37,IF(C21=2,O38,IF(C21=3,O39,IF(C21=4,O40,IF(C21=5,O41,O42))))) -> 48 − 3 | P22: =IF(C21=1,P37,IF(C21=2,P38,IF(C21=3,P39,IF(C21=4,P40,IF(C21=5,P41,P42))))) -> 45 | Q22: =IF(C21=1,Q37,IF(C21=2,Q38,IF(C21=3,Q39,IF(C21=4,Q40,IF(C21=5,Q41,Q42))))) -> 36 | R22: =IF(C21=1,R37,IF(C21=2,R38,IF(C21=3,R39,IF(C21=4,R40,IF(C21=5,R41,R42))))) -> 1 | AA22: =IF(C21=1,AA37,IF(C21=2,AA38,IF(C21=3,AA39,IF(C21=4,AA40,IF(C21=5,AA41,AA42))))) -> 9 + 36 | AB22: =IF($C$21=1,AB37,IF($C$21=2,AB38,IF($C$21=3,AB39,IF($C$21=4,AB40,IF($C$21=5,AB41,AB42))))) -> 45 | AC22: =IF($C$21=1,AC37,IF($C$21=2,AC38,IF($C$21=3,AC39,IF($C$21=4,AC40,IF($C$21=5,AC41,AC42))))) -> 1
E23: =O22 -> 48 − 3
I24: = | J24: =CONCATENATE(ROUND(AC22,8)) -> 1 | S24: = | T24: =$AJ24 -> 1 | AF24: 2 | AG24: =AC22 -> 1 | AH24: =AG24^1 -> 1 | AI24: =CONCATENATE(AG24) -> 1 | AJ24: =IF(AG24=0,CONCATENATE("0",AG26,""),CONCATENATE(AM24,AL24)) -> 1 | AK24: =CONCATENATE(ROUND(AI25,9)) -> 1 | AL24: =IF(AM25=0,CONCATENATE(AG26),CONCATENATE(AQ25,AG26," (",AF24," d.p.)")) ->  | AM24: =IF(AM25=0,AH25,AG25) -> 1 | AN24: =ROUND(100*AG25,0) -> 100 | AO24: =AN24-AN25*100 -> 0 | AP24: =IF(AM25=0,"",IF(AO25=0,".0","")) ->  | AQ24: =AN24-AN25*100-AO25*10 -> 0
E25: =AA22 -> 9 + 36 | AF25: =ROUNDDOWN(AH24,0) -> 1 | AG25: =ROUND(AH24,AF24) -> 1 | AH25: =ROUND(AH24,6) -> 1 | AI25: =ROUND(AH24,9) -> 1 | AJ25: =ROUND(AI25-AF25,9) -> 0 | AK25: =ROUND(AH25-AF25,9) -> 0 | AL25: =ROUND(AI25-AF25,9) -> 0 | AM25: =AL25-AK25 -> 0 | AN25: =ROUNDDOWN(AN24/100,0) -> 1 | AO25: =ROUNDDOWN(AO24/10,0) -> 0 | AP25: =IF(AQ24=0,0,"") -> 0 | AQ25: =IF(AF24=2,IF(AQ24=0,CONCATENATE(AP24,AP25),AP25),AP24) -> 0
AG26: =IF(AH26="cm","","") ->  | AH26: NIL | AJ26: =ROUND(AH24,2) -> 1
C31: 1 | D31: 1 | E31: =IF(RAND()>0.5,INT(999*RAND())+1,INT(99*RAND())+1) -> 80 | F31: =IF(E31>99,10,IF(RAND()>0.5,10,1)) -> 10 | G31: =E31/F31 -> 8 | H31: =IF(M31<1,1,IF(RAND()>0.5,1,-1)) -> -1 | I31: =IF(H31=1," + "," − ") -> − | J31: =IF(E31>99,INT(9*RAND())+1,INT(99*RAND())+1) -> 49 | K31: =IF(E31>99,1,IF(RAND()>0.5,10,1)) -> 1 | L31: =J31/K31 -> 49 | M31: =ABS(L31-G31) -> 41 | N31: =IF(L31>G31,0,1) -> 0 | O31: =IF(N31=0,CONCATENATE(" ",L31,I31,G31," "),CONCATENATE(" ",G31,I31,L31," ")) -> 49 − 8 | P31: =IF(N31=0,L31+H31*G31,G31+H31*L31) -> 41 | Q31: =IF(RAND()>0.5,INT(999*RAND())+1,INT(99*RAND())+1) -> 33 | R31: =IF(Q31>99,10,IF(RAND()>0.5,10,1)) -> 10 | S31: =Q31/R31 -> 3.3 | T31: =IF(Y31<1,1,IF(RAND()>0.5,1,-1)) -> 1 | U31: =IF(T31=1," + "," − ") -> + | V31: =IF(Q31>99,INT(9*RAND())+1,INT(99*RAND())+1) -> 60 | W31: =IF(Q31>99,1,IF(RAND()>0.5,10,1)) -> 1 | X31: =V31/W31 -> 60 | Y31: =ABS(X31-S31) -> 56.7 | Z31: =IF(X31>S31,0,1) -> 0 | AA31: =IF(Z31=0,CONCATENATE(X31,U31,S31),CONCATENATE(S31,U31,X31)) -> 60 + 3.3 | AB31: =IF(Z31=0,X31+T31*S31,S31+T31*X31) -> 63.3 | AC31: =(P31/AB31)^(1/C31) -> 0.6477093207
C32: 1 | D32: 1 | E32: =0.1*(INT(9*RAND())+1)+1*(INT(9*RAND())+1) -> 2.7 | F32: =0.1*(INT(9*RAND())+1)+1*(INT(9*RAND())+1) -> 6.1 | O32: =CONCATENATE(" ",E32," × ",F32," ") -> 2.7 × 6.1 | P32: =E32*F32 -> 16.47 | Q32: =IF(RAND()>0.5,INT(999*RAND())+1,INT(99*RAND())+1) -> 61 | R32: =IF(Q32>99,10,IF(RAND()>0.5,10,1)) -> 10 | S32: =Q32/R32 -> 6.1 | T32: =IF(Y32<1,1,IF(RAND()>0.5,1,-1)) -> 1 | U32: =IF(T32=1," + "," − ") -> + | V32: =IF(Q32>99,INT(9*RAND())+1,INT(99*RAND())+1) -> 93 | W32: =IF(Q32>99,1,IF(RAND()>0.5,10,1)) -> 10 | X32: =V32/W32 -> 9.3 | Y32: =ABS(X32-S32) -> 3.2 | Z32: =IF(X32>S32,0,1) -> 0 | AA32: =IF(Z32=0,CONCATENATE(X32,U32,S32),CONCATENATE(S32,U32,X32)) -> 9.3 + 6.1 | AB32: =IF(Z32=0,X32+T32*S32,S32+T32*X32) -> 15.4 | AC32: =(P32/AB32)^(1/C32) -> 1.069480519
C33: 1 | D33: 1 | E33: =0.1*(INT(9*RAND())+1)+1*(INT(9*RAND())+1) -> 7.4 | F33: =0.1*(INT(9*RAND())+1)+1*(INT(9*RAND())+1) -> 2.9 | O33: =CONCATENATE(" ",E33," × ",F33," ") -> 7.4 × 2.9 | P33: =E33*F33 -> 21.46 | Q33: =0.1*(INT(9*RAND())+1)+1*(INT(9*RAND())+1) -> 7.2 | R33: =0.1*(INT(9*RAND())+1)+1*(INT(9*RAND())+1) -> 2.3 | AA33: =CONCATENATE(Q33," × ",R33) -> 7.2 × 2.3 | AB33: =Q33*R33 -> 16.56 | AC33: =(P33/AB33)^(1/C33) -> 1.29589372
C34: 1 | D34: 1 | E34: =IF(RAND()>0.5,INT(999*RAND())+1,INT(99*RAND())+1) -> 20 | F34: =IF(E34>99,10,IF(RAND()>0.5,10,1)) -> 1 | G34: =E34/F34 -> 20 | H34: =IF(M34<1,1,IF(RAND()>0.5,1,-1)) -> -1 | I34: =IF(H34=1," + "," − ") -> − | J34: =IF(E34>99,INT(9*RAND())+1,INT(99*RAND())+1) -> 66 | K34: =IF(E34>99,1,IF(RAND()>0.5,10,1)) -> 10 | L34: =J34/K34 -> 6.6 | M34: =ABS(L34-G34) -> 13.4 | N34: =IF(L34>G34,0,1) -> 1 | O34: =IF(N34=0,CONCATENATE(" ",L34,I34,G34," "),CONCATENATE(" ",G34,I34,L34," ")) -> 20 − 6.6 | P34: =IF(N34=0,L34+H34*G34,G34+H34*L34) -> 13.4 | Q34: =0.1*(INT(9*RAND())+1)+1*(INT(9*RAND())+1) -> 6.6 | R34: =0.1*(INT(9*RAND())+1)+1*(INT(9*RAND())+1) -> 3.6 | AA34: =CONCATENATE(Q34," × ",R34) -> 6.6 × 3.6 | AB34: =Q34*R34 -> 23.76 | AC34: =(P34/AB34)^(1/C34) -> 0.563973064
C37: 1 | D37: 1 | E37: =1*(INT(9*RAND())+1)+10*(INT(8*RAND())+2) -> 57 | F37: 1 | H37: =IF(RAND()>0.5,1,-1) -> 1 | I37: =IF(H37=1," + "," − ") -> + | J37: =E37^F37 -> 57 | K37: =IF(J37>11,9,ROUNDDOWN(J37,0)-1) -> 9 | L37: =INT(K37*RAND())+1 -> 5 | N37: =IF(RAND()>0.5,1,-1) -> 1 | O37: =IF(H37=-1,CONCATENATE(" ",E37,G37,I37,L37," "),IF(N37=1,CONCATENATE(" ",E37,G37,I37,L37," "),CONCATENATE(" ",L37,I37,E37,G37," "))) -> 57 + 5 | P37: =E37^F37+H37*L37 -> 62 | Q37: =IF(RAND()>0.5,INT(999*RAND())+1,INT(99*RAND())+1) -> 887 | R37: 1 | S37: =Q37/R37 -> 887 | T37: =IF(Y37<1,1,IF(RAND()>0.5,1,-1)) -> 1 | U37: =IF(T37=1," + "," − ") -> + | V37: =IF(Q37>99,INT(9*RAND())+1,INT(99*RAND())+1) -> 1 | W37: 1 | X37: =V37/W37 -> 1 | Y37: =ABS(X37-S37) -> 886 | Z37: =IF(X37>S37,0,1) -> 1 | AA37: =IF(Z37=0,CONCATENATE(X37,U37,S37),CONCATENATE(S37,U37,X37)) -> 887 + 1 | AB37: =IF(Z37=0,X37+T37*S37,S37+T37*X37) -> 888 | AC37: =(P37/AB37)^(1/C37) -> 0.06981981982
C38: 1 | D38: 1 | E38: =1*(INT(9*RAND())+1)+10*(INT(8*RAND())+2) -> 48 | F38: 1 | H38: =IF(RAND()>0.5,1,-1) -> -1 | I38: =IF(H38=1," + "," − ") -> − | J38: =E38^F38 -> 48 | K38: =IF(J38>11,9,ROUNDDOWN(J38,0)-1) -> 9 | L38: =INT(K38*RAND())+1 -> 3 | N38: =IF(RAND()>0.5,1,-1) -> -1 | O38: =IF(H38=-1,CONCATENATE(" ",E38,G38,I38,L38," "),IF(N38=1,CONCATENATE(" ",E38,G38,I38,L38," "),CONCATENATE(" ",L38,I38,E38,G38," "))) -> 48 − 3 | P38: =E38^F38+H38*L38 -> 45 | Q38: =1*(INT(9*RAND())+1)+10*(INT(8*RAND())+2) -> 36 | R38: 1 | T38: =IF(RAND()>0.5,1,-1) -> 1 | U38: =IF(T38=1," + "," − ") -> + | V38: =Q38^R38 -> 36 | W38: =IF(V38>11,9,ROUNDDOWN(V38,0)-1) -> 9 | X38: =INT(W38*RAND())+1 -> 9 | Z38: =IF(RAND()>0.5,1,-1) -> -1 | AA38: =IF(T38=-1,CONCATENATE(" ",Q38,S38,U38,X38," "),IF(Z38=1,CONCATENATE(" ",Q38,S38,U38,X38," "),CONCATENATE(" ",X38,U38,Q38,S38," "))) -> 9 + 36 | AB38: =Q38^R38+T38*X38 -> 45 | AC38: 1
C39: 1 | D39: 1 | E39: =IF(RAND()>0.5,INT(999*RAND())+1,INT(99*RAND())+1) -> 51 | F39: 1 | G39: =E39/F39 -> 51 | H39: =IF(M39<1,1,IF(RAND()>0.5,1,-1)) -> -1 | I39: =IF(H39=1," + "," − ") -> − | J39: =IF(E39>99,INT(9*RAND())+1,INT(99*RAND())+1) -> 80 | K39: 1 | L39: =J39/K39 -> 80 | M39: =ABS(L39-G39) -> 29 | N39: =IF(L39>G39,0,1) -> 0 | O39: =IF(N39=0,CONCATENATE(" ",L39,I39,G39," "),CONCATENATE(" ",G39,I39,L39," ")) -> 80 − 51 | P39: =IF(N39=0,L39+H39*G39,G39+H39*L39) -> 29 | Q39: =1*(INT(9*RAND())+1)+10*(INT(8*RAND())+2) -> 43 | R39: 1 | T39: =IF(RAND()>0.5,1,-1) -> -1 | U39: =IF(T39=1," + "," − ") -> − | V39: =Q39^R39 -> 43 | W39: =IF(V39>11,9,ROUNDDOWN(V39,0)-1) -> 9 | X39: =INT(W39*RAND())+1 -> 1 | Z39: =IF(RAND()>0.5,1,-1) -> -1 | AA39: =IF(T39=-1,CONCATENATE(" ",Q39,S39,U39,X39," "),IF(Z39=1,CONCATENATE(" ",Q39,S39,U39,X39," "),CONCATENATE(" ",X39,U39,Q39,S39," "))) -> 43 − 1 | AB39: =Q39^R39+T39*X39 -> 42 | AC39: 0.6904761905
C40: 1 | D40: 1 | E40: =1*(INT(9*RAND())+1)+10*(INT(8*RAND())+2) -> 21 | F40: 1 | H40: 1 | I40: × | J40: =E40^F40 -> 21 | K40: =IF(J40>11,9,ROUNDDOWN(J40,0)-1) -> 9 | L40: =INT((K40-1)*RAND())+2 -> 8 | N40: =IF(RAND()>0.5,1,-1) -> -1 | O40: =IF(H40=-1,CONCATENATE(" ",E40,G40,I40,L40," "),IF(N40=1,CONCATENATE(" ",E40,G40,I40,L40," "),CONCATENATE(" ",L40,I40,E40,G40," "))) -> 8 × 21 | P40: =E40^F40*H40*L40 -> 168 | Q40: =1*(INT(9*RAND())+1)+10*(INT(8*RAND())+2) -> 75 | R40: 1 | T40: =IF(RAND()>0.5,1,-1) -> 1 | U40: =IF(T40=1," + "," − ") -> + | V40: =Q40^R40 -> 75 | W40: =IF(V40>11,9,ROUNDDOWN(V40,0)-1) -> 9 | X40: =INT(W40*RAND())+1 -> 4 | Z40: =IF(RAND()>0.5,1,-1) -> -1 | AA40: =IF(T40=-1,CONCATENATE(" ",Q40,S40,U40,X40," "),IF(Z40=1,CONCATENATE(" ",Q40,S40,U40,X40," "),CONCATENATE(" ",X40,U40,Q40,S40," "))) -> 4 + 75 | AB40: =Q40^R40+T40*X40 -> 79 | AC40: 2.126582278
C41: 1 | D41: 1 | E41: =1*(INT(9*RAND())+1)+10*(INT(8*RAND())+2) -> 24 | F41: 1 | H41: 1 | I41: × | J41: =E41^F41 -> 24 | K41: =IF(J41>11,9,ROUNDDOWN(J41,0)-1) -> 9 | L41: =INT((K41-1)*RAND())+2 -> 6 | N41: =IF(RAND()>0.5,1,-1) -> 1 | O41: =IF(H41=-1,CONCATENATE(" ",E41,G41,I41,L41," "),IF(N41=1,CONCATENATE(" ",E41,G41,I41,L41," "),CONCATENATE(" ",L41,I41,E41,G41," "))) -> 24 × 6 | P41: =E41^F41*H41*L41 -> 144 | Q41: =1*(INT(9*RAND())+1)+10*(INT(8*RAND())+2) -> 81 | R41: 1 | T41: 1 | U41: × | V41: =Q41^R41 -> 81 | W41: =IF(V41>11,9,ROUNDDOWN(V41,0)-1) -> 9 | X41: =INT((W41-1)*RAND())+2 -> 8 | Z41: =IF(RAND()>0.5,1,-1) -> -1 | AA41: =IF(T41=-1,CONCATENATE(" ",Q41,S41,U41,X41," "),IF(Z41=1,CONCATENATE(" ",Q41,S41,U41,X41," "),CONCATENATE(" ",X41,U41,Q41,S41," "))) -> 8 × 81 | AB41: =Q41^R41*T41*X41 -> 648 | AC41: 0.2222222222
C42: 1 | D42: 1 | E42: =1*(INT(9*RAND())+1)+10*(INT(8*RAND())+2) -> 89 | F42: 1 | H42: =IF(RAND()>0.5,1,-1) -> 1 | I42: =IF(H42=1," + "," − ") -> + | J42: =E42^F42 -> 89 | K42: =IF(J42>11,9,ROUNDDOWN(J42,0)-1) -> 9 | L42: =INT(K42*RAND())+1 -> 6 | N42: =IF(RAND()>0.5,1,-1) -> -1 | O42: =IF(H42=-1,CONCATENATE(" ",E42,G42,I42,L42," "),IF(N42=1,CONCATENATE(" ",E42,G42,I42,L42," "),CONCATENATE(" ",L42,I42,E42,G42," "))) -> 6 + 89 | P42: =E42^F42+H42*L42 -> 95 | Q42: =1*(INT(9*RAND())+1)+10*(INT(8*RAND())+2) -> 94 | R42: 1 | T42: 1 | U42: × | V42: =Q42^R42 -> 94 | W42: =IF(V42>11,9,ROUNDDOWN(V42,0)-1) -> 9 | X42: =INT((W42-1)*RAND())+2 -> 2 | Z42: =IF(RAND()>0.5,1,-1) -> 1 | AA42: =IF(T42=-1,CONCATENATE(" ",Q42,S42,U42,X42," "),IF(Z42=1,CONCATENATE(" ",Q42,S42,U42,X42," "),CONCATENATE(" ",X42,U42,Q42,S42," "))) -> 94 × 2 | AB42: =Q42^R42*T42*X42 -> 188 | AC42: 0.5053191489
C44: 6 | D44: =1*(INT(C44*RAND())+1) -> 3 | E44: =1*(INT((C44-1)*RAND())+1) -> 5 | F44: =E44+D44 -> 8 | G44: =MOD(F44-1,C44)+1 -> 2

Sheet FRADEC+VE
C2: =RFPDEPOSVE!C2 -> Evaluate each expression using a calculator. | AH2: x | AI2: x | AJ2: x
C3: =RFPDEPOSVE!C3 -> Round to 2 d.p. when necessary.
B4: =INT(9*RAND())+1+0.1*(INT(9*RAND())+1) -> 1.1 | C4: =IF(RAND()>0.5,0,B4) -> 0 | D4: =IF(C4=0,0,IF(RAND()>0.5,1,-1)) -> 0 | E4: =IF(D4=1,"+",IF(D4=0,"","−")) ->  | F4: 1 | G4: =IF(F4=2,"",3) -> 3 | H4: =IF(RAND()>0.5,100*(INT(9*RAND())+1)+10*(INT(9*RAND())+1)+INT(9*RAND())+1,10*(INT(9*RAND())+1)+INT(9*RAND())+1) -> 38 | I4: =IF(RAND()>0.5,10,1) -> 1 | J4: =H4/I4 -> 38 | K4: =0.1*(INT(9*RAND())+1)+1*(INT(9*RAND())+1) -> 5.1 | L4: =RAND() -> 0.6142584002 | M4: 1 | N4: =IF(M4=1,"",IF(M4=2,"²","³")) ->  | O4: =IF(D4=-1,C4-1*(((K4^M4)/J4)^(1/F4)),C4+1*(((K4^M4)/J4)^(1/F4))) -> 0.1342105263 | P4: =RAND() -> 0.34362187
C5: =IF(C4=0,"",CONCATENATE(C4," ",E4," ")) ->  | G5: =CONCATENATE(" ",K4,N4," ") -> 5.1
I6: = | J6: =CONCATENATE(IF(ROUND(O4,8)<0,"−",""),ABS(ROUND(O4,8))) -> 0.13421053 | S6: = | T6: =CONCATENATE(IF(O4<0,"−",""),AJ6) -> 0.13 (2 d.p.) | AF6: 2 | AG6: =ABS(O4) -> 0.1342105263 | AH6: =AG6^1 -> 0.1342105263 | AI6: =CONCATENATE(AG6) -> 0.134210526315789 | AJ6: =IF(AG6=0,CONCATENATE("0",AG8,""),CONCATENATE(AM6,AL6)) -> 0.13 (2 d.p.) | AK6: =CONCATENATE(ROUND(AI7,9)) -> 0.134210526 | AL6: =IF(AM7=0,CONCATENATE(AG8),CONCATENATE(AQ7,AG8," (",AF6," d.p.)")) -> (2 d.p.) | AM6: =IF(AM7=0,AH7,AG7) -> 0.13 | AN6: =ROUND(100*AG7,0) -> 13 | AO6: =AN6-AN7*100 -> 13 | AP6: =IF(AM7=0,"",IF(AO7=0,".0","")) ->  | AQ6: =AN6-AN7*100-AO7*10 -> 3
G7: =CONCATENATE(" ",J4," ") -> 38 | AF7: =ROUNDDOWN(AH6,0) -> 0 | AG7: =ROUND(AH6,AF6) -> 0.13 | AH7: =ROUND(AH6,6) -> 0.134211 | AI7: =ROUND(AH6,9) -> 0.134210526 | AJ7: =ROUND(AI7-AF7,9) -> 0.134210526 | AK7: =ROUND(AH7-AF7,9) -> 0.134211 | AL7: =ROUND(AI7-AF7,9) -> 0.134210526 | AM7: =AL7-AK7 -> -4.74e-07 | AN7: =ROUNDDOWN(AN6/100,0) -> 0 | AO7: =ROUNDDOWN(AO6/10,0) -> 1 | AP7: =IF(AQ6=0,0,"") ->  | AQ7: =IF(AF6=2,IF(AQ6=0,CONCATENATE(AP6,AP7),AP7),AP6) -> 
AG8: =IF(AH8="cm","","") ->  | AH8: NIL | AJ8: =ROUND(AH6,2) -> 0.13
B10: =INT(9*RAND())+1+0.1*(INT(9*RAND())+1) -> 5.8 | C10: =IF(RAND()>0.5,0,B10) -> 0 | D10: =IF(C10=0,0,IF(RAND()>0.5,1,-1)) -> 0 | E10: =IF(D10=1,"+",IF(D10=0,"","−")) ->  | F10: 1 | G10: =IF(F10=2,"",3) -> 3 | H10: =IF(RAND()>0.5,100*(INT(9*RAND())+1)+10*(INT(9*RAND())+1)+INT(9*RAND())+1,10*(INT(9*RAND())+1)+INT(9*RAND())+1) -> 112 | I10: =IF(RAND()>0.5,10,1) -> 1 | J10: =H10/I10 -> 112 | K10: =0.1*(INT(9*RAND())+1)+1*(INT(9*RAND())+1) -> 9.6 | L10: =RAND() -> 0.7575670171 | M10: 1 | N10: =IF(M10=1,"",IF(M10=2,"²","³")) ->  | O10: =IF(D10=-1,C10-1*((J10/(K10^M10))^(1/F10)),C10+1*((J10/(K10^M10))^(1/F10))) -> 11.66666667 | P10: =RAND() -> 0.6073180706
C11: =IF(C10=0,"",CONCATENATE(C10," ",E10," ")) ->  | G11: =CONCATENATE(" ",J10," ") -> 112
I12: = | J12: =CONCATENATE(IF(ROUND(O10,8)<0,"−",""),ABS(ROUND(O10,8))) -> 11.66666667 | S12: = | T12: =CONCATENATE(IF(O10<0,"−",""),AJ12) -> 11.67 (2 d.p.) | AF12: 2 | AG12: =ABS(O10) -> 11.66666667 | AH12: =AG12^1 -> 11.66666667 | AI12: =CONCATENATE(AG12) -> 11.6666666666667 | AJ12: =IF(AG12=0,CONCATENATE("0",AG14,""),CONCATENATE(AM12,AL12)) -> 11.67 (2 d.p.) | AK12: =CONCATENATE(ROUND(AI13,9)) -> 11.666666667 | AL12: =IF(AM13=0,CONCATENATE(AG14),CONCATENATE(AQ13,AG14," (",AF12," d.p.)")) -> (2 d.p.) | AM12: =IF(AM13=0,AH13,AG13) -> 11.67 | AN12: =ROUND(100*AG13,0) -> 1167 | AO12: =AN12-AN13*100 -> 67 | AP12: =IF(AM13=0,"",IF(AO13=0,".0","")) ->  | AQ12: =AN12-AN13*100-AO13*10 -> 7
G13: =CONCATENATE(K10,N10) -> 9.6 | AF13: =ROUNDDOWN(AH12,0) -> 11 | AG13: =ROUND(AH12,AF12) -> 11.67 | AH13: =ROUND(AH12,6) -> 11.666667 | AI13: =ROUND(AH12,9) -> 11.66666667 | AJ13: =ROUND(AI13-AF13,9) -> 0.666666667 | AK13: =ROUND(AH13-AF13,9) -> 0.666667 | AL13: =ROUND(AI13-AF13,9) -> 0.666666667 | AM13: =AL13-AK13 -> -3.33e-07 | AN13: =ROUNDDOWN(AN12/100,0) -> 11 | AO13: =ROUNDDOWN(AO12/10,0) -> 6 | AP13: =IF(AQ12=0,0,"") ->  | AQ13: =IF(AF12=2,IF(AQ12=0,CONCATENATE(AP12,AP13),AP13),AP12) -> 
AG14: =IF(AH14="cm","","") ->  | AH14: NIL | AJ14: =ROUND(AH12,2) -> 11.67
C15: =D44 -> 4
D16: =IF($C$15=1,D37,IF($C$15=2,D38,IF($C$15=3,D39,IF($C$15=4,D40,IF($C$15=5,D41,D42))))) -> 1 | O16: =IF($C$15=1,O37,IF($C$15=2,O38,IF($C$15=3,O39,IF($C$15=4,O40,IF($C$15=5,O41,O42))))) -> 2.3 × 2 | P16: =IF($C$15=1,P37,IF($C$15=2,P38,IF($C$15=3,P39,IF($C$15=4,P40,IF($C$15=5,P41,P42))))) -> 4.6 | Q16: =IF($C$15=1,Q37,IF($C$15=2,Q38,IF($C$15=3,Q39,IF($C$15=4,Q40,IF($C$15=5,Q41,Q42))))) -> 2.4 | R16: =IF($C$15=1,R37,IF($C$15=2,R38,IF($C$15=3,R39,IF($C$15=4,R40,IF($C$15=5,R41,R42))))) -> 1 | AA16: =IF($C$15=1,AA37,IF($C$15=2,AA38,IF($C$15=3,AA39,IF($C$15=4,AA40,IF($C$15=5,AA41,AA42))))) -> 1 + 2.4 | AB16: =IF($C$15=1,AB37,IF($C$15=2,AB38,IF($C$15=3,AB39,IF($C$15=4,AB40,IF($C$15=5,AB41,AB42))))) -> 3.4 | AC16: =IF($C$15=1,AC37,IF($C$15=2,AC38,IF($C$15=3,AC39,IF($C$15=4,AC40,IF($C$15=5,AC41,AC42))))) -> 1.352941176
E17: =O16 -> 2.3 × 2
I18: = | J18: =CONCATENATE(ROUND(AC16,8)) -> 1.35294118 | S18: = | T18: =$AJ18 -> 1.35 (2 d.p.) | AF18: 2 | AG18: =AC16 -> 1.352941176 | AH18: =AG18^1 -> 1.352941176 | AI18: =CONCATENATE(AG18) -> 1.35294117647059 | AJ18: =IF(AG18=0,CONCATENATE("0",AG20,""),CONCATENATE(AM18,AL18)) -> 1.35 (2 d.p.) | AK18: =CONCATENATE(ROUND(AI19,9)) -> 1.352941176 | AL18: =IF(AM19=0,CONCATENATE(AG20),CONCATENATE(AQ19,AG20," (",AF18," d.p.)")) -> (2 d.p.) | AM18: =IF(AM19=0,AH19,AG19) -> 1.35 | AN18: =ROUND(100*AG19,0) -> 135 | AO18: =AN18-AN19*100 -> 35 | AP18: =IF(AM19=0,"",IF(AO19=0,".0","")) ->  | AQ18: =AN18-AN19*100-AO19*10 -> 5
E19: =AA16 -> 1 + 2.4 | AF19: =ROUNDDOWN(AH18,0) -> 1 | AG19: =ROUND(AH18,AF18) -> 1.35 | AH19: =ROUND(AH18,6) -> 1.352941 | AI19: =ROUND(AH18,9) -> 1.352941176 | AJ19: =ROUND(AI19-AF19,9) -> 0.352941176 | AK19: =ROUND(AH19-AF19,9) -> 0.352941 | AL19: =ROUND(AI19-AF19,9) -> 0.352941176 | AM19: =AL19-AK19 -> 1.76e-07 | AN19: =ROUNDDOWN(AN18/100,0) -> 1 | AO19: =ROUNDDOWN(AO18/10,0) -> 3 | AP19: =IF(AQ18=0,0,"") ->  | AQ19: =IF(AF18=2,IF(AQ18=0,CONCATENATE(AP18,AP19),AP19),AP18) -> 
AG20: =IF(AH20="cm","","") ->  | AH20: NIL | AJ20: =ROUND(AH18,2) -> 1.35
C21: =G44 -> 6
D22: =IF(C21=1,$D$37,IF(C21=2,$D$38,IF(C21=3,$D$39,IF(C21=4,$D$40,IF(C21=5,$D$41,$D$42))))) -> 1 | O22: =IF(C21=1,O37,IF(C21=2,O38,IF(C21=3,O39,IF(C21=4,O40,IF(C21=5,O41,O42))))) -> 7.2 − 4 | P22: =IF(C21=1,P37,IF(C21=2,P38,IF(C21=3,P39,IF(C21=4,P40,IF(C21=5,P41,P42))))) -> 3.2 | Q22: =IF(C21=1,Q37,IF(C21=2,Q38,IF(C21=3,Q39,IF(C21=4,Q40,IF(C21=5,Q41,Q42))))) -> 8.7 | R22: =IF(C21=1,R37,IF(C21=2,R38,IF(C21=3,R39,IF(C21=4,R40,IF(C21=5,R41,R42))))) -> 1 | AA22: =IF(C21=1,AA37,IF(C21=2,AA38,IF(C21=3,AA39,IF(C21=4,AA40,IF(C21=5,AA41,AA42))))) -> 2 × 8.7 | AB22: =IF($C$21=1,AB37,IF($C$21=2,AB38,IF($C$21=3,AB39,IF($C$21=4,AB40,IF($C$21=5,AB41,AB42))))) -> 17.4 | AC22: =IF($C$21=1,AC37,IF($C$21=2,AC38,IF($C$21=3,AC39,IF($C$21=4,AC40,IF($C$21=5,AC41,AC42))))) -> 0.183908046
E23: =O22 -> 7.2 − 4
I24: = | J24: =CONCATENATE(ROUND(AC22,8)) -> 0.18390805 | S24: = | T24: =$AJ24 -> 0.18 (2 d.p.) | AF24: 2 | AG24: =AC22 -> 0.183908046 | AH24: =AG24^1 -> 0.183908046 | AI24: =CONCATENATE(AG24) -> 0.183908045977012 | AJ24: =IF(AG24=0,CONCATENATE("0",AG26,""),CONCATENATE(AM24,AL24)) -> 0.18 (2 d.p.) | AK24: =CONCATENATE(ROUND(AI25,9)) -> 0.183908046 | AL24: =IF(AM25=0,CONCATENATE(AG26),CONCATENATE(AQ25,AG26," (",AF24," d.p.)")) -> (2 d.p.) | AM24: =IF(AM25=0,AH25,AG25) -> 0.18 | AN24: =ROUND(100*AG25,0) -> 18 | AO24: =AN24-AN25*100 -> 18 | AP24: =IF(AM25=0,"",IF(AO25=0,".0","")) ->  | AQ24: =AN24-AN25*100-AO25*10 -> 8
E25: =AA22 -> 2 × 8.7 | AF25: =ROUNDDOWN(AH24,0) -> 0 | AG25: =ROUND(AH24,AF24) -> 0.18 | AH25: =ROUND(AH24,6) -> 0.183908 | AI25: =ROUND(AH24,9) -> 0.183908046 | AJ25: =ROUND(AI25-AF25,9) -> 0.183908046 | AK25: =ROUND(AH25-AF25,9) -> 0.183908 | AL25: =ROUND(AI25-AF25,9) -> 0.183908046 | AM25: =AL25-AK25 -> 4.6e-08 | AN25: =ROUNDDOWN(AN24/100,0) -> 0 | AO25: =ROUNDDOWN(AO24/10,0) -> 1 | AP25: =IF(AQ24=0,0,"") ->  | AQ25: =IF(AF24=2,IF(AQ24=0,CONCATENATE(AP24,AP25),AP25),AP24) -> 
AG26: =IF(AH26="cm","","") ->  | AH26: NIL | AJ26: =ROUND(AH24,2) -> 0.18
C31: 1 | D31: 1 | E31: =IF(RAND()>0.5,INT(999*RAND())+1,INT(99*RAND())+1) -> 26 | F31: =IF(E31>99,10,IF(RAND()>0.5,10,1)) -> 1 | G31: =E31/F31 -> 26 | H31: =IF(M31<1,1,IF(RAND()>0.5,1,-1)) -> -1 | I31: =IF(H31=1," + "," − ") -> − | J31: =IF(E31>99,INT(9*RAND())+1,INT(99*RAND())+1) -> 31 | K31: =IF(E31>99,1,IF(RAND()>0.5,10,1)) -> 10 | L31: =J31/K31 -> 3.1 | M31: =ABS(L31-G31) -> 22.9 | N31: =IF(L31>G31,0,1) -> 1 | O31: =IF(N31=0,CONCATENATE(" ",L31,I31,G31," "),CONCATENATE(" ",G31,I31,L31," ")) -> 26 − 3.1 | P31: =IF(N31=0,L31+H31*G31,G31+H31*L31) -> 22.9 | Q31: =IF(RAND()>0.5,INT(999*RAND())+1,INT(99*RAND())+1) -> 35 | R31: =IF(Q31>99,10,IF(RAND()>0.5,10,1)) -> 1 | S31: =Q31/R31 -> 35 | T31: =IF(Y31<1,1,IF(RAND()>0.5,1,-1)) -> -1 | U31: =IF(T31=1," + "," − ") -> − | V31: =IF(Q31>99,INT(9*RAND())+1,INT(99*RAND())+1) -> 60 | W31: =IF(Q31>99,1,IF(RAND()>0.5,10,1)) -> 10 | X31: =V31/W31 -> 6 | Y31: =ABS(X31-S31) -> 29 | Z31: =IF(X31>S31,0,1) -> 1 | AA31: =IF(Z31=0,CONCATENATE(X31,U31,S31),CONCATENATE(S31,U31,X31)) -> 35 − 6 | AB31: =IF(Z31=0,X31+T31*S31,S31+T31*X31) -> 29 | AC31: =(P31/AB31)^(1/C31) -> 0.7896551724
C32: 1 | D32: 1 | E32: =0.1*(INT(9*RAND())+1)+1*(INT(9*RAND())+1) -> 4.6 | F32: =0.1*(INT(9*RAND())+1)+1*(INT(9*RAND())+1) -> 6.6 | O32: =CONCATENATE(" ",E32," × ",F32," ") -> 4.6 × 6.6 | P32: =E32*F32 -> 30.36 | Q32: =IF(RAND()>0.5,INT(999*RAND())+1,INT(99*RAND())+1) -> 690 | R32: =IF(Q32>99,10,IF(RAND()>0.5,10,1)) -> 10 | S32: =Q32/R32 -> 69 | T32: =IF(Y32<1,1,IF(RAND()>0.5,1,-1)) -> 1 | U32: =IF(T32=1," + "," − ") -> + | V32: =IF(Q32>99,INT(9*RAND())+1,INT(99*RAND())+1) -> 2 | W32: =IF(Q32>99,1,IF(RAND()>0.5,10,1)) -> 1 | X32: =V32/W32 -> 2 | Y32: =ABS(X32-S32) -> 67 | Z32: =IF(X32>S32,0,1) -> 1 | AA32: =IF(Z32=0,CONCATENATE(X32,U32,S32),CONCATENATE(S32,U32,X32)) -> 69 + 2 | AB32: =IF(Z32=0,X32+T32*S32,S32+T32*X32) -> 71 | AC32: =(P32/AB32)^(1/C32) -> 0.4276056338
C33: 1 | D33: 1 | E33: =0.1*(INT(9*RAND())+1)+1*(INT(9*RAND())+1) -> 5.2 | F33: =0.1*(INT(9*RAND())+1)+1*(INT(9*RAND())+1) -> 1.4 | O33: =CONCATENATE(" ",E33," × ",F33," ") -> 5.2 × 1.4 | P33: =E33*F33 -> 7.28 | Q33: =0.1*(INT(9*RAND())+1)+1*(INT(9*RAND())+1) -> 5.1 | R33: =0.1*(INT(9*RAND())+1)+1*(INT(9*RAND())+1) -> 1.5 | AA33: =CONCATENATE(Q33," × ",R33) -> 5.1 × 1.5 | AB33: =Q33*R33 -> 7.65 | AC33: =(P33/AB33)^(1/C33) -> 0.9516339869
C34: 1 | D34: 1 | E34: =IF(RAND()>0.5,INT(999*RAND())+1,INT(99*RAND())+1) -> 54 | F34: =IF(E34>99,10,IF(RAND()>0.5,10,1)) -> 1 | G34: =E34/F34 -> 54 | H34: =IF(M34<1,1,IF(RAND()>0.5,1,-1)) -> 1 | I34: =IF(H34=1," + "," − ") -> + | J34: =IF(E34>99,INT(9*RAND())+1,INT(99*RAND())+1) -> 10 | K34: =IF(E34>99,1,IF(RAND()>0.5,10,1)) -> 1 | L34: =J34/K34 -> 10 | M34: =ABS(L34-G34) -> 44 | N34: =IF(L34>G34,0,1) -> 1 | O34: =IF(N34=0,CONCATENATE(" ",L34,I34,G34," "),CONCATENATE(" ",G34,I34,L34," ")) -> 54 + 10 | P34: =IF(N34=0,L34+H34*G34,G34+H34*L34) -> 64 | Q34: =0.1*(INT(9*RAND())+1)+1*(INT(9*RAND())+1) -> 6.5 | R34: =0.1*(INT(9*RAND())+1)+1*(INT(9*RAND())+1) -> 8.2 | AA34: =CONCATENATE(Q34," × ",R34) -> 6.5 × 8.2 | AB34: =Q34*R34 -> 53.3 | AC34: =(P34/AB34)^(1/C34) -> 1.200750469
C37: 1 | D37: 1 | E37: =0.1*(INT(9*RAND())+1)+1*(INT(8*RAND())+2) -> 5.6 | F37: 1 | H37: =IF(RAND()>0.5,1,-1) -> 1 | I37: =IF(H37=1," + "," − ") -> + | J37: =E37^F37 -> 5.6 | K37: =IF(J37>11,9,ROUNDDOWN(J37,0)-1) -> 4 | L37: =INT(K37*RAND())+1 -> 1 | N37: =IF(RAND()>0.5,1,-1) -> 1 | O37: =IF(H37=-1,CONCATENATE(" ",E37,G37,I37,L37," "),IF(N37=1,CONCATENATE(" ",E37,G37,I37,L37," "),CONCATENATE(" ",L37,I37,E37,G37," "))) -> 5.6 + 1 | P37: =E37^F37+H37*L37 -> 6.6 | Q37: =IF(RAND()>0.5,INT(999*RAND())+1,INT(99*RAND())+1) -> 79 | R37: =IF(Q37>99,10,IF(RAND()>0.5,10,1)) -> 1 | S37: =Q37/R37 -> 79 | T37: =IF(Y37<1,1,IF(RAND()>0.5,1,-1)) -> 1 | U37: =IF(T37=1," + "," − ") -> + | V37: =IF(Q37>99,INT(9*RAND())+1,INT(99*RAND())+1) -> 91 | W37: =IF(Q37>99,1,IF(RAND()>0.5,10,1)) -> 1 | X37: =V37/W37 -> 91 | Y37: =ABS(X37-S37) -> 12 | Z37: =IF(X37>S37,0,1) -> 0 | AA37: =IF(Z37=0,CONCATENATE(X37,U37,S37),CONCATENATE(S37,U37,X37)) -> 91 + 79 | AB37: =IF(Z37=0,X37+T37*S37,S37+T37*X37) -> 170 | AC37: =(P37/AB37)^(1/C37) -> 0.03882352941
C38: 1 | D38: 1 | E38: =0.1*(INT(9*RAND())+1)+1*(INT(8*RAND())+2) -> 5.9 | F38: 1 | H38: =IF(RAND()>0.5,1,-1) -> -1 | I38: =IF(H38=1," + "," − ") -> − | J38: =E38^F38 -> 5.9 | K38: =IF(J38>11,9,ROUNDDOWN(J38,0)-1) -> 4 | L38: =INT(K38*RAND())+1 -> 1 | N38: =IF(RAND()>0.5,1,-1) -> 1 | O38: =IF(H38=-1,CONCATENATE(" ",E38,G38,I38,L38," "),IF(N38=1,CONCATENATE(" ",E38,G38,I38,L38," "),CONCATENATE(" ",L38,I38,E38,G38," "))) -> 5.9 − 1 | P38: =E38^F38+H38*L38 -> 4.9 | Q38: =0.1*(INT(9*RAND())+1)+1*(INT(8*RAND())+2) -> 3.3 | R38: 1 | T38: =IF(RAND()>0.5,1,-1) -> 1 | U38: =IF(T38=1," + "," − ") -> + | V38: =Q38^R38 -> 3.3 | W38: =IF(V38>11,9,ROUNDDOWN(V38,0)-1) -> 2 | X38: =INT(W38*RAND())+1 -> 2 | Z38: =IF(RAND()>0.5,1,-1) -> 1 | AA38: =IF(T38=-1,CONCATENATE(" ",Q38,S38,U38,X38," "),IF(Z38=1,CONCATENATE(" ",Q38,S38,U38,X38," "),CONCATENATE(" ",X38,U38,Q38,S38," "))) -> 3.3 + 2 | AB38: =Q38^R38+T38*X38 -> 5.3 | AC38: 0.9245283019
C39: 1 | D39: 1 | E39: =IF(RAND()>0.5,INT(999*RAND())+1,INT(99*RAND())+1) -> 483 | F39: =IF(E39>99,10,IF(RAND()>0.5,10,1)) -> 10 | G39: =E39/F39 -> 48.3 | H39: =IF(M39<1,1,IF(RAND()>0.5,1,-1)) -> 1 | I39: =IF(H39=1," + "," − ") -> + | J39: =IF(E39>99,INT(9*RAND())+1,INT(99*RAND())+1) -> 9 | K39: =IF(E39>99,1,IF(RAND()>0.5,10,1)) -> 1 | L39: =J39/K39 -> 9 | M39: =ABS(L39-G39) -> 39.3 | N39: =IF(L39>G39,0,1) -> 1 | O39: =IF(N39=0,CONCATENATE(" ",L39,I39,G39," "),CONCATENATE(" ",G39,I39,L39," ")) -> 48.3 + 9 | P39: =IF(N39=0,L39+H39*G39,G39+H39*L39) -> 57.3 | Q39: =0.1*(INT(9*RAND())+1)+1*(INT(8*RAND())+2) -> 5.4 | R39: 1 | T39: =IF(RAND()>0.5,1,-1) -> 1 | U39: =IF(T39=1," + "," − ") -> + | V39: =Q39^R39 -> 5.4 | W39: =IF(V39>11,9,ROUNDDOWN(V39,0)-1) -> 4 | X39: =INT(W39*RAND())+1 -> 3 | Z39: =IF(RAND()>0.5,1,-1) -> -1 | AA39: =IF(T39=-1,CONCATENATE(" ",Q39,S39,U39,X39," "),IF(Z39=1,CONCATENATE(" ",Q39,S39,U39,X39," "),CONCATENATE(" ",X39,U39,Q39,S39," "))) -> 3 + 5.4 | AB39: =Q39^R39+T39*X39 -> 8.4 | AC39: 6.821428571
C40: 1 | D40: 1 | E40: =0.1*(INT(9*RAND())+1)+1*(INT(8*RAND())+2) -> 2.3 | F40: 1 | H40: 1 | I40: × | J40: =E40^F40 -> 2.3 | K40: =IF(J40>11,9,ROUNDDOWN(J40,0)-1) -> 1 | L40: =INT((K40-1)*RAND())+2 -> 2 | N40: =IF(RAND()>0.5,1,-1) -> 1 | O40: =IF(H40=-1,CONCATENATE(" ",E40,G40,I40,L40," "),IF(N40=1,CONCATENATE(" ",E40,G40,I40,L40," "),CONCATENATE(" ",L40,I40,E40,G40," "))) -> 2.3 × 2 | P40: =E40^F40*H40*L40 -> 4.6 | Q40: =0.1*(INT(9*RAND())+1)+1*(INT(8*RAND())+2) -> 2.4 | R40: 1 | T40: =IF(RAND()>0.5,1,-1) -> 1 | U40: =IF(T40=1," + "," − ") -> + | V40: =Q40^R40 -> 2.4 | W40: =IF(V40>11,9,ROUNDDOWN(V40,0)-1) -> 1 | X40: =INT(W40*RAND())+1 -> 1 | Z40: =IF(RAND()>0.5,1,-1) -> -1 | AA40: =IF(T40=-1,CONCATENATE(" ",Q40,S40,U40,X40," "),IF(Z40=1,CONCATENATE(" ",Q40,S40,U40,X40," "),CONCATENATE(" ",X40,U40,Q40,S40," "))) -> 1 + 2.4 | AB40: =Q40^R40+T40*X40 -> 3.4 | AC40: 1.352941176
C41: 1 | D41: 1 | E41: =0.1*(INT(9*RAND())+1)+1*(INT(8*RAND())+2) -> 2.7 | F41: 1 | H41: 1 | I41: × | J41: =E41^F41 -> 2.7 | K41: =IF(J41>11,9,ROUNDDOWN(J41,0)-1) -> 1 | L41: =INT((K41-1)*RAND())+2 -> 2 | N41: =IF(RAND()>0.5,1,-1) -> 1 | O41: =IF(H41=-1,CONCATENATE(" ",E41,G41,I41,L41," "),IF(N41=1,CONCATENATE(" ",E41,G41,I41,L41," "),CONCATENATE(" ",L41,I41,E41,G41," "))) -> 2.7 × 2 | P41: =E41^F41*H41*L41 -> 5.4 | Q41: =0.1*(INT(9*RAND())+1)+1*(INT(8*RAND())+2) -> 6.8 | R41: 1 | T41: 1 | U41: × | V41: =Q41^R41 -> 6.8 | W41: =IF(V41>11,9,ROUNDDOWN(V41,0)-1) -> 5 | X41: =INT((W41-1)*RAND())+2 -> 3 | Z41: =IF(RAND()>0.5,1,-1) -> -1 | AA41: =IF(T41=-1,CONCATENATE(" ",Q41,S41,U41,X41," "),IF(Z41=1,CONCATENATE(" ",Q41,S41,U41,X41," "),CONCATENATE(" ",X41,U41,Q41,S41," "))) -> 3 × 6.8 | AB41: =Q41^R41*T41*X41 -> 20.4 | AC41: 0.2647058824
C42: 1 | D42: 1 | E42: =0.1*(INT(9*RAND())+1)+1*(INT(8*RAND())+2) -> 7.2 | F42: 1 | H42: =IF(RAND()>0.5,1,-1) -> -1 | I42: =IF(H42=1," + "," − ") -> − | J42: =E42^F42 -> 7.2 | K42: =IF(J42>11,9,ROUNDDOWN(J42,0)-1) -> 6 | L42: =INT(K42*RAND())+1 -> 4 | N42: =IF(RAND()>0.5,1,-1) -> 1 | O42: =IF(H42=-1,CONCATENATE(" ",E42,G42,I42,L42," "),IF(N42=1,CONCATENATE(" ",E42,G42,I42,L42," "),CONCATENATE(" ",L42,I42,E42,G42," "))) -> 7.2 − 4 | P42: =E42^F42+H42*L42 -> 3.2 | Q42: =0.1*(INT(9*RAND())+1)+1*(INT(8*RAND())+2) -> 8.7 | R42: 1 | T42: 1 | U42: × | V42: =Q42^R42 -> 8.7 | W42: =IF(V42>11,9,ROUNDDOWN(V42,0)-1) -> 7 | X42: =INT((W42-1)*RAND())+2 -> 2 | Z42: =IF(RAND()>0.5,1,-1) -> -1 | AA42: =IF(T42=-1,CONCATENATE(" ",Q42,S42,U42,X42," "),IF(Z42=1,CONCATENATE(" ",Q42,S42,U42,X42," "),CONCATENATE(" ",X42,U42,Q42,S42," "))) -> 2 × 8.7 | AB42: =Q42^R42*T42*X42 -> 17.4 | AC42: 0.183908046
C44: 6 | D44: =1*(INT(C44*RAND())+1) -> 4 | E44: =1*(INT((C44-1)*RAND())+1) -> 2 | F44: =E44+D44 -> 6 | G44: =MOD(F44-1,C44)+1 -> 6

Sheet FPODEC+VE
C2: =RFPDEPOSVE!C2 -> Evaluate each expression using a calculator. | AH2: x | AI2: x | AJ2: x
C3: =RFPDEPOSVE!C3 -> Round to 2 d.p. when necessary.
B4: =INT(9*RAND())+1+0.1*(INT(9*RAND())+1) -> 5.6 | C4: =IF(RAND()>0.5,0,B4) -> 0 | D4: =IF(C4=0,0,IF(RAND()>0.5,1,-1)) -> 0 | E4: =IF(D4=1,"+",IF(D4=0,"","−")) ->  | F4: 1 | G4: =IF(F4=2,"",3) -> 3 | H4: =IF(RAND()>0.5,100*(INT(9*RAND())+1)+10*(INT(9*RAND())+1)+INT(9*RAND())+1,10*(INT(9*RAND())+1)+INT(9*RAND())+1) -> 775 | I4: =IF(RAND()>0.5,10,1) -> 1 | J4: =H4/I4 -> 775 | K4: =0.1*(INT(9*RAND())+1)+1*(INT(9*RAND())+1) -> 9.8 | L4: =RAND() -> 0.8533257503 | M4: =IF(L4>0.5,2,3) -> 2 | N4: =IF(M4=1,"",IF(M4=2,"²","³")) -> ² | O4: =IF(D4=-1,C4-1*(((K4^M4)/J4)^(1/F4)),C4+1*(((K4^M4)/J4)^(1/F4))) -> 0.1239225806 | P4: =RAND() -> 0.4433105223
C5: =IF(C4=0,"",CONCATENATE(C4," ",E4," ")) ->  | G5: =CONCATENATE(" ",K4,N4,"") -> 9.8²
I6: = | J6: =CONCATENATE(IF(ROUND(O4,8)<0,"−",""),ABS(ROUND(O4,8))) -> 0.12392258 | S6: = | T6: =CONCATENATE(IF(O4<0,"−",""),AJ6) -> 0.12 (2 d.p.) | AF6: 2 | AG6: =ABS(O4) -> 0.1239225806 | AH6: =AG6^1 -> 0.1239225806 | AI6: =CONCATENATE(AG6) -> 0.123922580645161 | AJ6: =IF(AG6=0,CONCATENATE("0",AG8,""),CONCATENATE(AM6,AL6)) -> 0.12 (2 d.p.) | AK6: =CONCATENATE(ROUND(AI7,9)) -> 0.123922581 | AL6: =IF(AM7=0,CONCATENATE(AG8),CONCATENATE(AQ7,AG8," (",AF6," d.p.)")) -> (2 d.p.) | AM6: =IF(AM7=0,AH7,AG7) -> 0.12 | AN6: =ROUND(100*AG7,0) -> 12 | AO6: =AN6-AN7*100 -> 12 | AP6: =IF(AM7=0,"",IF(AO7=0,".0","")) ->  | AQ6: =AN6-AN7*100-AO7*10 -> 2
G7: =CONCATENATE(" ",J4," ") -> 775 | AF7: =ROUNDDOWN(AH6,0) -> 0 | AG7: =ROUND(AH6,AF6) -> 0.12 | AH7: =ROUND(AH6,6) -> 0.123923 | AI7: =ROUND(AH6,9) -> 0.123922581 | AJ7: =ROUND(AI7-AF7,9) -> 0.123922581 | AK7: =ROUND(AH7-AF7,9) -> 0.123923 | AL7: =ROUND(AI7-AF7,9) -> 0.123922581 | AM7: =AL7-AK7 -> -4.19e-07 | AN7: =ROUNDDOWN(AN6/100,0) -> 0 | AO7: =ROUNDDOWN(AO6/10,0) -> 1 | AP7: =IF(AQ6=0,0,"") ->  | AQ7: =IF(AF6=2,IF(AQ6=0,CONCATENATE(AP6,AP7),AP7),AP6) -> 
AG8: =IF(AH8="cm","","") ->  | AH8: NIL | AJ8: =ROUND(AH6,2) -> 0.12
B10: =INT(9*RAND())+1+0.1*(INT(9*RAND())+1) -> 4.6 | C10: =IF(RAND()>0.5,0,B10) -> 0 | D10: =IF(C10=0,0,IF(RAND()>0.5,1,-1)) -> 0 | E10: =IF(D10=1,"+",IF(D10=0,"","−")) ->  | F10: 1 | G10: =IF(F10=2,"",3) -> 3 | H10: =IF(RAND()>0.5,100*(INT(9*RAND())+1)+10*(INT(9*RAND())+1)+INT(9*RAND())+1,10*(INT(9*RAND())+1)+INT(9*RAND())+1) -> 271 | I10: =IF(RAND()>0.5,10,1) -> 10 | J10: =H10/I10 -> 27.1 | K10: =0.1*(INT(9*RAND())+1)+1*(INT(9*RAND())+1) -> 6.6 | L10: =RAND() -> 0.7578033338 | M10: =IF(L10>0.5,2,3) -> 2 | N10: =IF(M10=1,"",IF(M10=2,"²","³")) -> ² | O10: =IF(D10=-1,C10-1*((J10/(K10^M10))^(1/F10)),C10+1*((J10/(K10^M10))^(1/F10))) -> 0.6221303949 | P10: =RAND() -> 0.2968488214
C11: =IF(C10=0,"",CONCATENATE(C10," ",E10," ")) ->  | G11: =CONCATENATE(" ",J10," ") -> 27.1
I12: = | J12: =CONCATENATE(IF(ROUND(O10,8)<0,"−",""),ABS(ROUND(O10,8))) -> 0.62213039 | S12: = | T12: =CONCATENATE(IF(O10<0,"−",""),AJ12) -> 0.62 (2 d.p.) | AF12: 2 | AG12: =ABS(O10) -> 0.6221303949 | AH12: =AG12^1 -> 0.6221303949 | AI12: =CONCATENATE(AG12) -> 0.622130394857668 | AJ12: =IF(AG12=0,CONCATENATE("0",AG14,""),CONCATENATE(AM12,AL12)) -> 0.62 (2 d.p.) | AK12: =CONCATENATE(ROUND(AI13,9)) -> 0.622130395 | AL12: =IF(AM13=0,CONCATENATE(AG14),CONCATENATE(AQ13,AG14," (",AF12," d.p.)")) -> (2 d.p.) | AM12: =IF(AM13=0,AH13,AG13) -> 0.62 | AN12: =ROUND(100*AG13,0) -> 62 | AO12: =AN12-AN13*100 -> 62 | AP12: =IF(AM13=0,"",IF(AO13=0,".0","")) ->  | AQ12: =AN12-AN13*100-AO13*10 -> 2
G13: =CONCATENATE(K10,N10) -> 6.6² | AF13: =ROUNDDOWN(AH12,0) -> 0 | AG13: =ROUND(AH12,AF12) -> 0.62 | AH13: =ROUND(AH12,6) -> 0.62213 | AI13: =ROUND(AH12,9) -> 0.622130395 | AJ13: =ROUND(AI13-AF13,9) -> 0.622130395 | AK13: =ROUND(AH13-AF13,9) -> 0.62213 | AL13: =ROUND(AI13-AF13,9) -> 0.622130395 | AM13: =AL13-AK13 -> 3.95e-07 | AN13: =ROUNDDOWN(AN12/100,0) -> 0 | AO13: =ROUNDDOWN(AO12/10,0) -> 6 | AP13: =IF(AQ12=0,0,"") ->  | AQ13: =IF(AF12=2,IF(AQ12=0,CONCATENATE(AP12,AP13),AP13),AP12) -> 
AG14: =IF(AH14="cm","","") ->  | AH14: NIL | AJ14: =ROUND(AH12,2) -> 0.62
C15: =D44 -> 2
D16: =IF($C$15=1,D37,IF($C$15=2,D38,IF($C$15=3,D39,IF($C$15=4,D40,IF($C$15=5,D41,D42))))) -> 1 | O16: =IF($C$15=1,O37,IF($C$15=2,O38,IF($C$15=3,O39,IF($C$15=4,O40,IF($C$15=5,O41,O42))))) -> 9.6³ − 9 | P16: =IF($C$15=1,P37,IF($C$15=2,P38,IF($C$15=3,P39,IF($C$15=4,P40,IF($C$15=5,P41,P42))))) -> 875.736 | Q16: =IF($C$15=1,Q37,IF($C$15=2,Q38,IF($C$15=3,Q39,IF($C$15=4,Q40,IF($C$15=5,Q41,Q42))))) -> 2.5 | R16: =IF($C$15=1,R37,IF($C$15=2,R38,IF($C$15=3,R39,IF($C$15=4,R40,IF($C$15=5,R41,R42))))) -> 3 | AA16: =IF($C$15=1,AA37,IF($C$15=2,AA38,IF($C$15=3,AA39,IF($C$15=4,AA40,IF($C$15=5,AA41,AA42))))) -> 6 + 2.5³ | AB16: =IF($C$15=1,AB37,IF($C$15=2,AB38,IF($C$15=3,AB39,IF($C$15=4,AB40,IF($C$15=5,AB41,AB42))))) -> 21.625 | AC16: =IF($C$15=1,AC37,IF($C$15=2,AC38,IF($C$15=3,AC39,IF($C$15=4,AC40,IF($C$15=5,AC41,AC42))))) -> 40.49646243
E17: =O16 -> 9.6³ − 9
I18: = | J18: =CONCATENATE(ROUND(AC16,8)) -> 40.49646243 | S18: = | T18: =$AJ18 -> 40.50 (2 d.p.) | AF18: 2 | AG18: =AC16 -> 40.49646243 | AH18: =AG18^1 -> 40.49646243 | AI18: =CONCATENATE(AG18) -> 40.4964624277457 | AJ18: =IF(AG18=0,CONCATENATE("0",AG20,""),CONCATENATE(AM18,AL18)) -> 40.50 (2 d.p.) | AK18: =CONCATENATE(ROUND(AI19,9)) -> 40.496462428 | AL18: =IF(AM19=0,CONCATENATE(AG20),CONCATENATE(AQ19,AG20," (",AF18," d.p.)")) -> 0 (2 d.p.) | AM18: =IF(AM19=0,AH19,AG19) -> 40.5 | AN18: =ROUND(100*AG19,0) -> 4050 | AO18: =AN18-AN19*100 -> 50 | AP18: =IF(AM19=0,"",IF(AO19=0,".0","")) ->  | AQ18: =AN18-AN19*100-AO19*10 -> 0
E19: =AA16 -> 6 + 2.5³ | AF19: =ROUNDDOWN(AH18,0) -> 40 | AG19: =ROUND(AH18,AF18) -> 40.5 | AH19: =ROUND(AH18,6) -> 40.496462 | AI19: =ROUND(AH18,9) -> 40.49646243 | AJ19: =ROUND(AI19-AF19,9) -> 0.496462428 | AK19: =ROUND(AH19-AF19,9) -> 0.496462 | AL19: =ROUND(AI19-AF19,9) -> 0.496462428 | AM19: =AL19-AK19 -> 4.28e-07 | AN19: =ROUNDDOWN(AN18/100,0) -> 40 | AO19: =ROUNDDOWN(AO18/10,0) -> 5 | AP19: =IF(AQ18=0,0,"") -> 0 | AQ19: =IF(AF18=2,IF(AQ18=0,CONCATENATE(AP18,AP19),AP19),AP18) -> 0
AG20: =IF(AH20="cm","","") ->  | AH20: NIL | AJ20: =ROUND(AH18,2) -> 40.5
C21: =G44 -> 4
D22: =IF(C21=1,$D$37,IF(C21=2,$D$38,IF(C21=3,$D$39,IF(C21=4,$D$40,IF(C21=5,$D$41,$D$42))))) -> 1 | O22: =IF(C21=1,O37,IF(C21=2,O38,IF(C21=3,O39,IF(C21=4,O40,IF(C21=5,O41,O42))))) -> 5.7² × 2 | P22: =IF(C21=1,P37,IF(C21=2,P38,IF(C21=3,P39,IF(C21=4,P40,IF(C21=5,P41,P42))))) -> 64.98 | Q22: =IF(C21=1,Q37,IF(C21=2,Q38,IF(C21=3,Q39,IF(C21=4,Q40,IF(C21=5,Q41,Q42))))) -> 8.3 | R22: =IF(C21=1,R37,IF(C21=2,R38,IF(C21=3,R39,IF(C21=4,R40,IF(C21=5,R41,R42))))) -> 2 | AA22: =IF(C21=1,AA37,IF(C21=2,AA38,IF(C21=3,AA39,IF(C21=4,AA40,IF(C21=5,AA41,AA42))))) -> 8.3² + 6 | AB22: =IF($C$21=1,AB37,IF($C$21=2,AB38,IF($C$21=3,AB39,IF($C$21=4,AB40,IF($C$21=5,AB41,AB42))))) -> 74.89 | AC22: =IF($C$21=1,AC37,IF($C$21=2,AC38,IF($C$21=3,AC39,IF($C$21=4,AC40,IF($C$21=5,AC41,AC42))))) -> 0.8676725865
E23: =O22 -> 5.7² × 2
I24: = | J24: =CONCATENATE(ROUND(AC22,8)) -> 0.86767259 | S24: = | T24: =$AJ24 -> 0.87 (2 d.p.) | AF24: 2 | AG24: =AC22 -> 0.8676725865 | AH24: =AG24^1 -> 0.8676725865 | AI24: =CONCATENATE(AG24) -> 0.867672586460141 | AJ24: =IF(AG24=0,CONCATENATE("0",AG26,""),CONCATENATE(AM24,AL24)) -> 0.87 (2 d.p.) | AK24: =CONCATENATE(ROUND(AI25,9)) -> 0.867672586 | AL24: =IF(AM25=0,CONCATENATE(AG26),CONCATENATE(AQ25,AG26," (",AF24," d.p.)")) -> (2 d.p.) | AM24: =IF(AM25=0,AH25,AG25) -> 0.87 | AN24: =ROUND(100*AG25,0) -> 87 | AO24: =AN24-AN25*100 -> 87 | AP24: =IF(AM25=0,"",IF(AO25=0,".0","")) ->  | AQ24: =AN24-AN25*100-AO25*10 -> 7
E25: =AA22 -> 8.3² + 6 | AF25: =ROUNDDOWN(AH24,0) -> 0 | AG25: =ROUND(AH24,AF24) -> 0.87 | AH25: =ROUND(AH24,6) -> 0.867673 | AI25: =ROUND(AH24,9) -> 0.867672586 | AJ25: =ROUND(AI25-AF25,9) -> 0.867672586 | AK25: =ROUND(AH25-AF25,9) -> 0.867673 | AL25: =ROUND(AI25-AF25,9) -> 0.867672586 | AM25: =AL25-AK25 -> -4.140000001e-07 | AN25: =ROUNDDOWN(AN24/100,0) -> 0 | AO25: =ROUNDDOWN(AO24/10,0) -> 8 | AP25: =IF(AQ24=0,0,"") ->  | AQ25: =IF(AF24=2,IF(AQ24=0,CONCATENATE(AP24,AP25),AP25),AP24) -> 
AG26: =IF(AH26="cm","","") ->  | AH26: NIL | AJ26: =ROUND(AH24,2) -> 0.87
C31: 1 | D31: 1 | E31: =IF(RAND()>0.5,INT(999*RAND())+1,INT(99*RAND())+1) -> 239 | F31: =IF(E31>99,10,IF(RAND()>0.5,10,1)) -> 10 | G31: =E31/F31 -> 23.9 | H31: =IF(M31<1,1,IF(RAND()>0.5,1,-1)) -> -1 | I31: =IF(H31=1," + "," − ") -> − | J31: =IF(E31>99,INT(9*RAND())+1,INT(99*RAND())+1) -> 4 | K31: =IF(E31>99,1,IF(RAND()>0.5,10,1)) -> 1 | L31: =J31/K31 -> 4 | M31: =ABS(L31-G31) -> 19.9 | N31: =IF(L31>G31,0,1) -> 1 | O31: =IF(N31=0,CONCATENATE(" ",L31,I31,G31," "),CONCATENATE(" ",G31,I31,L31," ")) -> 23.9 − 4 | P31: =IF(N31=0,L31+H31*G31,G31+H31*L31) -> 19.9 | Q31: =IF(RAND()>0.5,INT(999*RAND())+1,INT(99*RAND())+1) -> 599 | R31: =IF(Q31>99,10,IF(RAND()>0.5,10,1)) -> 10 | S31: =Q31/R31 -> 59.9 | T31: =IF(Y31<1,1,IF(RAND()>0.5,1,-1)) -> -1 | U31: =IF(T31=1," + "," − ") -> − | V31: =IF(Q31>99,INT(9*RAND())+1,INT(99*RAND())+1) -> 7 | W31: =IF(Q31>99,1,IF(RAND()>0.5,10,1)) -> 1 | X31: =V31/W31 -> 7 | Y31: =ABS(X31-S31) -> 52.9 | Z31: =IF(X31>S31,0,1) -> 1 | AA31: =IF(Z31=0,CONCATENATE(X31,U31,S31),CONCATENATE(S31,U31,X31)) -> 59.9 − 7 | AB31: =IF(Z31=0,X31+T31*S31,S31+T31*X31) -> 52.9 | AC31: =(P31/AB31)^(1/C31) -> 0.3761814745
C32: 1 | D32: 1 | E32: =0.1*(INT(9*RAND())+1)+1*(INT(9*RAND())+1) -> 5.9 | F32: =0.1*(INT(9*RAND())+1)+1*(INT(9*RAND())+1) -> 2.1 | O32: =CONCATENATE(" ",E32," × ",F32," ") -> 5.9 × 2.1 | P32: =E32*F32 -> 12.39 | Q32: =IF(RAND()>0.5,INT(999*RAND())+1,INT(99*RAND())+1) -> 98 | R32: =IF(Q32>99,10,IF(RAND()>0.5,10,1)) -> 10 | S32: =Q32/R32 -> 9.8 | T32: =IF(Y32<1,1,IF(RAND()>0.5,1,-1)) -> -1 | U32: =IF(T32=1," + "," − ") -> − | V32: =IF(Q32>99,INT(9*RAND())+1,INT(99*RAND())+1) -> 58 | W32: =IF(Q32>99,1,IF(RAND()>0.5,10,1)) -> 10 | X32: =V32/W32 -> 5.8 | Y32: =ABS(X32-S32) -> 4 | Z32: =IF(X32>S32,0,1) -> 1 | AA32: =IF(Z32=0,CONCATENATE(X32,U32,S32),CONCATENATE(S32,U32,X32)) -> 9.8 − 5.8 | AB32: =IF(Z32=0,X32+T32*S32,S32+T32*X32) -> 4 | AC32: =(P32/AB32)^(1/C32) -> 3.0975
C33: 1 | D33: 1 | E33: =0.1*(INT(9*RAND())+1)+1*(INT(9*RAND())+1) -> 4.5 | F33: =0.1*(INT(9*RAND())+1)+1*(INT(9*RAND())+1) -> 1.7 | O33: =CONCATENATE(" ",E33," × ",F33," ") -> 4.5 × 1.7 | P33: =E33*F33 -> 7.65 | Q33: =0.1*(INT(9*RAND())+1)+1*(INT(9*RAND())+1) -> 1.8 | R33: =0.1*(INT(9*RAND())+1)+1*(INT(9*RAND())+1) -> 2.4 | AA33: =CONCATENATE(Q33," × ",R33) -> 1.8 × 2.4 | AB33: =Q33*R33 -> 4.32 | AC33: =(P33/AB33)^(1/C33) -> 1.770833333
C34: 1 | D34: 1 | E34: =IF(RAND()>0.5,INT(999*RAND())+1,INT(99*RAND())+1) -> 54 | F34: =IF(E34>99,10,IF(RAND()>0.5,10,1)) -> 10 | G34: =E34/F34 -> 5.4 | H34: =IF(M34<1,1,IF(RAND()>0.5,1,-1)) -> 1 | I34: =IF(H34=1," + "," − ") -> + | J34: =IF(E34>99,INT(9*RAND())+1,INT(99*RAND())+1) -> 61 | K34: =IF(E34>99,1,IF(RAND()>0.5,10,1)) -> 10 | L34: =J34/K34 -> 6.1 | M34: =ABS(L34-G34) -> 0.7 | N34: =IF(L34>G34,0,1) -> 0 | O34: =IF(N34=0,CONCATENATE(" ",L34,I34,G34," "),CONCATENATE(" ",G34,I34,L34," ")) -> 6.1 + 5.4 | P34: =IF(N34=0,L34+H34*G34,G34+H34*L34) -> 11.5 | Q34: =0.1*(INT(9*RAND())+1)+1*(INT(9*RAND())+1) -> 8.7 | R34: =0.1*(INT(9*RAND())+1)+1*(INT(9*RAND())+1) -> 4.4 | AA34: =CONCATENATE(Q34," × ",R34) -> 8.7 × 4.4 | AB34: =Q34*R34 -> 38.28 | AC34: =(P34/AB34)^(1/C34) -> 0.3004179728
C37: 1 | D37: 1 | E37: =0.1*(INT(9*RAND())+1)+1*(INT(8*RAND())+2) -> 8.3 | F37: =IF(RAND()>0.5,2,3) -> 3 | G37: =IF(F37=2,"²","³") -> ³ | H37: =IF(RAND()>0.5,1,-1) -> 1 | I37: =IF(H37=1," + "," − ") -> + | J37: =E37^F37 -> 571.787 | K37: =IF(J37>11,9,ROUNDDOWN(J37,0)-1) -> 9 | L37: =INT(K37*RAND())+1 -> 9 | N37: =IF(RAND()>0.5,1,-1) -> 1 | O37: =IF(H37=-1,CONCATENATE(" ",E37,G37,I37,L37," "),IF(N37=1,CONCATENATE(" ",E37,G37,I37,L37," "),CONCATENATE(" ",L37,I37,E37,G37," "))) -> 8.3³ + 9 | P37: =E37^F37+H37*L37 -> 580.787 | Q37: =IF(RAND()>0.5,INT(999*RAND())+1,INT(99*RAND())+1) -> 255 | R37: =IF(Q37>99,10,IF(RAND()>0.5,10,1)) -> 10 | S37: =Q37/R37 -> 25.5 | T37: =IF(Y37<1,1,IF(RAND()>0.5,1,-1)) -> -1 | U37: =IF(T37=1," + "," − ") -> − | V37: =IF(Q37>99,INT(9*RAND())+1,INT(99*RAND())+1) -> 8 | W37: =IF(Q37>99,1,IF(RAND()>0.5,10,1)) -> 1 | X37: =V37/W37 -> 8 | Y37: =ABS(X37-S37) -> 17.5 | Z37: =IF(X37>S37,0,1) -> 1 | AA37: =IF(Z37=0,CONCATENATE(X37,U37,S37),CONCATENATE(S37,U37,X37)) -> 25.5 − 8 | AB37: =IF(Z37=0,X37+T37*S37,S37+T37*X37) -> 17.5 | AC37: =(P37/AB37)^(1/C37) -> 33.18782857
C38: 1 | D38: 1 | E38: =0.1*(INT(9*RAND())+1)+1*(INT(8*RAND())+2) -> 9.6 | F38: =IF(RAND()>0.5,2,3) -> 3 | G38: =IF(F38=2,"²","³") -> ³ | H38: =IF(RAND()>0.5,1,-1) -> -1 | I38: =IF(H38=1," + "," − ") -> − | J38: =E38^F38 -> 884.736 | K38: =IF(J38>11,9,ROUNDDOWN(J38,0)-1) -> 9 | L38: =INT(K38*RAND())+1 -> 9 | N38: =IF(RAND()>0.5,1,-1) -> -1 | O38: =IF(H38=-1,CONCATENATE(" ",E38,G38,I38,L38," "),IF(N38=1,CONCATENATE(" ",E38,G38,I38,L38," "),CONCATENATE(" ",L38,I38,E38,G38," "))) -> 9.6³ − 9 | P38: =E38^F38+H38*L38 -> 875.736 | Q38: =0.1*(INT(9*RAND())+1)+1*(INT(8*RAND())+2) -> 2.5 | R38: =IF(RAND()>0.5,2,3) -> 3 | S38: =IF(R38=2,"²","³") -> ³ | T38: =IF(RAND()>0.5,1,-1) -> 1 | U38: =IF(T38=1," + "," − ") -> + | V38: =Q38^R38 -> 15.625 | W38: =IF(V38>11,9,ROUNDDOWN(V38,0)-1) -> 9 | X38: =INT(W38*RAND())+1 -> 6 | Z38: =IF(RAND()>0.5,1,-1) -> -1 | AA38: =IF(T38=-1,CONCATENATE(" ",Q38,S38,U38,X38," "),IF(Z38=1,CONCATENATE(" ",Q38,S38,U38,X38," "),CONCATENATE(" ",X38,U38,Q38,S38," "))) -> 6 + 2.5³ | AB38: =Q38^R38+T38*X38 -> 21.625 | AC38: 40.49646243
C39: 1 | D39: 1 | E39: =IF(RAND()>0.5,INT(999*RAND())+1,INT(99*RAND())+1) -> 24 | F39: =IF(E39>99,10,IF(RAND()>0.5,10,1)) -> 10 | G39: =E39/F39 -> 2.4 | H39: =IF(M39<1,1,IF(RAND()>0.5,1,-1)) -> -1 | I39: =IF(H39=1," + "," − ") -> − | J39: =IF(E39>99,INT(9*RAND())+1,INT(99*RAND())+1) -> 82 | K39: =IF(E39>99,1,IF(RAND()>0.5,10,1)) -> 1 | L39: =J39/K39 -> 82 | M39: =ABS(L39-G39) -> 79.6 | N39: =IF(L39>G39,0,1) -> 0 | O39: =IF(N39=0,CONCATENATE(" ",L39,I39,G39," "),CONCATENATE(" ",G39,I39,L39," ")) -> 82 − 2.4 | P39: =IF(N39=0,L39+H39*G39,G39+H39*L39) -> 79.6 | Q39: =0.1*(INT(9*RAND())+1)+1*(INT(8*RAND())+2) -> 9.2 | R39: =IF(RAND()>0.5,2,3) -> 3 | S39: =IF(R39=2,"²","³") -> ³ | T39: =IF(RAND()>0.5,1,-1) -> 1 | U39: =IF(T39=1," + "," − ") -> + | V39: =Q39^R39 -> 778.688 | W39: =IF(V39>11,9,ROUNDDOWN(V39,0)-1) -> 9 | X39: =INT(W39*RAND())+1 -> 2 | Z39: =IF(RAND()>0.5,1,-1) -> -1 | AA39: =IF(T39=-1,CONCATENATE(" ",Q39,S39,U39,X39," "),IF(Z39=1,CONCATENATE(" ",Q39,S39,U39,X39," "),CONCATENATE(" ",X39,U39,Q39,S39," "))) -> 2 + 9.2³ | AB39: =Q39^R39+T39*X39 -> 780.688 | AC39: 0.1019613469
C40: 1 | D40: 1 | E40: =0.1*(INT(9*RAND())+1)+1*(INT(8*RAND())+2) -> 5.7 | F40: =IF(RAND()>0.5,2,3) -> 2 | G40: =IF(F40=2,"²","³") -> ² | H40: 1 | I40: × | J40: =E40^F40 -> 32.49 | K40: =IF(J40>11,9,ROUNDDOWN(J40,0)-1) -> 9 | L40: =INT((K40-1)*RAND())+2 -> 2 | N40: =IF(RAND()>0.5,1,-1) -> 1 | O40: =IF(H40=-1,CONCATENATE(" ",E40,G40,I40,L40," "),IF(N40=1,CONCATENATE(" ",E40,G40,I40,L40," "),CONCATENATE(" ",L40,I40,E40,G40," "))) -> 5.7² × 2 | P40: =E40^F40*H40*L40 -> 64.98 | Q40: =0.1*(INT(9*RAND())+1)+1*(INT(8*RAND())+2) -> 8.3 | R40: =IF(RAND()>0.5,2,3) -> 2 | S40: =IF(R40=2,"²","³") -> ² | T40: =IF(RAND()>0.5,1,-1) -> 1 | U40: =IF(T40=1," + "," − ") -> + | V40: =Q40^R40 -> 68.89 | W40: =IF(V40>11,9,ROUNDDOWN(V40,0)-1) -> 9 | X40: =INT(W40*RAND())+1 -> 6 | Z40: =IF(RAND()>0.5,1,-1) -> 1 | AA40: =IF(T40=-1,CONCATENATE(" ",Q40,S40,U40,X40," "),IF(Z40=1,CONCATENATE(" ",Q40,S40,U40,X40," "),CONCATENATE(" ",X40,U40,Q40,S40," "))) -> 8.3² + 6 | AB40: =Q40^R40+T40*X40 -> 74.89 | AC40: 0.8676725865
C41: 1 | D41: 1 | E41: =0.1*(INT(9*RAND())+1)+1*(INT(8*RAND())+2) -> 9.5 | F41: =IF(RAND()>0.5,2,3) -> 2 | G41: =IF(F41=2,"²","³") -> ² | H41: 1 | I41: × | J41: =E41^F41 -> 90.25 | K41: =IF(J41>11,9,ROUNDDOWN(J41,0)-1) -> 9 | L41: =INT((K41-1)*RAND())+2 -> 6 | N41: =IF(RAND()>0.5,1,-1) -> -1 | O41: =IF(H41=-1,CONCATENATE(" ",E41,G41,I41,L41," "),IF(N41=1,CONCATENATE(" ",E41,G41,I41,L41," "),CONCATENATE(" ",L41,I41,E41,G41," "))) -> 6 × 9.5² | P41: =E41^F41*H41*L41 -> 541.5 | Q41: =0.1*(INT(9*RAND())+1)+1*(INT(8*RAND())+2) -> 6.1 | R41: =IF(RAND()>0.5,2,3) -> 2 | S41: =IF(R41=2,"²","³") -> ² | T41: 1 | U41: × | V41: =Q41^R41 -> 37.21 | W41: =IF(V41>11,9,ROUNDDOWN(V41,0)-1) -> 9 | X41: =INT((W41-1)*RAND())+2 -> 4 | Z41: =IF(RAND()>0.5,1,-1) -> -1 | AA41: =IF(T41=-1,CONCATENATE(" ",Q41,S41,U41,X41," "),IF(Z41=1,CONCATENATE(" ",Q41,S41,U41,X41," "),CONCATENATE(" ",X41,U41,Q41,S41," "))) -> 4 × 6.1² | AB41: =Q41^R41*T41*X41 -> 148.84 | AC41: 3.63813491
C42: 1 | D42: 1 | E42: =0.1*(INT(9*RAND())+1)+1*(INT(8*RAND())+2) -> 2.1 | F42: =IF(RAND()>0.5,2,3) -> 3 | G42: =IF(F42=2,"²","³") -> ³ | H42: =IF(RAND()>0.5,1,-1) -> -1 | I42: =IF(H42=1," + "," − ") -> − | J42: =E42^F42 -> 9.261 | K42: =IF(J42>11,9,ROUNDDOWN(J42,0)-1) -> 8 | L42: =INT(K42*RAND())+1 -> 1 | N42: =IF(RAND()>0.5,1,-1) -> -1 | O42: =IF(H42=-1,CONCATENATE(" ",E42,G42,I42,L42," "),IF(N42=1,CONCATENATE(" ",E42,G42,I42,L42," "),CONCATENATE(" ",L42,I42,E42,G42," "))) -> 2.1³ − 1 | P42: =E42^F42+H42*L42 -> 8.261 | Q42: =0.1*(INT(9*RAND())+1)+1*(INT(8*RAND())+2) -> 2.4 | R42: =IF(RAND()>0.5,2,3) -> 3 | S42: =IF(R42=2,"²","³") -> ³ | T42: 1 | U42: × | V42: =Q42^R42 -> 13.824 | W42: =IF(V42>11,9,ROUNDDOWN(V42,0)-1) -> 9 | X42: =INT((W42-1)*RAND())+2 -> 2 | Z42: =IF(RAND()>0.5,1,-1) -> 1 | AA42: =IF(T42=-1,CONCATENATE(" ",Q42,S42,U42,X42," "),IF(Z42=1,CONCATENATE(" ",Q42,S42,U42,X42," "),CONCATENATE(" ",X42,U42,Q42,S42," "))) -> 2.4³ × 2 | AB42: =Q42^R42*T42*X42 -> 27.648 | AC42: 0.298791956
C44: 6 | D44: =1*(INT(C44*RAND())+1) -> 2 | E44: =1*(INT((C44-1)*RAND())+1) -> 2 | F44: =E44+D44 -> 4 | G44: =MOD(F44-1,C44)+1 -> 4

Sheet P&RDEC+VE
C2: =RFPDEPOSVE!C2 -> Evaluate each expression using a calculator. | AD2: =(AH11*1000+AI11*100+AJ11*10+AK11)/AL10 -> 700 | AE2: =2*AK4 -> 11 | AH2: x | AI2: x | AJ2: x
C3: =RFPDEPOSVE!C3 -> Round to 2 d.p. when necessary. | AD3: =ROUNDDOWN(AD2,0) -> 700 | AE3: =IF(AE2=3,1,IF(AE2=5,1,IF(AE2=7,1,IF(AE2=9,1,IF(AE2=11,1,IF(AE2=13,1,0)))))) -> 1 | AH3: =IF(AK4>5,INT(5*RAND())+5,IF(AK4>4,INT(6*RAND())+4,IF(AK4>2.5,INT(7*RAND())+3,INT(8*RAND())+2))) -> 8 | AK3: =(INT(12*RAND())+3)/2 -> 3
C4: =IF(K4=3,1,9) -> 9 | D4: =INT(C4*RAND())+0 -> 0 | E4: =INT(9*RAND())+1 -> 9 | F4: =IF(AND(G4=100,K4=3),0,INT(9*RAND())+1) -> 7 | G4: =IF(RAND()>0.5,100,10) -> 10 | H4: =D4*100+E4*10+F4 -> 97 | I4: =H4/G4 -> 9.7 | J4: =RAND() -> 0.6187158958 | K4: =IF(O4=0,IF(J4>0.5,3,2),IF(J4>0.67,3,IF(J4>0.33,2,1))) -> 2 | L4: =IF(K4=3,"³",IF(K4=2,"²","")) -> ² | M4: =RAND() -> 0.9685385675 | N4: =IF(M4>0.67," + ",IF(M4>0.33," − ","")) -> + | O4: =IF(M4>0.67,1,IF(M4>0.33,-1,0)) -> 1 | P4: =IF(X4=3,1,9) -> 1 | Q4: =INT(P4*RAND())+0 -> 0 | R4: =INT(9*RAND())+1 -> 1 | S4: =IF(AND(T4=100,X4=3),0,INT(9*RAND())+1) -> 0 | T4: =IF(RAND()>0.5,100,10) -> 100 | U4: =Q4*100+R4*10+S4 -> 10 | V4: =U4/T4 -> 0.1 | W4: =RAND() -> 0.9725934656 | X4: =IF(K4>1,IF(W4>0.67,3,IF(W4>0.33,2,1)),IF(W4>0.5,3,2)) -> 3 | Y4: =IF(X4=3,"³",IF(X4=2,"²","")) -> ³ | Z4: =ROUND(I4^K4+O4*V4^X4,9) -> 94.091 | AA4: =IF(Z4<0,-1,1) -> 1 | AD4: =IF(AD3>=10^6,7,IF(AD3>=10^5,6,IF(AD3>=10^4,5,IF(AD3>=10^3,4,IF(AD3>=10^2,3,IF(AD3>=10,2,1)))))) -> 3 | AG4: =INT(10*RAND())+0 -> 4 | AH4: =IF(AG4=0,AH3,INT(9*RAND())+1) -> 3 | AI4: =IF(AI5=1,INT(9*RAND())+1,0) -> 5 | AJ4: =AG4+AH4/10+AI4/100 -> 4.35 | AK4: =(INT(12*RAND())+3)/2 -> 5.5
U5: =IF(O4=0,CONCATENATE(I4,L4,N4),IF(AA4=1,CONCATENATE(I4,L4,N4,V4,Y4),CONCATENATE(V4,Y4,N4,I4,L4))) -> 9.7² + 0.1³ | V5: = | W5: =W6 -> 94.091 | AD5: =IF(AD3=AD2,0,1) -> 0 | AI5: =IF(RAND()>0.5,1,0) -> 1 | AJ5: =AJ4^AK4 -> 3248.560155 | AK5: =IF(AK9=0,0,1/300000000) -> 3.333333333e-09
V6: = | W6: =CONCATENATE(Z4*AA4) -> 94.091 | AD6: =IF(AD23>0,4,IF(AD19>0,3,IF(AD15>0,2,IF(AD11>0,1,0)))) -> 0 | AI6: 2 | AJ6: =AJ5+AK5 -> 3248.560155 | AK6: =AJ6^1 -> 3248.560155 | AL6: =CONCATENATE(AJ6) -> 3248.56015541489 | AM6: =IF(AJ6=0,CONCATENATE("0",AJ8,""),CONCATENATE(AP6,AO6)) -> 3248.56 (2 d.p.) | AN6: =CONCATENATE(ROUND(AL7,9)) -> 3248.560155415 | AO6: =IF(AP7=0,CONCATENATE(AJ8),CONCATENATE(AT7,AJ8," (",AI6," d.p.)")) -> (2 d.p.) | AP6: =IF(AP7=0,AK7,AJ7) -> 3248.56 | AQ6: =ROUND(100*AJ7,0) -> 324856 | AR6: =AQ6-AQ7*100 -> 56 | AS6: =IF(AP7=0,"",IF(AR7=0,".0","")) ->  | AT6: =AQ6-AQ7*100-AR7*10 -> 6
C7: =IF(K7=3,5,10) -> 5 | D7: =INT(C7*RAND())+0 -> 2 | E7: =INT(9*RAND())+1 -> 5 | F7: =IF(AND(G7=100,K7=3),0,INT(9*RAND())+1) -> 7 | G7: =IF(J4>0.67,100,IF(J4>0.33,10,1)) -> 10 | H7: =D7*100+E7*10+F7 -> 257 | I7: =H7/G7 -> 25.7 | J7: =RAND() -> 0.6100068981 | K7: =IF(J7>0.5,3,2) -> 3 | L7: =IF(K7=3,"³",IF(K7=2,"","")) -> ³ | M7: =RAND() -> 0.7753095381 | N7: =IF(M7>0.67," + ",IF(M7>0.33," − ","")) -> + | O7: =IF(M7>0.67,1,IF(M7>0.33,-1,0)) -> 1 | P7: =IF(X7=3,5,10) -> 5 | Q7: =INT(P7*RAND())+0 -> 3 | R7: =INT(9*RAND())+1 -> 5 | S7: =IF(AND(T7=100,X7=3),0,INT(9*RAND())+1) -> 0 | T7: =IF(W4>0.67,100,IF(W4>0.33,10,1)) -> 100 | U7: =Q7*100+R7*10+S7 -> 350 | V7: =U7/T7 -> 3.5 | W7: =RAND() -> 0.5080570863 | X7: =IF(W7>0.5,3,2) -> 3 | Y7: =IF(X7=3,"³",IF(X7=2,"","")) -> ³ | AA7: =AH14 -> 1 | AD7: =VLOOKUP((AD4*2+AD5+AD6*2),AD24:AE34,2) ->  | AI7: =ROUNDDOWN(AK6,0) -> 3248 | AJ7: =ROUND(AK6,AI6) -> 3248.56 | AK7: =ROUND(AK6,6) -> 3248.560155 | AL7: =ROUND(AK6,9) -> 3248.560155 | AM7: =ROUND(AL7-AI7,9) -> 0.560155415 | AN7: =ROUND(AK7-AI7,9) -> 0.560155 | AO7: =ROUND(AL7-AI7,9) -> 0.560155415 | AP7: =AO7-AN7 -> 4.15e-07 | AQ7: =ROUNDDOWN(AQ6/100,0) -> 3248 | AR7: =ROUNDDOWN(AR6/10,0) -> 5 | AS7: =IF(AT6=0,0,"") ->  | AT7: =IF(AI6=2,IF(AT6=0,CONCATENATE(AS6,AS7),AS7),AS6) -> 
U8: =IF(O7=0,CONCATENATE(L7,"√",I7,N7),IF(AH14=1,CONCATENATE(L7,"√",I7,N7,Y7,"√",V7),CONCATENATE(Y7,"√",V7,N7,L7,"√",I7))) -> ³√25.7 + ³√3.5 | V8: = | W8: =CONCATENATE(ROUND(AI15,8)) -> 4.46935223 | AD8: =ROUND((AD2-AD3),4) -> 0 | AJ8: =IF(AK8="cm","","") ->  | AK8: NIL | AM8: =ROUND(AK6,2) -> 3248.56 | AN8: =AM6 -> 3248.56 (2 d.p.)
V9: = | W9: =AL15 -> 4.47 (2 d.p.) | AD9: =ROUNDDOWN(AD8,1) -> 0 | AK9: =ROUND((AM9-AL9)*10000,7) -> 5541.156009 | AL9: =ROUNDDOWN(AM9,0) -> 32485601 | AM9: =10000*AN9 -> 32485601.55 | AN9: =CONCATENATE(AJ4^AK4) -> 3248.56015541156
C10: =CONCATENATE(AD7,AM11) -> 9 | AD10: =10*AD9 -> 0 | AH10: =IF(RAND()>0.5,1,0) -> 0 | AI10: =IF(RAND()>0.5,1,0) -> 1 | AJ10: =IF(RAND()>0.5,1,0) -> 1 | AK10: =IF(RAND()>0.5,1,0) -> 1 | AL10: =IF(AM10>0.75,1,IF(AM10>0.5,10,IF(AM10>0.25,100,1000))) -> 10 | AM10: =RAND() -> 0.725525472
U11: =IF(AE3=0,CONCATENATE(AJ4,AW125),CONCATENATE(AJ4,AW125)) -> 4.35⁵∙⁵ | V11: = | W11: =CONCATENATE(ROUND(AJ4^AK4,8)) -> 3248.56015541 | AD11: =IF(AD10>0,1,0) -> 0 | AH11: =IF(AI10=0,INT(99*RAND())+1,INT(9*RAND())+1) -> 7 | AI11: =IF(AI10=0,INT(10*RAND())+0,0) -> 0 | AJ11: =IF(AJ10=0,INT(10*RAND())+0,0) -> 0 | AK11: =IF(AK10=0,INT(10*RAND())+0,0) -> 0 | AL11: =(AH11*1000+AI11*100+AJ11*10+AK11)/AL10 -> 700 | AM11: =INT(6*RAND())+4 -> 9 | AN11: =IF(AM11=4,"⁴",IF(AM11=5,"⁵",IF(AM11=6,"⁶",IF(AM11=7,"⁷",IF(AM11=8,"⁸","⁹"))))) -> ⁹
V12: = | W12: =AM6 -> 3248.56 (2 d.p.) | AD12: =ROUNDDOWN(AD13,2) -> 0 | AI12: 2 | AJ12: =AL11^(1/AM11) -> 2.070722986 | AK12: =AJ12^1 -> 2.070722986 | AL12: =CONCATENATE(AJ12) -> 2.07072298622486 | AM12: =IF(AJ12=0,CONCATENATE("0",AJ14,""),CONCATENATE(AP12,AO12)) -> 2.07 (2 d.p.) | AN12: =CONCATENATE(ROUND(AL13,9)) -> 2.070722986 | AO12: =IF(AP13=0,CONCATENATE(AJ14),CONCATENATE(AT13,AJ14," (",AI12," d.p.)")) -> (2 d.p.) | AP12: =IF(AP13=0,AK13,AJ13) -> 2.07 | AQ12: =ROUND(100*AJ13,0) -> 207 | AR12: =AQ12-AQ13*100 -> 7 | AS12: =IF(AP13=0,"",IF(AR13=0,".0","")) -> .0 | AT12: =AQ12-AQ13*100-AR13*10 -> 7
C13: =$AK$4 -> 5.5 | D13: =$AK$4 -> 5.5 | AD13: =ROUND((AD8-AD9),4) -> 0 | AI13: =ROUNDDOWN(AK12,0) -> 2 | AJ13: =ROUND(AK12,AI12) -> 2.07 | AK13: =ROUND(AK12,6) -> 2.070723 | AL13: =ROUND(AK12,9) -> 2.070722986 | AM13: =ROUND(AL13-AI13,9) -> 0.070722986 | AN13: =ROUND(AK13-AI13,9) -> 0.070723 | AO13: =ROUND(AL13-AI13,9) -> 0.070722986 | AP13: =AO13-AN13 -> -1.399999999e-08 | AQ13: =ROUNDDOWN(AQ12/100,0) -> 2 | AR13: =ROUNDDOWN(AR12/10,0) -> 0 | AS13: =IF(AT12=0,0,"") ->  | AT13: =IF(AI12=2,IF(AT12=0,CONCATENATE(AS12,AS13),AS13),AS12) -> 
U14: =CONCATENATE(AN11,"√",AL11) -> ⁹√700 | V14: = | W14: =CONCATENATE(ROUND($AJ12,8)) -> 2.07072299 | AD14: =100*AD12 -> 0 | AH14: =IF(AI14<0,-1,1) -> 1 | AI14: =I7^(1/K7)+O7*V7^(1/X7) -> 4.469352232 | AJ14: =IF(AK14="cm","","") ->  | AK14: litres | AM14: =ROUND(AK12,2) -> 2.07 | AN14: =AM12 -> 2.07 (2 d.p.)
V15: = | W15: =AM12 -> 2.07 (2 d.p.) | AD15: =IF(AD14>0,1,0) -> 0 | AH15: 2 | AI15: =ABS(AI14) -> 4.469352232 | AJ15: =AI15^1 -> 4.469352232 | AK15: =CONCATENATE(AI15) -> 4.46935223168927 | AL15: =IF(AI15=0,CONCATENATE("0",AI17,""),CONCATENATE(AO15,AN15)) -> 4.47 (2 d.p.) | AM15: =CONCATENATE(ROUND(AK16,9)) -> 4.469352232 | AN15: =IF(AO16=0,CONCATENATE(AI17),CONCATENATE(AS16,AI17," (",AH15," d.p.)")) -> (2 d.p.) | AO15: =IF(AO16=0,AJ16,AI16) -> 4.47 | AP15: =ROUND(100*AI16,0) -> 447 | AQ15: =AP15-AP16*100 -> 47 | AR15: =IF(AO16=0,"",IF(AQ16=0,".0","")) ->  | AS15: =AP15-AP16*100-AQ16*10 -> 7
AD16: =ROUND((AD13-AD12),4) -> 0 | AH16: =ROUNDDOWN(AJ15,0) -> 4 | AI16: =ROUND(AJ15,AH15) -> 4.47 | AJ16: =ROUND(AJ15,6) -> 4.469352 | AK16: =ROUND(AJ15,9) -> 4.469352232 | AL16: =ROUND(AK16-AH16,9) -> 0.469352232 | AM16: =ROUND(AJ16-AH16,9) -> 0.469352 | AN16: =ROUND(AK16-AH16,9) -> 0.469352232 | AO16: =AN16-AM16 -> 2.32e-07 | AP16: =ROUNDDOWN(AP15/100,0) -> 4 | AQ16: =ROUNDDOWN(AQ15/10,0) -> 4 | AR16: =IF(AS15=0,0,"") ->  | AS16: =IF(AH15=2,IF(AS15=0,CONCATENATE(AR15,AR16),AR16),AR15) -> 
AD17: =ROUNDDOWN(AD16,3) -> 0 | AI17: =IF(AJ17="cm","","") ->  | AJ17: NIL | AL17: =ROUND(AJ15,2) -> 4.47
AD18: =1000*AD17 -> 0
AD19: =IF(AD18>0,1,0) -> 0
AD20: =ROUND((AD16-AD17),4) -> 0 | AG20: (15.1² ± 3.2 × 15.123)³
AD21: =ROUNDDOWN(AD20,4) -> 0 | AG21: 5 × √(3.2² ± 6.78³)
AD22: =10000*AD21 -> 0 | AG22: ⅔ × √(3.2² + 6.78³)
AD23: =IF(AD22>0,1,0) -> 0 | AG23: ³√(3.2² + 6.78³)
AD24: 1 | AE24: =CONCATENATE(" ") ->  | AG24: √(3.2 + 6.78)
AD25: 2 | AE25: =CONCATENATE(" ") ->  | AG25: ³√(8.7 × 10¹º)
AD26: 3 | AE26: =CONCATENATE(" ") ->  | AG26: ³√(3.2 − 6.78)
AD27: 4 | AE27: =CONCATENATE(" ") ->  | AG27: √6.78 × ³√5.6
AD28: 5 | AE28: =CONCATENATE(" ") ->  | AG28: √(15.1² ± 3.2³)
AD29: 6 | AE29: =CONCATENATE(" ") ->  | AG29: ³√(15.1² ± 3.2 × 15.123)
AD30: 7 | AE30: =CONCATENATE(" ") ->  | AG30: (43.6 ± 13.92)³ + √4.68
AD31: 8 | AE31: =CONCATENATE(" ") ->  | AG31: (43.6 ± 13.92)² ± ³√4.68
AD32: 9 | AE32: =CONCATENATE(" ") -> 
AD33: 10 | AE33: =CONCATENATE(" ") ->  | AG33: 3.7² ± 6.7³
AD34: 11 | AE34: =CONCATENATE("") ->  | AG34: 3.7² × 6.7³
AG35: 5 × 6.78³
AD36: ='PRBDEC+VE'!AD2 -> 700 | AG36: 1⅔ × 6.78³
AD37: =ROUNDDOWN(AD36,0) -> 700 | AG37: √4.68 ± ³√4.68
AD38: =IF(AD37>=10^6,7,IF(AD37>=10^5,6,IF(AD37>=10^4,5,IF(AD37>=10^3,4,IF(AD37>=10^2,3,IF(AD37>=10,2,1)))))) -> 3 | AG38: √4.68 × ³√4.68
AD39: =IF(AD37=AD36,0,1) -> 0 | AG39: √4.68 ÷ ³√4.68
AD40: =IF(AD57>0,4,IF(AD53>0,3,IF(AD49>0,2,IF(AD45>0,1,0)))) -> 0 | AG40: 6.7³ ± ³√4.68
AD41: =(AD38*2+AD39+AD40*2) -> 6 | AG41: 6.7³ × ³√4.68
AD42: =ROUND((AD36-AD37),4) -> 0 | AG42: 6.7³ ÷ ³√4.68
AD43: =ROUNDDOWN(AD42,1) -> 0 | AG43: 6.78³³ × 5.6³³
AD44: =10*AD43 -> 0 | AG44: 6.78³³ ÷ 5.6³³
AD45: =IF(AD44>0,1,0) -> 0 | AG45: 2⅝³
AD46: =ROUNDDOWN(AD47,2) -> 0
AD47: =ROUND((AD42-AD43),4) -> 0
AD48: =100*AD46 -> 0
AD49: =IF(AD48>0,1,0) -> 0
AD50: =ROUND((AD47-AD46),4) -> 0
AD51: =ROUNDDOWN(AD50,3) -> 0
AD52: =1000*AD51 -> 0
AD53: =IF(AD52>0,1,0) -> 0
AD54: =ROUND((AD50-AD51),4) -> 0
AD55: =ROUNDDOWN(AD54,4) -> 0
AD56: =10000*AD55 -> 0
AD57: =IF(AD56>0,1,0) -> 0
AD58: 1 | AE58: =CONCATENATE(" ") -> 
AD59: 2 | AE59: =CONCATENATE(" ") -> 
AD60: 3 | AE60: =CONCATENATE(" ") -> 
AD61: 4 | AE61: =CONCATENATE(" ") -> 
AD62: 5 | AE62: =CONCATENATE(" ") -> 
AD63: 6 | AE63: =CONCATENATE(" ") -> 
AD64: 7 | AE64: =CONCATENATE(" ") -> 
AD65: 8 | AE65: =CONCATENATE(" ") -> 
AD66: 9 | AE66: =CONCATENATE(" ") -> 
AD67: 10 | AE67: =CONCATENATE(" ") -> 
AD68: 11 | AE68: =CONCATENATE("") -> 
AD70: ='PRBDEC+VE'!AF2 -> 8.267
AD71: =ROUNDDOWN(AD70,0) -> 8
AD72: =IF(AD71>=10^6,7,IF(AD71>=10^5,6,IF(AD71>=10^4,5,IF(AD71>=10^3,4,IF(AD71>=10^2,3,IF(AD71>=10,2,1)))))) -> 1
AD73: =IF(AD71=AD70,0,1) -> 1
AD74: =IF(AD91>0,4,IF(AD87>0,3,IF(AD83>0,2,IF(AD79>0,1,0)))) -> 3
AD75: =(AD72*2+AD73+AD74*2) -> 9
AD76: =ROUND((AD70-AD71),4) -> 0.267
AD77: =ROUNDDOWN(AD76,1) -> 0.2
AD78: =10*AD77 -> 2
AD79: =IF(AD78>0,1,0) -> 1
AD80: =ROUNDDOWN(AD81,2) -> 0.06
AD81: =ROUND((AD76-AD77),4) -> 0.067
AD82: =100*AD80 -> 6
AD83: =IF(AD82>0,1,0) -> 1
AD84: =ROUND((AD81-AD80),4) -> 0.007
AD85: =ROUNDDOWN(AD84,3) -> 0.007
AD86: =1000*AD85 -> 7
AD87: =IF(AD86>0,1,0) -> 1
AD88: =ROUND((AD84-AD85),4) -> 0
AD89: =ROUNDDOWN(AD88,4) -> 0
AD90: =10000*AD89 -> 0
AD91: =IF(AD90>0,1,0) -> 0
AD92: 1 | AE92: =CONCATENATE(" ") -> 
AD93: 2 | AE93: =CONCATENATE(" ") -> 
AD94: 3 | AE94: =CONCATENATE(" ") -> 
AD95: 4 | AE95: =CONCATENATE(" ") -> 
AD96: 5 | AE96: =CONCATENATE(" ") -> 
AD97: 6 | AE97: =CONCATENATE(" ") -> 
AD98: 7 | AE98: =CONCATENATE(" ") -> 
AD99: 8 | AE99: =CONCATENATE(" ") -> 
AD100: 9 | AE100: =CONCATENATE(" ") -> 
AD101: 10 | AE101: =CONCATENATE(" ") -> 
AD102: 11 | AE102: =CONCATENATE("") -> 
AD104: 1
AD105: 1
AD106: 1
AD107: 1
AD108: 1
AC109: ='PRBDEC+VE'!AC2+'P&RDEC+VE'!AD41+'P&RDEC+VE'!AD75 -> 24 | AD109: =VLOOKUP(AC109,AD126:AE176,2) -> 
AD110: =ROUND((AD104-AD105),4) -> 0
AD111: =ROUNDDOWN(AD110,1) -> 0
AD112: =10*AD111 -> 0
AD113: =IF(AD112>0,1,0) -> 0
AD114: =ROUNDDOWN(AD115,2) -> 0
AD115: =ROUND((AD110-AD111),4) -> 0
AD116: =100*AD114 -> 0
AD117: =IF(AD116>0,1,0) -> 0
AD118: =ROUND((AD115-AD114),4) -> 0
AD119: =ROUNDDOWN(AD118,3) -> 0
AD120: =1000*AD119 -> 0
AD121: =IF(AD120>0,1,0) -> 0
AD122: =ROUND((AD118-AD119),4) -> 0
AD123: =ROUNDDOWN(AD122,4) -> 0
AD124: =10000*AD123 -> 0
AD125: =IF(AD124>0,1,0) -> 0 | AU125: =C13 -> 5.5 | AV125: =ROUND(2*AU125,1) -> 11 | AW125: =VLOOKUP(AV125,$AU$126:$AV$149,2) -> ⁵∙⁵
AD126: 1 | AE126: =CONCATENATE(" ") ->  | AU126: 1 | AV126: ⁰∙⁵
AD127: 2 | AE127: =CONCATENATE(" ") ->  | AU127: =AU126+1 -> 2 | AV127: ¹
AD128: 3 | AE128: =CONCATENATE(" ") ->  | AU128: =AU127+1 -> 3 | AV128: ¹∙⁵
AD129: 4 | AE129: =CONCATENATE(" ") ->  | AU129: 4 | AV129: ²
AD130: 5 | AE130: =CONCATENATE(" ") ->  | AU130: 5 | AV130: ²∙⁵
AD131: 6 | AE131: =CONCATENATE(" ") ->  | AU131: 6 | AV131: ³
AD132: 7 | AE132: =CONCATENATE(" ") ->  | AU132: 7 | AV132: ³∙⁵
AD133: 8 | AE133: =CONCATENATE(" ") ->  | AU133: 8 | AV133: ⁴
AD134: 9 | AE134: =CONCATENATE(" ") ->  | AU134: 9 | AV134: ⁴∙⁵
AD135: 10 | AE135: =CONCATENATE(" ") ->  | AU135: 10 | AV135: ⁵
AD136: 11 | AE136: =CONCATENATE("") ->  | AU136: 11 | AV136: ⁵∙⁵
AD137: 12 | AE137: =CONCATENATE(" ") ->  | AU137: 12 | AV137: ⁶
AD138: 13 | AU138: 13 | AV138: ⁶∙⁵
AD139: 14 | AU139: 14 | AV139: ⁷
AD140: 15 | AU140: 15 | AV140: ⁷∙⁵
AD141: 16 | AU141: 16 | AV141: ⁸
AD142: 17 | AU142: 17 | AV142: ⁸∙⁵
AD143: 18 | AU143: 18 | AV143: ⁹
AD144: 19 | AU144: 19 | AV144: ⁹∙⁵
AD145: 20 | AU145: 20 | AV145: ¹º
AD146: 21 | AU146: 21 | AV146: ¹º∙⁵
AD147: 22 | AU147: 22 | AV147: ¹¹
AD148: 23 | AU148: 23 | AV148: ¹¹∙⁵
AD149: 24 | AE149: =CONCATENATE(" ") ->  | AU149: 24 | AV149: ¹²
AD150: 25 | AU150: 25
AD151: 26 | AE151: =CONCATENATE(" ") ->  | AU151: 26
AD152: 27 | AE152: =CONCATENATE(" ") ->  | AU152: 27
AD153: 28 | AE153: =CONCATENATE(" ") ->  | AU153: 28
AD154: 29 | AU154: 29
AD155: 30 | AE155: =CONCATENATE("") ->  | AU155: 30
AD156: 31 | AU156: 31
AD157: 32 | AE157: =CONCATENATE("") ->  | AU157: 32
AD158: 33 | AU158: 33
AD159: 34 | AE159: =CONCATENATE("") ->  | AU159: 34
AD160: 35 | AU160: 35
